Workbook

Sheet Title
B2: HOPINGTON - SALMON RIVER AREA GROUNDWATER BUDGET
B3: Title Page
E17: VERSION CONTROL | K17: DATE
E18: 1544439 Hopington - Salmon River Area GW Budget FINAL | K18: 2016-06-16

Sheet Model Description
B2: HOPINGTON - SALMON RIVER AREA GROUNDWATER BUDGET
B3: Model Description

Sheet Analysis Dashboard
A30: TABULAR RESULTS
A31: INFLOW SOURCE / TYPE | B31: JAN | C31: FEB | D31: MAR | E31: APR | F31: MAY | G31: JUN | H31: JUL | I31: AUG | J31: SEP | K31: OCT | L31: NOV | M31: DEC | N31: ANNUAL
A32: ='Inflow Data'!Q13 -> GW inflow from surrounding aquitards (m3) | B32: ='Inflow Data'!R13 -> 403062 | C32: ='Inflow Data'!S13 -> 364056 | D32: ='Inflow Data'!T13 -> 403062 | E32: ='Inflow Data'!U13 -> 390060 | F32: ='Inflow Data'!V13 -> 403062 | G32: ='Inflow Data'!W13 -> 390060 | H32: ='Inflow Data'!X13 -> 403062 | I32: ='Inflow Data'!Y13 -> 403062 | J32: ='Inflow Data'!Z13 -> 390060 | K32: ='Inflow Data'!AA13 -> 403062 | L32: ='Inflow Data'!AB13 -> 390060 | M32: ='Inflow Data'!AC13 -> 403062 | N32: ='Inflow Data'!AD13 -> 4745730
A33: ='Inflow Data'!Q14 -> GW inflow from Aldergrove CD (m3) | B33: ='Inflow Data'!R14 -> 60357 | C33: ='Inflow Data'!S14 -> 54516 | D33: ='Inflow Data'!T14 -> 60357 | E33: ='Inflow Data'!U14 -> 58410 | F33: ='Inflow Data'!V14 -> 60357 | G33: ='Inflow Data'!W14 -> 58410 | H33: ='Inflow Data'!X14 -> 60357 | I33: ='Inflow Data'!Y14 -> 60357 | J33: ='Inflow Data'!Z14 -> 58410 | K33: ='Inflow Data'!AA14 -> 60357 | L33: ='Inflow Data'!AB14 -> 58410 | M33: ='Inflow Data'!AC14 -> 60357 | N33: ='Inflow Data'!AD14 -> 710655
A34: ='Inflow Data'!Q15 -> GW inflow from Beaver River (m3) | B34: ='Inflow Data'!R15 -> 112561 | C34: ='Inflow Data'!S15 -> 101668 | D34: ='Inflow Data'!T15 -> 112561 | E34: ='Inflow Data'!U15 -> 108930 | F34: ='Inflow Data'!V15 -> 112561 | G34: ='Inflow Data'!W15 -> 108930 | H34: ='Inflow Data'!X15 -> 112561 | I34: ='Inflow Data'!Y15 -> 112561 | J34: ='Inflow Data'!Z15 -> 108930 | K34: ='Inflow Data'!AA15 -> 112561 | L34: ='Inflow Data'!AB15 -> 108930 | M34: ='Inflow Data'!AC15 -> 112561 | N34: ='Inflow Data'!AD15 -> 1325315
A35: ='Inflow Data'!Q16 -> SW inflow to aquifer (m3) - Nicomekl R. / Bertrand Ck. | B35: ='Inflow Data'!R16 -> 23792.5 | C35: ='Inflow Data'!S16 -> 21490 | D35: ='Inflow Data'!T16 -> 23792.5 | E35: ='Inflow Data'!U16 -> 23025 | F35: ='Inflow Data'!V16 -> 23792.5 | G35: ='Inflow Data'!W16 -> 23025 | H35: ='Inflow Data'!X16 -> 23792.5 | I35: ='Inflow Data'!Y16 -> 23792.5 | J35: ='Inflow Data'!Z16 -> 23025 | K35: ='Inflow Data'!AA16 -> 23792.5 | L35: ='Inflow Data'!AB16 -> 23025 | M35: ='Inflow Data'!AC16 -> 23792.5 | N35: ='Inflow Data'!AD16 -> 280137.5
A36: ='Inflow Data'!Q17 -> Recharge (m3) | B36: ='Inflow Data'!R17 -> 1945622.608 | C36: ='Inflow Data'!S17 -> 1176467.075 | D36: ='Inflow Data'!T17 -> 791397.8117 | E36: ='Inflow Data'!U17 -> 100816.2003 | F36: ='Inflow Data'!V17 -> 18199.64955 | G36: ='Inflow Data'!W17 -> 14881.25668 | H36: ='Inflow Data'!X17 -> 9732.347365 | I36: ='Inflow Data'!Y17 -> 15571.75578 | J36: ='Inflow Data'!Z17 -> 181745.5394 | K36: ='Inflow Data'!AA17 -> 1055937.879 | L36: ='Inflow Data'!AB17 -> 2041588.656 | M36: ='Inflow Data'!AC17 -> 2104094.222 | N36: ='Inflow Data'!AD17 -> 9456055
A37: ='Inflow Data'!Q18 -> SW inflow from Salmon River system (m3) | B37: ='Inflow Data'!R18 -> 27807 | C37: ='Inflow Data'!S18 -> 25116 | D37: ='Inflow Data'!T18 -> 27807 | E37: ='Inflow Data'!U18 -> 26910 | F37: ='Inflow Data'!V18 -> 27807 | G37: ='Inflow Data'!W18 -> 26910 | H37: ='Inflow Data'!X18 -> 27807 | I37: ='Inflow Data'!Y18 -> 27807 | J37: ='Inflow Data'!Z18 -> 26910 | K37: ='Inflow Data'!AA18 -> 27807 | L37: ='Inflow Data'!AB18 -> 26910 | M37: ='Inflow Data'!AC18 -> 27807 | N37: ='Inflow Data'!AD18 -> 327405
A38: TOTAL | B38: =SUM(B32:B37) -> 2573202.108 | C38: =SUM(C32:C37) -> 1743313.075 | D38: 1418977.312 | E38: 708151.2003 | F38: 645779.1495 | G38: 622216.2567 | H38: 637311.8474 | I38: 643151.2558 | J38: 789080.5394 | K38: 1683517.379 | L38: 2648923.656 | M38: 2731673.722 | N38: 16845297.5
A40: OUTFLOW SOURCE / TYPE | B40: JAN | C40: FEB | D40: MAR | E40: APR | F40: MAY | G40: JUN | H40: JUL | I40: AUG | J40: SEP | K40: OCT | L40: NOV | M40: DEC | N40: ANNUAL
A41: ='Outflow Data'!Q13 -> GW outflow to surrounding aquitards (m3) | B41: ='Outflow Data'!R13 -> 419833 | C41: ='Outflow Data'!S13 -> 379204 | D41: ='Outflow Data'!T13 -> 419833 | E41: ='Outflow Data'!U13 -> 406290 | F41: ='Outflow Data'!V13 -> 419833 | G41: ='Outflow Data'!W13 -> 406290 | H41: ='Outflow Data'!X13 -> 419833 | I41: ='Outflow Data'!Y13 -> 419833 | J41: ='Outflow Data'!Z13 -> 406290 | K41: ='Outflow Data'!AA13 -> 419833 | L41: ='Outflow Data'!AB13 -> 406290 | M41: ='Outflow Data'!AC13 -> 419833 | N41: ='Outflow Data'!AD13 -> 4943195
A42: ='Outflow Data'!Q14 -> GW outflow to Aldergrove CD (m3) | B42: ='Outflow Data'!R14 -> 32705 | C42: ='Outflow Data'!S14 -> 29540 | D42: ='Outflow Data'!T14 -> 32705 | E42: ='Outflow Data'!U14 -> 31650 | F42: ='Outflow Data'!V14 -> 32705 | G42: ='Outflow Data'!W14 -> 31650 | H42: ='Outflow Data'!X14 -> 32705 | I42: ='Outflow Data'!Y14 -> 32705 | J42: ='Outflow Data'!Z14 -> 31650 | K42: ='Outflow Data'!AA14 -> 32705 | L42: ='Outflow Data'!AB14 -> 31650 | M42: ='Outflow Data'!AC14 -> 32705 | N42: ='Outflow Data'!AD14 -> 385075
A43: ='Outflow Data'!Q15 -> GW outflow to West of Aldergrove (m3) | B43: ='Outflow Data'!R15 -> 10478 | C43: ='Outflow Data'!S15 -> 9464 | D43: ='Outflow Data'!T15 -> 10478 | E43: ='Outflow Data'!U15 -> 10140 | F43: ='Outflow Data'!V15 -> 10478 | G43: ='Outflow Data'!W15 -> 10140 | H43: ='Outflow Data'!X15 -> 10478 | I43: ='Outflow Data'!Y15 -> 10478 | J43: ='Outflow Data'!Z15 -> 10140 | K43: ='Outflow Data'!AA15 -> 10478 | L43: ='Outflow Data'!AB15 -> 10140 | M43: ='Outflow Data'!AC15 -> 10478 | N43: ='Outflow Data'!AD15 -> 123370
A44: ='Outflow Data'!Q16 -> GW outflow from pumping - Private minor users (m3) | B44: ='Outflow Data'!R16 -> 131450.6924 | C44: ='Outflow Data'!S16 -> 128377.9843 | D44: ='Outflow Data'!T16 -> 126947.3782 | E44: ='Outflow Data'!U16 -> 135319.519 | F44: ='Outflow Data'!V16 -> 157395.9035 | G44: ='Outflow Data'!W16 -> 163193.985 | H44: ='Outflow Data'!X16 -> 167052.4947 | I44: ='Outflow Data'!Y16 -> 151159.3549 | J44: ='Outflow Data'!Z16 -> 153300.1057 | K44: ='Outflow Data'!AA16 -> 136155.1855 | L44: ='Outflow Data'!AB16 -> 133682.5755 | M44: ='Outflow Data'!AC16 -> 135445.0409 | N44: ='Outflow Data'!AD16 -> 1719480.219
A45: ='Outflow Data'!Q17 -> GW outflow to SW (m3) - Nicomekl R. / Bertrand Ck. | B45: ='Outflow Data'!R17 -> 108979 | C45: ='Outflow Data'!S17 -> 90405.81535 | D45: ='Outflow Data'!T17 -> 89296.15269 | E45: ='Outflow Data'!U17 -> 80593.338 | F45: ='Outflow Data'!V17 -> 73018.43204 | G45: ='Outflow Data'!W17 -> 69774.82575 | H45: ='Outflow Data'!X17 -> 72763.35362 | I45: ='Outflow Data'!Y17 -> 72223.04328 | J45: ='Outflow Data'!Z17 -> 69953.67687 | K45: ='Outflow Data'!AA17 -> 75653.03563 | L45: ='Outflow Data'!AB17 -> 86852.78785 | M45: ='Outflow Data'!AC17 -> 104129.2696 | N45: ='Outflow Data'!AD17 -> 993642.7307
A46: ='Outflow Data'!Q18 -> GW outflow to Salmon River System (m3) | B46: ='Outflow Data'!R18 -> 987707 | C46: ='Outflow Data'!S18 -> 784069.597 | D46: ='Outflow Data'!T18 -> 780727.599 | E46: ='Outflow Data'!U18 -> 708435.1893 | F46: ='Outflow Data'!V18 -> 649026.0411 | G46: ='Outflow Data'!W18 -> 620903.5902 | H46: ='Outflow Data'!X18 -> 646962.2247 | I46: ='Outflow Data'!Y18 -> 642590.6229 | J46: ='Outflow Data'!Z18 -> 622350.6583 | K46: ='Outflow Data'!AA18 -> 670342.3792 | L46: ='Outflow Data'!AB18 -> 759079.829 | M46: ='Outflow Data'!AC18 -> 900740.9999 | N46: ='Outflow Data'!AD18 -> 8772935.73
A47: ='Outflow Data'!Q19 ->  | B47: ='Outflow Data'!R19 ->  | C47: ='Outflow Data'!S19 ->  | D47: ='Outflow Data'!T19 ->  | E47: ='Outflow Data'!U19 ->  | F47: ='Outflow Data'!V19 ->  | G47: ='Outflow Data'!W19 ->  | H47: ='Outflow Data'!X19 ->  | I47: ='Outflow Data'!Y19 ->  | J47: ='Outflow Data'!Z19 ->  | K47: ='Outflow Data'!AA19 ->  | L47: ='Outflow Data'!AB19 ->  | M47: ='Outflow Data'!AC19 ->  | N47: ='Outflow Data'!AD19 -> 
A48: ='Outflow Data'!Q20 ->  | B48: ='Outflow Data'!R20 ->  | C48: ='Outflow Data'!S20 ->  | D48: ='Outflow Data'!T20 ->  | E48: ='Outflow Data'!U20 ->  | F48: ='Outflow Data'!V20 ->  | G48: ='Outflow Data'!W20 ->  | H48: ='Outflow Data'!X20 ->  | I48: ='Outflow Data'!Y20 ->  | J48: ='Outflow Data'!Z20 ->  | K48: ='Outflow Data'!AA20 ->  | L48: ='Outflow Data'!AB20 ->  | M48: ='Outflow Data'!AC20 ->  | N48: ='Outflow Data'!AD20 -> 
A49: ='Outflow Data'!Q21 ->  | B49: ='Outflow Data'!R21 ->  | C49: ='Outflow Data'!S21 ->  | D49: ='Outflow Data'!T21 ->  | E49: ='Outflow Data'!U21 ->  | F49: ='Outflow Data'!V21 ->  | G49: ='Outflow Data'!W21 ->  | H49: ='Outflow Data'!X21 ->  | I49: ='Outflow Data'!Y21 ->  | J49: ='Outflow Data'!Z21 ->  | K49: ='Outflow Data'!AA21 ->  | L49: ='Outflow Data'!AB21 ->  | M49: ='Outflow Data'!AC21 ->  | N49: ='Outflow Data'!AD21 -> 
A50: ='Outflow Data'!Q22 ->  | B50: ='Outflow Data'!R22 ->  | C50: ='Outflow Data'!S22 ->  | D50: ='Outflow Data'!T22 ->  | E50: ='Outflow Data'!U22 ->  | F50: ='Outflow Data'!V22 ->  | G50: ='Outflow Data'!W22 ->  | H50: ='Outflow Data'!X22 ->  | I50: ='Outflow Data'!Y22 ->  | J50: ='Outflow Data'!Z22 ->  | K50: ='Outflow Data'!AA22 ->  | L50: ='Outflow Data'!AB22 ->  | M50: ='Outflow Data'!AC22 ->  | N50: ='Outflow Data'!AD22 -> 
A51: ='Outflow Data'!Q23 ->  | B51: ='Outflow Data'!R23 ->  | C51: ='Outflow Data'!S23 ->  | D51: ='Outflow Data'!T23 ->  | E51: ='Outflow Data'!U23 ->  | F51: ='Outflow Data'!V23 ->  | G51: ='Outflow Data'!W23 ->  | H51: ='Outflow Data'!X23 ->  | I51: ='Outflow Data'!Y23 ->  | J51: ='Outflow Data'!Z23 ->  | K51: ='Outflow Data'!AA23 ->  | L51: ='Outflow Data'!AB23 ->  | M51: ='Outflow Data'!AC23 ->  | N51: ='Outflow Data'!AD23 -> 
A52: TOTAL | B52: =SUM(B41:B51) -> 1691152.692 | C52: =SUM(C41:C51) -> 1421061.397 | D52: 1459987.13 | E52: 1372428.046 | F52: 1342456.377 | G52: 1301952.401 | H52: 1349794.073 | I52: 1328989.021 | J52: 1293684.441 | K52: 1345166.6 | L52: 1427695.192 | M52: 1603331.31 | N52: 16937698.68
A54: SURPLUS/ DEFICIT (m3) | B54: =B38-B52 -> 882049.4154 | C54: =C38-C52 -> 322251.6782 | D54: -41009.81823 | E54: -664276.8459 | F54: -696677.227 | G54: -679736.1442 | H54: -712482.2257 | I54: -685837.7653 | J54: -504603.9014 | K54: 338350.7789 | L54: 1221228.463 | M54: 1128342.411 | N54: -92401.18069
A56: ='Equivalent GW Change'!Q13 -> Equivalent GWL Change Across Aquifer (m) | B56: ='Equivalent GW Change'!R13 -> 0.36983204 | C56: ='Equivalent GW Change'!S13 -> 0.1351160076 | D56: ='Equivalent GW Change'!T13 -> -0.01719489234 | E56: ='Equivalent GW Change'!U13 -> -0.2785227866 | F56: ='Equivalent GW Change'!V13 -> -0.292107852 | G56: ='Equivalent GW Change'!W13 -> -0.2850046726 | H56: ='Equivalent GW Change'!X13 -> -0.2987346858 | I56: ='Equivalent GW Change'!Y13 -> -0.2875630043 | J56: ='Equivalent GW Change'!Z13 -> -0.2115739629 | K56: ='Equivalent GW Change'!AA13 -> 0.1418661547 | L56: ='Equivalent GW Change'!AB13 -> 0.5120454773 | M56: ='Equivalent GW Change'!AC13 -> 0.4730995435
A57: ='Equivalent GW Change'!Q14 -> Cumulative GWL Change Across Aquifer (m) | B57: ='Equivalent GW Change'!R14 -> 0.36983204 | C57: ='Equivalent GW Change'!S14 -> 0.5049480476 | D57: ='Equivalent GW Change'!T14 -> 0.4877531553 | E57: ='Equivalent GW Change'!U14 -> 0.2092303687 | F57: ='Equivalent GW Change'!V14 -> -0.08287748326 | G57: ='Equivalent GW Change'!W14 -> -0.3678821559 | H57: ='Equivalent GW Change'!X14 -> -0.6666168417 | I57: ='Equivalent GW Change'!Y14 -> -0.954179846 | J57: ='Equivalent GW Change'!Z14 -> -1.165753809 | K57: ='Equivalent GW Change'!AA14 -> -1.023887654 | L57: ='Equivalent GW Change'!AB14 -> -0.5118421769 | M57: ='Equivalent GW Change'!AC14 -> -0.03874263341 | N57: ='Equivalent GW Change'!AD14 -> 
E175: JAN | F175: FEB | G175: MAR | H175: APR | I175: MAY | J175: JUN | K175: JUL | L175: AUG | M175: SEP | N175: OCT | O175: NOV | P175: DEC

Sheet Groundwater Budget Report
C16: GROUNDWATER BUDGET REPORT - HOPINGTON / SALMON RIVER AREA
C17: ='Form Control Selectors'!B39 -> HOPINGTON AB AQUIFER
C21: MONTHLY GROUNDWATER LEVELS IN AQUIFER
C39: SUMMARY INFORMATION | J39: GROUNDWATER OUTFLOWS TO SALMON RIVER (WHERE APPLICABLE)
C41: TOTAL EST. INFLOWS TO AQUIFER: | F41: ='Analysis Dashboard'!N38 -> 16845297.5 | G41: m3 / YEAR | J41: BASE CASE* ANNUAL OUTFLOW TO SALMON R. | N41: ='Form Control Selectors'!C93 -> 8705840.321 | O41: m3 / YEAR
C42: TOTAL EST. OUTFLOWS FROM AQUIFER: | F42: ='Analysis Dashboard'!N52 -> 16937698.68 | G42: m3 / YEAR | J42: ANNUAL OUTFLOW TO SALMON R. (SCENARIO) | N42: ='Form Control Selectors'!E93 -> 8772935.73 | O42: m3 / YEAR
C43: TOTAL EST. WATER USE: | E43: MUNICIPAL | F43: ='Form Control Selectors'!E51 -> 0 | G43: m3 / YEAR
E44: PRIVATE | F44: ='Form Control Selectors'!E61 -> 1719480.219 | G44: m3 / YEAR | J44: GAIN/LOSS IN ANNUAL OUTFLOW | N44: ='Form Control Selectors'!E94 -> 0.7706942325 | O44: %
C45: ALLOCATED WATER: | F45: ='Form Control Selectors'!B46 -> 10000 | G45: ='Form Control Selectors'!B47 -> Input Units
J46: * BASE CASE IS AVERAGE HYDROLOGICAL YEAR, CURRENT DEMAND AND STORMWATER MANAGEMENT, NO CLIMATE CHANGE EFFECTS
C48: AQUIFER NAME | E48: ='Form Control Selectors'!B39 -> HOPINGTON AB AQUIFER | J48: AQUIFER AREA | M48: ='Form Control Selectors'!B44 -> 23.85 | N48: km2
C49: HYDROLOGICAL SCENARIO | E49: ='Form Control Selectors'!B40 -> AVERAGE YEAR | J49: SPECIFIC YIELD/STORATIVITY | M49: ='Form Control Selectors'!B45 -> 0.1 | N49: (-)
C50: MODIFYING SCENARIOS | E50: ='Form Control Selectors'!B41 -> CURRENT DEMAND (2012)
E51: ='Form Control Selectors'!B42 -> NO CLIMATE CHANGE IMPACTS
E52: ='Form Control Selectors'!B43 -> CURRENT STORMWATER MANAGEMENT CONDITIONS
C53: *** USING WATER DEMAND DISTRIBUTIONS AND BASEFLOW ALLOCATION AS DEFINED IN INDIVIDUAL AQUIFER ANALYSIS SPREADSHEETS AND ASSUMPTIONS/LIMITATIONS AS DEFINED IN ASSOCIATED REPORT (GOLDER, 2016).

Sheet User Specified Distributions
B2: HOPINGTON - SALMON RIVER AREA GROUNDWATER BUDGET
B3: User-Specified Monthly Private Water Distributions
B19: JAN | C19: FEB | D19: MAR | E19: APR | F19: MAY | G19: JUN | H19: JUL | I19: AUG | J19: SEP | K19: OCT | L19: NOV | M19: DEC | O19: TOTAL (MUST EQUAL 1.0 TO USE GOLDER, 2014 ESTIMATED WATER DEMAND)
A20: User-Specifed Distribution #1 | B20: 0.01 | C20: 0.02 | D20: 0.05 | E20: 0.1 | F20: 0.1 | G20: 0.125 | H20: 0.125 | I20: 0.125 | J20: 0.125 | K20: 0.1 | L20: 0.1 | M20: 0.02 | O20: =SUM(B20:M20) -> 1
A21: User-Specifed Distribution #2 | B21: 0.05 | C21: 0.05 | D21: 0.1 | E21: 0.1 | F21: 0.1 | G21: 0.1 | H21: 0.15 | I21: 0.15 | J21: 0.1 | K21: 0.05 | L21: 0.025 | M21: 0.025 | O21: =SUM(B21:M21) -> 1
A22: User-Specifed Distribution #3 | B22: 0.02 | C22: 0.04 | D22: 0.06 | E22: 0.08 | F22: 0.1 | G22: 0.15 | H22: 0.2 | I22: 0.15 | J22: 0.1 | K22: 0.06 | L22: 0.03 | M22: 0.01 | O22: 1
A23: User-Specifed Distribution #4 | B23: 0.05 | C23: 0.06 | D23: 0.07 | E23: 0.08 | F23: 0.09 | G23: 0.1 | H23: 0.12 | I23: 0.13 | J23: 0.11 | K23: 0.08 | L23: 0.07 | M23: 0.04 | O23: 1

Sheet Hopington AB - Analysis
A7: AQUIFER - Hopington AB Aquifer
A8: TYPE - 4a, Unconfined glaciofluvial sand and gravel aquifer
A9: CLASSIFICATION - TBD
A10: RANKING - TBD
A11: AQUIFER SIZE - 23.85 km2 | G11: ALLOCATED WATER USE | L11: 10000 | N11: Input Units | O11: User-Defined - Provided for accounting and reporting purposes and does not affect the moedl results directly
A13: LOCATION | G13: AQUIFER PARAMETERS AND SELECTION
G15: Specific Yield | L15: 0.1 | N15: (-) | O15: Recommended value = 0.1
G16: Aquifer Size - in Plan View | L16: 23.85 | N16: km2 | O16: Recommended value = 23.85
G19: Private Water Users Distribution Method
L21: USE SLIDER BAR TO ADJUST
G22: Percent of Surplus/Deficit Apportioned to Baseflow | L22: ='Form Control Selectors'!H28 -> 15 | N22: % | O22: Recommended value = 15%
A40: *Golder interpretation of Township of Langley unconfined aquifers shown (Golder 2005, 2014)
G41: ----- Average head fluctuation range for average conditions in provincial groundwater observation well (Well #354) installed in the Hopington AB aquifer (for calibration)
A45: INFLOWS TO AQUIFER (AVERAGE YEAR - 1945-2012) | T45: Monthly Distributions
A46: INFLOW SOURCE / TYPE | B46: JAN | C46: FEB | D46: MAR | E46: APR | F46: MAY | G46: JUN | H46: JUL | I46: AUG | J46: SEP | K46: OCT | L46: NOV | M46: DEC | N46: ANNUAL | P46: Flow per day to distribute | R46: Check | T46: JAN | U46: FEB | V46: MAR | W46: APR | X46: MAY | Y46: JUN | Z46: JUL | AA46: AUG | AB46: SEP | AC46: OCT | AD46: NOV | AE46: DEC
A47: GW inflow from surrounding aquitards (m3) | B47: =B$129*$P47 -> 403062 | C47: 364056 | D47: 403062 | E47: 390060 | F47: 403062 | G47: 390060 | H47: 403062 | I47: 403062 | J47: 390060 | K47: 403062 | L47: 390060 | M47: 403062 | N47: =SUM(B47:M47) -> 4745730 | P47: 13002 | Q47: m3/d | R47: =N47/365 -> 13002
A48: GW inflow from Aldergrove CD (m3) | B48: 60357 | C48: 54516 | D48: 60357 | E48: 58410 | F48: 60357 | G48: 58410 | H48: 60357 | I48: 60357 | J48: 58410 | K48: 60357 | L48: 58410 | M48: 60357 | N48: =SUM(B48:M48) -> 710655 | P48: 1947 | Q48: m3/d | R48: =N48/365 -> 1947
A49: GW inflow from Beaver River (m3) | B49: 112561 | C49: 101668 | D49: 112561 | E49: 108930 | F49: 112561 | G49: 108930 | H49: 112561 | I49: 112561 | J49: 108930 | K49: 112561 | L49: 108930 | M49: 112561 | N49: 1325315 | P49: 3631 | Q49: m3/d | R49: 3631
A50: SW inflow to aquifer (m3) - Nicomekl R. / Bertrand Ck. | B50: 23792.5 | C50: 21490 | D50: 23792.5 | E50: 23025 | F50: 23792.5 | G50: 23025 | H50: 23792.5 | I50: 23792.5 | J50: 23025 | K50: 23792.5 | L50: 23025 | M50: 23792.5 | N50: =SUM(B50:M50) -> 280137.5 | P50: 767.5 | Q50: m3/d | R50: 767.5
A51: Recharge (m3) | B51: =IF('Form Control Selectors'!$E$23=FALSE,(B$129*$P51)*(T51*(365/B$129)),(B$129*$P51)*(T51*(365/B$129))*1.09) -> 1945622.608 | C51: =IF('Form Control Selectors'!$E$23=FALSE,(C$129*$P51)*(U51*(365/C$129)),(C$129*$P51)*(U51*(365/C$129))*1.09) -> 1176467.075 | D51: =IF('Form Control Selectors'!$E$23=FALSE,(D$129*$P51)*(V51*(365/D$129)),(D$129*$P51)*(V51*(365/D$129))*1.09) -> 791397.8117 | E51: =(E$129*$P51)*(W51*(365/E$129)) -> 100816.2003 | F51: 18199.64955 | G51: 14881.25668 | H51: 9732.347365 | I51: 15571.75578 | J51: 181745.5394 | K51: =IF('Form Control Selectors'!$E$23=FALSE,(K$129*$P51)*(AC51*(365/K$129)),(K$129*$P51)*(AC51*(365/K$129))*1.09) -> 1055937.879 | L51: =IF('Form Control Selectors'!$E$23=FALSE,(L$129*$P51)*(AD51*(365/L$129)),(L$129*$P51)*(AD51*(365/L$129))*1.09) -> 2041588.656 | M51: =IF('Form Control Selectors'!$E$23=FALSE,(M$129*$P51)*(AE51*(365/M$129)),(M$129*$P51)*(AE51*(365/M$129))*1.09) -> 2104094.222 | N51: 9456055 | P51: =IF('Form Control Selectors'!F23=FALSE,25907,25907*0.99) -> 25907 | Q51: m3/d | R51: 25907 | T51: 0.2057541552 | U51: 0.1244141531 | V51: 0.08369217519 | W51: 0.0106615497 | X51: 0.001924655636 | Y51: 0.001573727805 | Z51: 0.001029218566 | AA51: 0.001646749705 | AB51: 0.01922001717 | AC51: 0.1116679079 | AD51: 0.2159027899 | AE51: 0.2225129001
A52: SW inflow from Salmon River system (m3) | B52: =B$129*$P52 -> 27807 | C52: 25116 | D52: 27807 | E52: 26910 | F52: 27807 | G52: 26910 | H52: 27807 | I52: 27807 | J52: 26910 | K52: 27807 | L52: 26910 | M52: 27807 | N52: =SUM(B52:M52) -> 327405 | P52: 897 | Q52: m3/d | R52: 897
A54: TOTAL | B54: =SUM(B47:B53) -> 2573202.108 | C54: =SUM(C47:C53) -> 1743313.075 | D54: 1418977.312 | E54: 708151.2003 | F54: 645779.1495 | G54: 622216.2567 | H54: 637311.8474 | I54: 643151.2558 | J54: 789080.5394 | K54: 1683517.379 | L54: 2648923.656 | M54: 2731673.722 | N54: 16845297.5
A56: OUTFLOWS FROM AQUIFER (AVERAGE YEAR, 1945-2012) | T56: Monthly Distributions
A57: OUTFLOW SOURCE / TYPE | B57: JAN | C57: FEB | D57: MAR | E57: APR | F57: MAY | G57: JUN | H57: JUL | I57: AUG | J57: SEP | K57: OCT | L57: NOV | M57: DEC | N57: ANNUAL | P57: Flow per day to distribute | R57: Check | T57: JAN | U57: FEB | V57: MAR | W57: APR | X57: MAY | Y57: JUN | Z57: JUL | AA57: AUG | AB57: SEP | AC57: OCT | AD57: NOV | AE57: DEC
A58: GW outflow to surrounding aquitards (m3) | B58: =B$129*$P58 -> 419833 | C58: 379204 | D58: 419833 | E58: 406290 | F58: 419833 | G58: 406290 | H58: 419833 | I58: 419833 | J58: 406290 | K58: 419833 | L58: 406290 | M58: 419833 | N58: =SUM(B58:M58) -> 4943195 | P58: 13543 | Q58: m3/d | R58: =N58/365 -> 13543
A59: GW outflow to Aldergrove CD (m3) | B59: 32705 | C59: 29540 | D59: 32705 | E59: 31650 | F59: 32705 | G59: 31650 | H59: 32705 | I59: 32705 | J59: 31650 | K59: 32705 | L59: 31650 | M59: 32705 | N59: =SUM(B59:M59) -> 385075 | P59: 1055 | Q59: m3/d | R59: =N59/365 -> 1055
A60: GW outflow to West of Aldergrove (m3) | B60: 10478 | C60: 9464 | D60: 10478 | E60: 10140 | F60: 10478 | G60: 10140 | H60: 10478 | I60: 10478 | J60: 10140 | K60: 10478 | L60: 10140 | M60: 10478 | N60: 123370 | P60: 338 | Q60: m3/d | R60: 338
A61: GW outflow from pumping - Private minor users (m3) | B61: =(B$129*$P61)*(T61*(365/B$129)) -> 131450.6924 | C61: =(C$129*$P61)*(U61*(365/C$129)) -> 128377.9843 | D61: =(D$129*$P61)*(V61*(365/D$129)) -> 126947.3782 | E61: =(E$129*$P61)*(W61*(365/E$129)) -> 135319.519 | F61: =(F$129*$P61)*(X61*(365/F$129)) -> 157395.9035 | G61: =(G$129*$P61)*(Y61*(365/G$129)) -> 163193.985 | H61: =(H$129*$P61)*(Z61*(365/H$129)) -> 167052.4947 | I61: =(I$129*$P61)*(AA61*(365/I$129)) -> 151159.3549 | J61: =(J$129*$P61)*(AB61*(365/J$129)) -> 153300.1057 | K61: =(K$129*$P61)*(AC61*(365/K$129)) -> 136155.1855 | L61: =(L$129*$P61)*(AD61*(365/L$129)) -> 133682.5755 | M61: =(M$129*$P61)*(AE61*(365/M$129)) -> 135445.0409 | N61: 1719480.219 | P61: =4710.9*'Form Control Selectors'!H43 -> 4710.9 | Q61: m3/d | R61: 4710.904711 | T61: =VLOOKUP('Form Control Selectors'!$H$23,'Water Budget Distributions'!$B$16:$N$22,2,FALSE) -> 0.076448 | U61: =VLOOKUP('Form Control Selectors'!$H$23,'Water Budget Distributions'!$B$16:$N$22,3,FALSE) -> 0.074661 | V61: =VLOOKUP('Form Control Selectors'!$H$23,'Water Budget Distributions'!$B$16:$N$22,4,FALSE) -> 0.073829 | W61: =VLOOKUP('Form Control Selectors'!$H$23,'Water Budget Distributions'!$B$16:$N$22,5,FALSE) -> 0.078698 | X61: =VLOOKUP('Form Control Selectors'!$H$23,'Water Budget Distributions'!$B$16:$N$22,6,FALSE) -> 0.091537 | Y61: =VLOOKUP('Form Control Selectors'!$H$23,'Water Budget Distributions'!$B$16:$N$22,7,FALSE) -> 0.094909 | Z61: =VLOOKUP('Form Control Selectors'!$H$23,'Water Budget Distributions'!$B$16:$N$22,8,FALSE) -> 0.097153 | AA61: =VLOOKUP('Form Control Selectors'!$H$23,'Water Budget Distributions'!$B$16:$N$22,9,FALSE) -> 0.08791 | AB61: =VLOOKUP('Form Control Selectors'!$H$23,'Water Budget Distributions'!$B$16:$N$22,10,FALSE) -> 0.089155 | AC61: =VLOOKUP('Form Control Selectors'!$H$23,'Water Budget Distributions'!$B$16:$N$22,11,FALSE) -> 0.079184 | AD61: =VLOOKUP('Form Control Selectors'!$H$23,'Water Budget Distributions'!$B$16:$N$22,12,FALSE) -> 0.077746 | AE61: =VLOOKUP('Form Control Selectors'!$H$23,'Water Budget Distributions'!$B$16:$N$22,13,FALSE) -> 0.078771
A62: GW outflow to SW (m3) - Nicomekl R. / Bertrand Ck. | B62: =B$129*$P62+25000 -> 108979 | C62: =C$129*$P62+(0.11*(B66*'Form Control Selectors'!$H$29)) -> 90405.81535 | D62: =D$129*$P62+(0.11*(C66*'Form Control Selectors'!$H$29)) -> 89296.15269 | E62: =E$129*$P62+(0.11*(D66*'Form Control Selectors'!$H$29)) -> 80593.338 | F62: =F$129*$P62+(0.11*(E66*'Form Control Selectors'!$H$29)) -> 73018.43204 | G62: =G$129*$P62+(0.11*(F66*'Form Control Selectors'!$H$29)) -> 69774.82575 | H62: =H$129*$P62+(0.11*(G66*'Form Control Selectors'!$H$29)) -> 72763.35362 | I62: =I$129*$P62+(0.11*(H66*'Form Control Selectors'!$H$29)) -> 72223.04328 | J62: =J$129*$P62+(0.11*(I66*'Form Control Selectors'!$H$29)) -> 69953.67687 | K62: =K$129*$P62+(0.11*(J66*'Form Control Selectors'!$H$29)) -> 75653.03563 | L62: =L$129*$P62+(0.11*(K66*'Form Control Selectors'!$H$29)) -> 86852.78785 | M62: =M$129*$P62+(0.11*(L66*'Form Control Selectors'!$H$29)) -> 104129.2696 | N62: 993642.7307 | P62: 2709 | Q62: m3/d | R62: 2722.308851
A63: GW outflow to Salmon River System (m3) | B63: =B$129*$P63+(250000) -> 987707 | C63: =C$129*$P63+(0.89*('Form Control Selectors'!$H$29*B66)) -> 784069.597 | D63: =D$129*$P63+(0.89*('Form Control Selectors'!$H$29*C66)) -> 780727.599 | E63: =E$129*$P63+(0.89*('Form Control Selectors'!$H$29*D66)) -> 708435.1893 | F63: =F$129*$P63+(0.89*('Form Control Selectors'!$H$29*E66)) -> 649026.0411 | G63: =G$129*$P63+(0.89*('Form Control Selectors'!$H$29*F66)) -> 620903.5902 | H63: =H$129*$P63+(0.89*('Form Control Selectors'!$H$29*G66)) -> 646962.2247 | I63: =I$129*$P63+(0.89*('Form Control Selectors'!$H$29*H66)) -> 642590.6229 | J63: =J$129*$P63+(0.89*('Form Control Selectors'!$H$29*I66)) -> 622350.6583 | K63: =K$129*$P63+(0.89*('Form Control Selectors'!$H$29*J66)) -> 670342.3792 | L63: =L$129*$P63+(0.89*('Form Control Selectors'!$H$29*K66)) -> 759079.829 | M63: =M$129*$P63+(0.89*('Form Control Selectors'!$H$29*L66)) -> 900740.9999 | N63: 8772935.73 | P63: 23797 | Q63: m3/d | R63: 24035.44036
A64: TOTAL | B64: =SUM(B58:B63) -> 1691152.692 | C64: =SUM(C58:C63) -> 1421061.397 | D64: 1459987.13 | E64: 1372428.046 | F64: 1342456.377 | G64: 1301952.401 | H64: 1349794.073 | I64: 1328989.021 | J64: 1293684.441 | K64: 1345166.6 | L64: 1427695.192 | M64: 1603331.31 | N64: 16937698.68
A66: SURPLUS/ DEFICIT (m3) | B66: =B54-B64 -> 882049.4154 | C66: =C54-C64 -> 322251.6782 | D66: -41009.81823 | E66: -664276.8459 | F66: -696677.227 | G66: -679736.1442 | H66: -712482.2257 | I66: -685837.7653 | J66: -504603.9014 | K66: 338350.7789 | L66: 1221228.463 | M66: 1128342.411 | N66: -92401.18069
A68: Equivalent GWL Change Across Aquifer (m) | B68: =(B66/($L$16*1000000))/$L$15 -> 0.36983204 | C68: =(C66/($L$16*1000000))/$L$15 -> 0.1351160076 | D68: -0.01719489234 | E68: -0.2785227866 | F68: -0.292107852 | G68: -0.2850046726 | H68: -0.2987346858 | I68: -0.2875630043 | J68: -0.2115739629 | K68: 0.1418661547 | L68: 0.5120454773 | M68: 0.4730995435 | N68: -0.03874263341
A69: Cumulative GWL Change Across Aquifer (m) | B69: =B68 -> 0.36983204 | C69: =C68+B69 -> 0.5049480476 | D69: =D68+C69 -> 0.4877531553 | E69: 0.2092303687 | F69: -0.08287748326 | G69: -0.3678821559 | H69: -0.6666168417 | I69: -0.954179846 | J69: -1.165753809 | K69: -1.023887654 | L69: -0.5118421769 | M69: -0.03874263341
A71: INFLOWS TO AQUIFER (DRY YEAR - 1951) | T71: Monthly Distributions
A72: INFLOW SOURCE / TYPE | B72: JAN | C72: FEB | D72: MAR | E72: APR | F72: MAY | G72: JUN | H72: JUL | I72: AUG | J72: SEP | K72: OCT | L72: NOV | M72: DEC | N72: ANNUAL | P72: Flow per day to distribute | R72: Check | T72: JAN | U72: FEB | V72: MAR | W72: APR | X72: MAY | Y72: JUN | Z72: JUL | AA72: AUG | AB72: SEP | AC72: OCT | AD72: NOV | AE72: DEC
A73: GW inflow from surrounding aquitards (m3) | B73: =B$129*$P73 -> 403062 | C73: 364056 | D73: 403062 | E73: 390060 | F73: 403062 | G73: 390060 | H73: 403062 | I73: 403062 | J73: 390060 | K73: 403062 | L73: 390060 | M73: 403062 | N73: =SUM(B73:M73) -> 4745730 | P73: 13002 | Q73: m3/d | R73: =N73/365 -> 13002
A74: GW inflow from Aldergrove CD (m3) | B74: 60357 | C74: 54516 | D74: 60357 | E74: 58410 | F74: 60357 | G74: 58410 | H74: 60357 | I74: 60357 | J74: 58410 | K74: 60357 | L74: 58410 | M74: 60357 | N74: =SUM(B74:M74) -> 710655 | P74: 1947 | Q74: m3/d | R74: =N74/365 -> 1947
A75: GW inflow from Beaver River (m3) | B75: 112561 | C75: 101668 | D75: 112561 | E75: 108930 | F75: 112561 | G75: 108930 | H75: 112561 | I75: 112561 | J75: 108930 | K75: 112561 | L75: 108930 | M75: 112561 | N75: 1325315 | P75: 3631 | Q75: m3/d | R75: 3631
A76: SW inflow to aquifer (m3) - Nicomekl R. / Bertrand Ck. | B76: 23792.5 | C76: 21490 | D76: 23792.5 | E76: 23025 | F76: 23792.5 | G76: 23025 | H76: 23792.5 | I76: 23792.5 | J76: 23025 | K76: 23792.5 | L76: 23025 | M76: 23792.5 | N76: 280137.5 | P76: 767.5 | Q76: m3/d | R76: 767.5
A77: Recharge (m3) | B77: =IF('Form Control Selectors'!$E$23=FALSE,(B$129*$P77)*(T77*(365/B$129)),(B$129*$P77)*(T77*(365/B$129))*1.09) -> 768322.2126 | C77: =IF('Form Control Selectors'!$E$23=FALSE,(C$129*$P77)*(U77*(365/C$129)),(C$129*$P77)*(U77*(365/C$129))*1.09) -> 470303.1142 | D77: =IF('Form Control Selectors'!$E$23=FALSE,(D$129*$P77)*(V77*(365/D$129)),(D$129*$P77)*(V77*(365/D$129))*1.09) -> 257710.9583 | E77: =(E$129*$P77)*(W77*(365/E$129)) -> 0 | F77: =(F$129*$P77)*(X77*(365/F$129)) -> 0 | G77: =(G$129*$P77)*(Y77*(365/G$129)) -> 0 | H77: =(H$129*$P77)*(Z77*(365/H$129)) -> 0 | I77: =(I$129*$P77)*(AA77*(365/I$129)) -> 0 | J77: =(J$129*$P77)*(AB77*(365/J$129)) -> 0 | K77: =(K$129*$P77)*(AC77*(365/K$129)) -> 0 | L77: =(L$129*$P77)*(AD77*(365/L$129)) -> 0 | M77: =IF('Form Control Selectors'!$E$23=FALSE,(M$129*$P77)*(AE77*(365/M$129)),(M$129*$P77)*(AE77*(365/M$129))*1.09) -> 1508708.715 | N77: 3005045 | P77: =IF('Form Control Selectors'!F23=FALSE,8233,8233*0.99) -> 8233 | Q77: m3/d | R77: 8233 | T77: 0.25567744 | U77: 0.1565045163 | V77: 0.08575943399 | W77: 0 | X77: 0 | Y77: 0 | Z77: 0 | AA77: 0 | AB77: 0 | AC77: 0 | AD77: 0 | AE77: 0.5020586097
A78: SW inflow from Salmon River system (m3) | B78: =B$129*$P78 -> 27807 | C78: 25116 | D78: 27807 | E78: 26910 | F78: 27807 | G78: 26910 | H78: 27807 | I78: 27807 | J78: 26910 | K78: 27807 | L78: 26910 | M78: 27807 | N78: 327405 | P78: 897 | Q78: m3/d | R78: 897
A80: TOTAL | B80: =SUM(B73:B79) -> 1395901.713 | C80: =SUM(C73:C79) -> 1037149.114 | D80: 885290.4583 | E80: 607335 | F80: 627579.5 | G80: 607335 | H80: 627579.5 | I80: 627579.5 | J80: 607335 | K80: 627579.5 | L80: 607335 | M80: 2136288.215 | N80: 10394287.5
A82: OUTFLOWS FROM AQUIFER (DRY YEAR - 1951) | T82: Monthly Distributions
A83: OUTFLOW SOURCE / TYPE | B83: JAN | C83: FEB | D83: MAR | E83: APR | F83: MAY | G83: JUN | H83: JUL | I83: AUG | J83: SEP | K83: OCT | L83: NOV | M83: DEC | N83: ANNUAL | P83: Flow per day to distribute | R83: Check | T83: JAN | U83: FEB | V83: MAR | W83: APR | X83: MAY | Y83: JUN | Z83: JUL | AA83: AUG | AB83: SEP | AC83: OCT | AD83: NOV | AE83: DEC
A84: GW outflow to surrounding aquitards (m3) | B84: =B$129*$P84 -> 419833 | C84: 379204 | D84: 419833 | E84: 406290 | F84: 419833 | G84: 406290 | H84: 419833 | I84: 419833 | J84: 406290 | K84: 419833 | L84: 406290 | M84: 419833 | N84: =SUM(B84:M84) -> 4943195 | P84: 13543 | Q84: m3/d | R84: =N84/365 -> 13543
A85: GW outflow to Aldergrove CD (m3) | B85: 32705 | C85: 29540 | D85: 32705 | E85: 31650 | F85: 32705 | G85: 31650 | H85: 32705 | I85: 32705 | J85: 31650 | K85: 32705 | L85: 31650 | M85: 32705 | N85: 385075 | P85: 1055 | Q85: m3/d | R85: =N85/365 -> 1055
A86: GW outflow to West of Aldergrove (m3) | B86: 10478 | C86: 9464 | D86: 10478 | E86: 10140 | F86: 10478 | G86: 10140 | H86: 10478 | I86: 10478 | J86: 10140 | K86: 10478 | L86: 10140 | M86: 10478 | N86: 123370 | P86: 338 | Q86: m3/d | R86: 338
A87: GW outflow from pumping - Private minor users (m3) | B87: =(B$129*$P87)*(T87*(365/B$129)) -> 131450.6924 | C87: =(C$129*$P87)*(U87*(365/C$129)) -> 128377.9843 | D87: =(D$129*$P87)*(V87*(365/D$129)) -> 126947.3782 | E87: =(E$129*$P87)*(W87*(365/E$129)) -> 135319.519 | F87: =(F$129*$P87)*(X87*(365/F$129)) -> 157395.9035 | G87: =(G$129*$P87)*(Y87*(365/G$129)) -> 163193.985 | H87: =(H$129*$P87)*(Z87*(365/H$129)) -> 167052.4947 | I87: =(I$129*$P87)*(AA87*(365/I$129)) -> 151159.3549 | J87: =(J$129*$P87)*(AB87*(365/J$129)) -> 153300.1057 | K87: =(K$129*$P87)*(AC87*(365/K$129)) -> 136155.1855 | L87: =(L$129*$P87)*(AD87*(365/L$129)) -> 133682.5755 | M87: =(M$129*$P87)*(AE87*(365/M$129)) -> 135445.0409 | N87: 1719480.219 | P87: =4710.9*'Form Control Selectors'!H43 -> 4710.9 | Q87: m3/d | R87: 4710.904711 | T87: =VLOOKUP('Form Control Selectors'!$H$23,'Water Budget Distributions'!$B$16:$N$22,2,FALSE) -> 0.076448 | U87: =VLOOKUP('Form Control Selectors'!$H$23,'Water Budget Distributions'!$B$16:$N$22,3,FALSE) -> 0.074661 | V87: =VLOOKUP('Form Control Selectors'!$H$23,'Water Budget Distributions'!$B$16:$N$22,4,FALSE) -> 0.073829 | W87: =VLOOKUP('Form Control Selectors'!$H$23,'Water Budget Distributions'!$B$16:$N$22,5,FALSE) -> 0.078698 | X87: =VLOOKUP('Form Control Selectors'!$H$23,'Water Budget Distributions'!$B$16:$N$22,6,FALSE) -> 0.091537 | Y87: =VLOOKUP('Form Control Selectors'!$H$23,'Water Budget Distributions'!$B$16:$N$22,7,FALSE) -> 0.094909 | Z87: =VLOOKUP('Form Control Selectors'!$H$23,'Water Budget Distributions'!$B$16:$N$22,8,FALSE) -> 0.097153 | AA87: =VLOOKUP('Form Control Selectors'!$H$23,'Water Budget Distributions'!$B$16:$N$22,9,FALSE) -> 0.08791 | AB87: =VLOOKUP('Form Control Selectors'!$H$23,'Water Budget Distributions'!$B$16:$N$22,10,FALSE) -> 0.089155 | AC87: =VLOOKUP('Form Control Selectors'!$H$23,'Water Budget Distributions'!$B$16:$N$22,11,FALSE) -> 0.079184 | AD87: =VLOOKUP('Form Control Selectors'!$H$23,'Water Budget Distributions'!$B$16:$N$22,12,FALSE) -> 0.077746 | AE87: =VLOOKUP('Form Control Selectors'!$H$23,'Water Budget Distributions'!$B$16:$N$22,13,FALSE) -> 0.078771
A88: GW outflow to SW (m3) - Nicomekl R. / Bertrand Ck. | B88: =B$129*$P88+21000 -> 104979 | C88: =C$129*$P88+(0.11*(B92*'Form Control Selectors'!$H$29)) -> 71623.85883 | D88: =D$129*$P88+(0.11*(C92*'Form Control Selectors'!$H$29)) -> 80461.74082 | E88: =E$129*$P88+(0.11*(D92*'Form Control Selectors'!$H$29)) -> 73112.6667 | F88: =F$129*$P88+(0.11*(E92*'Form Control Selectors'!$H$29)) -> 72477.06543 | G88: =G$129*$P88+(0.11*(F92*'Form Control Selectors'!$H$29)) -> 69555.73653 | H88: =H$129*$P88+(0.11*(G92*'Form Control Selectors'!$H$29)) -> 72550.67627 | I88: =I$129*$P88+(0.11*(H92*'Form Control Selectors'!$H$29)) -> 72094.36115 | J88: =J$129*$P88+(0.11*(I92*'Form Control Selectors'!$H$29)) -> 69716.04522 | K88: =K$129*$P88+(0.11*(J92*'Form Control Selectors'!$H$29)) -> 72689.87897 | L88: =L$129*$P88+(0.11*(K92*'Form Control Selectors'!$H$29)) -> 69874.28634 | M88: =M$129*$P88+(0.11*(L92*'Form Control Selectors'!$H$29)) -> 72989.83205 | N88: 902125.1483 | P88: 2709 | Q88: m3/d | R88: 2471.575749
A89: GW outflow to Salmon River System (m3) | B89: =B$129*$P89+215000 -> 952707 | C89: =C$129*$P89+(0.89*(B92*'Form Control Selectors'!$H$29)) -> 632106.4942 | D89: =D$129*$P89+(0.89*(C92*'Form Control Selectors'!$H$29)) -> 709249.1757 | E89: =E$129*$P89+(0.89*(D92*'Form Control Selectors'!$H$29)) -> 647909.7578 | F89: =F$129*$P89+(0.89*(E92*'Form Control Selectors'!$H$29)) -> 644645.893 | G89: =G$129*$P89+(0.89*(F92*'Form Control Selectors'!$H$29)) -> 619130.9592 | H89: =H$129*$P89+(0.89*(G92*'Form Control Selectors'!$H$29)) -> 645241.4716 | I89: =I$129*$P89+(0.89*(H92*'Form Control Selectors'!$H$29)) -> 641549.4675 | J89: =J$129*$P89+(0.89*(I92*'Form Control Selectors'!$H$29)) -> 620428.0022 | K89: =K$129*$P89+(0.89*(J92*'Form Control Selectors'!$H$29)) -> 646367.7481 | L89: =L$129*$P89+(0.89*(K92*'Form Control Selectors'!$H$29)) -> 621708.3168 | M89: =M$129*$P89+(0.89*(L92*'Form Control Selectors'!$H$29)) -> 648794.6412 | N89: 8029838.927 | P89: 23797 | Q89: m3/d | R89: 21999.5587
A90: TOTAL | B90: =SUM(B84:B89) -> 1652152.692 | C90: =SUM(C84:C89) -> 1250316.337 | D90: 1379674.295 | E90: 1304421.944 | F90: 1337534.862 | G90: 1299960.681 | H90: 1347860.643 | I90: 1327819.184 | J90: 1291524.153 | K90: 1318228.813 | L90: 1273345.179 | M90: 1320245.514 | N90: 16103084.3
A92: SURPLUS/ DEFICIT (m3) | B92: =B80-B90 -> -256250.9797 | C92: =C80-C90 -> -213167.2231 | D92: -494383.8364 | E92: -697086.9435 | F92: -709955.3619 | G92: -692625.6807 | H92: -720281.1426 | I92: -700239.6835 | J92: -684189.1531 | K92: -690649.3126 | L92: -666010.1786 | M92: 816042.7007 | N92: -5708796.795
A94: Equivalent GWL Change Across Aquifer (m) | B94: =(B92/($L$16*1000000))/$L$15 -> -0.1074427588 | C94: =(C92/($L$16*1000000))/$L$15 -> -0.08937829063 | D94: -0.2072888203 | E94: -0.2922796409 | F94: -0.2976752042 | G94: -0.2904090904 | H94: -0.302004672 | I94: -0.2936015445 | J94: -0.2868717623 | K94: -0.2895804246 | L94: -0.2792495508 | M94: 0.3421562687 | N94: -2.393625491
A95: Cumulative GWL Change Across Aquifer (m) | B95: =B94 -> -0.1074427588 | C95: =C94+B95 -> -0.1968210494 | D95: =D94+C95 -> -0.4041098697 | E95: =E94+D95 -> -0.6963895106 | F95: =F94+E95 -> -0.9940647148 | G95: =G94+F95 -> -1.284473805 | H95: =H94+G95 -> -1.586478477 | I95: =I94+H95 -> -1.880080022 | J95: =J94+I95 -> -2.166951784 | K95: =K94+J95 -> -2.456532208 | L95: =L94+K95 -> -2.735781759 | M95: =M94+L95 -> -2.393625491
A97: INFLOWS TO AQUIFER (WET YEAR - 1971) | T97: Monthly Distributions
A98: INFLOW SOURCE / TYPE | B98: JAN | C98: FEB | D98: MAR | E98: APR | F98: MAY | G98: JUN | H98: JUL | I98: AUG | J98: SEP | K98: OCT | L98: NOV | M98: DEC | N98: ANNUAL | P98: Flow per day to distribute | R98: Check | T98: JAN | U98: FEB | V98: MAR | W98: APR | X98: MAY | Y98: JUN | Z98: JUL | AA98: AUG | AB98: SEP | AC98: OCT | AD98: NOV | AE98: DEC
A99: GW inflow from surrounding aquitards (m3) | B99: =B$129*$P99 -> 403062 | C99: 364056 | D99: 403062 | E99: 390060 | F99: 403062 | G99: 390060 | H99: 403062 | I99: 403062 | J99: 390060 | K99: 403062 | L99: 390060 | M99: 403062 | N99: =SUM(B99:M99) -> 4745730 | P99: 13002 | Q99: m3/d | R99: =N99/365 -> 13002
A100: GW inflow from Aldergrove CD (m3) | B100: 60357 | C100: 54516 | D100: 60357 | E100: 58410 | F100: 60357 | G100: 58410 | H100: 60357 | I100: 60357 | J100: 58410 | K100: 60357 | L100: 58410 | M100: 60357 | N100: =SUM(B100:M100) -> 710655 | P100: 1947 | Q100: m3/d | R100: =N100/365 -> 1947
A101: GW inflow from Beaver River (m3) | B101: 112561 | C101: 101668 | D101: 112561 | E101: 108930 | F101: 112561 | G101: 108930 | H101: 112561 | I101: 112561 | J101: 108930 | K101: 112561 | L101: 108930 | M101: 112561 | N101: 1325315 | P101: 3631 | Q101: m3/d | R101: 3631
A102: SW inflow to aquifer (m3) - Nicomekl R. / Bertrand Ck. | B102: 23792.5 | C102: 21490 | D102: 23792.5 | E102: 23025 | F102: 23792.5 | G102: 23025 | H102: 23792.5 | I102: 23792.5 | J102: 23025 | K102: 23792.5 | L102: 23025 | M102: 23792.5 | N102: 280137.5 | P102: 767.5 | Q102: m3/d | R102: 767.5
A103: Recharge (m3) | B103: =IF('Form Control Selectors'!$E$23=FALSE,(B$129*$P103)*(T103*(365/B$129)),(B$129*$P103)*(T103*(365/B$129))*1.09) -> 3795035.101 | C103: =IF('Form Control Selectors'!$E$23=FALSE,(C$129*$P103)*(U103*(365/C$129)),(C$129*$P103)*(U103*(365/C$129))*1.09) -> 1427066.035 | D103: =IF('Form Control Selectors'!$E$23=FALSE,(D$129*$P103)*(V103*(365/D$129)),(D$129*$P103)*(V103*(365/D$129))*1.09) -> 1449179.657 | E103: =(E$129*$P103)*(W103*(365/E$129)) -> 0 | F103: =(F$129*$P103)*(X103*(365/F$129)) -> 0 | G103: =(G$129*$P103)*(Y103*(365/G$129)) -> 0 | H103: =(H$129*$P103)*(Z103*(365/H$129)) -> 0 | I103: =(I$129*$P103)*(AA103*(365/I$129)) -> 0 | J103: =(J$129*$P103)*(AB103*(365/J$129)) -> 326558.565 | K103: =IF('Form Control Selectors'!$E$23=FALSE,(K$129*$P103)*(AC103*(365/K$129)),(K$129*$P103)*(AC103*(365/K$129))*1.09) -> 1758965.135 | L103: =IF('Form Control Selectors'!$E$23=FALSE,(L$129*$P103)*(AD103*(365/L$129)),(L$129*$P103)*(AD103*(365/L$129))*1.09) -> 3284327.948 | M103: =IF('Form Control Selectors'!$E$23=FALSE,(M$129*$P103)*(AE103*(365/M$129)),(M$129*$P103)*(AE103*(365/M$129))*1.09) -> 3270252.559 | N103: 15311385 | P103: =IF('Form Control Selectors'!F23=FALSE,41949,41949*0.99) -> 41949 | Q103: m3/d | R103: 41949 | T103: 0.247857075 | U103: 0.09320293591 | V103: 0.09464719601 | W103: 0 | X103: 0 | Y103: 0 | Z103: 0 | AA103: 0 | AB103: 0.02132782664 | AC103: 0.1148795576 | AD103: 0.2145023424 | AE103: 0.2135830664
A104: SW inflow from Salmon River system (m3) | B104: =B$129*$P104 -> 27807 | C104: 25116 | D104: 27807 | E104: 26910 | F104: 27807 | G104: 26910 | H104: 27807 | I104: 27807 | J104: 26910 | K104: 27807 | L104: 26910 | M104: 27807 | N104: 327405 | P104: 897 | Q104: m3/d | R104: 897
A106: TOTAL | B106: =SUM(B99:B105) -> 4422614.601 | C106: =SUM(C99:C105) -> 1993912.035 | D106: 2076759.157 | E106: 607335 | F106: 627579.5 | G106: 607335 | H106: 627579.5 | I106: 627579.5 | J106: 933893.565 | K106: 2386544.635 | L106: 3891662.948 | M106: 3897832.059 | N106: 22700627.5
A108: OUTFLOWS FROM AQUIFER (WET YEAR - 1971) | T108: Monthly Distributions
A109: OUTFLOW SOURCE / TYPE | B109: JAN | C109: FEB | D109: MAR | E109: APR | F109: MAY | G109: JUN | H109: JUL | I109: AUG | J109: SEP | K109: OCT | L109: NOV | M109: DEC | N109: ANNUAL | P109: Flow per day to distribute | R109: Check | T109: JAN | U109: FEB | V109: MAR | W109: APR | X109: MAY | Y109: JUN | Z109: JUL | AA109: AUG | AB109: SEP | AC109: OCT | AD109: NOV | AE109: DEC
A110: GW outflow to surrounding aquitards (m3) | B110: =B$129*$P110 -> 419833 | C110: 379204 | D110: 419833 | E110: 406290 | F110: 419833 | G110: 406290 | H110: 419833 | I110: 419833 | J110: 406290 | K110: 419833 | L110: 406290 | M110: 419833 | N110: =SUM(B110:M110) -> 4943195 | P110: 13543 | Q110: m3/d | R110: =N110/365 -> 13543
A111: GW outflow to Aldergrove CD (m3) | B111: 32705 | C111: 29540 | D111: 32705 | E111: 31650 | F111: 32705 | G111: 31650 | H111: 32705 | I111: 32705 | J111: 31650 | K111: 32705 | L111: 31650 | M111: 32705 | N111: 385075 | P111: 1055 | Q111: m3/d | R111: =N111/365 -> 1055
A112: GW outflow to West of Aldergrove (m3) | B112: 10478 | C112: 9464 | D112: 10478 | E112: 10140 | F112: 10478 | G112: 10140 | H112: 10478 | I112: 10478 | J112: 10140 | K112: 10478 | L112: 10140 | M112: 10478 | N112: 123370 | P112: 338 | Q112: m3/d | R112: 338
A113: GW outflow from pumping - Private minor users (m3) | B113: =(B$129*$P113)*(T113*(365/B$129)) -> 131450.6924 | C113: =(C$129*$P113)*(U113*(365/C$129)) -> 128377.9843 | D113: =(D$129*$P113)*(V113*(365/D$129)) -> 126947.3782 | E113: =(E$129*$P113)*(W113*(365/E$129)) -> 135319.519 | F113: =(F$129*$P113)*(X113*(365/F$129)) -> 157395.9035 | G113: =(G$129*$P113)*(Y113*(365/G$129)) -> 163193.985 | H113: =(H$129*$P113)*(Z113*(365/H$129)) -> 167052.4947 | I113: =(I$129*$P113)*(AA113*(365/I$129)) -> 151159.3549 | J113: =(J$129*$P113)*(AB113*(365/J$129)) -> 153300.1057 | K113: =(K$129*$P113)*(AC113*(365/K$129)) -> 136155.1855 | L113: =(L$129*$P113)*(AD113*(365/L$129)) -> 133682.5755 | M113: =(M$129*$P113)*(AE113*(365/M$129)) -> 135445.0409 | N113: 1719480.219 | P113: =4710.9*'Form Control Selectors'!H43 -> 4710.9 | Q113: m3/d | R113: 4710.904711 | T113: =VLOOKUP('Form Control Selectors'!$H$23,'Water Budget Distributions'!$B$16:$N$22,2,FALSE) -> 0.076448 | U113: =VLOOKUP('Form Control Selectors'!$H$23,'Water Budget Distributions'!$B$16:$N$22,3,FALSE) -> 0.074661 | V113: =VLOOKUP('Form Control Selectors'!$H$23,'Water Budget Distributions'!$B$16:$N$22,4,FALSE) -> 0.073829 | W113: =VLOOKUP('Form Control Selectors'!$H$23,'Water Budget Distributions'!$B$16:$N$22,5,FALSE) -> 0.078698 | X113: =VLOOKUP('Form Control Selectors'!$H$23,'Water Budget Distributions'!$B$16:$N$22,6,FALSE) -> 0.091537 | Y113: =VLOOKUP('Form Control Selectors'!$H$23,'Water Budget Distributions'!$B$16:$N$22,7,FALSE) -> 0.094909 | Z113: =VLOOKUP('Form Control Selectors'!$H$23,'Water Budget Distributions'!$B$16:$N$22,8,FALSE) -> 0.097153 | AA113: =VLOOKUP('Form Control Selectors'!$H$23,'Water Budget Distributions'!$B$16:$N$22,9,FALSE) -> 0.08791 | AB113: =VLOOKUP('Form Control Selectors'!$H$23,'Water Budget Distributions'!$B$16:$N$22,10,FALSE) -> 0.089155 | AC113: =VLOOKUP('Form Control Selectors'!$H$23,'Water Budget Distributions'!$B$16:$N$22,11,FALSE) -> 0.079184 | AD113: =VLOOKUP('Form Control Selectors'!$H$23,'Water Budget Distributions'!$B$16:$N$22,12,FALSE) -> 0.077746 | AE113: =VLOOKUP('Form Control Selectors'!$H$23,'Water Budget Distributions'!$B$16:$N$22,13,FALSE) -> 0.078771
A114: GW outflow to SW (m3) - Nicomekl R. / Bertrand Ck. | B114: =B$129*$P114+47500 -> 131479 | C114: =C$129*$P114+(0.11*(B118*'Form Control Selectors'!$H$29)) -> 116837.3715 | D114: =D$129*$P114+(0.11*(C118*'Form Control Selectors'!$H$29)) -> 89466.30211 | E114: =E$129*$P114+(0.11*(D118*'Form Control Selectors'!$H$29)) -> 91421.21604 | F114: =F$129*$P114+(0.11*(E118*'Form Control Selectors'!$H$29)) -> 69730.78303 | G114: =G$129*$P114+(0.11*(F118*'Form Control Selectors'!$H$29)) -> 69967.67889 | H114: =H$129*$P114+(0.11*(G118*'Form Control Selectors'!$H$29)) -> 72488.88491 | I114: =I$129*$P114+(0.11*(H118*'Form Control Selectors'!$H$29)) -> 72103.62985 | J114: =J$129*$P114+(0.11*(I118*'Form Control Selectors'!$H$29)) -> 69714.65492 | K114: =K$129*$P114+(0.11*(J118*'Form Control Selectors'!$H$29)) -> 78078.30384 | L114: =L$129*$P114+(0.11*(K118*'Form Control Selectors'!$H$29)) -> 98088.94734 | M114: =M$129*$P114+(0.11*(L118*'Form Control Selectors'!$H$29)) -> 122949.044 | N114: 1082325.816 | P114: 2709 | Q114: m3/d | R114: 2965.276209
A115: GW outflow to Salmon River System (m3) | B115: =B$129*$P115+475000 -> 1212707 | C115: =C$129*$P115+(0.89*(B118*'Form Control Selectors'!$H$29)) -> 997924.9148 | D115: =D$129*$P115+(0.89*(C118*'Form Control Selectors'!$H$29)) -> 782104.2625 | E115: =E$129*$P115+(0.89*(D118*'Form Control Selectors'!$H$29)) -> 796042.5661 | F115: =F$129*$P115+(0.89*(E118*'Form Control Selectors'!$H$29)) -> 622425.9718 | G115: =G$129*$P115+(0.89*(F118*'Form Control Selectors'!$H$29)) -> 622463.9474 | H115: =H$129*$P115+(0.89*(G118*'Form Control Selectors'!$H$29)) -> 644741.5234 | I115: =I$129*$P115+(0.89*(H118*'Form Control Selectors'!$H$29)) -> 641624.4597 | J115: =J$129*$P115+(0.89*(I118*'Form Control Selectors'!$H$29)) -> 620416.7534 | K115: =K$129*$P115+(0.89*(J118*'Form Control Selectors'!$H$29)) -> 689965.0038 | L115: =L$129*$P115+(0.89*(K118*'Form Control Selectors'!$H$29)) -> 849990.5739 | M115: =M$129*$P115+(0.89*(L118*'Form Control Selectors'!$H$29)) -> 1053010.084 | N115: 9533417.06 | P115: 23797 | Q115: m3/d | R115: 26118.95085
A116: TOTAL | B116: =SUM(B110:B115) -> 1938652.692 | C116: =SUM(C110:C115) -> 1661348.271 | D116: 1461533.943 | E116: 1470863.301 | F116: 1312568.658 | G116: 1303705.611 | H116: 1347298.903 | I116: 1327903.444 | J116: 1291511.514 | K116: 1367214.493 | L116: 1529842.097 | M116: 1774420.169 | N116: 17786863.1
A118: SURPLUS/ DEFICIT (m3) | B118: =B106-B116 -> 2483961.909 | C118: =C106-C116 -> 332563.7643 | D118: 615225.2144 | E118: -863528.3012 | F118: -684989.1583 | G118: -696370.6112 | H118: -719719.403 | I118: -700323.9445 | J118: -357617.949 | K118: 1019330.142 | L118: 2361820.851 | M118: 2123411.891 | N118: 4913764.404
A120: Equivalent GWL Change Across Aquifer (m) | B120: =(B118/($L$16*1000000))/$L$15 -> 1.041493463 | C120: =(C118/($L$16*1000000))/$L$15 -> 0.1394397335 | D120: 0.2579560648 | E120: -0.3620663737 | F120: -0.2872071942 | G120: -0.2919792919 | H120: -0.3017691417 | I120: -0.293636874 | J120: -0.1499446327 | K120: 0.4273920929 | L120: 0.9902812793 | M120: 0.8903194511 | N120: 2.060278576
A121: Cumulative GWL Change Across Aquifer (m) | B121: =B120 -> 1.041493463 | C121: =C120+B121 -> 1.180933196 | D121: =D120+C121 -> 1.438889261 | E121: =E120+D121 -> 1.076822887 | F121: =F120+E121 -> 0.789615693 | G121: =G120+F121 -> 0.4976364011 | H121: =H120+G121 -> 0.1958672594 | I121: =I120+H121 -> -0.09776961461 | J121: =J120+I121 -> -0.2477142473 | K121: =K120+J121 -> 0.1796778456 | L121: =L120+K121 -> 1.169959125 | M121: =M120+L121 -> 2.060278576
A129: Days in Month | B129: 31 | C129: 28 | D129: 31 | E129: 30 | F129: 31 | G129: 30 | H129: 31 | I129: 31 | J129: 30 | K129: 31 | L129: 30 | M129: 31
B156: JAN | C156: FEB | D156: MAR | E156: APR | F156: MAY | G156: JUN | H156: JUL | I156: AUG | J156: SEP | K156: OCT | L156: NOV | M156: DEC

Sheet Fort Langley - Analysis
A7: AQUIFER - Fort Langley Aquifer
A8: TYPE - 1a, Predominantly unconfined aquifer along major rivers of higher stream order / 4a, Unconfined glaciofluvial sand and gravel aquifer
A9: CLASSIFICATION - TBD
A10: RANKING - TBD
A11: AQUIFER SIZE - 5.19 km2 | G11: ALLOCATED WATER USE | N11: Input Units | O11: User-Defined - Provided for accounting and reporting purposes and does not affect the moedl results directly
A13: LOCATION | G13: AQUIFER PARAMETERS AND SELECTION
G15: Specific Yield | L15: 0.14 | N15: (-) | O15: Recommended value = 0.14
G16: Aquifer Size - in Plan View | L16: 5.19 | N16: km2 | O16: Recommended value = 5.19
G19: Private Water Users Distribution Method
L21: USE SLIDER BAR TO ADJUST
G22: Percent of Surplus/Deficit Apportioned to Baseflow | L22: ='Form Control Selectors'!I28 -> 25 | N22: % | O22: Recommended value = 25%
A40: *Golder interpretation of Township of Langley unconfined aquifers shown (Golder 2005, 2014)
G41: ----- Average head fluctuation range for average conditions in provincial groundwater observation well (Well #452) installed in the Fort Langley aquifer (for calibration)
A45: INFLOWS TO AQUIFER (AVERAGE YEAR - 1945-2012) | T45: Monthly Distributions
A46: INFLOW SOURCE / TYPE | B46: JAN | C46: FEB | D46: MAR | E46: APR | F46: MAY | G46: JUN | H46: JUL | I46: AUG | J46: SEP | K46: OCT | L46: NOV | M46: DEC | N46: ANNUAL | P46: Flow per day to distribute | R46: Check | T46: JAN | U46: FEB | V46: MAR | W46: APR | X46: MAY | Y46: JUN | Z46: JUL | AA46: AUG | AB46: SEP | AC46: OCT | AD46: NOV | AE46: DEC
A47: GW inflow from surrounding aquitards (m3) | B47: =B$129*$P47 -> 400210 | C47: 361480 | D47: 400210 | E47: 387300 | F47: 400210 | G47: 387300 | H47: 400210 | I47: 400210 | J47: 387300 | K47: 400210 | L47: 387300 | M47: 400210 | N47: =SUM(B47:M47) -> 4712150 | P47: 12910 | Q47: m3/d | R47: =N47/365 -> 12910
A48: Recharge (m3) | B48: =IF('Form Control Selectors'!$E$23=FALSE,(B$129*$P48)*(T48*(365/B$129)),(B$129*$P48)*(T48*(365/B$129))*1.09) -> 447304.6981 | C48: =IF('Form Control Selectors'!$E$23=FALSE,(C$129*$P48)*(U48*(365/C$129)),(C$129*$P48)*(U48*(365/C$129))*1.09) -> 270473.4452 | D48: =IF('Form Control Selectors'!$E$23=FALSE,(D$129*$P48)*(V48*(365/D$129)),(D$129*$P48)*(V48*(365/D$129))*1.09) -> 181944.8221 | E48: =(E$129*$P48)*(W48*(365/E$129)) -> 23177.9585 | F48: 4184.156123 | G48: 3421.247266 | H48: 2237.496975 | I48: 3579.995161 | J48: 41783.86565 | K48: =IF('Form Control Selectors'!$E$23=FALSE,(K$129*$P48)*(AC48*(365/K$129)),(K$129*$P48)*(AC48*(365/K$129))*1.09) -> 242763.4077 | L48: =IF('Form Control Selectors'!$E$23=FALSE,(L$129*$P48)*(AD48*(365/L$129)),(L$129*$P48)*(AD48*(365/L$129))*1.09) -> 469367.5915 | M48: =IF('Form Control Selectors'!$E$23=FALSE,(M$129*$P48)*(AE48*(365/M$129)),(M$129*$P48)*(AE48*(365/M$129))*1.09) -> 483737.8158 | N48: =SUM(B48:M48) -> 2173976.5 | P48: =IF('Form Control Selectors'!F23=FALSE,5956.1,5956.1*0.99) -> 5956.1 | Q48: m3/d | R48: =N48/365 -> 5956.1 | T48: 0.2057541552 | U48: 0.1244141531 | V48: 0.08369217519 | W48: 0.0106615497 | X48: 0.001924655636 | Y48: 0.001573727805 | Z48: 0.001029218566 | AA48: 0.001646749705 | AB48: 0.01922001717 | AC48: 0.1116679079 | AD48: 0.2159027899 | AE48: 0.2225129001
A49: SW inflow from Fraser River (m3) | B49: =B$129*$P49 -> 15004 | C49: 13552 | D49: 15004 | E49: 14520 | F49: 15004 | G49: 14520 | H49: 15004 | I49: 15004 | J49: 14520 | K49: 15004 | L49: 14520 | M49: 15004 | N49: 176660 | P49: 484 | Q49: m3/d | R49: =N49/365 -> 484
A54: TOTAL | B54: =SUM(B47:B53) -> 862518.6981 | C54: 645505.4452 | D54: 597158.8221 | E54: 424997.9585 | F54: 419398.1561 | G54: 405241.2473 | H54: 417451.497 | I54: 418793.9952 | J54: 443603.8657 | K54: 657977.4077 | L54: 871187.5915 | M54: 898951.8158 | N54: 7062786.5
A56: OUTFLOWS FROM AQUIFER (AVERAGE YEAR, 1945-2012) | T56: Monthly Distributions (filled Fort Langley 2 Feb/Aug periods of shutdown / maintenance with average pumping during that time)
A57: OUTFLOW SOURCE / TYPE | B57: JAN | C57: FEB | D57: MAR | E57: APR | F57: MAY | G57: JUN | H57: JUL | I57: AUG | J57: SEP | K57: OCT | L57: NOV | M57: DEC | N57: ANNUAL | P57: Flow per day to distribute | R57: Check | T57: JAN | U57: FEB | V57: MAR | W57: APR | X57: MAY | Y57: JUN | Z57: JUL | AA57: AUG | AB57: SEP | AC57: OCT | AD57: NOV | AE57: DEC
A58: GW outflow to Fraser River (m3) | B58: =B$129*$P58+35000 -> 334041.5 | C58: =C$129*$P58+(0.875*(B66*'Form Control Selectors'!$I$29)) -> 323203.6078 | D58: =D$129*$P58+(0.875*(C66*'Form Control Selectors'!$I$29)) -> 309781.0213 | E58: =E$129*$P58+(0.875*(D66*'Form Control Selectors'!$I$29)) -> 293300.5473 | F58: =F$129*$P58+(0.875*(E66*'Form Control Selectors'!$I$29)) -> 266310.8535 | G58: =G$129*$P58+(0.875*(F66*'Form Control Selectors'!$I$29)) -> 253839.0545 | H58: =H$129*$P58+(0.875*(G66*'Form Control Selectors'!$I$29)) -> 261378.0013 | I58: =I$129*$P58+(0.875*(H66*'Form Control Selectors'!$I$29)) -> 260663.566 | J58: =J$129*$P58+(0.875*(I66*'Form Control Selectors'!$I$29)) -> 257462.6842 | K58: =K$129*$P58+(0.875*(J66*'Form Control Selectors'!$I$29)) -> 272582.4697 | L58: =L$129*$P58+(0.875*(K66*'Form Control Selectors'!$I$29)) -> 312443.5536 | M58: =M$129*$P58+(0.875*(L66*'Form Control Selectors'!$I$29)) -> 359744.3192 | N58: =SUM(B58:M58) -> 3504751.178 | P58: 9646.5 | Q58: m3/d | R58: =N58/365 -> 9602.058023
A59: GW outflow from pumping - Muni - Ft. Langley 2 (m3) | B59: =(B$129*$P59)*(T59*(365/B$129)) -> 214829.2005 | C59: 209807.4892 | D59: 207469.4569 | E59: 221152.0042 | F59: 257231.3275 | G59: 266707.1027 | H59: 273013.0457 | I59: 247038.9678 | J59: 250537.5859 | K59: 222517.7298 | L59: 218476.7557 | M59: 221357.1441 | N59: =SUM(B59:M59) -> 2810137.81 | P59: =7699*'Form Control Selectors'!I37 -> 7699 | Q59: m3/d | R59: =N59/365 -> 7699.007699 | T59: 0.076448 | U59: 0.074661 | V59: 0.073829 | W59: 0.078698 | X59: 0.091537 | Y59: 0.094909 | Z59: 0.097153 | AA59: 0.08791 | AB59: 0.089155 | AC59: 0.079184 | AD59: 0.077746 | AE59: 0.078771
A60: GW outflow from pumping - Private minor users (m3) | B60: =(B$129*$P60)*(T60*(365/B$129)) -> 11021.8904 | C60: =(C$129*$P60)*(U60*(365/C$129)) -> 10764.24968 | D60: 10644.29608 | E60: 11346.28415 | F60: 13197.34697 | G60: 13683.50507 | H60: 14007.03377 | I60: 12674.42425 | J60: 12853.92213 | K60: 11416.3532 | L60: 11209.02955 | M60: 11356.80892 | N60: 144175.1442 | P60: =395*'Form Control Selectors'!I43 -> 395 | Q60: m3/d | R60: =N60/365 -> 395.000395 | T60: =VLOOKUP('Form Control Selectors'!$I$23,'Water Budget Distributions'!$P$16:$AB$22,2,FALSE) -> 0.076448 | U60: =VLOOKUP('Form Control Selectors'!$I$23,'Water Budget Distributions'!$P$16:$AB$22,3,FALSE) -> 0.074661 | V60: =VLOOKUP('Form Control Selectors'!$I$23,'Water Budget Distributions'!$P$16:$AB$22,4,FALSE) -> 0.073829 | W60: =VLOOKUP('Form Control Selectors'!$I$23,'Water Budget Distributions'!$P$16:$AB$22,5,FALSE) -> 0.078698 | X60: =VLOOKUP('Form Control Selectors'!$I$23,'Water Budget Distributions'!$P$16:$AB$22,6,FALSE) -> 0.091537 | Y60: =VLOOKUP('Form Control Selectors'!$I$23,'Water Budget Distributions'!$P$16:$AB$22,7,FALSE) -> 0.094909 | Z60: =VLOOKUP('Form Control Selectors'!$I$23,'Water Budget Distributions'!$P$16:$AB$22,8,FALSE) -> 0.097153 | AA60: =VLOOKUP('Form Control Selectors'!$I$23,'Water Budget Distributions'!$P$16:$AB$22,9,FALSE) -> 0.08791 | AB60: =VLOOKUP('Form Control Selectors'!$I$23,'Water Budget Distributions'!$P$16:$AB$22,10,FALSE) -> 0.089155 | AC60: =VLOOKUP('Form Control Selectors'!$I$23,'Water Budget Distributions'!$P$16:$AB$22,11,FALSE) -> 0.079184 | AD60: =VLOOKUP('Form Control Selectors'!$I$23,'Water Budget Distributions'!$P$16:$AB$22,12,FALSE) -> 0.077746 | AE60: =VLOOKUP('Form Control Selectors'!$I$23,'Water Budget Distributions'!$P$16:$AB$22,13,FALSE) -> 0.078771
A61: GW outflow to Salmon River (m3) | B61: =B$129*$P61+10000 -> 59875.9 | C61: =C$129*$P61+(0.125*(B$66*'Form Control Selectors'!$I$29)) -> 52635.14398 | D61: =D$129*$P61+(0.125*(C$66*'Form Control Selectors'!$I$29)) -> 51410.11733 | E61: =E$129*$P61+(0.125*(D$66*'Form Control Selectors'!$I$29)) -> 48824.93533 | F61: =F$129*$P61+(0.125*(E$66*'Form Control Selectors'!$I$29)) -> 45200.09336 | G61: =G$129*$P61+(0.125*(F$66*'Form Control Selectors'!$I$29)) -> 43187.57921 | H61: =H$129*$P61+(0.125*(G$66*'Form Control Selectors'!$I$29)) -> 44495.40018 | I61: =I$129*$P61+(0.125*(H$66*'Form Control Selectors'!$I$29)) -> 44393.338 | J61: =J$129*$P61+(0.125*(I$66*'Form Control Selectors'!$I$29)) -> 43705.24059 | K61: =K$129*$P61+(0.125*(J$66*'Form Control Selectors'!$I$29)) -> 46096.03853 | L61: =L$129*$P61+(0.125*(K$66*'Form Control Selectors'!$I$29)) -> 51559.65051 | M61: =M$129*$P61+(0.125*(L$66*'Form Control Selectors'!$I$29)) -> 58547.73132 | N61: =SUM(B61:M61) -> 589931.1683 | P61: 1608.9 | Q61: m3/d | R61: =N61/365 -> 1616.249776
A64: TOTAL | B64: =SUM(B58:B63) -> 619768.4909 | C64: =SUM(C58:C63) -> 596410.4907 | D64: 579304.8916 | E64: 574623.771 | F64: 581939.6213 | G64: 577417.2415 | H64: 592893.4809 | I64: 564770.2961 | J64: 564559.4328 | K64: 552612.5913 | L64: 593688.9894 | M64: 651006.0035 | N64: 7048995.301
A66: SURPLUS/ DEFICIT (m3) | B66: =B54-B64 -> 242750.2072 | C66: 49094.95446 | D66: 17853.9305 | E66: -149625.8125 | F66: -162541.4652 | G66: -172175.9942 | H66: -175441.9839 | I66: -145976.301 | J66: -120955.5672 | K66: 105364.8164 | L66: 277498.6021 | M66: 247945.8123 | N66: 13791.199
A68: Equivalent GWL Change Across Aquifer (m) | B68: =(B66/($L$16*1000000))/$L$15 -> 0.3340905687 | C68: =(C66/($L$16*1000000))/$L$15 -> 0.06756806284 | D68: 0.02457188342 | E68: -0.2059259737 | F68: -0.2237014385 | G68: -0.2369611811 | H68: -0.2414560747 | I68: -0.2009032493 | J68: -0.1664678876 | K68: 0.1450107575 | L68: 0.3819138482 | M68: 0.3412411399 | N68: 0.01898045555
A69: Cumulative GWL Change Across Aquifer (m) | B69: =B68 -> 0.3340905687 | C69: =C68+B69 -> 0.4016586316 | D69: =D68+C69 -> 0.426230515 | E69: 0.2203045413 | F69: -0.003396897241 | G69: -0.2403580784 | H69: -0.4818141531 | I69: -0.6827174024 | J69: -0.8491852901 | K69: -0.7041745326 | L69: -0.3222606844 | M69: 0.01898045555
A71: INFLOWS TO AQUIFER (DRY YEAR - 1951) | T71: Monthly Distributions
A72: INFLOW SOURCE / TYPE | B72: JAN | C72: FEB | D72: MAR | E72: APR | F72: MAY | G72: JUN | H72: JUL | I72: AUG | J72: SEP | K72: OCT | L72: NOV | M72: DEC | N72: ANNUAL | P72: Flow per day to distribute | R72: Check | T72: JAN | U72: FEB | V72: MAR | W72: APR | X72: MAY | Y72: JUN | Z72: JUL | AA72: AUG | AB72: SEP | AC72: OCT | AD72: NOV | AE72: DEC
A73: GW inflow from surrounding aquitards (m3) | B73: =B$129*$P73 -> 400210 | C73: 361480 | D73: 400210 | E73: 387300 | F73: 400210 | G73: 387300 | H73: 400210 | I73: 400210 | J73: 387300 | K73: 400210 | L73: 387300 | M73: 400210 | N73: =SUM(B73:M73) -> 4712150 | P73: 12910 | Q73: m3/d | R73: =N73/365 -> 12910
A74: Recharge (m3) | B74: =IF('Form Control Selectors'!$E$23=FALSE,(B$129*$P74)*(T74*(365/B$129)),(B$129*$P74)*(T74*(365/B$129))*1.09) -> 247210.6816 | C74: =IF('Form Control Selectors'!$E$23=FALSE,(C$129*$P74)*(U74*(365/C$129)),(C$129*$P74)*(U74*(365/C$129))*1.09) -> 151321.8692 | D74: =IF('Form Control Selectors'!$E$23=FALSE,(D$129*$P74)*(V74*(365/D$129)),(D$129*$P74)*(V74*(365/D$129))*1.09) -> 82919.51033 | E74: =(E$129*$P74)*(W74*(365/E$129)) -> 0 | F74: =(F$129*$P74)*(X74*(365/F$129)) -> 0 | G74: =(G$129*$P74)*(Y74*(365/G$129)) -> 0 | H74: =(H$129*$P74)*(Z74*(365/H$129)) -> 0 | I74: =(I$129*$P74)*(AA74*(365/I$129)) -> 0 | J74: =(J$129*$P74)*(AB74*(365/J$129)) -> 0 | K74: =(K$129*$P74)*(AC74*(365/K$129)) -> 0 | L74: =(L$129*$P74)*(AD74*(365/L$129)) -> 0 | M74: =IF('Form Control Selectors'!$E$23=FALSE,(M$129*$P74)*(AE74*(365/M$129)),(M$129*$P74)*(AE74*(365/M$129))*1.09) -> 485432.9389 | N74: 966885 | P74: =IF('Form Control Selectors'!F23=FALSE,2649,2649*0.99) -> 2649 | Q74: m3/d | R74: =N74/365 -> 2649 | T74: 0.25567744 | U74: 0.1565045163 | V74: 0.08575943399 | W74: 0 | X74: 0 | Y74: 0 | Z74: 0 | AA74: 0 | AB74: 0 | AC74: 0 | AD74: 0 | AE74: 0.5020586097
A75: SW inflow from Fraser River (m3) | B75: =B$129*$P75 -> 15004 | C75: 13552 | D75: 15004 | E75: 14520 | F75: 15004 | G75: 14520 | H75: 15004 | I75: 15004 | J75: 14520 | K75: 15004 | L75: 14520 | M75: 15004 | N75: 176660 | P75: 484 | Q75: m3/d | R75: =N75/365 -> 484
A80: TOTAL | B80: =SUM(B73:B79) -> 662424.6816 | C80: 526353.8692 | D80: 498133.5103 | E80: 401820 | F80: 415214 | G80: 401820 | H80: 415214 | I80: 415214 | J80: 401820 | K80: 415214 | L80: 401820 | M80: 900646.9389 | N80: 5855695
A82: OUTFLOWS FROM AQUIFER (DRY YEAR - 1951) | T82: Monthly Distributions (filled Fort Langley 2 Feb/Aug periods of shutdown / maintenance with average pumping during that time)
A83: OUTFLOW SOURCE / TYPE | B83: JAN | C83: FEB | D83: MAR | E83: APR | F83: MAY | G83: JUN | H83: JUL | I83: AUG | J83: SEP | K83: OCT | L83: NOV | M83: DEC | N83: ANNUAL | P83: Flow per day to distribute | R83: Check | T83: JAN | U83: FEB | V83: MAR | W83: APR | X83: MAY | Y83: JUN | Z83: JUL | AA83: AUG | AB83: SEP | AC83: OCT | AD83: NOV | AE83: DEC
A84: GW outflow to Fraser River (m3) | B84: =B$129*$P84+63000 -> 411917.4 | C84: =C$129*$P84+(0.875*(B92*'Form Control Selectors'!$I$29)) -> 304821.8886 | D84: =D$129*$P84+(0.875*(C92*'Form Control Selectors'!$I$29)) -> 339595.7314 | E84: =E$129*$P84+(0.875*(D92*'Form Control Selectors'!$I$29)) -> 314010.7047 | F84: =F$129*$P84+(0.875*(E92*'Form Control Selectors'!$I$29)) -> 307447.3795 | G84: =G$129*$P84+(0.875*(F92*'Form Control Selectors'!$I$29)) -> 292465.2607 | H84: =H$129*$P84+(0.875*(G92*'Form Control Selectors'!$I$29)) -> 302357.2956 | I84: =I$129*$P84+(0.875*(H92*'Form Control Selectors'!$I$29)) -> 301363.8118 | J84: =J$129*$P84+(0.875*(I92*'Form Control Selectors'!$I$29)) -> 296330.1206 | K84: =K$129*$P84+(0.875*(J92*'Form Control Selectors'!$I$29)) -> 305109.6337 | L84: =L$129*$P84+(0.875*(K92*'Form Control Selectors'!$I$29)) -> 301032.889 | M84: =M$129*$P84+(0.875*(L92*'Form Control Selectors'!$I$29)) -> 311307.0685 | N84: =SUM(B84:M84) -> 3787759.184 | P84: =9646.5+1608.9 -> 11255.4 | Q84: m3/d | R84: =N84/365 -> 10377.42242
A85: GW outflow from pumping - Muni - Ft. Langley 2 (m3) | B85: =(B$129*$P85)*(T85*(365/B$129)) -> 214829.2005 | C85: 209807.4892 | D85: 207469.4569 | E85: 221152.0042 | F85: 257231.3275 | G85: 266707.1027 | H85: 273013.0457 | I85: 247038.9678 | J85: 250537.5859 | K85: 222517.7298 | L85: 218476.7557 | M85: 221357.1441 | N85: 2810137.81 | P85: =7699*'Form Control Selectors'!I37 -> 7699 | Q85: m3/d | R85: =N85/365 -> 7699.007699 | T85: 0.076448 | U85: 0.074661 | V85: 0.073829 | W85: 0.078698 | X85: 0.091537 | Y85: 0.094909 | Z85: 0.097153 | AA85: 0.08791 | AB85: 0.089155 | AC85: 0.079184 | AD85: 0.077746 | AE85: 0.078771
A86: GW outflow from pumping - Private minor users (m3) | B86: =(B$129*$P86)*(T86*(365/B$129)) -> 11021.8904 | C86: =(C$129*$P86)*(U86*(365/C$129)) -> 10764.24968 | D86: 10644.29608 | E86: 11346.28415 | F86: 13197.34697 | G86: 13683.50507 | H86: 14007.03377 | I86: 12674.42425 | J86: 12853.92213 | K86: 11416.3532 | L86: 11209.02955 | M86: 11356.80892 | N86: 144175.1442 | P86: =395*'Form Control Selectors'!I43 -> 395 | Q86: m3/d | R86: =N86/365 -> 395.000395 | T86: =VLOOKUP('Form Control Selectors'!$I$23,'Water Budget Distributions'!$P$16:$AB$22,2,FALSE) -> 0.076448 | U86: =VLOOKUP('Form Control Selectors'!$I$23,'Water Budget Distributions'!$P$16:$AB$22,3,FALSE) -> 0.074661 | V86: =VLOOKUP('Form Control Selectors'!$I$23,'Water Budget Distributions'!$P$16:$AB$22,4,FALSE) -> 0.073829 | W86: =VLOOKUP('Form Control Selectors'!$I$23,'Water Budget Distributions'!$P$16:$AB$22,5,FALSE) -> 0.078698 | X86: =VLOOKUP('Form Control Selectors'!$I$23,'Water Budget Distributions'!$P$16:$AB$22,6,FALSE) -> 0.091537 | Y86: =VLOOKUP('Form Control Selectors'!$I$23,'Water Budget Distributions'!$P$16:$AB$22,7,FALSE) -> 0.094909 | Z86: =VLOOKUP('Form Control Selectors'!$I$23,'Water Budget Distributions'!$P$16:$AB$22,8,FALSE) -> 0.097153 | AA86: =VLOOKUP('Form Control Selectors'!$I$23,'Water Budget Distributions'!$P$16:$AB$22,9,FALSE) -> 0.08791 | AB86: =VLOOKUP('Form Control Selectors'!$I$23,'Water Budget Distributions'!$P$16:$AB$22,10,FALSE) -> 0.089155 | AC86: =VLOOKUP('Form Control Selectors'!$I$23,'Water Budget Distributions'!$P$16:$AB$22,11,FALSE) -> 0.079184 | AD86: =VLOOKUP('Form Control Selectors'!$I$23,'Water Budget Distributions'!$P$16:$AB$22,12,FALSE) -> 0.077746 | AE86: =VLOOKUP('Form Control Selectors'!$I$23,'Water Budget Distributions'!$P$16:$AB$22,13,FALSE) -> 0.078771
A87: GW outflow to Salmon River (m3) | B87: =B$129*$P87+22000 -> 71875.9 | C87: =C$129*$P87+(0.125*(B$92*'Form Control Selectors'!$I$29)) -> 43573.58408 | D87: =D$129*$P87+(0.125*(C$92*'Form Control Selectors'!$I$29)) -> 48544.23305 | E87: =E$129*$P87+(0.125*(D$92*'Form Control Selectors'!$I$29)) -> 44888.24353 | F87: =F$129*$P87+(0.125*(E$92*'Form Control Selectors'!$I$29)) -> 43951.61136 | G87: =G$129*$P87+(0.125*(F$92*'Form Control Selectors'!$I$29)) -> 41810.32296 | H87: =H$129*$P87+(0.125*(G$92*'Form Control Selectors'!$I$29)) -> 43224.45652 | I87: =I$129*$P87+(0.125*(H$92*'Form Control Selectors'!$I$29)) -> 43082.53026 | J87: =J$129*$P87+(0.125*(I$92*'Form Control Selectors'!$I$29)) -> 42362.44581 | K87: =K$129*$P87+(0.125*(J$92*'Form Control Selectors'!$I$29)) -> 43617.64767 | L87: =L$129*$P87+(0.125*(K$92*'Form Control Selectors'!$I$29)) -> 43034.26986 | M87: =M$129*$P87+(0.125*(L$92*'Form Control Selectors'!$I$29)) -> 44502.9955 | N87: =SUM(B87:M87) -> 554468.2406 | P87: 1608.9 | Q87: m3/d | R87: =N87/365 -> 1519.09107
A90: TOTAL | B90: =SUM(B84:B89) -> 709644.3909 | C90: =SUM(C84:C89) -> 568967.2116 | D90: =SUM(D84:D89) -> 606253.7174 | E90: =SUM(E84:E89) -> 591397.2366 | F90: =SUM(F84:F89) -> 621827.6653 | G90: =SUM(G84:G89) -> 614666.1915 | H90: =SUM(H84:H89) -> 632601.8316 | I90: =SUM(I84:I89) -> 604159.7342 | J90: =SUM(J84:J89) -> 602084.0745 | K90: =SUM(K84:K89) -> 582661.3644 | L90: =SUM(L84:L89) -> 573752.9442 | M90: =SUM(M84:M89) -> 588524.017 | N90: =SUM(N84:N89) -> 7296540.379
A92: SURPLUS/ DEFICIT (m3) | B92: =B80-B90 -> -47219.70932 | C92: -42613.34234 | D92: -108120.2071 | E92: -189577.2366 | F92: -206613.6653 | G92: -212846.1915 | H92: -217387.8316 | I92: -188945.7342 | J92: -200264.0745 | K92: -167447.3644 | L92: -171932.9442 | M92: 312122.9219 | N92: -1440845.379
A94: Equivalent GWL Change Across Aquifer (m) | B94: =(B92/($L$16*1000000))/$L$15 -> -0.06498721349 | C94: =(C92/($L$16*1000000))/$L$15 -> -0.05864759474 | D94: -0.1488029274 | E94: -0.2609100421 | F94: -0.2843568199 | G94: -0.2929344777 | H94: -0.2991850145 | I94: -0.2600409224 | J94: -0.2756180491 | K94: -0.2304532954 | L94: -0.2366266779 | M94: 0.4295663665 | N94: -1.982996668
A95: Cumulative GWL Change Across Aquifer (m) | B95: =B94 -> -0.06498721349 | C95: =C94+B95 -> -0.1236348082 | D95: =D94+C95 -> -0.2724377357 | E95: =E94+D95 -> -0.5333477778 | F95: =F94+E95 -> -0.8177045977 | G95: =G94+F95 -> -1.110639075 | H95: =H94+G95 -> -1.40982409 | I95: =I94+H95 -> -1.669865012 | J95: =J94+I95 -> -1.945483061 | K95: =K94+J95 -> -2.175936357 | L95: =L94+K95 -> -2.412563035 | M95: =M94+L95 -> -1.982996668
A97: INFLOWS TO AQUIFER (WET YEAR - 1971) | T97: Monthly Distributions
A98: INFLOW SOURCE / TYPE | B98: JAN | C98: FEB | D98: MAR | E98: APR | F98: MAY | G98: JUN | H98: JUL | I98: AUG | J98: SEP | K98: OCT | L98: NOV | M98: DEC | N98: ANNUAL | P98: Flow per day to distribute | R98: Check | T98: JAN | U98: FEB | V98: MAR | W98: APR | X98: MAY | Y98: JUN | Z98: JUL | AA98: AUG | AB98: SEP | AC98: OCT | AD98: NOV | AE98: DEC
A99: GW inflow from surrounding aquitards (m3) | B99: =B$129*$P99 -> 400210 | C99: 361480 | D99: 400210 | E99: 387300 | F99: 400210 | G99: 387300 | H99: 400210 | I99: 400210 | J99: 387300 | K99: 400210 | L99: 387300 | M99: 400210 | N99: =SUM(B99:M99) -> 4712150 | P99: 12910 | Q99: m3/d | R99: =N99/365 -> 12910
A100: Recharge (m3) | B100: =IF('Form Control Selectors'!$E$23=FALSE,(B$129*$P100)*(T100*(365/B$129)),(B$129*$P100)*(T100*(365/B$129))*1.09) -> 899612.1253 | C100: =IF('Form Control Selectors'!$E$23=FALSE,(C$129*$P100)*(U100*(365/C$129)),(C$129*$P100)*(U100*(365/C$129))*1.09) -> 338285.6481 | D100: =IF('Form Control Selectors'!$E$23=FALSE,(D$129*$P100)*(V100*(365/D$129)),(D$129*$P100)*(V100*(365/D$129))*1.09) -> 343527.6767 | E100: =(E$129*$P100)*(W100*(365/E$129)) -> 0 | F100: =(F$129*$P100)*(X100*(365/F$129)) -> 0 | G100: =(G$129*$P100)*(Y100*(365/G$129)) -> 0 | H100: =(H$129*$P100)*(Z100*(365/H$129)) -> 0 | I100: =(I$129*$P100)*(AA100*(365/I$129)) -> 0 | J100: =(J$129*$P100)*(AB100*(365/J$129)) -> 77410.62648 | K100: =IF('Form Control Selectors'!$E$23=FALSE,(K$129*$P100)*(AC100*(365/K$129)),(K$129*$P100)*(AC100*(365/K$129))*1.09) -> 416962.247 | L100: =IF('Form Control Selectors'!$E$23=FALSE,(L$129*$P100)*(AD100*(365/L$129)),(L$129*$P100)*(AD100*(365/L$129))*1.09) -> 778549.1219 | M100: =IF('Form Control Selectors'!$E$23=FALSE,(M$129*$P100)*(AE100*(365/M$129)),(M$129*$P100)*(AE100*(365/M$129))*1.09) -> 775212.5545 | N100: 3629560 | P100: =IF('Form Control Selectors'!F23=FALSE,9944,9944*0.99) -> 9944 | Q100: m3/d | R100: =N100/365 -> 9944 | T100: 0.247857075 | U100: 0.09320293591 | V100: 0.09464719601 | W100: 0 | X100: 0 | Y100: 0 | Z100: 0 | AA100: 0 | AB100: 0.02132782664 | AC100: 0.1148795576 | AD100: 0.2145023424 | AE100: 0.2135830664
A101: SW inflow from Fraser River (m3) | B101: =B$129*$P101 -> 15004 | C101: 13552 | D101: 15004 | E101: 14520 | F101: 15004 | G101: 14520 | H101: 15004 | I101: 15004 | J101: 14520 | K101: 15004 | L101: 14520 | M101: 15004 | N101: 176660 | P101: 484 | Q101: m3/d | R101: =N101/365 -> 484
A106: TOTAL | B106: =SUM(B99:B105) -> 1314826.125 | C106: 713317.6481 | D106: 758741.6767 | E106: 401820 | F106: 415214 | G106: 401820 | H106: 415214 | I106: 415214 | J106: 479230.6265 | K106: 832176.247 | L106: 1180369.122 | M106: 1190426.555 | N106: 8518370
A108: OUTFLOWS FROM AQUIFER (WET YEAR - 1971) | T108: Monthly Distributions (filled Fort Langley 2 Feb/Aug periods of shutdown / maintenance with average pumping during that time)
A109: OUTFLOW SOURCE / TYPE | B109: JAN | C109: FEB | D109: MAR | E109: APR | F109: MAY | G109: JUN | H109: JUL | I109: AUG | J109: SEP | K109: OCT | L109: NOV | M109: DEC | N109: ANNUAL | P109: Flow per day to distribute | R109: Check | T109: JAN | U109: FEB | V109: MAR | W109: APR | X109: MAY | Y109: JUN | Z109: JUL | AA109: AUG | AB109: SEP | AC109: OCT | AD109: NOV | AE109: DEC
A110: GW outflow to Fraser River (m3) | B110: =B$129*$P110+100000 -> 448917.4 | C110: =C$129*$P110+(0.875*(B118*'Form Control Selectors'!$I$29)) -> 439440.9544 | D110: =D$129*$P110+(0.875*(C118*'Form Control Selectors'!$I$29)) -> 346839.2915 | E110: =E$129*$P110+(0.875*(D118*'Form Control Selectors'!$I$29)) -> 369207.8511 | F110: =F$129*$P110+(0.875*(E118*'Form Control Selectors'!$I$29)) -> 293648.0929 | G110: =G$129*$P110+(0.875*(F118*'Form Control Selectors'!$I$29)) -> 295915.0824 | H110: =H$129*$P110+(0.875*(G118*'Form Control Selectors'!$I$29)) -> 301494.8402 | I110: =I$129*$P110+(0.875*(H118*'Form Control Selectors'!$I$29)) -> 301579.4257 | J110: =J$129*$P110+(0.875*(I118*'Form Control Selectors'!$I$29)) -> 296276.2172 | K110: =K$129*$P110+(0.875*(J118*'Form Control Selectors'!$I$29)) -> 322056.6841 | L110: =L$129*$P110+(0.875*(K118*'Form Control Selectors'!$I$29)) -> 388006.618 | M110: =M$129*$P110+(0.875*(L118*'Form Control Selectors'!$I$29)) -> 459871.2566 | N110: =SUM(B110:M110) -> 4263253.714 | P110: =9646.5+1608.9 -> 11255.4 | Q110: m3/d | R110: =N110/365 -> 11680.14716
A111: GW outflow from pumping - Muni - Ft. Langley 2 (m3) | B111: =(B$129*$P111)*(T111*(365/B$129)) -> 214829.2005 | C111: 209807.4892 | D111: 207469.4569 | E111: 221152.0042 | F111: 257231.3275 | G111: 266707.1027 | H111: 273013.0457 | I111: 247038.9678 | J111: 250537.5859 | K111: 222517.7298 | L111: 218476.7557 | M111: 221357.1441 | N111: 2810137.81 | P111: =7699*'Form Control Selectors'!I37 -> 7699 | Q111: m3/d | R111: =N111/365 -> 7699.007699 | T111: 0.076448 | U111: 0.074661 | V111: 0.073829 | W111: 0.078698 | X111: 0.091537 | Y111: 0.094909 | Z111: 0.097153 | AA111: 0.08791 | AB111: 0.089155 | AC111: 0.079184 | AD111: 0.077746 | AE111: 0.078771
A112: GW outflow from pumping - Private minor users (m3) | B112: =(B$129*$P112)*(T112*(365/B$129)) -> 11021.8904 | C112: =(C$129*$P112)*(U112*(365/C$129)) -> 10764.24968 | D112: 10644.29608 | E112: 11346.28415 | F112: 13197.34697 | G112: 13683.50507 | H112: 14007.03377 | I112: 12674.42425 | J112: 12853.92213 | K112: 11416.3532 | L112: 11209.02955 | M112: 11356.80892 | N112: 144175.1442 | P112: =395*'Form Control Selectors'!I43 -> 395 | Q112: m3/d | R112: =N112/365 -> 395.000395 | T112: =VLOOKUP('Form Control Selectors'!$I$23,'Water Budget Distributions'!$P$16:$AB$22,2,FALSE) -> 0.076448 | U112: =VLOOKUP('Form Control Selectors'!$I$23,'Water Budget Distributions'!$P$16:$AB$22,3,FALSE) -> 0.074661 | V112: =VLOOKUP('Form Control Selectors'!$I$23,'Water Budget Distributions'!$P$16:$AB$22,4,FALSE) -> 0.073829 | W112: =VLOOKUP('Form Control Selectors'!$I$23,'Water Budget Distributions'!$P$16:$AB$22,5,FALSE) -> 0.078698 | X112: =VLOOKUP('Form Control Selectors'!$I$23,'Water Budget Distributions'!$P$16:$AB$22,6,FALSE) -> 0.091537 | Y112: =VLOOKUP('Form Control Selectors'!$I$23,'Water Budget Distributions'!$P$16:$AB$22,7,FALSE) -> 0.094909 | Z112: =VLOOKUP('Form Control Selectors'!$I$23,'Water Budget Distributions'!$P$16:$AB$22,8,FALSE) -> 0.097153 | AA112: =VLOOKUP('Form Control Selectors'!$I$23,'Water Budget Distributions'!$P$16:$AB$22,9,FALSE) -> 0.08791 | AB112: =VLOOKUP('Form Control Selectors'!$I$23,'Water Budget Distributions'!$P$16:$AB$22,10,FALSE) -> 0.089155 | AC112: =VLOOKUP('Form Control Selectors'!$I$23,'Water Budget Distributions'!$P$16:$AB$22,11,FALSE) -> 0.079184 | AD112: =VLOOKUP('Form Control Selectors'!$I$23,'Water Budget Distributions'!$P$16:$AB$22,12,FALSE) -> 0.077746 | AE112: =VLOOKUP('Form Control Selectors'!$I$23,'Water Budget Distributions'!$P$16:$AB$22,13,FALSE) -> 0.078771
A113: GW outflow to Salmon River (m3) | B113: =B$129*$P113+22000 -> 71875.9 | C113: =C$129*$P113+(0.125*(B$118*'Form Control Selectors'!$I$29)) -> 62804.8792 | D113: =D$129*$P113+(0.125*(C$118*'Form Control Selectors'!$I$29)) -> 49579.02736 | E113: =E$129*$P113+(0.125*(D$118*'Form Control Selectors'!$I$29)) -> 52773.55015 | F113: =F$129*$P113+(0.125*(E$118*'Form Control Selectors'!$I$29)) -> 41980.2847 | G113: =G$129*$P113+(0.125*(F$118*'Form Control Selectors'!$I$29)) -> 42303.15462 | H113: =H$129*$P113+(0.125*(G$118*'Form Control Selectors'!$I$29)) -> 43101.2486 | I113: =I$129*$P113+(0.125*(H$118*'Form Control Selectors'!$I$29)) -> 43113.33224 | J113: =J$129*$P113+(0.125*(I$118*'Form Control Selectors'!$I$29)) -> 42354.74531 | K113: =K$129*$P113+(0.125*(J$118*'Form Control Selectors'!$I$29)) -> 46038.65487 | L113: =L$129*$P113+(0.125*(K$118*'Form Control Selectors'!$I$29)) -> 55459.08828 | M113: =M$129*$P113+(0.125*(L$118*'Form Control Selectors'!$I$29)) -> 65726.45095 | N113: =SUM(B113:M113) -> 617110.3163 | P113: 1608.9 | Q113: m3/d | R113: =N113/365 -> 1690.713195
A116: TOTAL | B116: =SUM(B110:B115) -> 746644.3909 | C116: =SUM(C110:C115) -> 722817.5725 | D116: =SUM(D110:D115) -> 614532.0719 | E116: =SUM(E110:E115) -> 654479.6896 | F116: =SUM(F110:F115) -> 606057.0521 | G116: =SUM(G110:G115) -> 618608.8448 | H116: =SUM(H110:H115) -> 631616.1682 | I116: =SUM(I110:I115) -> 604406.15 | J116: =SUM(J110:J115) -> 602022.4705 | K116: =SUM(K110:K115) -> 602029.422 | L116: =SUM(L110:L115) -> 673151.4915 | M116: =SUM(M110:M115) -> 758311.6606 | N116: =SUM(N110:N115) -> 7834676.985
A118: SURPLUS/ DEFICIT (m3) | B118: =B106-B116 -> 568181.7344 | C118: -9499.924445 | D118: 144209.6049 | E118: -252659.6896 | F118: -190843.0521 | G118: -216788.8448 | H118: -216402.1682 | I118: -189192.15 | J118: -122791.8441 | K118: 230146.825 | L118: 507217.6304 | M118: 432114.8939 | N118: 683693.0153
A120: Equivalent GWL Change Across Aquifer (m) | B120: =(B118/($L$16*1000000))/$L$15 -> 0.78197321 | C120: =(C118/($L$16*1000000))/$L$15 -> -0.01307449002 | D120: 0.1984717931 | E120: -0.3477287223 | F120: -0.2626521498 | G120: -0.2983606452 | H120: -0.2978284727 | I120: -0.2603800579 | J120: -0.1689951061 | K120: 0.3167448734 | L120: 0.6980699565 | M120: 0.5947080842 | N120: 0.9409482732
A121: Cumulative GWL Change Across Aquifer (m) | B121: =B120 -> 0.78197321 | C121: =C120+B121 -> 0.76889872 | D121: =D120+C121 -> 0.9673705131 | E121: =E120+D121 -> 0.6196417909 | F121: =F120+E121 -> 0.356989641 | G121: =G120+F121 -> 0.05862899586 | H121: =H120+G121 -> -0.2391994768 | I121: =I120+H121 -> -0.4995795347 | J121: =J120+I121 -> -0.6685746407 | K121: =K120+J121 -> -0.3518297674 | L121: =L120+K121 -> 0.3462401891 | M121: =M120+L121 -> 0.9409482732
A129: Days in Month | B129: 31 | C129: 28 | D129: 31 | E129: 30 | F129: 31 | G129: 30 | H129: 31 | I129: 31 | J129: 30 | K129: 31 | L129: 30 | M129: 31

Sheet Beaver River - Analysis
A7: AQUIFER - Beaver River Aquifer
A8: TYPE - 4c, Confined glaciomarine aquifer
A9: CLASSIFICATION - TBD
A10: RANKING - TBD
A11: AQUIFER SIZE - 23.84 km2 | G11: ALLOCATED WATER USE | N11: Input Units | O11: User-Defined - Provided for accounting and reporting purposes and does not affect the moedl results directly
A13: LOCATION | G13: AQUIFER PARAMETERS AND SELECTION
G15: Storativity | L15: 0.0015 | N15: (-) | O15: Recommended value = 0.0015
G16: Aquifer Size - in Plan View | L16: 23.84 | N16: km2 | O16: Recommended value = 23.84
G19: Private Water Users Distribution Method
L21: USE SLIDER BAR TO ADJUST
G22: Percent of Surplus/Deficit Apportioned to Baseflow | L22: ='Form Control Selectors'!J28 -> 5 | N22: % | O22: Recommended value = 5%
A40: *Golder interpretation of Township of Langley shallow confined aquifers shown (Golder 2005, 2014)
A45: INFLOWS TO AQUIFER (AVERAGE YEAR - 1945-2012) | T45: Monthly Distributions
A46: INFLOW SOURCE / TYPE | B46: JAN | C46: FEB | D46: MAR | E46: APR | F46: MAY | G46: JUN | H46: JUL | I46: AUG | J46: SEP | K46: OCT | L46: NOV | M46: DEC | N46: ANNUAL | P46: Flow per day to distribute | R46: Check | T46: JAN | U46: FEB | V46: MAR | W46: APR | X46: MAY | Y46: JUN | Z46: JUL | AA46: AUG | AB46: SEP | AC46: OCT | AD46: NOV | AE46: DEC
A47: SW inflow from Nathan Creek (m3) | B47: =B$129*$P47 -> 40380.6 | C47: 36472.8 | D47: 40380.6 | E47: 39078 | F47: 40380.6 | G47: 39078 | H47: 40380.6 | I47: 40380.6 | J47: 39078 | K47: 40380.6 | L47: 39078 | M47: 40380.6 | N47: =SUM(B47:M47) -> 475449 | P47: 1302.6 | Q47: m3/d | R47: =N47/365 -> 1302.6
A48: GW inflow from surrounding aquitards (m3) | B48: 1808261 | C48: 1633268 | D48: 1808261 | E48: 1749930 | F48: 1808261 | G48: 1749930 | H48: 1808261 | I48: 1808261 | J48: 1749930 | K48: 1808261 | L48: 1749930 | M48: 1808261 | N48: 21290815 | P48: 58331 | Q48: m3/d | R48: =N48/365 -> 58331
A49: GW inflow from Aldergrove CD (m3) | B49: 270072 | C49: 243936 | D49: 270072 | E49: 261360 | F49: 270072 | G49: 261360 | H49: 270072 | I49: 270072 | J49: 261360 | K49: 270072 | L49: 261360 | M49: 270072 | N49: 3179880 | P49: 8712 | Q49: m3/d | R49: 8712
A54: TOTAL | B54: =SUM(B47:B53) -> 2118713.6 | C54: 1913676.8 | D54: 2118713.6 | E54: 2050368 | F54: 2118713.6 | G54: 2050368 | H54: 2118713.6 | I54: 2118713.6 | J54: 2050368 | K54: 2118713.6 | L54: 2050368 | M54: 2118713.6 | N54: 24946144
A56: OUTFLOWS FROM AQUIFER (AVERAGE YEAR, 1945-2012) | T56: Monthly Distributions
A57: OUTFLOW SOURCE / TYPE | B57: JAN | C57: FEB | D57: MAR | E57: APR | F57: MAY | G57: JUN | H57: JUL | I57: AUG | J57: SEP | K57: OCT | L57: NOV | M57: DEC | N57: ANNUAL | P57: Flow per day to distribute | R57: Check | T57: JAN | U57: FEB | V57: MAR | W57: APR | X57: MAY | Y57: JUN | Z57: JUL | AA57: AUG | AB57: SEP | AC57: OCT | AD57: NOV | AE57: DEC
A58: GW outflow to surrounding aquitards (m3) | B58: =B$129*$P58 -> 1124339 | C58: 1015532 | D58: 1124339 | E58: 1088070 | F58: 1124339 | G58: 1088070 | H58: 1124339 | I58: 1124339 | J58: 1088070 | K58: 1124339 | L58: 1088070 | M58: 1124339 | N58: =SUM(B58:M58) -> 13238185 | P58: 36269 | Q58: m3/d | R58: =N58/365 -> 36269
A59: GW outflow to Hopington AB (m3) | B59: 112530 | C59: 101640 | D59: 112530 | E59: 108900 | F59: 112530 | G59: 108900 | H59: 112530 | I59: 112530 | J59: 108900 | K59: 112530 | L59: 108900 | M59: 112530 | N59: =SUM(B59:M59) -> 1324950 | P59: 3630 | Q59: m3/d | R59: =N59/365 -> 3630
A60: GW outflow to Aldergrove CD (m3) | B60: 370977 | C60: 335076 | D60: 370977 | E60: 359010 | F60: 370977 | G60: 359010 | H60: 370977 | I60: 370977 | J60: 359010 | K60: 370977 | L60: 359010 | M60: 370977 | N60: 4367955 | P60: 11967 | Q60: m3/d | R60: 11967
A61: GW outflow to Nathan Creek (m3) | B61: =B$129*$P61+700 -> 413341 | C61: =C$129*$P61+(B66*'Form Control Selectors'!$J$29) -> 373416.8413 | D61: =D$129*$P61+(C66*'Form Control Selectors'!$J$29) -> 412862.8154 | E61: =E$129*$P61+(D66*'Form Control Selectors'!$J$29) -> 399772.5538 | F61: =F$129*$P61+(E66*'Form Control Selectors'!$J$29) -> 412728.5068 | G61: =G$129*$P61+(F66*'Form Control Selectors'!$J$29) -> 399465.0676 | H61: =H$129*$P61+(G66*'Form Control Selectors'!$J$29) -> 411930.9811 | I61: =I$129*$P61+(H66*'Form Control Selectors'!$J$29) -> 411223.5885 | J61: =J$129*$P61+(I66*'Form Control Selectors'!$J$29) -> 398625.0404 | K61: =K$129*$P61+(J66*'Form Control Selectors'!$J$29) -> 412378.2201 | L61: =L$129*$P61+(K66*'Form Control Selectors'!$J$29) -> 399724.1174 | M61: =M$129*$P61+(L66*'Form Control Selectors'!$J$29) -> 413062.5274 | N61: 4858531.26 | P61: 13311 | Q61: m3/d | R61: 13311.04455
A62: GW outflow from pumping - ICI - W. Creek Springs (m3) | B62: =(B$129*$P62)*(T62*(365/B$129)) -> 83349.77468 | C62: 83575.65053 | D62: 89153.70886 | E62: 92865.311 | F62: 95437.74109 | G62: 109123.3107 | H62: 127284.8482 | I62: 113743.2036 | J62: 101018.5586 | K62: 90607.03203 | L62: 86233.33449 | M62: 83927.52618 | N62: 1156320 | P62: 3168 | Q62: m3/d | R62: 3168 | T62: =VLOOKUP('Form Control Selectors'!$J$23,'Water Budget Distributions'!$AD$16:$AQ$22,2,FALSE) -> 0.07208192774 | U62: =VLOOKUP('Form Control Selectors'!$J$23,'Water Budget Distributions'!$AD$16:$AQ$22,3,FALSE) -> 0.072277268 | V62: =VLOOKUP('Form Control Selectors'!$J$23,'Water Budget Distributions'!$AD$16:$AQ$22,4,FALSE) -> 0.07710124262 | W62: =VLOOKUP('Form Control Selectors'!$J$23,'Water Budget Distributions'!$AD$16:$AQ$22,5,FALSE) -> 0.08031108258 | X62: =VLOOKUP('Form Control Selectors'!$J$23,'Water Budget Distributions'!$AD$16:$AQ$22,6,FALSE) -> 0.08253575229 | Y62: =VLOOKUP('Form Control Selectors'!$J$23,'Water Budget Distributions'!$AD$16:$AQ$22,7,FALSE) -> 0.09437120405 | Z62: =VLOOKUP('Form Control Selectors'!$J$23,'Water Budget Distributions'!$AD$16:$AQ$22,8,FALSE) -> 0.1100775289 | AA62: =VLOOKUP('Form Control Selectors'!$J$23,'Water Budget Distributions'!$AD$16:$AQ$22,9,FALSE) -> 0.09836654525 | AB62: =VLOOKUP('Form Control Selectors'!$J$23,'Water Budget Distributions'!$AD$16:$AQ$22,10,FALSE) -> 0.08736211308 | AC62: =VLOOKUP('Form Control Selectors'!$J$23,'Water Budget Distributions'!$AD$16:$AQ$22,11,FALSE) -> 0.07835809467 | AD62: =VLOOKUP('Form Control Selectors'!$J$23,'Water Budget Distributions'!$AD$16:$AQ$22,12,FALSE) -> 0.07457566633 | AE62: =VLOOKUP('Form Control Selectors'!$J$23,'Water Budget Distributions'!$AD$16:$AQ$22,13,FALSE) -> 0.07258157446
A63: GW outflow from pumping - Private minor users (m3) | Q63: m3/d | R63: =N63/365 -> 0
A64: TOTAL | B64: =SUM(B58:B63) -> 2104536.775 | C64: 1909240.492 | D64: 2109862.524 | E64: 2048617.865 | F64: 2116012.248 | G64: 2064568.378 | H64: 2147061.829 | I64: 2132812.792 | J64: 2055623.599 | K64: 2110831.252 | L64: 2041937.452 | M64: 2104836.054 | N64: 24945941.26
A66: SURPLUS/ DEFICIT (m3) | B66: =B54-B64 -> 14176.82532 | C66: 4436.308201 | D66: 8851.075726 | E66: 1750.13521 | F66: 2701.352149 | G66: -14200.37828 | H66: -28348.22933 | I66: -14099.19213 | J66: -5255.598993 | K66: 7882.347917 | L66: 8430.548113 | M66: 13877.54641 | N66: 202.7403053
A68: Equivalent GWL Change Across Aquifer (m) | B68: =(B66/($L$16*1000000))/$L$15 -> 0.396443661 | C68: =(C66/($L$16*1000000))/$L$15 -> 0.1240578356 | D68: 0.2475133033 | E68: 0.04894114123 | F68: 0.07554116748 | G68: -0.3971023008 | H68: -0.7927357196 | I68: -0.3942727107 | J68: -0.1469686519 | K68: 0.2204235995 | L68: 0.2357535826 | M68: 0.3880745641 | N68: 0.005669471625
A69: Cumulative GWL Change Across Aquifer (m) | B69: =B68 -> 0.396443661 | C69: =C68+B69 -> 0.5205014966 | D69: =D68+C69 -> 0.7680147999 | E69: 0.8169559411 | F69: 0.8924971086 | G69: 0.4953948078 | H69: -0.2973409119 | I69: -0.6916136226 | J69: -0.8385822745 | K69: -0.618158675 | L69: -0.3824050925 | M69: 0.005669471625
A71: INFLOWS TO AQUIFER (DRY YEAR - 1951) | T71: Monthly Distributions
A72: INFLOW SOURCE / TYPE | B72: JAN | C72: FEB | D72: MAR | E72: APR | F72: MAY | G72: JUN | H72: JUL | I72: AUG | J72: SEP | K72: OCT | L72: NOV | M72: DEC | N72: ANNUAL | P72: Flow per day to distribute | R72: Check | T72: JAN | U72: FEB | V72: MAR | W72: APR | X72: MAY | Y72: JUN | Z72: JUL | AA72: AUG | AB72: SEP | AC72: OCT | AD72: NOV | AE72: DEC
A73: SW inflow from Nathan Creek (m3) | B73: =B$129*$P73 -> 40380.6 | C73: 36472.8 | D73: 40380.6 | E73: 39078 | F73: 40380.6 | G73: 39078 | H73: 40380.6 | I73: 40380.6 | J73: 39078 | K73: 40380.6 | L73: 39078 | M73: 40380.6 | N73: =SUM(B73:M73) -> 475449 | P73: 1302.6 | Q73: m3/d | R73: =N73/365 -> 1302.6
A74: GW inflow from surrounding aquitards (m3) | B74: 1808261 | C74: 1633268 | D74: 1808261 | E74: 1749930 | F74: 1808261 | G74: 1749930 | H74: 1808261 | I74: 1808261 | J74: 1749930 | K74: 1808261 | L74: 1749930 | M74: 1808261 | N74: 21290815 | P74: 58331 | Q74: m3/d | R74: =N74/365 -> 58331
A75: GW inflow from Aldergrove CD (m3) | B75: 270072 | C75: 243936 | D75: 270072 | E75: 261360 | F75: 270072 | G75: 261360 | H75: 270072 | I75: 270072 | J75: 261360 | K75: 270072 | L75: 261360 | M75: 270072 | N75: 3179880 | P75: 8712 | Q75: m3/d | R75: 8712
A80: TOTAL | B80: =SUM(B73:B79) -> 2118713.6 | C80: 1913676.8 | D80: 2118713.6 | E80: 2050368 | F80: 2118713.6 | G80: 2050368 | H80: 2118713.6 | I80: 2118713.6 | J80: 2050368 | K80: 2118713.6 | L80: 2050368 | M80: 2118713.6 | N80: 24946144
A82: OUTFLOWS FROM AQUIFER (DRY YEAR - 1951) | T82: Monthly Distributions
A83: OUTFLOW SOURCE / TYPE | B83: JAN | C83: FEB | D83: MAR | E83: APR | F83: MAY | G83: JUN | H83: JUL | I83: AUG | J83: SEP | K83: OCT | L83: NOV | M83: DEC | N83: ANNUAL | P83: Flow per day to distribute | R83: Check | T83: JAN | U83: FEB | V83: MAR | W83: APR | X83: MAY | Y83: JUN | Z83: JUL | AA83: AUG | AB83: SEP | AC83: OCT | AD83: NOV | AE83: DEC
A84: GW outflow to surrounding aquitards (m3) | B84: =B$129*$P84 -> 1124339 | C84: 1015532 | D84: 1124339 | E84: 1088070 | F84: 1124339 | G84: 1088070 | H84: 1124339 | I84: 1124339 | J84: 1088070 | K84: 1124339 | L84: 1088070 | M84: 1124339 | N84: =SUM(B84:M84) -> 13238185 | P84: 36269 | Q84: m3/d | R84: =N84/365 -> 36269
A85: GW outflow to Hopington AB (m3) | B85: 112530 | C85: 101640 | D85: 112530 | E85: 108900 | F85: 112530 | G85: 108900 | H85: 112530 | I85: 112530 | J85: 108900 | K85: 112530 | L85: 108900 | M85: 112530 | N85: 1324950 | P85: 3630 | Q85: m3/d | R85: =N85/365 -> 3630
A86: GW outflow to Aldergrove CD (m3) | B86: 370977 | C86: 335076 | D86: 370977 | E86: 359010 | F86: 370977 | G86: 359010 | H86: 370977 | I86: 370977 | J86: 359010 | K86: 370977 | L86: 359010 | M86: 370977 | N86: 4367955 | P86: 11967 | Q86: m3/d | R86: 11967
A87: GW outflow to Nathan Creek (m3) | B87: =B$129*$P87+700 -> 413341 | C87: =C$129*$P87+(B92*'Form Control Selectors'!$J$29) -> 373416.8413 | D87: =D$129*$P87+(C92*'Form Control Selectors'!$J$29) -> 412862.8154 | E87: =E$129*$P87+(D92*'Form Control Selectors'!$J$29) -> 399772.5538 | F87: =F$129*$P87+(E92*'Form Control Selectors'!$J$29) -> 412728.5068 | G87: =G$129*$P87+(F92*'Form Control Selectors'!$J$29) -> 399465.0676 | H87: =H$129*$P87+(G92*'Form Control Selectors'!$J$29) -> 411930.9811 | I87: =I$129*$P87+(H92*'Form Control Selectors'!$J$29) -> 411223.5885 | J87: =J$129*$P87+(I92*'Form Control Selectors'!$J$29) -> 398625.0404 | K87: =K$129*$P87+(J92*'Form Control Selectors'!$J$29) -> 412378.2201 | L87: =L$129*$P87+(K92*'Form Control Selectors'!$J$29) -> 399724.1174 | M87: =M$129*$P87+(L92*'Form Control Selectors'!$J$29) -> 413062.5274 | N87: 4858531.26 | P87: 13311 | Q87: m3/d | R87: 13311.04455
A88: GW outflow from pumping - ICI - W. Creek Springs (m3) | B88: =(B$129*$P88)*(T88*(365/B$129)) -> 83349.77468 | C88: 83575.65053 | D88: 89153.70886 | E88: 92865.311 | F88: 95437.74109 | G88: 109123.3107 | H88: 127284.8482 | I88: 113743.2036 | J88: 101018.5586 | K88: 90607.03203 | L88: 86233.33449 | M88: 83927.52618 | N88: 1156320 | P88: 3168 | Q88: m3/d | R88: 3168 | T88: =VLOOKUP('Form Control Selectors'!$J$23,'Water Budget Distributions'!$AD$16:$AQ$22,2,FALSE) -> 0.07208192774 | U88: =VLOOKUP('Form Control Selectors'!$J$23,'Water Budget Distributions'!$AD$16:$AQ$22,3,FALSE) -> 0.072277268 | V88: =VLOOKUP('Form Control Selectors'!$J$23,'Water Budget Distributions'!$AD$16:$AQ$22,4,FALSE) -> 0.07710124262 | W88: =VLOOKUP('Form Control Selectors'!$J$23,'Water Budget Distributions'!$AD$16:$AQ$22,5,FALSE) -> 0.08031108258 | X88: =VLOOKUP('Form Control Selectors'!$J$23,'Water Budget Distributions'!$AD$16:$AQ$22,6,FALSE) -> 0.08253575229 | Y88: =VLOOKUP('Form Control Selectors'!$J$23,'Water Budget Distributions'!$AD$16:$AQ$22,7,FALSE) -> 0.09437120405 | Z88: =VLOOKUP('Form Control Selectors'!$J$23,'Water Budget Distributions'!$AD$16:$AQ$22,8,FALSE) -> 0.1100775289 | AA88: =VLOOKUP('Form Control Selectors'!$J$23,'Water Budget Distributions'!$AD$16:$AQ$22,9,FALSE) -> 0.09836654525 | AB88: =VLOOKUP('Form Control Selectors'!$J$23,'Water Budget Distributions'!$AD$16:$AQ$22,10,FALSE) -> 0.08736211308 | AC88: =VLOOKUP('Form Control Selectors'!$J$23,'Water Budget Distributions'!$AD$16:$AQ$22,11,FALSE) -> 0.07835809467 | AD88: =VLOOKUP('Form Control Selectors'!$J$23,'Water Budget Distributions'!$AD$16:$AQ$22,12,FALSE) -> 0.07457566633 | AE88: =VLOOKUP('Form Control Selectors'!$J$23,'Water Budget Distributions'!$AD$16:$AQ$22,13,FALSE) -> 0.07258157446
Q89: m3/d | R89: 0
A90: TOTAL | B90: =SUM(B84:B89) -> 2104536.775 | C90: 1909240.492 | D90: 2109862.524 | E90: 2048617.865 | F90: 2116012.248 | G90: 2064568.378 | H90: 2147061.829 | I90: 2132812.792 | J90: 2055623.599 | K90: 2110831.252 | L90: 2041937.452 | M90: 2104836.054 | N90: 24945941.26
A92: SURPLUS/ DEFICIT (m3) | B92: =B80-B90 -> 14176.82532 | C92: 4436.308201 | D92: 8851.075726 | E92: 1750.13521 | F92: 2701.352149 | G92: -14200.37828 | H92: -28348.22933 | I92: -14099.19213 | J92: -5255.598993 | K92: 7882.347917 | L92: 8430.548113 | M92: 13877.54641 | N92: 202.7403053
A94: Equivalent GWL Change Across Aquifer (m) | B94: =(B92/($L$16*1000000))/$L$15 -> 0.396443661 | C94: =(C92/($L$16*1000000))/$L$15 -> 0.1240578356 | D94: 0.2475133033 | E94: 0.04894114123 | F94: 0.07554116748 | G94: -0.3971023008 | H94: -0.7927357196 | I94: -0.3942727107 | J94: -0.1469686519 | K94: 0.2204235995 | L94: 0.2357535826 | M94: 0.3880745641 | N94: 0.005669471625
A95: Cumulative GWL Change Across Aquifer (m) | B95: =B94 -> 0.396443661 | C95: =C94+B95 -> 0.5205014966 | D95: =D94+C95 -> 0.7680147999 | E95: =E94+D95 -> 0.8169559411 | F95: =F94+E95 -> 0.8924971086 | G95: =G94+F95 -> 0.4953948078 | H95: =H94+G95 -> -0.2973409119 | I95: =I94+H95 -> -0.6916136226 | J95: =J94+I95 -> -0.8385822745 | K95: =K94+J95 -> -0.618158675 | L95: =L94+K95 -> -0.3824050925 | M95: =M94+L95 -> 0.005669471625
A97: INFLOWS TO AQUIFER (WET YEAR - 1971) | T97: Monthly Distributions
A98: INFLOW SOURCE / TYPE | B98: JAN | C98: FEB | D98: MAR | E98: APR | F98: MAY | G98: JUN | H98: JUL | I98: AUG | J98: SEP | K98: OCT | L98: NOV | M98: DEC | N98: ANNUAL | P98: Flow per day to distribute | R98: Check | T98: JAN | U98: FEB | V98: MAR | W98: APR | X98: MAY | Y98: JUN | Z98: JUL | AA98: AUG | AB98: SEP | AC98: OCT | AD98: NOV | AE98: DEC
A99: SW inflow from Nathan Creek (m3) | B99: =B$129*$P99 -> 40380.6 | C99: 36472.8 | D99: 40380.6 | E99: 39078 | F99: 40380.6 | G99: 39078 | H99: 40380.6 | I99: 40380.6 | J99: 39078 | K99: 40380.6 | L99: 39078 | M99: 40380.6 | N99: =SUM(B99:M99) -> 475449 | P99: 1302.6 | Q99: m3/d | R99: =N99/365 -> 1302.6
A100: GW inflow from surrounding aquitards (m3) | B100: 1808261 | C100: 1633268 | D100: 1808261 | E100: 1749930 | F100: 1808261 | G100: 1749930 | H100: 1808261 | I100: 1808261 | J100: 1749930 | K100: 1808261 | L100: 1749930 | M100: 1808261 | N100: 21290815 | P100: 58331 | Q100: m3/d | R100: =N100/365 -> 58331
A101: GW inflow from Aldergrove CD (m3) | B101: 270072 | C101: 243936 | D101: 270072 | E101: 261360 | F101: 270072 | G101: 261360 | H101: 270072 | I101: 270072 | J101: 261360 | K101: 270072 | L101: 261360 | M101: 270072 | N101: 3179880 | P101: 8712 | Q101: m3/d | R101: 8712
A106: TOTAL | B106: =SUM(B99:B105) -> 2118713.6 | C106: 1913676.8 | D106: 2118713.6 | E106: 2050368 | F106: 2118713.6 | G106: 2050368 | H106: 2118713.6 | I106: 2118713.6 | J106: 2050368 | K106: 2118713.6 | L106: 2050368 | M106: 2118713.6 | N106: 24946144
A108: OUTFLOWS FROM AQUIFER (WET YEAR - 1971) | T108: Monthly Distributions
A109: OUTFLOW SOURCE / TYPE | B109: JAN | C109: FEB | D109: MAR | E109: APR | F109: MAY | G109: JUN | H109: JUL | I109: AUG | J109: SEP | K109: OCT | L109: NOV | M109: DEC | N109: ANNUAL | P109: Flow per day to distribute | R109: Check | T109: JAN | U109: FEB | V109: MAR | W109: APR | X109: MAY | Y109: JUN | Z109: JUL | AA109: AUG | AB109: SEP | AC109: OCT | AD109: NOV | AE109: DEC
A110: GW outflow to surrounding aquitards (m3) | B110: =B$129*$P110 -> 1124339 | C110: 1015532 | D110: 1124339 | E110: 1088070 | F110: 1124339 | G110: 1088070 | H110: 1124339 | I110: 1124339 | J110: 1088070 | K110: 1124339 | L110: 1088070 | M110: 1124339 | N110: =SUM(B110:M110) -> 13238185 | P110: 36269 | Q110: m3/d | R110: =N110/365 -> 36269
A111: GW outflow to Hopington AB (m3) | B111: 112530 | C111: 101640 | D111: 112530 | E111: 108900 | F111: 112530 | G111: 108900 | H111: 112530 | I111: 112530 | J111: 108900 | K111: 112530 | L111: 108900 | M111: 112530 | N111: 1324950 | P111: 3630 | Q111: m3/d | R111: =N111/365 -> 3630
A112: GW outflow to Aldergrove CD (m3) | B112: 370977 | C112: 335076 | D112: 370977 | E112: 359010 | F112: 370977 | G112: 359010 | H112: 370977 | I112: 370977 | J112: 359010 | K112: 370977 | L112: 359010 | M112: 370977 | N112: 4367955 | P112: 11967 | Q112: m3/d | R112: 11967
A113: GW outflow to Nathan Creek (m3) | B113: =B$129*$P113+700 -> 413341 | C113: =C$129*$P113+(B118*'Form Control Selectors'!$J$29) -> 373416.8413 | D113: =D$129*$P113+(C118*'Form Control Selectors'!$J$29) -> 412862.8154 | E113: =E$129*$P113+(D118*'Form Control Selectors'!$J$29) -> 399772.5538 | F113: =F$129*$P113+(E118*'Form Control Selectors'!$J$29) -> 412728.5068 | G113: =G$129*$P113+(F118*'Form Control Selectors'!$J$29) -> 399465.0676 | H113: =H$129*$P113+(G118*'Form Control Selectors'!$J$29) -> 411930.9811 | I113: =I$129*$P113+(H118*'Form Control Selectors'!$J$29) -> 411223.5885 | J113: =J$129*$P113+(I118*'Form Control Selectors'!$J$29) -> 398625.0404 | K113: =K$129*$P113+(J118*'Form Control Selectors'!$J$29) -> 412378.2201 | L113: =L$129*$P113+(K118*'Form Control Selectors'!$J$29) -> 399724.1174 | M113: =M$129*$P113+(L118*'Form Control Selectors'!$J$29) -> 413062.5274 | N113: 4858531.26 | P113: 13311 | Q113: m3/d | R113: 13311.04455
A114: GW outflow from pumping - ICI - W. Creek Springs (m3) | B114: =(B$129*$P114)*(T114*(365/B$129)) -> 83349.77468 | C114: 83575.65053 | D114: 89153.70886 | E114: 92865.311 | F114: 95437.74109 | G114: 109123.3107 | H114: 127284.8482 | I114: 113743.2036 | J114: 101018.5586 | K114: 90607.03203 | L114: 86233.33449 | M114: 83927.52618 | N114: 1156320 | P114: 3168 | Q114: m3/d | R114: 3168 | T114: =VLOOKUP('Form Control Selectors'!$J$23,'Water Budget Distributions'!$AD$16:$AQ$22,2,FALSE) -> 0.07208192774 | U114: =VLOOKUP('Form Control Selectors'!$J$23,'Water Budget Distributions'!$AD$16:$AQ$22,3,FALSE) -> 0.072277268 | V114: =VLOOKUP('Form Control Selectors'!$J$23,'Water Budget Distributions'!$AD$16:$AQ$22,4,FALSE) -> 0.07710124262 | W114: =VLOOKUP('Form Control Selectors'!$J$23,'Water Budget Distributions'!$AD$16:$AQ$22,5,FALSE) -> 0.08031108258 | X114: =VLOOKUP('Form Control Selectors'!$J$23,'Water Budget Distributions'!$AD$16:$AQ$22,6,FALSE) -> 0.08253575229 | Y114: =VLOOKUP('Form Control Selectors'!$J$23,'Water Budget Distributions'!$AD$16:$AQ$22,7,FALSE) -> 0.09437120405 | Z114: =VLOOKUP('Form Control Selectors'!$J$23,'Water Budget Distributions'!$AD$16:$AQ$22,8,FALSE) -> 0.1100775289 | AA114: =VLOOKUP('Form Control Selectors'!$J$23,'Water Budget Distributions'!$AD$16:$AQ$22,9,FALSE) -> 0.09836654525 | AB114: =VLOOKUP('Form Control Selectors'!$J$23,'Water Budget Distributions'!$AD$16:$AQ$22,10,FALSE) -> 0.08736211308 | AC114: =VLOOKUP('Form Control Selectors'!$J$23,'Water Budget Distributions'!$AD$16:$AQ$22,11,FALSE) -> 0.07835809467 | AD114: =VLOOKUP('Form Control Selectors'!$J$23,'Water Budget Distributions'!$AD$16:$AQ$22,12,FALSE) -> 0.07457566633 | AE114: =VLOOKUP('Form Control Selectors'!$J$23,'Water Budget Distributions'!$AD$16:$AQ$22,13,FALSE) -> 0.07258157446
A115: GW outflow from pumping - Private minor users (m3) | Q115: m3/d | R115: 0
A116: TOTAL | B116: =SUM(B110:B115) -> 2104536.775 | C116: 1909240.492 | D116: 2109862.524 | E116: 2048617.865 | F116: 2116012.248 | G116: 2064568.378 | H116: 2147061.829 | I116: 2132812.792 | J116: 2055623.599 | K116: 2110831.252 | L116: 2041937.452 | M116: 2104836.054 | N116: 24945941.26
A118: SURPLUS/ DEFICIT (m3) | B118: =B106-B116 -> 14176.82532 | C118: 4436.308201 | D118: 8851.075726 | E118: 1750.13521 | F118: 2701.352149 | G118: -14200.37828 | H118: -28348.22933 | I118: -14099.19213 | J118: -5255.598993 | K118: 7882.347917 | L118: 8430.548113 | M118: 13877.54641 | N118: 202.7403053
A120: Equivalent GWL Change Across Aquifer (m) | B120: =(B118/($L$16*1000000))/$L$15 -> 0.396443661 | C120: =(C118/($L$16*1000000))/$L$15 -> 0.1240578356 | D120: 0.2475133033 | E120: 0.04894114123 | F120: 0.07554116748 | G120: -0.3971023008 | H120: -0.7927357196 | I120: -0.3942727107 | J120: -0.1469686519 | K120: 0.2204235995 | L120: 0.2357535826 | M120: 0.3880745641 | N120: 0.005669471625
A121: Cumulative GWL Change Across Aquifer (m) | B121: =B120 -> 0.396443661 | C121: =C120+B121 -> 0.5205014966 | D121: =D120+C121 -> 0.7680147999 | E121: =E120+D121 -> 0.8169559411 | F121: =F120+E121 -> 0.8924971086 | G121: =G120+F121 -> 0.4953948078 | H121: =H120+G121 -> -0.2973409119 | I121: =I120+H121 -> -0.6916136226 | J121: =J120+I121 -> -0.8385822745 | K121: =K120+J121 -> -0.618158675 | L121: =L120+K121 -> -0.3824050925 | M121: =M120+L121 -> 0.005669471625
A129: Days in Month | B129: 31 | C129: 28 | D129: 31 | E129: 30 | F129: 31 | G129: 30 | H129: 31 | I129: 31 | J129: 30 | K129: 31 | L129: 30 | M129: 31

Sheet West of Aldergrove - Analysis
A7: AQUIFER - West of Aldergrove Aquifer
A8: TYPE - 4b, Confined sand and gravel aquifer of glacial and preglacial origin
A9: CLASSIFICATION - TBD
A10: RANKING - TBD
A11: AQUIFER SIZE - 73.0 km2 | G11: ALLOCATED WATER USE | N11: Input Units | O11: User-Defined - Provided for accounting and reporting purposes and does not affect the moedl results directly
A13: LOCATION | G13: AQUIFER PARAMETERS AND SELECTION
G15: Storativity | L15: 0.0019 | N15: (-) | O15: Recommended value = 0.0019
G16: Aquifer Size - in Plan View | L16: 73 | N16: km2 | O16: Recommended value = 73.0
G19: Private Water Users Distribution Method
A40: *Golder interpretation of Township of Langley shallow confined aquifers shown (Golder 2005, 2014)
G41: ----- Average head fluctuation range for average conditions in provincial groundwater observation well (Well #415) installed in the West of Aldergrove aquifer (for calibration)
A45: INFLOWS TO AQUIFER (AVERAGE YEAR - 1945-2012) | T45: Monthly Distributions
A46: INFLOW SOURCE / TYPE | B46: JAN | C46: FEB | D46: MAR | E46: APR | F46: MAY | G46: JUN | H46: JUL | I46: AUG | J46: SEP | K46: OCT | L46: NOV | M46: DEC | N46: ANNUAL | P46: Flow per day to distribute | R46: Check | T46: JAN | U46: FEB | V46: MAR | W46: APR | X46: MAY | Y46: JUN | Z46: JUL | AA46: AUG | AB46: SEP | AC46: OCT | AD46: NOV | AE46: DEC
A47: GW inflow from surrounding aquitards (m3) | B47: =B$139*$P47 -> 2411707 | C47: 2178316 | D47: 2411707 | E47: 2333910 | F47: 2411707 | G47: 2333910 | H47: 2411707 | I47: 2411707 | J47: 2333910 | K47: 2411707 | L47: 2333910 | M47: 2411707 | N47: =SUM(B47:M47) -> 28395905 | P47: 77797 | Q47: m3/d | R47: =N47/365 -> 77797
A48: GW inflow from Abbotsford (m3) | B48: 21359 | C48: 19292 | D48: 21359 | E48: 20670 | F48: 21359 | G48: 20670 | H48: 21359 | I48: 21359 | J48: 20670 | K48: 21359 | L48: 20670 | M48: 21359 | N48: =SUM(B48:M48) -> 251485 | P48: 689 | Q48: m3/d | R48: =N48/365 -> 689
A49: GW inflow from Brookswood (m3) | B49: 12896 | C49: 11648 | D49: 12896 | E49: 12480 | F49: 12896 | G49: 12480 | H49: 12896 | I49: 12896 | J49: 12480 | K49: 12896 | L49: 12480 | M49: 12896 | N49: 151840 | P49: 416 | Q49: m3/d | R49: =N49/365 -> 416
A50: GW inflow from Hopington AB (m3) | B50: 10478 | C50: 9464 | D50: 10478 | E50: 10140 | F50: 10478 | G50: 10140 | H50: 10478 | I50: 10478 | J50: 10140 | K50: 10478 | L50: 10140 | M50: 10478 | N50: 123370 | P50: 338 | Q50: m3/d | R50: 338
A51: GW inflow from Hopington C (m3) | B51: 233089 | C51: 210532 | D51: 233089 | E51: 225570 | F51: 233089 | G51: 225570 | H51: 233089 | I51: 233089 | J51: 225570 | K51: 233089 | L51: 225570 | M51: 233089 | N51: 2744435 | P51: 7519 | Q51: m3/d | R51: 7519
A52: GW inflow from South of Hopington (m3) | B52: 13702 | C52: 12376 | D52: 13702 | E52: 13260 | F52: 13702 | G52: 13260 | H52: 13702 | I52: 13702 | J52: 13260 | K52: 13702 | L52: 13260 | M52: 13702 | N52: 161330 | P52: 442 | Q52: m3/d | R52: 442
A54: TOTAL | B54: =SUM(B47:B53) -> 2703231 | C54: 2441628 | D54: 2703231 | E54: 2616030 | F54: 2703231 | G54: 2616030 | H54: 2703231 | I54: 2703231 | J54: 2616030 | K54: 2703231 | L54: 2616030 | M54: 2703231 | N54: 31828365
A56: OUTFLOWS FROM AQUIFER (AVERAGE YEAR, 1945-2012) | T56: Monthly Distributions
A57: OUTFLOW SOURCE / TYPE | B57: JAN | C57: FEB | D57: MAR | E57: APR | F57: MAY | G57: JUN | H57: JUL | I57: AUG | J57: SEP | K57: OCT | L57: NOV | M57: DEC | N57: ANNUAL | P57: Flow per day to distribute | R57: Check | T57: JAN | U57: FEB | V57: MAR | W57: APR | X57: MAY | Y57: JUN | Z57: JUL | AA57: AUG | AB57: SEP | AC57: OCT | AD57: NOV | AE57: DEC
A58: GW outflow to surrounding aquitards (m3) | B58: =B$139*$P58 -> 2344344 | C58: 2117472 | D58: 2344344 | E58: 2268720 | F58: 2344344 | G58: 2268720 | H58: 2344344 | I58: 2344344 | J58: 2268720 | K58: 2344344 | L58: 2268720 | M58: 2344344 | N58: =SUM(B58:M58) -> 27602760 | P58: 75624 | Q58: m3/d | R58: =N58/365 -> 75624
A59: GW outflow to Abbotsford (m3) | B59: 174003 | C59: 157164 | D59: 174003 | E59: 168390 | F59: 174003 | G59: 168390 | H59: 174003 | I59: 174003 | J59: 168390 | K59: 174003 | L59: 168390 | M59: 174003 | N59: =SUM(B59:M59) -> 2048745 | P59: 5613 | Q59: m3/d | R59: =N59/365 -> 5613
A60: GW outflow to Hopington C (m3) | B60: 45942 | C60: 41496 | D60: 45942 | E60: 44460 | F60: 45942 | G60: 44460 | H60: 45942 | I60: 45942 | J60: 44460 | K60: 45942 | L60: 44460 | M60: 45942 | N60: 540930 | P60: 1482 | Q60: m3/d | R60: 1482
A61: GW outflow to South of Hopington (m3) | B61: 1829 | C61: 1652 | D61: 1829 | E61: 1770 | F61: 1829 | G61: 1770 | H61: 1829 | I61: 1829 | J61: 1770 | K61: 1829 | L61: 1770 | M61: 1829 | N61: 21535 | P61: 59 | Q61: m3/d | R61: 59
A62: GW outflow to Langley Upland Intertill (m3) | B62: 3379 | C62: 3052 | D62: 3379 | E62: 3270 | F62: 3379 | G62: 3270 | H62: 3379 | I62: 3379 | J62: 3270 | K62: 3379 | L62: 3270 | M62: 3379 | N62: 39785 | P62: 109 | Q62: m3/d | R62: 109
A63: GW outflow to South of Murrayville B (m3) | B63: 8339 | C63: 7532 | D63: 8339 | E63: 8070 | F63: 8339 | G63: 8070 | H63: 8339 | I63: 8339 | J63: 8070 | K63: 8339 | L63: 8070 | M63: 8339 | N63: 98185 | P63: 269 | Q63: m3/d | R63: 269
A64: GW outflow from pumping - Muni - Murrayville 2 (m3) | B64: =B$139*$P64*(T64*(365/B$139)) -> 22919.76967 | C64: =C$139*$P64*(U64*(365/C$139)) -> 25928.54317 | D64: 28329.80099 | E64: 35525.41538 | F64: 41986.54435 | G64: 49579.87565 | H64: 59978.23066 | I64: 58955.94356 | J64: 48683.87655 | K64: 32984.28613 | L64: 25192.97635 | M64: 24359.73754 | N64: 454425 | P64: =1245*'Form Control Selectors'!K37 -> 1245 | Q64: m3/d | R64: 1245 | T64: 0.05043685905 | U64: 0.05705791533 | V64: 0.06234208283 | W64: 0.07817663064 | X64: 0.09239488221 | Y64: 0.1091046392 | Z64: 0.131987084 | AA64: 0.1297374563 | AB64: 0.1071329186 | AC64: 0.07258466441 | AD64: 0.05543923936 | AE64: 0.05360562808
A65: GW outflow from pumping - Muni - Tall Timbers (m3) | B65: =B$139*$P65*(T65*(365/B$139)) -> 2021.99444 | C65: =C$139*$P65*(U65*(365/C$139)) -> 1546.016272 | D65: =D$139*$P65*(V65*(365/D$139)) -> 1609.041392 | E65: =E$139*$P65*(W65*(365/E$139)) -> 1696.64642 | F65: =F$139*$P65*(X65*(365/F$139)) -> 2012.666944 | G65: =G$139*$P65*(Y65*(365/G$139)) -> 3278.380557 | H65: =H$139*$P65*(Z65*(365/H$139)) -> 3245.558894 | I65: =I$139*$P65*(AA65*(365/I$139)) -> 1741.293934 | J65: =J$139*$P65*(AB65*(365/J$139)) -> 1708.886329 | K65: =K$139*$P65*(AC65*(365/K$139)) -> 1108.57111 | L65: =L$139*$P65*(AD65*(365/L$139)) -> 1551.431815 | M65: =M$139*$P65*(AE65*(365/M$139)) -> 1474.511893 | N65: =SUM(B65:M65) -> 22995 | P65: =63*'Form Control Selectors'!K43 -> 63 | Q65: m3/d | R65: 63 | T65: 0.08793191736 | U65: 0.0672327146 | V65: 0.06997353305 | W65: 0.07378327549 | X65: 0.0875262859 | Y65: 0.1425692784 | Z65: 0.1411419393 | AA65: 0.07572489387 | AB65: 0.07431556117 | AC65: 0.04820922416 | AD65: 0.06746822417 | AE65: 0.06412315254
A66: GW outflow from pumping - Muni - Acadia 1 (m3) | B66: =B$139*$P66*(T66*(365/B$139)) -> 501.0647908 | C66: =C$139*$P66*(U66*(365/C$139)) -> 524.6163602 | D66: =D$139*$P66*(V66*(365/D$139)) -> 491.8149065 | E66: =E$139*$P66*(W66*(365/E$139)) -> 596.2308272 | F66: =F$139*$P66*(X66*(365/F$139)) -> 718.8991175 | G66: =G$139*$P66*(Y66*(365/G$139)) -> 1130.921411 | H66: =H$139*$P66*(Z66*(365/H$139)) -> 1536.539106 | I66: =I$139*$P66*(AA66*(365/I$139)) -> 1237.858104 | J66: =J$139*$P66*(AB66*(365/J$139)) -> 742.8198754 | K66: =K$139*$P66*(AC66*(365/K$139)) -> 567.0223619 | L66: =L$139*$P66*(AD66*(365/L$139)) -> 550.8401079 | M66: =M$139*$P66*(AE66*(365/M$139)) -> 526.3730307 | N66: =SUM(B66:M66) -> 9125 | P66: =25*'Form Control Selectors'!K49 -> 25 | Q66: m3/d | R66: 25 | T66: 0.05491120995 | U66: 0.05749220386 | V66: 0.053897524 | W66: 0.06534036462 | X66: 0.07878346493 | Y66: 0.123936593 | Z66: 0.1683878473 | AA66: 0.1356556827 | AB66: 0.08140491785 | AC66: 0.06213943692 | AD66: 0.06036603923 | AE66: 0.0576847157
A67: GW outflow - ICI - Britco, Poppy Est., Spring Valley (m3) | B67: =B$139*$P67*(T67*(365/B$139)) -> 71378.76853 | C67: =C$139*$P67*(U67*(365/C$139)) -> 71572.20325 | D67: 76349.12 | E67: 79527.64796 | F67: 81730.61603 | G67: 93450.61296 | H67: 109003.7226 | I67: 97406.9796 | J67: 86509.89567 | K67: 77593.71146 | L67: 73848.18071 | M67: 71873.5412 | N67: =SUM(B67:M67) -> 990245 | P67: 2713 | Q67: m3/d | R67: 2713 | T67: =VLOOKUP('Form Control Selectors'!$K$23,'Water Budget Distributions'!$AR$16:$BE$22,2,FALSE) -> 0.07208192774 | U67: =VLOOKUP('Form Control Selectors'!$K$23,'Water Budget Distributions'!$AR$16:$BE$22,3,FALSE) -> 0.072277268 | V67: =VLOOKUP('Form Control Selectors'!$K$23,'Water Budget Distributions'!$AR$16:$BE$22,4,FALSE) -> 0.07710124262 | W67: =VLOOKUP('Form Control Selectors'!$K$23,'Water Budget Distributions'!$AR$16:$BE$22,5,FALSE) -> 0.08031108258 | X67: =VLOOKUP('Form Control Selectors'!$K$23,'Water Budget Distributions'!$AR$16:$BE$22,6,FALSE) -> 0.08253575229 | Y67: =VLOOKUP('Form Control Selectors'!$K$23,'Water Budget Distributions'!$AR$16:$BE$22,7,FALSE) -> 0.09437120405 | Z67: =VLOOKUP('Form Control Selectors'!$K$23,'Water Budget Distributions'!$AR$16:$BE$22,8,FALSE) -> 0.1100775289 | AA67: =VLOOKUP('Form Control Selectors'!$K$23,'Water Budget Distributions'!$AR$16:$BE$22,9,FALSE) -> 0.09836654525 | AB67: =VLOOKUP('Form Control Selectors'!$K$23,'Water Budget Distributions'!$AR$16:$BE$22,10,FALSE) -> 0.08736211308 | AC67: =VLOOKUP('Form Control Selectors'!$K$23,'Water Budget Distributions'!$AR$16:$BE$22,11,FALSE) -> 0.07835809467 | AD67: =VLOOKUP('Form Control Selectors'!$K$23,'Water Budget Distributions'!$AR$16:$BE$22,12,FALSE) -> 0.07457566633 | AE67: =VLOOKUP('Form Control Selectors'!$K$23,'Water Budget Distributions'!$AR$16:$BE$22,13,FALSE) -> 0.07258157446
A68: GW outflow from pumping - Private minor users (m3) | Q68: m3/d | R68: 0
A69: TOTAL | B69: =SUM(B58:B68) -> 2674657.597 | C69: =SUM(C58:C68) -> 2427939.379 | D69: 2684615.777 | E69: 2612025.941 | F69: 2704284.726 | G69: 2642119.791 | H69: 2751600.051 | I69: 2737178.075 | J69: 2632325.478 | K69: 2690089.591 | L69: 2595823.429 | M69: 2676070.164 | N69: =SUM(N58:N68) -> 31828730
A71: SURPLUS/ DEFICIT (m3) | B71: =B54-B69 -> 28573.40256 | C71: =C54-C69 -> 13688.62094 | D71: 18615.22271 | E71: 4004.059409 | F71: -1053.726439 | G71: -26089.79058 | H71: -48369.05129 | I71: -33947.0752 | J71: -16295.47843 | K71: 13141.40894 | L71: 20206.57102 | M71: 27160.83633 | N71: -365
A73: Equivalent GWL Change Across Aquifer (m) | B73: =(B71/($L$16*1000000))/$L$15 -> 0.2060086702 | C73: =(C71/($L$16*1000000))/$L$15 -> 0.09869229231 | D73: 0.134212132 | E73: 0.02886848889 | F73: -0.0075971625 | G73: -0.1881023113 | H73: -0.348731444 | I73: -0.2447518039 | J73: -0.1174872273 | K73: 0.09474700031 | L73: 0.1456854436 | M73: 0.1958243427 | N73: -0.002631578947
A74: Cumulative GWL Change Across Aquifer (m) | B74: =B73 -> 0.2060086702 | C74: =C73+B74 -> 0.3047009626 | D74: =D73+C74 -> 0.4389130946 | E74: 0.4677815835 | F74: 0.460184421 | G74: 0.2720821097 | H74: -0.07664933433 | I74: -0.3214011382 | J74: -0.4388883655 | K74: -0.3441413652 | L74: -0.1984559217 | M74: -0.002631578947
A76: INFLOWS TO AQUIFER (DRY YEAR - 1951) | T76: Monthly Distributions
A77: INFLOW SOURCE / TYPE | B77: JAN | C77: FEB | D77: MAR | E77: APR | F77: MAY | G77: JUN | H77: JUL | I77: AUG | J77: SEP | K77: OCT | L77: NOV | M77: DEC | N77: ANNUAL | P77: Flow per day to distribute | R77: Check | T77: JAN | U77: FEB | V77: MAR | W77: APR | X77: MAY | Y77: JUN | Z77: JUL | AA77: AUG | AB77: SEP | AC77: OCT | AD77: NOV | AE77: DEC
A78: GW inflow from surrounding aquitards (m3) | B78: =B$139*$P78 -> 2411707 | C78: 2178316 | D78: 2411707 | E78: 2333910 | F78: 2411707 | G78: 2333910 | H78: 2411707 | I78: 2411707 | J78: 2333910 | K78: 2411707 | L78: 2333910 | M78: 2411707 | N78: =SUM(B78:M78) -> 28395905 | P78: 77797 | Q78: m3/d | R78: =N78/365 -> 77797
A79: GW inflow from Abbotsford (m3) | B79: 21359 | C79: 19292 | D79: 21359 | E79: 20670 | F79: 21359 | G79: 20670 | H79: 21359 | I79: 21359 | J79: 20670 | K79: 21359 | L79: 20670 | M79: 21359 | N79: =SUM(B79:M79) -> 251485 | P79: 689 | Q79: m3/d | R79: =N79/365 -> 689
A80: GW inflow from Brookswood (m3) | B80: 12896 | C80: 11648 | D80: 12896 | E80: 12480 | F80: 12896 | G80: 12480 | H80: 12896 | I80: 12896 | J80: 12480 | K80: 12896 | L80: 12480 | M80: 12896 | N80: 151840 | P80: 416 | Q80: m3/d | R80: =N80/365 -> 416
A81: GW inflow from Hopington AB (m3) | B81: 10478 | C81: 9464 | D81: 10478 | E81: 10140 | F81: 10478 | G81: 10140 | H81: 10478 | I81: 10478 | J81: 10140 | K81: 10478 | L81: 10140 | M81: 10478 | N81: 123370 | P81: 338 | Q81: m3/d | R81: 338
A82: GW inflow from Hopington C (m3) | B82: 233089 | C82: 210532 | D82: 233089 | E82: 225570 | F82: 233089 | G82: 225570 | H82: 233089 | I82: 233089 | J82: 225570 | K82: 233089 | L82: 225570 | M82: 233089 | N82: 2744435 | P82: 7519 | Q82: m3/d | R82: 7519
A83: GW inflow from South of Hopington (m3) | B83: 13702 | C83: 12376 | D83: 13702 | E83: 13260 | F83: 13702 | G83: 13260 | H83: 13702 | I83: 13702 | J83: 13260 | K83: 13702 | L83: 13260 | M83: 13702 | N83: 161330 | P83: 442 | Q83: m3/d | R83: 442
A85: TOTAL | B85: =SUM(B78:B84) -> 2703231 | C85: =SUM(C78:C84) -> 2441628 | D85: 2703231 | E85: 2616030 | F85: 2703231 | G85: 2616030 | H85: 2703231 | I85: 2703231 | J85: 2616030 | K85: 2703231 | L85: 2616030 | M85: 2703231 | N85: 31828365
A87: OUTFLOWS FROM AQUIFER (DRY YEAR - 1951) | T87: Monthly Distributions
A88: OUTFLOW SOURCE / TYPE | B88: JAN | C88: FEB | D88: MAR | E88: APR | F88: MAY | G88: JUN | H88: JUL | I88: AUG | J88: SEP | K88: OCT | L88: NOV | M88: DEC | N88: ANNUAL | P88: Flow per day to distribute | R88: Check | T88: JAN | U88: FEB | V88: MAR | W88: APR | X88: MAY | Y88: JUN | Z88: JUL | AA88: AUG | AB88: SEP | AC88: OCT | AD88: NOV | AE88: DEC
A89: GW outflow to surrounding aquitards (m3) | B89: =B$139*$P89 -> 2344344 | C89: 2117472 | D89: 2344344 | E89: 2268720 | F89: 2344344 | G89: 2268720 | H89: 2344344 | I89: 2344344 | J89: 2268720 | K89: 2344344 | L89: 2268720 | M89: 2344344 | N89: =SUM(B89:M89) -> 27602760 | P89: 75624 | Q89: m3/d | R89: =N89/365 -> 75624
A90: GW outflow to Abbotsford (m3) | B90: 174003 | C90: 157164 | D90: 174003 | E90: 168390 | F90: 174003 | G90: 168390 | H90: 174003 | I90: 174003 | J90: 168390 | K90: 174003 | L90: 168390 | M90: 174003 | N90: =SUM(B90:M90) -> 2048745 | P90: 5613 | Q90: m3/d | R90: =N90/365 -> 5613
A91: GW outflow to Hopington C (m3) | B91: 45942 | C91: 41496 | D91: 45942 | E91: 44460 | F91: 45942 | G91: 44460 | H91: 45942 | I91: 45942 | J91: 44460 | K91: 45942 | L91: 44460 | M91: 45942 | N91: 540930 | P91: 1482 | Q91: m3/d | R91: 1482
A92: GW outflow to South of Hopington (m3) | B92: 1829 | C92: 1652 | D92: 1829 | E92: 1770 | F92: 1829 | G92: 1770 | H92: 1829 | I92: 1829 | J92: 1770 | K92: 1829 | L92: 1770 | M92: 1829 | N92: 21535 | P92: 59 | Q92: m3/d | R92: 59
A93: GW outflow to Langley Upland Intertill (m3) | B93: 3379 | C93: 3052 | D93: 3379 | E93: 3270 | F93: 3379 | G93: 3270 | H93: 3379 | I93: 3379 | J93: 3270 | K93: 3379 | L93: 3270 | M93: 3379 | N93: 39785 | P93: 109 | Q93: m3/d | R93: 109
A94: GW outflow to South of Murrayville B (m3) | B94: 8339 | C94: 7532 | D94: 8339 | E94: 8070 | F94: 8339 | G94: 8070 | H94: 8339 | I94: 8339 | J94: 8070 | K94: 8339 | L94: 8070 | M94: 8339 | N94: 98185 | P94: 269 | Q94: m3/d | R94: 269
A95: GW outflow from pumping - Muni - Murrayville 2 (m3) | B95: =B$139*$P95*(T95*(365/B$139)) -> 22919.76967 | C95: 25928.54317 | D95: 28329.80099 | E95: 35525.41538 | F95: 41986.54435 | G95: 49579.87565 | H95: 59978.23066 | I95: 58955.94356 | J95: 48683.87655 | K95: 32984.28613 | L95: 25192.97635 | M95: 24359.73754 | N95: 454425 | P95: =1245*'Form Control Selectors'!K37 -> 1245 | Q95: m3/d | R95: 1245 | T95: 0.05043685905 | U95: 0.05705791533 | V95: 0.06234208283 | W95: 0.07817663064 | X95: 0.09239488221 | Y95: 0.1091046392 | Z95: 0.131987084 | AA95: 0.1297374563 | AB95: 0.1071329186 | AC95: 0.07258466441 | AD95: 0.05543923936 | AE95: 0.05360562808
A96: GW outflow from pumping - Muni - Tall Timbers (m3) | B96: 2021.99444 | C96: 1546.016272 | D96: 1609.041392 | E96: 1696.64642 | F96: 2012.666944 | G96: 3278.380557 | H96: 3245.558894 | I96: 1741.293934 | J96: 1708.886329 | K96: 1108.57111 | L96: 1551.431815 | M96: 1474.511893 | N96: 22995 | P96: =63*'Form Control Selectors'!K43 -> 63 | Q96: m3/d | R96: 63 | T96: 0.08793191736 | U96: 0.0672327146 | V96: 0.06997353305 | W96: 0.07378327549 | X96: 0.0875262859 | Y96: 0.1425692784 | Z96: 0.1411419393 | AA96: 0.07572489387 | AB96: 0.07431556117 | AC96: 0.04820922416 | AD96: 0.06746822417 | AE96: 0.06412315254
A97: GW outflow from pumping - Muni - Acadia 1 (m3) | B97: 501.0647908 | C97: 524.6163602 | D97: 491.8149065 | E97: 596.2308272 | F97: 718.8991175 | G97: 1130.921411 | H97: 1536.539106 | I97: 1237.858104 | J97: 742.8198754 | K97: 567.0223619 | L97: 550.8401079 | M97: 526.3730307 | N97: 9125 | P97: =25*'Form Control Selectors'!K49 -> 25 | Q97: m3/d | R97: 25 | T97: 0.05491120995 | U97: 0.05749220386 | V97: 0.053897524 | W97: 0.06534036462 | X97: 0.07878346493 | Y97: 0.123936593 | Z97: 0.1683878473 | AA97: 0.1356556827 | AB97: 0.08140491785 | AC97: 0.06213943692 | AD97: 0.06036603923 | AE97: 0.0576847157
A98: GW outflow - ICI - Britco, Poppy Est., Spring Valley (m3) | B98: 71378.76853 | C98: 71572.20325 | D98: 76349.12 | E98: 79527.64796 | F98: 81730.61603 | G98: 93450.61296 | H98: 109003.7226 | I98: 97406.9796 | J98: 86509.89567 | K98: 77593.71146 | L98: 73848.18071 | M98: 71873.5412 | N98: 990245 | P98: 2713 | Q98: m3/d | R98: 2713 | T98: =VLOOKUP('Form Control Selectors'!$K$23,'Water Budget Distributions'!$AR$16:$BE$22,2,FALSE) -> 0.07208192774 | U98: =VLOOKUP('Form Control Selectors'!$K$23,'Water Budget Distributions'!$AR$16:$BE$22,3,FALSE) -> 0.072277268 | V98: =VLOOKUP('Form Control Selectors'!$K$23,'Water Budget Distributions'!$AR$16:$BE$22,4,FALSE) -> 0.07710124262 | W98: =VLOOKUP('Form Control Selectors'!$K$23,'Water Budget Distributions'!$AR$16:$BE$22,5,FALSE) -> 0.08031108258 | X98: =VLOOKUP('Form Control Selectors'!$K$23,'Water Budget Distributions'!$AR$16:$BE$22,6,FALSE) -> 0.08253575229 | Y98: =VLOOKUP('Form Control Selectors'!$K$23,'Water Budget Distributions'!$AR$16:$BE$22,7,FALSE) -> 0.09437120405 | Z98: =VLOOKUP('Form Control Selectors'!$K$23,'Water Budget Distributions'!$AR$16:$BE$22,8,FALSE) -> 0.1100775289 | AA98: =VLOOKUP('Form Control Selectors'!$K$23,'Water Budget Distributions'!$AR$16:$BE$22,9,FALSE) -> 0.09836654525 | AB98: =VLOOKUP('Form Control Selectors'!$K$23,'Water Budget Distributions'!$AR$16:$BE$22,10,FALSE) -> 0.08736211308 | AC98: =VLOOKUP('Form Control Selectors'!$K$23,'Water Budget Distributions'!$AR$16:$BE$22,11,FALSE) -> 0.07835809467 | AD98: =VLOOKUP('Form Control Selectors'!$K$23,'Water Budget Distributions'!$AR$16:$BE$22,12,FALSE) -> 0.07457566633 | AE98: =VLOOKUP('Form Control Selectors'!$K$23,'Water Budget Distributions'!$AR$16:$BE$22,13,FALSE) -> 0.07258157446
A99: GW outflow from pumping - Private minor users (m3) | Q99: m3/d | R99: 0
A100: TOTAL | B100: =SUM(B89:B99) -> 2674657.597 | C100: =SUM(C89:C99) -> 2427939.379 | D100: 2684615.777 | E100: 2612025.941 | F100: 2704284.726 | G100: 2642119.791 | H100: 2751600.051 | I100: 2737178.075 | J100: 2632325.478 | K100: 2690089.591 | L100: 2595823.429 | M100: 2676070.164 | N100: =SUM(N89:N99) -> 31828730
A102: SURPLUS/ DEFICIT (m3) | B102: =B85-B100 -> 28573.40256 | C102: =C85-C100 -> 13688.62094 | D102: 18615.22271 | E102: 4004.059409 | F102: -1053.726439 | G102: -26089.79058 | H102: -48369.05129 | I102: -33947.0752 | J102: -16295.47843 | K102: 13141.40894 | L102: 20206.57102 | M102: 27160.83633 | N102: -365
A104: Equivalent GWL Change Across Aquifer (m) | B104: =(B102/($L$16*1000000))/$L$15 -> 0.2060086702 | C104: =(C102/($L$16*1000000))/$L$15 -> 0.09869229231 | D104: 0.134212132 | E104: 0.02886848889 | F104: -0.0075971625 | G104: -0.1881023113 | H104: -0.348731444 | I104: -0.2447518039 | J104: -0.1174872273 | K104: 0.09474700031 | L104: 0.1456854436 | M104: 0.1958243427 | N104: -0.002631578947
A105: Cumulative GWL Change Across Aquifer (m) | B105: =B104 -> 0.2060086702 | C105: =C104+B105 -> 0.3047009626 | D105: =D104+C105 -> 0.4389130946 | E105: =E104+D105 -> 0.4677815835 | F105: =F104+E105 -> 0.460184421 | G105: =G104+F105 -> 0.2720821097 | H105: =H104+G105 -> -0.07664933433 | I105: =I104+H105 -> -0.3214011382 | J105: =J104+I105 -> -0.4388883655 | K105: =K104+J105 -> -0.3441413652 | L105: =L104+K105 -> -0.1984559217 | M105: =M104+L105 -> -0.002631578947
A107: INFLOWS TO AQUIFER (WET YEAR - 1971) | T107: Monthly Distributions
A108: INFLOW SOURCE / TYPE | B108: JAN | C108: FEB | D108: MAR | E108: APR | F108: MAY | G108: JUN | H108: JUL | I108: AUG | J108: SEP | K108: OCT | L108: NOV | M108: DEC | N108: ANNUAL | P108: Flow per day to distribute | R108: Check | T108: JAN | U108: FEB | V108: MAR | W108: APR | X108: MAY | Y108: JUN | Z108: JUL | AA108: AUG | AB108: SEP | AC108: OCT | AD108: NOV | AE108: DEC
A109: GW inflow from surrounding aquitards (m3) | B109: =B$139*$P109 -> 2411707 | C109: 2178316 | D109: 2411707 | E109: 2333910 | F109: 2411707 | G109: 2333910 | H109: 2411707 | I109: 2411707 | J109: 2333910 | K109: 2411707 | L109: 2333910 | M109: 2411707 | N109: =SUM(B109:M109) -> 28395905 | P109: 77797 | Q109: m3/d | R109: =N109/365 -> 77797
A110: GW inflow from Abbotsford (m3) | B110: 21359 | C110: 19292 | D110: 21359 | E110: 20670 | F110: 21359 | G110: 20670 | H110: 21359 | I110: 21359 | J110: 20670 | K110: 21359 | L110: 20670 | M110: 21359 | N110: =SUM(B110:M110) -> 251485 | P110: 689 | Q110: m3/d | R110: =N110/365 -> 689
A111: GW inflow from Brookswood (m3) | B111: 12896 | C111: 11648 | D111: 12896 | E111: 12480 | F111: 12896 | G111: 12480 | H111: 12896 | I111: 12896 | J111: 12480 | K111: 12896 | L111: 12480 | M111: 12896 | N111: 151840 | P111: 416 | Q111: m3/d | R111: =N111/365 -> 416
A112: GW inflow from Hopington AB (m3) | B112: 10478 | C112: 9464 | D112: 10478 | E112: 10140 | F112: 10478 | G112: 10140 | H112: 10478 | I112: 10478 | J112: 10140 | K112: 10478 | L112: 10140 | M112: 10478 | N112: 123370 | P112: 338 | Q112: m3/d | R112: 338
A113: GW inflow from Hopington C (m3) | B113: 233089 | C113: 210532 | D113: 233089 | E113: 225570 | F113: 233089 | G113: 225570 | H113: 233089 | I113: 233089 | J113: 225570 | K113: 233089 | L113: 225570 | M113: 233089 | N113: 2744435 | P113: 7519 | Q113: m3/d | R113: 7519
A114: GW inflow from South of Hopington (m3) | B114: 13702 | C114: 12376 | D114: 13702 | E114: 13260 | F114: 13702 | G114: 13260 | H114: 13702 | I114: 13702 | J114: 13260 | K114: 13702 | L114: 13260 | M114: 13702 | N114: 161330 | P114: 442 | Q114: m3/d | R114: 442
A116: TOTAL | B116: =SUM(B109:B115) -> 2703231 | C116: =SUM(C109:C115) -> 2441628 | D116: 2703231 | E116: 2616030 | F116: 2703231 | G116: 2616030 | H116: 2703231 | I116: 2703231 | J116: 2616030 | K116: 2703231 | L116: 2616030 | M116: 2703231 | N116: 31828365
A118: OUTFLOWS FROM AQUIFER (WET YEAR - 1971) | T118: Monthly Distributions
A119: OUTFLOW SOURCE / TYPE | B119: JAN | C119: FEB | D119: MAR | E119: APR | F119: MAY | G119: JUN | H119: JUL | I119: AUG | J119: SEP | K119: OCT | L119: NOV | M119: DEC | N119: ANNUAL | P119: Flow per day to distribute | R119: Check | T119: JAN | U119: FEB | V119: MAR | W119: APR | X119: MAY | Y119: JUN | Z119: JUL | AA119: AUG | AB119: SEP | AC119: OCT | AD119: NOV | AE119: DEC
A120: GW outflow to surrounding aquitards (m3) | B120: =B$139*$P120 -> 2344344 | C120: 2117472 | D120: 2344344 | E120: 2268720 | F120: 2344344 | G120: 2268720 | H120: 2344344 | I120: 2344344 | J120: 2268720 | K120: 2344344 | L120: 2268720 | M120: 2344344 | N120: =SUM(B120:M120) -> 27602760 | P120: 75624 | Q120: m3/d | R120: =N120/365 -> 75624
A121: GW outflow to Abbotsford (m3) | B121: 174003 | C121: 157164 | D121: 174003 | E121: 168390 | F121: 174003 | G121: 168390 | H121: 174003 | I121: 174003 | J121: 168390 | K121: 174003 | L121: 168390 | M121: 174003 | N121: =SUM(B121:M121) -> 2048745 | P121: 5613 | Q121: m3/d | R121: =N121/365 -> 5613
A122: GW outflow to Hopington C (m3) | B122: 45942 | C122: 41496 | D122: 45942 | E122: 44460 | F122: 45942 | G122: 44460 | H122: 45942 | I122: 45942 | J122: 44460 | K122: 45942 | L122: 44460 | M122: 45942 | N122: 540930 | P122: 1482 | Q122: m3/d | R122: 1482
A123: GW outflow to South of Hopington (m3) | B123: 1829 | C123: 1652 | D123: 1829 | E123: 1770 | F123: 1829 | G123: 1770 | H123: 1829 | I123: 1829 | J123: 1770 | K123: 1829 | L123: 1770 | M123: 1829 | N123: 21535 | P123: 59 | Q123: m3/d | R123: 59
A124: GW outflow to Langley Upland Intertill (m3) | B124: 3379 | C124: 3052 | D124: 3379 | E124: 3270 | F124: 3379 | G124: 3270 | H124: 3379 | I124: 3379 | J124: 3270 | K124: 3379 | L124: 3270 | M124: 3379 | N124: 39785 | P124: 109 | Q124: m3/d | R124: 109
A125: GW outflow to South of Murrayville B (m3) | B125: 8339 | C125: 7532 | D125: 8339 | E125: 8070 | F125: 8339 | G125: 8070 | H125: 8339 | I125: 8339 | J125: 8070 | K125: 8339 | L125: 8070 | M125: 8339 | N125: 98185 | P125: 269 | Q125: m3/d | R125: 269
A126: GW outflow from pumping - Muni - Murrayville 2 (m3) | B126: =B$139*$P126*(T126*(365/B$139)) -> 22919.76967 | C126: 25928.54317 | D126: 28329.80099 | E126: 35525.41538 | F126: 41986.54435 | G126: 49579.87565 | H126: 59978.23066 | I126: 58955.94356 | J126: 48683.87655 | K126: 32984.28613 | L126: 25192.97635 | M126: 24359.73754 | N126: 454425 | P126: =1245*'Form Control Selectors'!K37 -> 1245 | Q126: m3/d | R126: 1245 | T126: 0.05043685905 | U126: 0.05705791533 | V126: 0.06234208283 | W126: 0.07817663064 | X126: 0.09239488221 | Y126: 0.1091046392 | Z126: 0.131987084 | AA126: 0.1297374563 | AB126: 0.1071329186 | AC126: 0.07258466441 | AD126: 0.05543923936 | AE126: 0.05360562808
A127: GW outflow from pumping - Muni - Tall Timbers (m3) | B127: 2021.99444 | C127: 1546.016272 | D127: 1609.041392 | E127: 1696.64642 | F127: 2012.666944 | G127: 3278.380557 | H127: 3245.558894 | I127: 1741.293934 | J127: 1708.886329 | K127: 1108.57111 | L127: 1551.431815 | M127: 1474.511893 | N127: 22995 | P127: =63*'Form Control Selectors'!K43 -> 63 | Q127: m3/d | R127: 63 | T127: 0.08793191736 | U127: 0.0672327146 | V127: 0.06997353305 | W127: 0.07378327549 | X127: 0.0875262859 | Y127: 0.1425692784 | Z127: 0.1411419393 | AA127: 0.07572489387 | AB127: 0.07431556117 | AC127: 0.04820922416 | AD127: 0.06746822417 | AE127: 0.06412315254
A128: GW outflow from pumping - Muni - Acadia 1 (m3) | B128: 501.0647908 | C128: 524.6163602 | D128: 491.8149065 | E128: 596.2308272 | F128: 718.8991175 | G128: 1130.921411 | H128: 1536.539106 | I128: 1237.858104 | J128: 742.8198754 | K128: 567.0223619 | L128: 550.8401079 | M128: 526.3730307 | N128: 9125 | P128: =25*'Form Control Selectors'!K49 -> 25 | Q128: m3/d | R128: 25 | T128: 0.05491120995 | U128: 0.05749220386 | V128: 0.053897524 | W128: 0.06534036462 | X128: 0.07878346493 | Y128: 0.123936593 | Z128: 0.1683878473 | AA128: 0.1356556827 | AB128: 0.08140491785 | AC128: 0.06213943692 | AD128: 0.06036603923 | AE128: 0.0576847157
A129: GW outflow - ICI - Britco, Poppy Est., Spring Valley (m3) | B129: 71378.76853 | C129: 71572.20325 | D129: 76349.12 | E129: 79527.64796 | F129: 81730.61603 | G129: 93450.61296 | H129: 109003.7226 | I129: 97406.9796 | J129: 86509.89567 | K129: 77593.71146 | L129: 73848.18071 | M129: 71873.5412 | N129: 990245 | P129: 2713 | Q129: m3/d | R129: 2713 | T129: =VLOOKUP('Form Control Selectors'!$K$23,'Water Budget Distributions'!$AR$16:$BE$22,2,FALSE) -> 0.07208192774 | U129: =VLOOKUP('Form Control Selectors'!$K$23,'Water Budget Distributions'!$AR$16:$BE$22,3,FALSE) -> 0.072277268 | V129: =VLOOKUP('Form Control Selectors'!$K$23,'Water Budget Distributions'!$AR$16:$BE$22,4,FALSE) -> 0.07710124262 | W129: =VLOOKUP('Form Control Selectors'!$K$23,'Water Budget Distributions'!$AR$16:$BE$22,5,FALSE) -> 0.08031108258 | X129: =VLOOKUP('Form Control Selectors'!$K$23,'Water Budget Distributions'!$AR$16:$BE$22,6,FALSE) -> 0.08253575229 | Y129: =VLOOKUP('Form Control Selectors'!$K$23,'Water Budget Distributions'!$AR$16:$BE$22,7,FALSE) -> 0.09437120405 | Z129: =VLOOKUP('Form Control Selectors'!$K$23,'Water Budget Distributions'!$AR$16:$BE$22,8,FALSE) -> 0.1100775289 | AA129: =VLOOKUP('Form Control Selectors'!$K$23,'Water Budget Distributions'!$AR$16:$BE$22,9,FALSE) -> 0.09836654525 | AB129: =VLOOKUP('Form Control Selectors'!$K$23,'Water Budget Distributions'!$AR$16:$BE$22,10,FALSE) -> 0.08736211308 | AC129: =VLOOKUP('Form Control Selectors'!$K$23,'Water Budget Distributions'!$AR$16:$BE$22,11,FALSE) -> 0.07835809467 | AD129: =VLOOKUP('Form Control Selectors'!$K$23,'Water Budget Distributions'!$AR$16:$BE$22,12,FALSE) -> 0.07457566633 | AE129: =VLOOKUP('Form Control Selectors'!$K$23,'Water Budget Distributions'!$AR$16:$BE$22,13,FALSE) -> 0.07258157446
A130: GW outflow from pumping - Private minor users (m3) | Q130: m3/d | R130: 0
A131: TOTAL | B131: =SUM(B120:B130) -> 2674657.597 | C131: =SUM(C120:C130) -> 2427939.379 | D131: 2684615.777 | E131: 2612025.941 | F131: 2704284.726 | G131: 2642119.791 | H131: 2751600.051 | I131: 2737178.075 | J131: 2632325.478 | K131: 2690089.591 | L131: 2595823.429 | M131: 2676070.164 | N131: =SUM(N120:N130) -> 31828730
A133: SURPLUS/ DEFICIT (m3) | B133: =B116-B131 -> 28573.40256 | C133: =C116-C131 -> 13688.62094 | D133: 18615.22271 | E133: 4004.059409 | F133: -1053.726439 | G133: -26089.79058 | H133: -48369.05129 | I133: -33947.0752 | J133: -16295.47843 | K133: 13141.40894 | L133: 20206.57102 | M133: 27160.83633 | N133: -365
A135: Equivalent GWL Change Across Aquifer (m) | B135: =(B133/($L$16*1000000))/$L$15 -> 0.2060086702 | C135: =(C133/($L$16*1000000))/$L$15 -> 0.09869229231 | D135: 0.134212132 | E135: 0.02886848889 | F135: -0.0075971625 | G135: -0.1881023113 | H135: -0.348731444 | I135: -0.2447518039 | J135: -0.1174872273 | K135: 0.09474700031 | L135: 0.1456854436 | M135: 0.1958243427 | N135: -0.002631578947
A136: Cumulative GWL Change Across Aquifer (m) | B136: =B135 -> 0.2060086702 | C136: =C135+B136 -> 0.3047009626 | D136: =D135+C136 -> 0.4389130946 | E136: =E135+D136 -> 0.4677815835 | F136: =F135+E136 -> 0.460184421 | G136: =G135+F136 -> 0.2720821097 | H136: =H135+G136 -> -0.07664933433 | I136: =I135+H136 -> -0.3214011382 | J136: =J135+I136 -> -0.4388883655 | K136: =K135+J136 -> -0.3441413652 | L136: =L135+K136 -> -0.1984559217 | M136: =M135+L136 -> -0.002631578947
A139: Days in Month | B139: 31 | C139: 28 | D139: 31 | E139: 30 | F139: 31 | G139: 30 | H139: 31 | I139: 31 | J139: 30 | K139: 31 | L139: 30 | M139: 31

Sheet S of Murrayville AC - Analysis
A7: AQUIFER - South of Murrayville AC / Beaver River B Aquifer
A8: TYPE - 4b, Confined sand and gravel aquifer of glacial and preglacial origin
A9: CLASSIFICATION - TBD
A10: RANKING - TBD
A11: AQUIFER SIZE - 73.47 km2 | G11: ALLOCATED WATER USE | N11: Units | O11: User-Defined - Provided for accounting and reporting purposes and does not affect the moedl results directly
A13: LOCATION | G13: AQUIFER PARAMETERS AND SELECTION
G15: Storativity | L15: 0.001 | N15: (-) | O15: Recommended value = 0.001
G16: Aquifer Size - in Plan View | L16: 73.47 | N16: km2 | O16: Recommended value = 73.47
G19: Private Water Users Distribution Method | O19: NOT USED CURRENTLY
A40: *Golder interpretation of Township of Langley deep confined aquifers shown (Golder 2005, 2014)
A45: INFLOWS TO AQUIFER (AVERAGE YEAR - 1945-2012) | T45: Monthly Distributions
A46: INFLOW SOURCE / TYPE | B46: JAN | C46: FEB | D46: MAR | E46: APR | F46: MAY | G46: JUN | H46: JUL | I46: AUG | J46: SEP | K46: OCT | L46: NOV | M46: DEC | N46: ANNUAL | P46: Flow per day to distribute | R46: Check | T46: JAN | U46: FEB | V46: MAR | W46: APR | X46: MAY | Y46: JUN | Z46: JUL | AA46: AUG | AB46: SEP | AC46: OCT | AD46: NOV | AE46: DEC
A47: GW inflow from surrounding aquitards (m3) | B47: =B$129*$P47 -> 1719074 | C47: 1552712 | D47: 1719074 | E47: 1663620 | F47: 1719074 | G47: 1663620 | H47: 1719074 | I47: 1719074 | J47: 1663620 | K47: 1719074 | L47: 1663620 | M47: 1719074 | N47: =SUM(B47:M47) -> 20240710 | P47: 55454 | Q47: m3/d | R47: =N47/365 -> 55454
A48: GW inflow from South of Murrayville B aquifer (m3) | B48: 2092.5 | C48: 1890 | D48: 2092.5 | E48: 2025 | F48: 2092.5 | G48: 2025 | H48: 2092.5 | I48: 2092.5 | J48: 2025 | K48: 2092.5 | L48: 2025 | M48: 2092.5 | N48: =SUM(B48:M48) -> 24637.5 | P48: 67.5 | Q48: m3/d | R48: =N48/365 -> 67.5
A49: GW inflow from Langley Upland Intertill aquifer (m3) | B49: 67208 | C49: 60704 | D49: 67208 | E49: 65040 | F49: 67208 | G49: 65040 | H49: 67208 | I49: 67208 | J49: 65040 | K49: 67208 | L49: 65040 | M49: 67208 | N49: 791320 | P49: 2168 | Q49: m3/d | R49: =N49/365 -> 2168
A54: TOTAL | B54: =SUM(B47:B53) -> 1788374.5 | C54: =SUM(C47:C53) -> 1615306 | D54: 1788374.5 | E54: 1730685 | F54: 1788374.5 | G54: 1730685 | H54: 1788374.5 | I54: 1788374.5 | J54: 1730685 | K54: 1788374.5 | L54: 1730685 | M54: 1788374.5 | N54: 21056667.5
A56: OUTFLOWS FROM AQUIFER (AVERAGE YEAR, 1945-2012) | T56: Monthly Distributions
A57: OUTFLOW SOURCE / TYPE | B57: JAN | C57: FEB | D57: MAR | E57: APR | F57: MAY | G57: JUN | H57: JUL | I57: AUG | J57: SEP | K57: OCT | L57: NOV | M57: DEC | N57: ANNUAL | P57: Flow per day to distribute | R57: Check | T57: JAN | U57: FEB | V57: MAR | W57: APR | X57: MAY | Y57: JUN | Z57: JUL | AA57: AUG | AB57: SEP | AC57: OCT | AD57: NOV | AE57: DEC
A58: GW outflow to surrounding aquitards (m3) | B58: =B$129*$P58 -> 1754972 | C58: 1585136 | D58: 1754972 | E58: 1698360 | F58: 1754972 | G58: 1698360 | H58: 1754972 | I58: 1754972 | J58: 1698360 | K58: 1754972 | L58: 1698360 | M58: 1754972 | N58: =SUM(B58:M58) -> 20663380 | P58: 56612 | Q58: m3/d | R58: =N58/365 -> 56612
A59: GW outflow to South of Murrayville B aquifer (m3) | B59: 372 | C59: 336 | D59: 372 | E59: 360 | F59: 372 | G59: 360 | H59: 372 | I59: 372 | J59: 360 | K59: 372 | L59: 360 | M59: 372 | N59: =SUM(B59:M59) -> 4380 | P59: 12 | Q59: m3/d | R59: =N59/365 -> 12
A60: GW outflow to Langley Upland Intertill aquifer (m3) | B60: 19313 | C60: 17444 | D60: 19313 | E60: 18690 | F60: 19313 | G60: 18690 | H60: 19313 | I60: 19313 | J60: 18690 | K60: 19313 | L60: 18690 | M60: 19313 | N60: 227395 | P60: 623 | Q60: m3/d | R60: 623
A61: GW outflow from pumping - Muni - Murrayville 1 (m3) | B61: =B$129*$P61*(T61*(365/B$129)) -> 8223.088738 | C61: =C$129*$P61*(U61*(365/C$129)) -> 9613.433789 | D61: 9427.657636 | E61: 11694.94094 | F61: 16098.24289 | G61: 19685.62174 | H61: 21452.45366 | I61: 18683.66261 | J61: 15001.88503 | K61: 11779.75086 | L61: 9606.234159 | M61: 10063.02794 | N61: 161330 | P61: =442*'Form Control Selectors'!L37 -> 442 | Q61: m3/d | R61: 442 | T61: 0.05097061141 | U61: 0.05958863069 | V61: 0.05843710182 | W61: 0.07249080111 | X61: 0.0997845589 | Y61: 0.1220208377 | Z61: 0.1329725015 | AA61: 0.1158102188 | AB61: 0.09298881193 | AC61: 0.0730164933 | AD61: 0.05954400396 | AE61: 0.0623754289
Q62: m3/d | R62: 0
A64: TOTAL | B64: =SUM(B58:B63) -> 1782880.089 | C64: =SUM(C58:C63) -> 1612529.434 | D64: 1784084.658 | E64: 1729104.941 | F64: 1790755.243 | G64: 1737095.622 | H64: 1796109.454 | I64: 1793340.663 | J64: 1732411.885 | K64: 1786436.751 | L64: 1727016.234 | M64: 1784720.028 | N64: 21056485
A66: SURPLUS/ DEFICIT (m3) | B66: =B54-B64 -> 5494.411262 | C66: =C54-C64 -> 2776.566211 | D66: 4289.842364 | E66: 1580.059056 | F66: -2380.742887 | G66: -6410.621744 | H66: -7734.95366 | I66: -4966.162606 | J66: -1726.885028 | K66: 1937.749136 | L66: 3668.765841 | M66: 3654.472055 | N66: 182.5
A68: Equivalent GWL Change Across Aquifer (m) | B68: =(B66/($L$16*1000000))/$L$15 -> 0.07478441897 | C68: =(C66/($L$16*1000000))/$L$15 -> 0.03779183628 | D68: 0.05838903449 | E68: 0.02150618016 | F68: -0.03240428592 | G68: -0.08725495772 | H68: -0.1052804364 | I68: -0.06759442774 | J68: -0.02350462812 | K68: 0.026374699 | L68: 0.04993556337 | M68: 0.04974101069 | N68: 0.002484007078
A69: Cumulative GWL Change Across Aquifer (m) | B69: =B68 -> 0.07478441897 | C69: =C68+B69 -> 0.1125762552 | D69: =D68+C69 -> 0.1709652897 | E69: 0.1924714699 | F69: 0.160067184 | G69: 0.07281222625 | H69: -0.03246821011 | I69: -0.1000626379 | J69: -0.123567266 | K69: -0.09719256698 | L69: -0.04725700361 | M69: 0.002484007078
A71: INFLOWS TO AQUIFER (DRY YEAR - 1951) | T71: Monthly Distributions
A72: INFLOW SOURCE / TYPE | B72: JAN | C72: FEB | D72: MAR | E72: APR | F72: MAY | G72: JUN | H72: JUL | I72: AUG | J72: SEP | K72: OCT | L72: NOV | M72: DEC | N72: ANNUAL | P72: Flow per day to distribute | R72: Check | T72: JAN | U72: FEB | V72: MAR | W72: APR | X72: MAY | Y72: JUN | Z72: JUL | AA72: AUG | AB72: SEP | AC72: OCT | AD72: NOV | AE72: DEC
A73: GW inflow from surrounding aquitards (m3) | B73: =B$129*$P73 -> 1719074 | C73: 1552712 | D73: 1719074 | E73: 1663620 | F73: 1719074 | G73: 1663620 | H73: 1719074 | I73: 1719074 | J73: 1663620 | K73: 1719074 | L73: 1663620 | M73: 1719074 | N73: =SUM(B73:M73) -> 20240710 | P73: 55454 | Q73: m3/d | R73: =N73/365 -> 55454
A74: GW inflow from South of Murrayville B aquifer (m3) | B74: 2092.5 | C74: 1890 | D74: 2092.5 | E74: 2025 | F74: 2092.5 | G74: 2025 | H74: 2092.5 | I74: 2092.5 | J74: 2025 | K74: 2092.5 | L74: 2025 | M74: 2092.5 | N74: =SUM(B74:M74) -> 24637.5 | P74: 67.5 | Q74: m3/d | R74: =N74/365 -> 67.5
A75: GW inflow from Langley Upland Intertill aquifer (m3) | B75: 67208 | C75: 60704 | D75: 67208 | E75: 65040 | F75: 67208 | G75: 65040 | H75: 67208 | I75: 67208 | J75: 65040 | K75: 67208 | L75: 65040 | M75: 67208 | N75: 791320 | P75: 2168 | Q75: m3/d | R75: =N75/365 -> 2168
A80: TOTAL | B80: =SUM(B73:B79) -> 1788374.5 | C80: =SUM(C73:C79) -> 1615306 | D80: 1788374.5 | E80: 1730685 | F80: 1788374.5 | G80: 1730685 | H80: 1788374.5 | I80: 1788374.5 | J80: 1730685 | K80: 1788374.5 | L80: 1730685 | M80: 1788374.5 | N80: 21056667.5
A82: OUTFLOWS FROM AQUIFER (DRY YEAR - 1951) | T82: Monthly Distributions
A83: OUTFLOW SOURCE / TYPE | B83: JAN | C83: FEB | D83: MAR | E83: APR | F83: MAY | G83: JUN | H83: JUL | I83: AUG | J83: SEP | K83: OCT | L83: NOV | M83: DEC | N83: ANNUAL | P83: Flow per day to distribute | R83: Check | T83: JAN | U83: FEB | V83: MAR | W83: APR | X83: MAY | Y83: JUN | Z83: JUL | AA83: AUG | AB83: SEP | AC83: OCT | AD83: NOV | AE83: DEC
A84: GW outflow to surrounding aquitards (m3) | B84: =B$129*$P84 -> 1754972 | C84: 1585136 | D84: 1754972 | E84: 1698360 | F84: 1754972 | G84: 1698360 | H84: 1754972 | I84: 1754972 | J84: 1698360 | K84: 1754972 | L84: 1698360 | M84: 1754972 | N84: =SUM(B84:M84) -> 20663380 | P84: 56612 | Q84: m3/d | R84: =N84/365 -> 56612
A85: GW outflow to South of Murrayville B aquifer (m3) | B85: 372 | C85: 336 | D85: 372 | E85: 360 | F85: 372 | G85: 360 | H85: 372 | I85: 372 | J85: 360 | K85: 372 | L85: 360 | M85: 372 | N85: 4380 | P85: 12 | Q85: m3/d | R85: =N85/365 -> 12
A86: GW outflow to Langley Upland Intertill aquifer (m3) | B86: 19313 | C86: 17444 | D86: 19313 | E86: 18690 | F86: 19313 | G86: 18690 | H86: 19313 | I86: 19313 | J86: 18690 | K86: 19313 | L86: 18690 | M86: 19313 | N86: 227395 | P86: 623 | Q86: m3/d | R86: 623
A87: GW outflow from pumping - Muni - Murrayville 1 (m3) | B87: =B$129*$P87*(T87*(365/B$129)) -> 8223.088738 | C87: =C$129*$P87*(U87*(365/C$129)) -> 9613.433789 | D87: =D$129*$P87*(V87*(365/D$129)) -> 9427.657636 | E87: =E$129*$P87*(W87*(365/E$129)) -> 11694.94094 | F87: =F$129*$P87*(X87*(365/F$129)) -> 16098.24289 | G87: =G$129*$P87*(Y87*(365/G$129)) -> 19685.62174 | H87: =H$129*$P87*(Z87*(365/H$129)) -> 21452.45366 | I87: =I$129*$P87*(AA87*(365/I$129)) -> 18683.66261 | J87: =J$129*$P87*(AB87*(365/J$129)) -> 15001.88503 | K87: =K$129*$P87*(AC87*(365/K$129)) -> 11779.75086 | L87: =L$129*$P87*(AD87*(365/L$129)) -> 9606.234159 | M87: =M$129*$P87*(AE87*(365/M$129)) -> 10063.02794 | N87: 161330 | P87: =442*'Form Control Selectors'!K43 -> 442 | Q87: m3/d | R87: 442 | T87: 0.05097061141 | U87: 0.05958863069 | V87: 0.05843710182 | W87: 0.07249080111 | X87: 0.0997845589 | Y87: 0.1220208377 | Z87: 0.1329725015 | AA87: 0.1158102188 | AB87: 0.09298881193 | AC87: 0.0730164933 | AD87: 0.05954400396 | AE87: 0.0623754289
Q88: m3/d | R88: 0
A90: TOTAL | B90: =SUM(B84:B89) -> 1782880.089 | C90: =SUM(C84:C89) -> 1612529.434 | D90: 1784084.658 | E90: 1729104.941 | F90: 1790755.243 | G90: 1737095.622 | H90: 1796109.454 | I90: 1793340.663 | J90: 1732411.885 | K90: 1786436.751 | L90: 1727016.234 | M90: 1784720.028 | N90: 21056485
A92: SURPLUS/ DEFICIT (m3) | B92: =B80-B90 -> 5494.411262 | C92: =C80-C90 -> 2776.566211 | D92: 4289.842364 | E92: 1580.059056 | F92: -2380.742887 | G92: -6410.621744 | H92: -7734.95366 | I92: -4966.162606 | J92: -1726.885028 | K92: 1937.749136 | L92: 3668.765841 | M92: 3654.472055 | N92: 182.5
A94: Equivalent GWL Change Across Aquifer (m) | B94: =(B92/($L$16*1000000))/$L$15 -> 0.07478441897 | C94: =(C92/($L$16*1000000))/$L$15 -> 0.03779183628 | D94: 0.05838903449 | E94: 0.02150618016 | F94: -0.03240428592 | G94: -0.08725495772 | H94: -0.1052804364 | I94: -0.06759442774 | J94: -0.02350462812 | K94: 0.026374699 | L94: 0.04993556337 | M94: 0.04974101069 | N94: 0.002484007078
A95: Cumulative GWL Change Across Aquifer (m) | B95: =B94 -> 0.07478441897 | C95: =C94+B95 -> 0.1125762552 | D95: =D94+C95 -> 0.1709652897 | E95: =E94+D95 -> 0.1924714699 | F95: =F94+E95 -> 0.160067184 | G95: =G94+F95 -> 0.07281222625 | H95: =H94+G95 -> -0.03246821011 | I95: =I94+H95 -> -0.1000626379 | J95: =J94+I95 -> -0.123567266 | K95: =K94+J95 -> -0.09719256698 | L95: =L94+K95 -> -0.04725700361 | M95: =M94+L95 -> 0.002484007078
A97: INFLOWS TO AQUIFER (WET YEAR - 1971) | T97: Monthly Distributions
A98: INFLOW SOURCE / TYPE | B98: JAN | C98: FEB | D98: MAR | E98: APR | F98: MAY | G98: JUN | H98: JUL | I98: AUG | J98: SEP | K98: OCT | L98: NOV | M98: DEC | N98: ANNUAL | P98: Flow per day to distribute | R98: Check | T98: JAN | U98: FEB | V98: MAR | W98: APR | X98: MAY | Y98: JUN | Z98: JUL | AA98: AUG | AB98: SEP | AC98: OCT | AD98: NOV | AE98: DEC
A99: GW inflow from surrounding aquitards (m3) | B99: =B$129*$P99 -> 1719074 | C99: 1552712 | D99: 1719074 | E99: 1663620 | F99: 1719074 | G99: 1663620 | H99: 1719074 | I99: 1719074 | J99: 1663620 | K99: 1719074 | L99: 1663620 | M99: 1719074 | N99: =SUM(B99:M99) -> 20240710 | P99: 55454 | Q99: m3/d | R99: =N99/365 -> 55454
A100: GW inflow from South of Murrayville B aquifer (m3) | B100: 2092.5 | C100: 1890 | D100: 2092.5 | E100: 2025 | F100: 2092.5 | G100: 2025 | H100: 2092.5 | I100: 2092.5 | J100: 2025 | K100: 2092.5 | L100: 2025 | M100: 2092.5 | N100: =SUM(B100:M100) -> 24637.5 | P100: 67.5 | Q100: m3/d | R100: =N100/365 -> 67.5
A101: GW inflow from Langley Upland Intertill aquifer (m3) | B101: 67208 | C101: 60704 | D101: 67208 | E101: 65040 | F101: 67208 | G101: 65040 | H101: 67208 | I101: 67208 | J101: 65040 | K101: 67208 | L101: 65040 | M101: 67208 | N101: 791320 | P101: 2168 | Q101: m3/d | R101: =N101/365 -> 2168
A106: TOTAL | B106: =SUM(B99:B105) -> 1788374.5 | C106: =SUM(C99:C105) -> 1615306 | D106: 1788374.5 | E106: 1730685 | F106: 1788374.5 | G106: 1730685 | H106: 1788374.5 | I106: 1788374.5 | J106: 1730685 | K106: 1788374.5 | L106: 1730685 | M106: 1788374.5 | N106: 21056667.5
A108: OUTFLOWS FROM AQUIFER (WET YEAR - 1971) | T108: Monthly Distributions
A109: OUTFLOW SOURCE / TYPE | B109: JAN | C109: FEB | D109: MAR | E109: APR | F109: MAY | G109: JUN | H109: JUL | I109: AUG | J109: SEP | K109: OCT | L109: NOV | M109: DEC | N109: ANNUAL | P109: Flow per day to distribute | R109: Check | T109: JAN | U109: FEB | V109: MAR | W109: APR | X109: MAY | Y109: JUN | Z109: JUL | AA109: AUG | AB109: SEP | AC109: OCT | AD109: NOV | AE109: DEC
A110: GW outflow to surrounding aquitards (m3) | B110: =B$129*$P110 -> 1754972 | C110: 1585136 | D110: 1754972 | E110: 1698360 | F110: 1754972 | G110: 1698360 | H110: 1754972 | I110: 1754972 | J110: 1698360 | K110: 1754972 | L110: 1698360 | M110: 1754972 | N110: =SUM(B110:M110) -> 20663380 | P110: 56612 | Q110: m3/d | R110: =N110/365 -> 56612
A111: GW outflow to South of Murrayville B aquifer (m3) | B111: 372 | C111: 336 | D111: 372 | E111: 360 | F111: 372 | G111: 360 | H111: 372 | I111: 372 | J111: 360 | K111: 372 | L111: 360 | M111: 372 | N111: 4380 | P111: 12 | Q111: m3/d | R111: =N111/365 -> 12
A112: GW outflow to Langley Upland Intertill aquifer (m3) | B112: 19313 | C112: 17444 | D112: 19313 | E112: 18690 | F112: 19313 | G112: 18690 | H112: 19313 | I112: 19313 | J112: 18690 | K112: 19313 | L112: 18690 | M112: 19313 | N112: 227395 | P112: 623 | Q112: m3/d | R112: 623
A113: GW outflow from pumping - Muni - Murrayville 1 (m3) | B113: =B$129*$P113*(T113*(365/B$129)) -> 8223.088738 | C113: =C$129*$P113*(U113*(365/C$129)) -> 9613.433789 | D113: =D$129*$P113*(V113*(365/D$129)) -> 9427.657636 | E113: =E$129*$P113*(W113*(365/E$129)) -> 11694.94094 | F113: =F$129*$P113*(X113*(365/F$129)) -> 16098.24289 | G113: =G$129*$P113*(Y113*(365/G$129)) -> 19685.62174 | H113: =H$129*$P113*(Z113*(365/H$129)) -> 21452.45366 | I113: =I$129*$P113*(AA113*(365/I$129)) -> 18683.66261 | J113: =J$129*$P113*(AB113*(365/J$129)) -> 15001.88503 | K113: =K$129*$P113*(AC113*(365/K$129)) -> 11779.75086 | L113: =L$129*$P113*(AD113*(365/L$129)) -> 9606.234159 | M113: =M$129*$P113*(AE113*(365/M$129)) -> 10063.02794 | N113: 161330 | P113: =442*'Form Control Selectors'!L37 -> 442 | Q113: m3/d | R113: 442 | T113: 0.05097061141 | U113: 0.05958863069 | V113: 0.05843710182 | W113: 0.07249080111 | X113: 0.0997845589 | Y113: 0.1220208377 | Z113: 0.1329725015 | AA113: 0.1158102188 | AB113: 0.09298881193 | AC113: 0.0730164933 | AD113: 0.05954400396 | AE113: 0.0623754289
Q114: m3/d | R114: 0
A116: TOTAL | B116: =SUM(B110:B115) -> 1782880.089 | C116: =SUM(C110:C115) -> 1612529.434 | D116: 1784084.658 | E116: 1729104.941 | F116: 1790755.243 | G116: 1737095.622 | H116: 1796109.454 | I116: 1793340.663 | J116: 1732411.885 | K116: 1786436.751 | L116: 1727016.234 | M116: 1784720.028 | N116: 21056485
A118: SURPLUS/ DEFICIT (m3) | B118: =B106-B116 -> 5494.411262 | C118: =C106-C116 -> 2776.566211 | D118: 4289.842364 | E118: 1580.059056 | F118: -2380.742887 | G118: -6410.621744 | H118: -7734.95366 | I118: -4966.162606 | J118: -1726.885028 | K118: 1937.749136 | L118: 3668.765841 | M118: 3654.472055 | N118: 182.5
A120: Equivalent GWL Change Across Aquifer (m) | B120: =(B118/($L$16*1000000))/$L$15 -> 0.07478441897 | C120: =(C118/($L$16*1000000))/$L$15 -> 0.03779183628 | D120: 0.05838903449 | E120: 0.02150618016 | F120: -0.03240428592 | G120: -0.08725495772 | H120: -0.1052804364 | I120: -0.06759442774 | J120: -0.02350462812 | K120: 0.026374699 | L120: 0.04993556337 | M120: 0.04974101069 | N120: 0.002484007078
A121: Cumulative GWL Change Across Aquifer (m) | B121: =B120 -> 0.07478441897 | C121: =C120+B121 -> 0.1125762552 | D121: =D120+C121 -> 0.1709652897 | E121: =E120+D121 -> 0.1924714699 | F121: =F120+E121 -> 0.160067184 | G121: =G120+F121 -> 0.07281222625 | H121: =H120+G121 -> -0.03246821011 | I121: =I120+H121 -> -0.1000626379 | J121: =J120+I121 -> -0.123567266 | K121: =K120+J121 -> -0.09719256698 | L121: =L120+K121 -> -0.04725700361 | M121: =M120+L121 -> 0.002484007078
A129: Days in Month | B129: 31 | C129: 28 | D129: 31 | E129: 30 | F129: 31 | G129: 30 | H129: 31 | I129: 31 | J129: 30 | K129: 31 | L129: 30 | M129: 31

Sheet Salmon River - Analysis
A7: AQUIFER - Salmon River Aquifer
A8: TYPE - 4c, Confined glaciomarine aquifer
A9: CLASSIFICATION - TBD
A10: RANKING - TBD
A11: AQUIFER SIZE - 43.92 km2 | G11: ALLOCATED WATER USE | N11: Input Units | O11: User-Defined - Provided for accounting and reporting purposes and does not affect the moedl results directly
A13: LOCATION | G13: AQUIFER PARAMETERS AND SELECTION
G15: Storativity | L15: 0.001 | N15: (-) | O15: Recommended value = 0.001
G16: Aquifer Size - in Plan View | L16: 43.92 | N16: km2 | O16: Recommended value = 43.92
G19: Private Water Users Distribution Method | O19: NOT USED CURRENTLY
A40: *Golder interpretation of Township of Langley deep confined aquifers shown (Golder 2005, 2014)
A45: INFLOWS TO AQUIFER (AVERAGE YEAR - 1945-2012) | T45: Monthly Distributions
A46: INFLOW SOURCE / TYPE | B46: JAN | C46: FEB | D46: MAR | E46: APR | F46: MAY | G46: JUN | H46: JUL | I46: AUG | J46: SEP | K46: OCT | L46: NOV | M46: DEC | N46: ANNUAL | P46: Flow per day to distribute | R46: Check | T46: JAN | U46: FEB | V46: MAR | W46: APR | X46: MAY | Y46: JUN | Z46: JUL | AA46: AUG | AB46: SEP | AC46: OCT | AD46: NOV | AE46: DEC
A47: GW inflow from surrounding aquitards (m3) | B47: =B$129*$P47 -> 1123967 | C47: 1015196 | D47: 1123967 | E47: 1087710 | F47: 1123967 | G47: 1087710 | H47: 1123967 | I47: 1123967 | J47: 1087710 | K47: 1123967 | L47: 1087710 | M47: 1123967 | N47: =SUM(B47:M47) -> 13233805 | P47: 36257 | Q47: m3/d | R47: =N47/365 -> 36257
A54: TOTAL | B54: =SUM(B47:B53) -> 1123967 | C54: =SUM(C47:C53) -> 1015196 | D54: 1123967 | E54: 1087710 | F54: 1123967 | G54: 1087710 | H54: 1123967 | I54: 1123967 | J54: 1087710 | K54: 1123967 | L54: 1087710 | M54: 1123967 | N54: 13233805
A56: OUTFLOWS FROM AQUIFER (AVERAGE YEAR, 1945-2012) | T56: Monthly Distributions
A57: OUTFLOW SOURCE / TYPE | B57: JAN | C57: FEB | D57: MAR | E57: APR | F57: MAY | G57: JUN | H57: JUL | I57: AUG | J57: SEP | K57: OCT | L57: NOV | M57: DEC | N57: ANNUAL | P57: Flow per day to distribute | R57: Check | T57: JAN | U57: FEB | V57: MAR | W57: APR | X57: MAY | Y57: JUN | Z57: JUL | AA57: AUG | AB57: SEP | AC57: OCT | AD57: NOV | AE57: DEC
A58: GW outflow to surrounding aquitards (m3) | B58: =B$129*$P58 -> 1123967 | C58: 1015196 | D58: 1123967 | E58: 1087710 | F58: 1123967 | G58: 1087710 | H58: 1123967 | I58: 1123967 | J58: 1087710 | K58: 1123967 | L58: 1087710 | M58: 1123967 | N58: =SUM(B58:M58) -> 13233805 | P58: 36257 | Q58: m3/d | R58: =N58/365 -> 36257
A64: TOTAL | B64: =SUM(B58:B63) -> 1123967 | C64: 1015196 | D64: 1123967 | E64: 1087710 | F64: 1123967 | G64: 1087710 | H64: 1123967 | I64: 1123967 | J64: 1087710 | K64: 1123967 | L64: 1087710 | M64: 1123967 | N64: 13233805
A66: SURPLUS/ DEFICIT (m3) | B66: =B54-B64 -> 0 | C66: 0 | D66: 0 | E66: 0 | F66: 0 | G66: 0 | H66: 0 | I66: 0 | J66: 0 | K66: 0 | L66: 0 | M66: 0 | N66: 0
A68: Equivalent GWL Change Across Aquifer (m) | B68: =(B66/($L$16*1000000))/$L$15 -> 0 | C68: =(C66/($L$16*1000000))/$L$15 -> 0 | D68: 0 | E68: 0 | F68: 0 | G68: 0 | H68: 0 | I68: 0 | J68: 0 | K68: 0 | L68: 0 | M68: 0 | N68: 0
A69: Cumulative GWL Change Across Aquifer (m) | B69: =B68 -> 0 | C69: =C68+B69 -> 0 | D69: =D68+C69 -> 0 | E69: 0 | F69: 0 | G69: 0 | H69: 0 | I69: 0 | J69: 0 | K69: 0 | L69: 0 | M69: 0
A71: INFLOWS TO AQUIFER (DRY YEAR - 1951) | T71: Monthly Distributions
A72: INFLOW SOURCE / TYPE | B72: JAN | C72: FEB | D72: MAR | E72: APR | F72: MAY | G72: JUN | H72: JUL | I72: AUG | J72: SEP | K72: OCT | L72: NOV | M72: DEC | N72: ANNUAL | P72: Flow per day to distribute | R72: Check | T72: JAN | U72: FEB | V72: MAR | W72: APR | X72: MAY | Y72: JUN | Z72: JUL | AA72: AUG | AB72: SEP | AC72: OCT | AD72: NOV | AE72: DEC
A73: GW inflow from surrounding aquitards (m3) | B73: =B$129*$P73 -> 1123967 | C73: 1015196 | D73: 1123967 | E73: 1087710 | F73: 1123967 | G73: 1087710 | H73: 1123967 | I73: 1123967 | J73: 1087710 | K73: 1123967 | L73: 1087710 | M73: 1123967 | N73: =SUM(B73:M73) -> 13233805 | P73: 36257 | Q73: m3/d | R73: =N73/365 -> 36257
A80: TOTAL | B80: =SUM(B73:B79) -> 1123967 | C80: =SUM(C73:C79) -> 1015196 | D80: 1123967 | E80: 1087710 | F80: 1123967 | G80: 1087710 | H80: 1123967 | I80: 1123967 | J80: 1087710 | K80: 1123967 | L80: 1087710 | M80: 1123967 | N80: 13233805
A82: OUTFLOWS FROM AQUIFER (DRY YEAR - 1951) | T82: Monthly Distributions
A83: OUTFLOW SOURCE / TYPE | B83: JAN | C83: FEB | D83: MAR | E83: APR | F83: MAY | G83: JUN | H83: JUL | I83: AUG | J83: SEP | K83: OCT | L83: NOV | M83: DEC | N83: ANNUAL | P83: Flow per day to distribute | R83: Check | T83: JAN | U83: FEB | V83: MAR | W83: APR | X83: MAY | Y83: JUN | Z83: JUL | AA83: AUG | AB83: SEP | AC83: OCT | AD83: NOV | AE83: DEC
A84: GW outflow to surrounding aquitards (m3) | B84: =B$129*$P84 -> 1123967 | C84: 1015196 | D84: 1123967 | E84: 1087710 | F84: 1123967 | G84: 1087710 | H84: 1123967 | I84: 1123967 | J84: 1087710 | K84: 1123967 | L84: 1087710 | M84: 1123967 | N84: =SUM(B84:M84) -> 13233805 | P84: 36257 | Q84: m3/d | R84: =N84/365 -> 36257
A85: GW outflow from pumping - Private minor users (m3)
A90: TOTAL | B90: =SUM(B84:B89) -> 1123967 | C90: 1015196 | D90: 1123967 | E90: 1087710 | F90: 1123967 | G90: 1087710 | H90: 1123967 | I90: 1123967 | J90: 1087710 | K90: 1123967 | L90: 1087710 | M90: 1123967 | N90: 13233805
A92: SURPLUS/ DEFICIT (m3) | B92: =B80-B90 -> 0 | C92: 0 | D92: 0 | E92: 0 | F92: 0 | G92: 0 | H92: 0 | I92: 0 | J92: 0 | K92: 0 | L92: 0 | M92: 0 | N92: 0
A94: Equivalent GWL Change Across Aquifer (m) | B94: =(B92/($L$16*1000000))/$L$15 -> 0 | C94: =(C92/($L$16*1000000))/$L$15 -> 0 | D94: 0 | E94: 0 | F94: 0 | G94: 0 | H94: 0 | I94: 0 | J94: 0 | K94: 0 | L94: 0 | M94: 0 | N94: 0
A95: Cumulative GWL Change Across Aquifer (m) | B95: =B94 -> 0 | C95: =C94+B95 -> 0 | D95: =D94+C95 -> 0 | E95: =E94+D95 -> 0 | F95: =F94+E95 -> 0 | G95: =G94+F95 -> 0 | H95: =H94+G95 -> 0 | I95: =I94+H95 -> 0 | J95: =J94+I95 -> 0 | K95: =K94+J95 -> 0 | L95: =L94+K95 -> 0 | M95: =M94+L95 -> 0
A97: INFLOWS TO AQUIFER (WET YEAR - 1971) | T97: Monthly Distributions
A98: INFLOW SOURCE / TYPE | B98: JAN | C98: FEB | D98: MAR | E98: APR | F98: MAY | G98: JUN | H98: JUL | I98: AUG | J98: SEP | K98: OCT | L98: NOV | M98: DEC | N98: ANNUAL | P98: Flow per day to distribute | R98: Check | T98: JAN | U98: FEB | V98: MAR | W98: APR | X98: MAY | Y98: JUN | Z98: JUL | AA98: AUG | AB98: SEP | AC98: OCT | AD98: NOV | AE98: DEC
A99: GW inflow from surrounding aquitards (m3) | B99: =B$129*$P99 -> 1123967 | C99: 1015196 | D99: 1123967 | E99: 1087710 | F99: 1123967 | G99: 1087710 | H99: 1123967 | I99: 1123967 | J99: 1087710 | K99: 1123967 | L99: 1087710 | M99: 1123967 | N99: =SUM(B99:M99) -> 13233805 | P99: 36257 | Q99: m3/d | R99: =N99/365 -> 36257
A106: TOTAL | B106: =SUM(B99:B105) -> 1123967 | C106: =SUM(C99:C105) -> 1015196 | D106: 1123967 | E106: 1087710 | F106: 1123967 | G106: 1087710 | H106: 1123967 | I106: 1123967 | J106: 1087710 | K106: 1123967 | L106: 1087710 | M106: 1123967 | N106: 13233805
A108: OUTFLOWS FROM AQUIFER (WET YEAR - 1971) | T108: Monthly Distributions
A109: OUTFLOW SOURCE / TYPE | B109: JAN | C109: FEB | D109: MAR | E109: APR | F109: MAY | G109: JUN | H109: JUL | I109: AUG | J109: SEP | K109: OCT | L109: NOV | M109: DEC | N109: ANNUAL | P109: Flow per day to distribute | R109: Check | T109: JAN | U109: FEB | V109: MAR | W109: APR | X109: MAY | Y109: JUN | Z109: JUL | AA109: AUG | AB109: SEP | AC109: OCT | AD109: NOV | AE109: DEC
A110: GW outflow to surrounding aquitards (m3) | B110: =B$129*$P110 -> 1123967 | C110: 1015196 | D110: 1123967 | E110: 1087710 | F110: 1123967 | G110: 1087710 | H110: 1123967 | I110: 1123967 | J110: 1087710 | K110: 1123967 | L110: 1087710 | M110: 1123967 | N110: =SUM(B110:M110) -> 13233805 | P110: 36257 | Q110: m3/d | R110: =N110/365 -> 36257
A111: GW outflow from pumping - Private minor users (m3)
A116: TOTAL | B116: =SUM(B110:B115) -> 1123967 | C116: 1015196 | D116: 1123967 | E116: 1087710 | F116: 1123967 | G116: 1087710 | H116: 1123967 | I116: 1123967 | J116: 1087710 | K116: 1123967 | L116: 1087710 | M116: 1123967 | N116: 13233805
A118: SURPLUS/ DEFICIT (m3) | B118: =B106-B116 -> 0 | C118: 0 | D118: 0 | E118: 0 | F118: 0 | G118: 0 | H118: 0 | I118: 0 | J118: 0 | K118: 0 | L118: 0 | M118: 0 | N118: 0
A120: Equivalent GWL Change Across Aquifer (m) | B120: =(B118/($L$16*1000000))/$L$15 -> 0 | C120: =(C118/($L$16*1000000))/$L$15 -> 0 | D120: 0 | E120: 0 | F120: 0 | G120: 0 | H120: 0 | I120: 0 | J120: 0 | K120: 0 | L120: 0 | M120: 0 | N120: 0
A121: Cumulative GWL Change Across Aquifer (m) | B121: =B120 -> 0 | C121: =C120+B121 -> 0 | D121: =D120+C121 -> 0 | E121: =E120+D121 -> 0 | F121: =F120+E121 -> 0 | G121: =G120+F121 -> 0 | H121: =H120+G121 -> 0 | I121: =I120+H121 -> 0 | J121: =J120+I121 -> 0 | K121: =K120+J121 -> 0 | L121: =L120+K121 -> 0 | M121: =M120+L121 -> 0
A129: Days in Month | B129: 31 | C129: 28 | D129: 31 | E129: 30 | F129: 31 | G129: 30 | H129: 31 | I129: 31 | J129: 30 | K129: 31 | L129: 30 | M129: 31

Sheet Nicomekl Serpentine - Analysis
A7: AQUIFER - Nicomekl Serpentine Aquifer
A8: TYPE - 4c, Confined glaciomarine aquifer
A9: CLASSIFICATION - TBD
A10: RANKING - TBD
A11: AQUIFER SIZE - 79.38 m2 (partial - only includes aquifer within Township of Langley) | G11: ALLOCATED WATER USE | N11: Input Units | O11: User-Defined - Provided for accounting and reporting purposes and does not affect the moedl results directly
A13: LOCATION | G13: AQUIFER PARAMETERS AND SELECTION
G15: Storativity | L15: 0.001 | N15: (-) | O15: Recommended value = 0.001
G16: Aquifer Size - in Plan View (partial) | L16: 79.38 | N16: km2 | O16: Recommended value = 79.38
G19: Private Water Users Distribution Method
A40: *Golder interpretation of Township of Langley deep confined aquifers shown (Golder 2005, 2014)
A45: INFLOWS TO AQUIFER (AVERAGE YEAR - 1945-2012) | T45: Monthly Distributions
A46: INFLOW SOURCE / TYPE | B46: JAN | C46: FEB | D46: MAR | E46: APR | F46: MAY | G46: JUN | H46: JUL | I46: AUG | J46: SEP | K46: OCT | L46: NOV | M46: DEC | N46: ANNUAL | P46: Flow per day to distribute | R46: Check | T46: JAN | U46: FEB | V46: MAR | W46: APR | X46: MAY | Y46: JUN | Z46: JUL | AA46: AUG | AB46: SEP | AC46: OCT | AD46: NOV | AE46: DEC
A47: GW inflow from surrounding aquitards (m3) | B47: =B$129*$P47 -> 3045874 | C47: 2751112 | D47: 3045874 | E47: 2947620 | F47: 3045874 | G47: 2947620 | H47: 3045874 | I47: 3045874 | J47: 2947620 | K47: 3045874 | L47: 2947620 | M47: 3045874 | N47: =SUM(B47:M47) -> 35862710 | P47: 98254 | Q47: m3/d | R47: =N47/365 -> 98254
A48: GW inflow from boundary (m3) | B48: 381393 | C48: 344484 | D48: 381393 | E48: 369090 | F48: 381393 | G48: 369090 | H48: 381393 | I48: 381393 | J48: 369090 | K48: 381393 | L48: 369090 | M48: 381393 | N48: =SUM(B48:M48) -> 4490595 | P48: 12303 | Q48: m3/d | R48: =N48/365 -> 12303
A54: TOTAL | B54: =SUM(B47:B53) -> 3427267 | C54: =SUM(C47:C53) -> 3095596 | D54: 3427267 | E54: 3316710 | F54: 3427267 | G54: 3316710 | H54: 3427267 | I54: 3427267 | J54: 3316710 | K54: 3427267 | L54: 3316710 | M54: 3427267 | N54: 40353305
A56: OUTFLOWS FROM AQUIFER (AVERAGE YEAR, 1945-2012) | T56: Monthly Distributions
A57: OUTFLOW SOURCE / TYPE | B57: JAN | C57: FEB | D57: MAR | E57: APR | F57: MAY | G57: JUN | H57: JUL | I57: AUG | J57: SEP | K57: OCT | L57: NOV | M57: DEC | N57: ANNUAL | P57: Flow per day to distribute | R57: Check | T57: JAN | U57: FEB | V57: MAR | W57: APR | X57: MAY | Y57: JUN | Z57: JUL | AA57: AUG | AB57: SEP | AC57: OCT | AD57: NOV | AE57: DEC
A58: GW outflow to surrounding aquitards (m3) | B58: =B$129*$P58 -> 2700379 | C58: 2439052 | D58: 2700379 | E58: 2613270 | F58: 2700379 | G58: 2613270 | H58: 2700379 | I58: 2700379 | J58: 2613270 | K58: 2700379 | L58: 2613270 | M58: 2700379 | N58: =SUM(B58:M58) -> 31794785 | P58: 87109 | Q58: m3/d | R58: =N58/365 -> 87109
A59: GW outflow to boundary (m3) | B59: 711388 | C59: 642544 | D59: 711388 | E59: 688440 | F59: 711388 | G59: 688440 | H59: 711388 | I59: 711388 | J59: 688440 | K59: 711388 | L59: 688440 | M59: 711388 | N59: =SUM(B59:M59) -> 8376020 | P59: 22948 | Q59: m3/d | R59: =N59/365 -> 22948
A60: GW outflow from pumping - ICI - Trin. W. College (m3) | B60: =B$129*$P60*(T60*(365/B$129)) -> 13154.95181 | C60: =C$129*$P60*(U60*(365/C$129)) -> 13190.60141 | D60: 14070.97678 | E60: 14656.77257 | F60: 15062.77479 | G60: 17222.74474 | H60: 20089.14903 | I60: 17951.89451 | J60: 15943.58564 | K60: 14300.35228 | L60: 13610.05911 | M60: 13246.13734 | N60: 182500 | P60: 500 | Q60: m3/d | R60: 500 | T60: =VLOOKUP('Form Control Selectors'!$N$23,'Water Budget Distributions'!$CH$16:$CT$22,2,FALSE) -> 0.07208192774 | U60: =VLOOKUP('Form Control Selectors'!$N$23,'Water Budget Distributions'!$CH$16:$CT$22,3,FALSE) -> 0.072277268 | V60: =VLOOKUP('Form Control Selectors'!$N$23,'Water Budget Distributions'!$CH$16:$CT$22,4,FALSE) -> 0.07710124262 | W60: =VLOOKUP('Form Control Selectors'!$N$23,'Water Budget Distributions'!$CH$16:$CT$22,5,FALSE) -> 0.08031108258 | X60: =VLOOKUP('Form Control Selectors'!$N$23,'Water Budget Distributions'!$CH$16:$CT$22,6,FALSE) -> 0.08253575229 | Y60: =VLOOKUP('Form Control Selectors'!$N$23,'Water Budget Distributions'!$CH$16:$CT$22,7,FALSE) -> 0.09437120405 | Z60: =VLOOKUP('Form Control Selectors'!$N$23,'Water Budget Distributions'!$CH$16:$CT$22,8,FALSE) -> 0.1100775289 | AA60: =VLOOKUP('Form Control Selectors'!$N$23,'Water Budget Distributions'!$CH$16:$CT$22,9,FALSE) -> 0.09836654525 | AB60: =VLOOKUP('Form Control Selectors'!$N$23,'Water Budget Distributions'!$CH$16:$CT$22,10,FALSE) -> 0.08736211308 | AC60: =VLOOKUP('Form Control Selectors'!$N$23,'Water Budget Distributions'!$CH$16:$CT$22,11,FALSE) -> 0.07835809467 | AD60: =VLOOKUP('Form Control Selectors'!$N$23,'Water Budget Distributions'!$CH$16:$CT$22,12,FALSE) -> 0.07457566633 | AE60: =VLOOKUP('Form Control Selectors'!$N$23,'Water Budget Distributions'!$CH$16:$CT$22,13,FALSE) -> 0.07258157446
A64: TOTAL | B64: =SUM(B58:B63) -> 3424921.952 | C64: =SUM(C58:C63) -> 3094786.601 | D64: 3425837.977 | E64: 3316366.773 | F64: 3426829.775 | G64: 3318932.745 | H64: 3431856.149 | I64: 3429718.895 | J64: 3317653.586 | K64: 3426067.352 | L64: 3315320.059 | M64: 3425013.137 | N64: 40353305
A66: SURPLUS/ DEFICIT (m3) | B66: =B54-B64 -> 2345.048188 | C66: =C54-C64 -> 809.3985901 | D66: 1429.023222 | E66: 343.22743 | F66: 437.2252067 | G66: -2222.74474 | H66: -4589.149029 | I66: -2451.894508 | J66: -943.5856376 | K66: 1199.647722 | L66: 1389.940895 | M66: 2253.862661 | N66: 0
A68: Equivalent GWL Change Across Aquifer (m) | B68: =(B66/($L$16*1000000))/$L$15 -> 0.02954205326 | C68: =(C66/($L$16*1000000))/$L$15 -> 0.01019650529 | D68: 0.01800230817 | E68: 0.004323852734 | F68: 0.0055080021 | G68: -0.02800131947 | H68: -0.05781240903 | I68: -0.03088806384 | J68: -0.01188694429 | K68: 0.01511272011 | L68: 0.0175099634 | M68: 0.02839333158 | N68: 0
A69: Cumulative GWL Change Across Aquifer (m) | B69: =B68 -> 0.02954205326 | C69: =C68+B69 -> 0.03973855855 | D69: =D68+C69 -> 0.05774086672 | E69: 0.06206471945 | F69: 0.06757272155 | G69: 0.03957140208 | H69: -0.01824100695 | I69: -0.04912907079 | J69: -0.06101601508 | K69: -0.04590329498 | L69: -0.02839333158 | M69: -5.880712584e-15
A71: INFLOWS TO AQUIFER (DRY YEAR - 1951) | T71: Monthly Distributions
A72: INFLOW SOURCE / TYPE | B72: JAN | C72: FEB | D72: MAR | E72: APR | F72: MAY | G72: JUN | H72: JUL | I72: AUG | J72: SEP | K72: OCT | L72: NOV | M72: DEC | N72: ANNUAL | P72: Flow per day to distribute | R72: Check | T72: JAN | U72: FEB | V72: MAR | W72: APR | X72: MAY | Y72: JUN | Z72: JUL | AA72: AUG | AB72: SEP | AC72: OCT | AD72: NOV | AE72: DEC
A73: GW inflow from surrounding aquitards (m3) | B73: =B$129*$P73 -> 3045874 | C73: 2751112 | D73: 3045874 | E73: 2947620 | F73: 3045874 | G73: 2947620 | H73: 3045874 | I73: 3045874 | J73: 2947620 | K73: 3045874 | L73: 2947620 | M73: 3045874 | N73: =SUM(B73:M73) -> 35862710 | P73: 98254 | Q73: m3/d | R73: =N73/365 -> 98254
A74: GW inflow from boundary (m3) | B74: 381393 | C74: 344484 | D74: 381393 | E74: 369090 | F74: 381393 | G74: 369090 | H74: 381393 | I74: 381393 | J74: 369090 | K74: 381393 | L74: 369090 | M74: 381393 | N74: =SUM(B74:M74) -> 4490595 | P74: 12303 | Q74: m3/d | R74: =N74/365 -> 12303
A80: TOTAL | B80: =SUM(B73:B79) -> 3427267 | C80: =SUM(C73:C79) -> 3095596 | D80: 3427267 | E80: 3316710 | F80: 3427267 | G80: 3316710 | H80: 3427267 | I80: 3427267 | J80: 3316710 | K80: 3427267 | L80: 3316710 | M80: 3427267 | N80: 40353305
A82: OUTFLOWS FROM AQUIFER (DRY YEAR - 1951) | T82: Monthly Distributions
A83: OUTFLOW SOURCE / TYPE | B83: JAN | C83: FEB | D83: MAR | E83: APR | F83: MAY | G83: JUN | H83: JUL | I83: AUG | J83: SEP | K83: OCT | L83: NOV | M83: DEC | N83: ANNUAL | P83: Flow per day to distribute | R83: Check | T83: JAN | U83: FEB | V83: MAR | W83: APR | X83: MAY | Y83: JUN | Z83: JUL | AA83: AUG | AB83: SEP | AC83: OCT | AD83: NOV | AE83: DEC
A84: GW outflow to surrounding aquitards (m3) | B84: =B$129*$P84 -> 2700379 | C84: 2439052 | D84: 2700379 | E84: 2613270 | F84: 2700379 | G84: 2613270 | H84: 2700379 | I84: 2700379 | J84: 2613270 | K84: 2700379 | L84: 2613270 | M84: 2700379 | N84: =SUM(B84:M84) -> 31794785 | P84: 87109 | Q84: m3/d | R84: =N84/365 -> 87109
A85: GW outflow to boundary (m3) | B85: 711388 | C85: 642544 | D85: 711388 | E85: 688440 | F85: 711388 | G85: 688440 | H85: 711388 | I85: 711388 | J85: 688440 | K85: 711388 | L85: 688440 | M85: 711388 | N85: 8376020 | P85: 22948 | Q85: m3/d | R85: =N85/365 -> 22948
A86: GW outflow from pumping - ICI - Trin. W. College (m3) | B86: =B$129*$P86*(T86*(365/B$129)) -> 13154.95181 | C86: =C$129*$P86*(U86*(365/C$129)) -> 13190.60141 | D86: 14070.97678 | E86: 14656.77257 | F86: 15062.77479 | G86: 17222.74474 | H86: 20089.14903 | I86: 17951.89451 | J86: 15943.58564 | K86: 14300.35228 | L86: 13610.05911 | M86: 13246.13734 | N86: 182500 | P86: 500 | Q86: m3/d | R86: 500 | T86: =VLOOKUP('Form Control Selectors'!$N$23,'Water Budget Distributions'!$CH$16:$CT$22,2,FALSE) -> 0.07208192774 | U86: =VLOOKUP('Form Control Selectors'!$N$23,'Water Budget Distributions'!$CH$16:$CT$22,3,FALSE) -> 0.072277268 | V86: =VLOOKUP('Form Control Selectors'!$N$23,'Water Budget Distributions'!$CH$16:$CT$22,4,FALSE) -> 0.07710124262 | W86: =VLOOKUP('Form Control Selectors'!$N$23,'Water Budget Distributions'!$CH$16:$CT$22,5,FALSE) -> 0.08031108258 | X86: =VLOOKUP('Form Control Selectors'!$N$23,'Water Budget Distributions'!$CH$16:$CT$22,6,FALSE) -> 0.08253575229 | Y86: =VLOOKUP('Form Control Selectors'!$N$23,'Water Budget Distributions'!$CH$16:$CT$22,7,FALSE) -> 0.09437120405 | Z86: =VLOOKUP('Form Control Selectors'!$N$23,'Water Budget Distributions'!$CH$16:$CT$22,8,FALSE) -> 0.1100775289 | AA86: =VLOOKUP('Form Control Selectors'!$N$23,'Water Budget Distributions'!$CH$16:$CT$22,9,FALSE) -> 0.09836654525 | AB86: =VLOOKUP('Form Control Selectors'!$N$23,'Water Budget Distributions'!$CH$16:$CT$22,10,FALSE) -> 0.08736211308 | AC86: =VLOOKUP('Form Control Selectors'!$N$23,'Water Budget Distributions'!$CH$16:$CT$22,11,FALSE) -> 0.07835809467 | AD86: =VLOOKUP('Form Control Selectors'!$N$23,'Water Budget Distributions'!$CH$16:$CT$22,12,FALSE) -> 0.07457566633 | AE86: =VLOOKUP('Form Control Selectors'!$N$23,'Water Budget Distributions'!$CH$16:$CT$22,13,FALSE) -> 0.07258157446
A87: GW outflow from pumping - Private minor users (m3)
A90: TOTAL | B90: =SUM(B84:B89) -> 3424921.952 | C90: =SUM(C84:C89) -> 3094786.601 | D90: 3425837.977 | E90: 3316366.773 | F90: 3426829.775 | G90: 3318932.745 | H90: 3431856.149 | I90: 3429718.895 | J90: 3317653.586 | K90: 3426067.352 | L90: 3315320.059 | M90: 3425013.137 | N90: 40353305
A92: SURPLUS/ DEFICIT (m3) | B92: =B80-B90 -> 2345.048188 | C92: =C80-C90 -> 809.3985901 | D92: 1429.023222 | E92: 343.22743 | F92: 437.2252067 | G92: -2222.74474 | H92: -4589.149029 | I92: -2451.894508 | J92: -943.5856376 | K92: 1199.647722 | L92: 1389.940895 | M92: 2253.862661 | N92: 0
A94: Equivalent GWL Change Across Aquifer (m) | B94: =(B92/($L$16*1000000))/$L$15 -> 0.02954205326 | C94: =(C92/($L$16*1000000))/$L$15 -> 0.01019650529 | D94: 0.01800230817 | E94: 0.004323852734 | F94: 0.0055080021 | G94: -0.02800131947 | H94: -0.05781240903 | I94: -0.03088806384 | J94: -0.01188694429 | K94: 0.01511272011 | L94: 0.0175099634 | M94: 0.02839333158 | N94: 0
A95: Cumulative GWL Change Across Aquifer (m) | B95: =B94 -> 0.02954205326 | C95: =C94+B95 -> 0.03973855855 | D95: =D94+C95 -> 0.05774086672 | E95: =E94+D95 -> 0.06206471945 | F95: =F94+E95 -> 0.06757272155 | G95: =G94+F95 -> 0.03957140208 | H95: =H94+G95 -> -0.01824100695 | I95: =I94+H95 -> -0.04912907079 | J95: =J94+I95 -> -0.06101601508 | K95: =K94+J95 -> -0.04590329498 | L95: =L94+K95 -> -0.02839333158 | M95: =M94+L95 -> -5.880712584e-15
A97: INFLOWS TO AQUIFER (WET YEAR - 1971) | T97: Monthly Distributions
A98: INFLOW SOURCE / TYPE | B98: JAN | C98: FEB | D98: MAR | E98: APR | F98: MAY | G98: JUN | H98: JUL | I98: AUG | J98: SEP | K98: OCT | L98: NOV | M98: DEC | N98: ANNUAL | P98: Flow per day to distribute | R98: Check | T98: JAN | U98: FEB | V98: MAR | W98: APR | X98: MAY | Y98: JUN | Z98: JUL | AA98: AUG | AB98: SEP | AC98: OCT | AD98: NOV | AE98: DEC
A99: GW inflow from surrounding aquitards (m3) | B99: =B$129*$P99 -> 3045874 | C99: 2751112 | D99: 3045874 | E99: 2947620 | F99: 3045874 | G99: 2947620 | H99: 3045874 | I99: 3045874 | J99: 2947620 | K99: 3045874 | L99: 2947620 | M99: 3045874 | N99: =SUM(B99:M99) -> 35862710 | P99: 98254 | Q99: m3/d | R99: =N99/365 -> 98254
A100: GW inflow from boundary (m3) | B100: 381393 | C100: 344484 | D100: 381393 | E100: 369090 | F100: 381393 | G100: 369090 | H100: 381393 | I100: 381393 | J100: 369090 | K100: 381393 | L100: 369090 | M100: 381393 | N100: =SUM(B100:M100) -> 4490595 | P100: 12303 | Q100: m3/d | R100: =N100/365 -> 12303
A106: TOTAL | B106: =SUM(B99:B105) -> 3427267 | C106: =SUM(C99:C105) -> 3095596 | D106: 3427267 | E106: 3316710 | F106: 3427267 | G106: 3316710 | H106: 3427267 | I106: 3427267 | J106: 3316710 | K106: 3427267 | L106: 3316710 | M106: 3427267 | N106: 40353305
A108: OUTFLOWS FROM AQUIFER (WET YEAR - 1971) | T108: Monthly Distributions
A109: OUTFLOW SOURCE / TYPE | B109: JAN | C109: FEB | D109: MAR | E109: APR | F109: MAY | G109: JUN | H109: JUL | I109: AUG | J109: SEP | K109: OCT | L109: NOV | M109: DEC | N109: ANNUAL | P109: Flow per day to distribute | R109: Check | T109: JAN | U109: FEB | V109: MAR | W109: APR | X109: MAY | Y109: JUN | Z109: JUL | AA109: AUG | AB109: SEP | AC109: OCT | AD109: NOV | AE109: DEC
A110: GW outflow to surrounding aquitards (m3) | B110: =B$129*$P110 -> 2700379 | C110: 2439052 | D110: 2700379 | E110: 2613270 | F110: 2700379 | G110: 2613270 | H110: 2700379 | I110: 2700379 | J110: 2613270 | K110: 2700379 | L110: 2613270 | M110: 2700379 | N110: =SUM(B110:M110) -> 31794785 | P110: 87109 | Q110: m3/d | R110: =N110/365 -> 87109
A111: GW outflow to boundary (m3) | B111: 711388 | C111: 642544 | D111: 711388 | E111: 688440 | F111: 711388 | G111: 688440 | H111: 711388 | I111: 711388 | J111: 688440 | K111: 711388 | L111: 688440 | M111: 711388 | N111: 8376020 | P111: 22948 | Q111: m3/d | R111: =N111/365 -> 22948
A112: GW outflow from pumping - ICI - Trin. W. College (m3) | B112: =B$129*$P112*(T112*(365/B$129)) -> 13154.95181 | C112: =C$129*$P112*(U112*(365/C$129)) -> 13190.60141 | D112: 14070.97678 | E112: 14656.77257 | F112: 15062.77479 | G112: 17222.74474 | H112: 20089.14903 | I112: 17951.89451 | J112: 15943.58564 | K112: 14300.35228 | L112: 13610.05911 | M112: 13246.13734 | N112: 182500 | P112: 500 | Q112: m3/d | R112: 500 | T112: =VLOOKUP('Form Control Selectors'!$N$23,'Water Budget Distributions'!$CH$16:$CT$22,2,FALSE) -> 0.07208192774 | U112: =VLOOKUP('Form Control Selectors'!$N$23,'Water Budget Distributions'!$CH$16:$CT$22,3,FALSE) -> 0.072277268 | V112: =VLOOKUP('Form Control Selectors'!$N$23,'Water Budget Distributions'!$CH$16:$CT$22,4,FALSE) -> 0.07710124262 | W112: =VLOOKUP('Form Control Selectors'!$N$23,'Water Budget Distributions'!$CH$16:$CT$22,5,FALSE) -> 0.08031108258 | X112: =VLOOKUP('Form Control Selectors'!$N$23,'Water Budget Distributions'!$CH$16:$CT$22,6,FALSE) -> 0.08253575229 | Y112: =VLOOKUP('Form Control Selectors'!$N$23,'Water Budget Distributions'!$CH$16:$CT$22,7,FALSE) -> 0.09437120405 | Z112: =VLOOKUP('Form Control Selectors'!$N$23,'Water Budget Distributions'!$CH$16:$CT$22,8,FALSE) -> 0.1100775289 | AA112: =VLOOKUP('Form Control Selectors'!$N$23,'Water Budget Distributions'!$CH$16:$CT$22,9,FALSE) -> 0.09836654525 | AB112: =VLOOKUP('Form Control Selectors'!$N$23,'Water Budget Distributions'!$CH$16:$CT$22,10,FALSE) -> 0.08736211308 | AC112: =VLOOKUP('Form Control Selectors'!$N$23,'Water Budget Distributions'!$CH$16:$CT$22,11,FALSE) -> 0.07835809467 | AD112: =VLOOKUP('Form Control Selectors'!$N$23,'Water Budget Distributions'!$CH$16:$CT$22,12,FALSE) -> 0.07457566633 | AE112: =VLOOKUP('Form Control Selectors'!$N$23,'Water Budget Distributions'!$CH$16:$CT$22,13,FALSE) -> 0.07258157446
A113: GW outflow from pumping - Private minor users (m3)
A116: TOTAL | B116: =SUM(B110:B115) -> 3424921.952 | C116: =SUM(C110:C115) -> 3094786.601 | D116: 3425837.977 | E116: 3316366.773 | F116: 3426829.775 | G116: 3318932.745 | H116: 3431856.149 | I116: 3429718.895 | J116: 3317653.586 | K116: 3426067.352 | L116: 3315320.059 | M116: 3425013.137 | N116: 40353305
A118: SURPLUS/ DEFICIT (m3) | B118: =B106-B116 -> 2345.048188 | C118: =C106-C116 -> 809.3985901 | D118: 1429.023222 | E118: 343.22743 | F118: 437.2252067 | G118: -2222.74474 | H118: -4589.149029 | I118: -2451.894508 | J118: -943.5856376 | K118: 1199.647722 | L118: 1389.940895 | M118: 2253.862661 | N118: 0
A120: Equivalent GWL Change Across Aquifer (m) | B120: =(B118/($L$16*1000000))/$L$15 -> 0.02954205326 | C120: =(C118/($L$16*1000000))/$L$15 -> 0.01019650529 | D120: 0.01800230817 | E120: 0.004323852734 | F120: 0.0055080021 | G120: -0.02800131947 | H120: -0.05781240903 | I120: -0.03088806384 | J120: -0.01188694429 | K120: 0.01511272011 | L120: 0.0175099634 | M120: 0.02839333158 | N120: 0
A121: Cumulative GWL Change Across Aquifer (m) | B121: =B120 -> 0.02954205326 | C121: =C120+B121 -> 0.03973855855 | D121: =D120+C121 -> 0.05774086672 | E121: =E120+D121 -> 0.06206471945 | F121: =F120+E121 -> 0.06757272155 | G121: =G120+F121 -> 0.03957140208 | H121: =H120+G121 -> -0.01824100695 | I121: =I120+H121 -> -0.04912907079 | J121: =J120+I121 -> -0.06101601508 | K121: =K120+J121 -> -0.04590329498 | L121: =L120+K121 -> -0.02839333158 | M121: =M120+L121 -> -5.880712584e-15
A129: Days in Month | B129: 31 | C129: 28 | D129: 31 | E129: 30 | F129: 31 | G129: 30 | H129: 31 | I129: 31 | J129: 30 | K129: 31 | L129: 30 | M129: 31

Sheet Assumption and Limitations

Sheet References
A7: Golder Associates Ltd., 2005. Final Report: Comprehensive Groundwater Modelling Assignment. Prepared for the Township of Langley, 94p.
A8: Golder Associates Ltd., 2014. Assessment of Long Term Groundwater Availability for Domestic and Public Use and for Aquatic Habitats. Prepared for the Township of Langley, 90p.
A9: Golder Associates Ltd., 2016. Monthly Groundwater Budget for the Hopington Aquifer - Salmon River Area, BC. Prepared for the British Columbia Ministry of the Environment, 50p.

Sheet Form Control Selectors (hidden)
A11: Spreadsheet | B11: Analysis Dashboard | C11: Analysis Dashboard | D11: Analysis Dashboard | E11: Analysis Dashboard | F11: Analysis Dashboard | H11: Hopington AB Analysis Page | I11: Fort Langley Analysis Page | J11: Beaver River Analysis Page | K11: W. of Aldergrove Analysis Page | L11: S of Murrayville AC Analysis Page | M11: Salmon River Analysis Page | N11: Nikomekl-Serpentine Analysis Pg
A12: Form Control Description | B12: Aquifer Selection Form | C12: Meteorological Scenario | D12: Future Demand at Build Out (2041) | E12: Climate Change Impacts | F12: Implementation of BMPs | H12: Private Water User Distribution | I12: Private Water User Distribution | J12: Private Water User Distribution | K12: Private Water User Distribution | L12: Private Water User Distribution | M12: Private Water User Distribution | N12: Private Water User Distribution
B14: Hopington AB Aquifer | C14: Average Year | H14: Constant Linear | I14: Constant Linear | J14: Constant Linear | K14: Constant Linear | L14: Constant Linear | M14: Constant Linear | N14: Constant Linear
B15: Fort Langley Aquifer | C15: Dry Year | H15: Approximate PET | I15: Approximate PET | J15: Approximate PET | K15: Approximate PET | L15: Approximate PET | M15: Approximate PET | N15: Approximate PET
B16: Beaver River Aquifer | C16: Wet Year | H16: Approximate Municipal Use | I16: Approximate Municipal Use | J16: Approximate Municipal Use | K16: Approximate Municipal Use | L16: Approximate Municipal Use | M16: Approximate Municipal Use | N16: Approximate Municipal Use
B17: West of Aldergrove Aquifer | H17: User-Specified Distribution #1 | I17: User-Specified Distribution #1 | J17: User-Specified Distribution #1 | K17: User-Specified Distribution #1 | L17: User-Specified Distribution #1 | M17: User-Specified Distribution #1 | N17: User-Specified Distribution #1
B18: S. of Murrayville AC Aquifer | H18: User-Specified Distribution #2 | I18: User-Specified Distribution #2 | J18: User-Specified Distribution #2 | K18: User-Specified Distribution #2 | L18: User-Specified Distribution #2 | M18: User-Specified Distribution #2 | N18: User-Specified Distribution #2
B19: Salmon River Aquifer | H19: User-Specified Distribution #3 | I19: User-Specified Distribution #3 | J19: User-Specified Distribution #3 | K19: User-Specified Distribution #3 | L19: User-Specified Distribution #3 | M19: User-Specified Distribution #3 | N19: User-Specified Distribution #3
B20: Nicomekl Serpentine Aquifer | H20: User-Specified Distribution #4 | I20: User-Specified Distribution #4 | J20: User-Specified Distribution #4 | K20: User-Specified Distribution #4 | L20: User-Specified Distribution #4 | M20: User-Specified Distribution #4 | N20: User-Specified Distribution #4
B22: Selected Value | C22: Selected Value | D22: Selected Value | E22: Selected Value | F22: Selected Value | H22: Selected Value | I22: Selected Value | J22: Selected Value | K22: Selected Value | L22: Selected Value | M22: Selected Value | N22: Selected Value
B23: 1 | C23: 1 | D23: FALSE | E23: FALSE | F23: FALSE | H23: 3 | I23: 3 | J23: 3 | K23: 3 | L23: 3 | M23: 3 | N23: 3
A24: SELECTOR FOR DATA PRESENTATION
A25: For… | B25: Nested IF statements for data presentation selection | D25: AQUIFER AREAS | E25: Sy / STORATIVITY | F25: ALLOCATED WATER | G25: ALLO UNIT | H25: Baseflow / Surplus Partition | I25: Baseflow / Surplus Partition | J25: Baseflow / Surplus Partition
A26: HOPINGTON AB AQUIFER | B26: =IF($B$23<>1,"",IF($C$23=1,1,IF($C$23=2,2,IF($C$23=3,3,"")))) -> 1 | D26: =MAX('Hopington AB - Analysis'!L16:M16) -> 23.85 | E26: =MAX('Hopington AB - Analysis'!L15:M15) -> 0.1 | F26: =MAX('Hopington AB - Analysis'!L11:M11) -> 10000 | G26: ='Hopington AB - Analysis'!N11 -> Input Units
A27: FORT LANGLEY AQUIFER | B27: =IF($B$23<>2,"",IF($C$23=1,4,IF($C$23=2,5,IF($C$23=3,6,"")))) ->  | D27: =MAX('Fort Langley - Analysis'!L16:M16) -> 5.19 | E27: =MAX('Fort Langley - Analysis'!L15:M15) -> 0.14 | F27: =MAX('Fort Langley - Analysis'!L11:M11) -> 0 | G27: ='Fort Langley - Analysis'!N11 -> Input Units | H27: Selected Value | I27: Selected Value | J27: Selected Value
A28: BEAVER RIVER AQUIFER | B28: =IF($B$23<>3,"",IF($C$23=1,7,IF($C$23=2,8,IF($C$23=3,9,"")))) ->  | D28: =MAX('Beaver River - Analysis'!$L$16:$M$16) -> 23.84 | E28: =MAX('Beaver River - Analysis'!$L$15:$M$15) -> 0.0015 | F28: =MAX('Beaver River - Analysis'!$L$11:$M$11) -> 0 | G28: ='Beaver River - Analysis'!$N$11 -> Input Units | H28: 15 | I28: 25 | J28: 5
A29: WEST OF ALDERGROVE AQUIFER | B29: =IF($B$23<>4,"",IF($C$23=1,10,IF($C$23=2,11,IF($C$23=3,12,"")))) ->  | D29: =MAX('West of Aldergrove - Analysis'!L16:M16) -> 73 | E29: =MAX('West of Aldergrove - Analysis'!L15:M15) -> 0.0019 | F29: =MAX('West of Aldergrove - Analysis'!L11:M11) -> 0 | G29: ='West of Aldergrove - Analysis'!N11 -> Input Units | H29: =H28/100 -> 0.15 | I29: =I28/100 -> 0.25 | J29: =J28/100 -> 0.05
A30: SOUTH OF MURRAYVILLE AC AQUIFER | B30: =IF($B$23<>5,"",IF($C$23=1,13,IF($C$23=2,14,IF($C$23=3,15,"")))) ->  | D30: =MAX('S of Murrayville AC - Analysis'!L16:M16) -> 73.47 | E30: =MAX('S of Murrayville AC - Analysis'!L15:M15) -> 0.001 | F30: =MAX('S of Murrayville AC - Analysis'!L11:M11) -> 0 | G30: ='S of Murrayville AC - Analysis'!N11 -> Units
A31: SALMON RIVER AQUIFER | B31: =IF($B$23<>6,"",IF($C$23=1,16,IF($C$23=2,17,IF($C$23=3,18,"")))) ->  | D31: =MAX('Salmon River - Analysis'!L16:M16) -> 43.92 | E31: =MAX('Salmon River - Analysis'!L15:M15) -> 0.001 | F31: =MAX('Salmon River - Analysis'!L11:M11) -> 0 | G31: ='Salmon River - Analysis'!N11 -> Input Units | H31: Demand Modifier | I31: Demand Modifier | K31: Demand Modifier | L31: Demand Modifier
A32: NICOMEKL SERPENTINE AQUIFER | B32: =IF($B$23<>7,"",IF($C$23=1,19,IF($C$23=2,20,IF($C$23=3,21,"")))) ->  | D32: =MAX('Nicomekl Serpentine - Analysis'!L16:M16) -> 79.38 | E32: =MAX('Nicomekl Serpentine - Analysis'!L15:M15) -> 0.001 | F32: =MAX('Nicomekl Serpentine - Analysis'!L11:M11) -> 0 | G32: ='Nicomekl Serpentine - Analysis'!N11 -> Input Units | I32: Ft Langley #2 | K32: Murrayville #2 | L32: Murrayville #1
I33: =IF($D$23=FALSE,1,1.7) -> 1 | K33: =IF($D$23=FALSE,1,1.7) -> 1 | L33: =IF($D$23=FALSE,1,1.7) -> 1
A34: Selector | B34: =MAX(B26:B32) -> 1 | I34: Climate Change Ag/Dom Mod | K34: Climate Change Ag/Dom Mod | L34: Climate Change Ag/Dom Mod
I35: =IF($E$23=TRUE,(IF($D$23=FALSE,(0.12+(0.2*0.62))*0.09,(0.09+(0.2*0.7))*0.09)),0) -> 0 | K35: =IF($E$23=TRUE,(IF($D$23=FALSE,(0.13+(0.2*0.6))*0.09,(0.1+(0.2*0.68))*0.09)),0) -> 0 | L35: =IF($E$23=TRUE,(IF($D$23=FALSE,(0.13+(0.2*0.6))*0.09,(0.1+(0.2*0.68))*0.09)),0) -> 0
I36: Cumulative Modifier | K36: Cumulative Modifier | L36: Cumulative Modifier
A37: SELECTORS FOR GROUNDWATER BUDGET REPORT | I37: =I33+I35 -> 1 | K37: =K33+K35 -> 1 | L37: =L33+L35 -> 1
H38: Private Minor Users (2041 Demand) | I38: Private Minor Users (2041 Demand) | K38: Tall Timbers
A39: Aquifer Name | B39: =INDEX(A26:A32,B23) -> HOPINGTON AB AQUIFER | D39: AVERAGE YEAR | H39: =IF(D23=FALSE,1,1.5) -> 1 | I39: =IF(D23=FALSE,1,1.5) -> 1 | K39: =IF($D$23=FALSE,1,1.7) -> 1
A40: Meteorological Scenario | B40: =INDEX(D39:D41,C23) -> AVERAGE YEAR | D40: DRY YEAR (1951) | H40: Ag/Dom Use Modifier (Climate Change) | I40: Ag/Dom Use Modifier (Climate Change) | K40: Climate Change Ag/Dom Mod
A41: Modifying Scenarios | B41: =IF(D23=TRUE,"FUTURE DEMAND AT BUILDOUT (2041)","CURRENT DEMAND (2012)") -> CURRENT DEMAND (2012) | D41: WET YEAR (1971) | G41: ASSUMED | H41: =IF(E23=FALSE,0,0.045) -> 0 | I41: =IF(E23=FALSE,0,0.045) -> 0 | K41: =IF($E$23=TRUE,(IF($D$23=FALSE,(0.16+(0.2*0.69))*0.09,(0+(0.2*0.85))*0.09)),0) -> 0
B42: =IF(E23=TRUE,"CLIMATE CHANGE IMPACTS","NO CLIMATE CHANGE IMPACTS") -> NO CLIMATE CHANGE IMPACTS | H42: Net Private Minor Users Modifier | I42: Net Private Minor Users Modifier | K42: Cumulative Modifier
B43: =IF(F23=TRUE,"IMPLEMENTATION OF STORMWATER BMPs AT BUILDOUT (2041)","CURRENT STORMWATER MANAGEMENT CONDITIONS") -> CURRENT STORMWATER MANAGEMENT CONDITIONS | H43: =H39+H41 -> 1 | I43: =I39+I41 -> 1 | K43: =K39+K41 -> 1
A44: Aquifer Areas | B44: =INDEX(D26:D32,B23) -> 23.85 | K44: Acadia #1
A45: Sy/Sto | B45: =INDEX(E26:E32,B23) -> 0.1 | K45: =IF($D$23=FALSE,1,1.7) -> 1
A46: Allocated Water | B46: =INDEX(F26:F32,B23) -> 10000 | K46: Climate Change Ag/Dom Mod
A47: Allocated Units | B47: =INDEX(G26:G32,B23) -> Input Units | K47: =IF($E$23=TRUE,(IF($D$23=FALSE,(0.01+(0.2*0.84))*0.09,(0.01+(0.2*0.84))*0.09)),0) -> 0
K48: Cumulative Modifier
A49: MUNICIPAL WATER DEMAND | K49: =K45+K47 -> 1
B50: AVERAGE | C50: DRY | D50: WET | E50: SELECTOR
A51: HOPINGTON AB AQUIFER | B51: 0 | C51: 0 | D51: 0 | E51: =INDEX(B51:D57,B23,C23) -> 0
A52: FORT LANGLEY AQUIFER | B52: ='Fort Langley - Analysis'!N59 -> 2810137.81 | C52: ='Fort Langley - Analysis'!N85 -> 2810137.81 | D52: ='Fort Langley - Analysis'!N111 -> 2810137.81
A53: BEAVER RIVER AQUIFER | B53: 0 | C53: 0 | D53: 0
A54: WEST OF ALDERGROVE AQUIFER | B54: =SUM('West of Aldergrove - Analysis'!N64:N66) -> 486545 | C54: =SUM('West of Aldergrove - Analysis'!N95:N97) -> 486545 | D54: =SUM('West of Aldergrove - Analysis'!N126:N128) -> 486545
A55: SOUTH OF MURRAYVILLE AC AQUIFER | B55: ='S of Murrayville AC - Analysis'!N61 -> 161330 | C55: ='S of Murrayville AC - Analysis'!N87 -> 161330 | D55: ='S of Murrayville AC - Analysis'!N113 -> 161330
A56: SALMON RIVER AQUIFER | B56: 0 | C56: 0 | D56: 0
A57: NICOMEKL SERPENTINE AQUIFER | B57: 0 | C57: 0 | D57: 0
A59: PRIVATE WATER DEMAND
B60: AVERAGE | C60: DRY | D60: WET | E60: SELECTOR
A61: HOPINGTON AB AQUIFER | B61: =SUM('Hopington AB - Analysis'!N61) -> 1719480.219 | C61: =SUM('Hopington AB - Analysis'!N87) -> 1719480.219 | D61: ='Hopington AB - Analysis'!N113 -> 1719480.219 | E61: =INDEX(B61:D67,B23,C23) -> 1719480.219
A62: FORT LANGLEY AQUIFER | B62: =SUM('Fort Langley - Analysis'!N60) -> 144175.1442 | C62: =SUM('Fort Langley - Analysis'!N86) -> 144175.1442 | D62: =SUM('Fort Langley - Analysis'!N112) -> 144175.1442
A63: BEAVER RIVER AQUIFER | B63: =SUM('Beaver River - Analysis'!$N$62) -> 1156320 | C63: =SUM('Beaver River - Analysis'!$N$88) -> 1156320 | D63: =SUM('Beaver River - Analysis'!$N$114) -> 1156320
A64: WEST OF ALDERGROVE AQUIFER | B64: =SUM('West of Aldergrove - Analysis'!N67) -> 990245 | C64: =SUM('West of Aldergrove - Analysis'!N98) -> 990245 | D64: =SUM('West of Aldergrove - Analysis'!N129) -> 990245
A65: SOUTH OF MURRAYVILLE AC AQUIFER | B65: 0 | C65: 0 | D65: 0
A66: SALMON RIVER AQUIFER | B66: 0 | C66: 0 | D66: 0
A67: NICOMEKL SERPENTINE AQUIFER | B67: =SUM('Nicomekl Serpentine - Analysis'!N60) -> 182500 | C67: =SUM('Nicomekl Serpentine - Analysis'!N86) -> 182500 | D67: =SUM('Nicomekl Serpentine - Analysis'!N112) -> 182500
A70: BASE CASE MONTHLY GW CHANGES
C71: JAN | D71: FEB | E71: MAR | F71: APR | G71: MAY | H71: JUN | I71: JUL | J71: AUG | K71: SEP | L71: OCT | M71: NOV | N71: DEC
A72: HOPINGTON AB AQUIFER | C72: 0.46229005 | D72: 0.5849560545 | E72: 0.5581301894 | F72: 0.2134591302 | G72: -0.1177309425 | H72: -0.4459594873 | I72: -0.7907590845 | J72: -1.120025694 | K72: -1.356094559 | L72: -1.159414767 | M72: -0.5419279645 | N72: -0.008916708811
A73: FORT LANGLEY AQUIFER | C73: 0.3897723302 | D73: 0.3711586543 | E73: 0.4288400412 | F73: 0.1669191777 | G73: -0.02316714445 | H73: -0.2698249476 | I73: -0.4973084777 | J73: -0.6883785253 | K73: -0.8456528182 | L73: -0.6463895885 | M73: -0.2581602428 | N73: 0.05723128662
A74: BEAVER RIVER AQUIFER | C74: 0.396443661 | D74: 0.5205014966 | E74: 0.7680147999 | F74: 0.8169559411 | G74: 0.8924971086 | H74: 0.4953948078 | I74: -0.2973409119 | J74: -0.6916136226 | K74: -0.8385822745 | L74: -0.618158675 | M74: -0.3824050925 | N74: 0.005669471625
A75: WEST OF ALDERGROVE AQUIFER | C75: 0.2155458353 | D75: 0.3188070842 | E75: 0.4592325628 | F75: 0.4894375175 | G75: 0.4814886446 | H75: 0.2846781426 | I75: -0.0801978129 | J75: -0.336280394 | K75: -0.4592066889 | L75: -0.3600733791 | M75: -0.2076434324 | N75: -0.002753407814
A76: SOUTH OF MURRAYVILLE AC AQUIFER | C76: 0.07478441897 | D76: 0.1125762552 | E76: 0.1709652897 | F76: 0.1924714699 | G76: 0.160067184 | H76: 0.07281222625 | I76: -0.03246821011 | J76: -0.1000626379 | K76: -0.123567266 | L76: -0.09719256698 | M76: -0.04725700361 | N76: 0.002484007078
A77: SALMON RIVER AQUIFER | C77: 0 | D77: 0 | E77: 0 | F77: 0 | G77: 0 | H77: 0 | I77: 0 | J77: 0 | K77: 0 | L77: 0 | M77: 0 | N77: 0
A78: NICOMEKL SERPENTINE AQUIFER | C78: 0.02954205326 | D78: 0.03973855855 | E78: 0.05774086672 | F78: 0.06206471945 | G78: 0.06757272155 | H78: 0.03957140208 | I78: -0.01824100695 | J78: -0.04912907079 | K78: -0.06101601508 | L78: -0.04590329498 | M78: -0.02839333158 | N78: -5.880712584e-15
A80: SELECTION FOR PLOT | B80: 0 | C80: =INDEX(C72:C78,$B$23) -> 0.46229005 | D80: =INDEX(D72:D78,$B$23) -> 0.5849560545 | E80: 0.5581301894 | F80: 0.2134591302 | G80: -0.1177309425 | H80: -0.4459594873 | I80: -0.7907590845 | J80: -1.120025694 | K80: -1.356094559 | L80: -1.159414767 | M80: -0.5419279645 | N80: -0.008916708811
A83: GROUNDWATER OUTFLOW TO SALMON RIVER | C83: TOTAL ANNUAL - BASE CASE | D83: LOWEST MONTH - BASE CASE | E83: TOTAL ANN - SCENARIO | F83: LOWEST MONTH - SCENARIO
A85: HOPINGTON AB AQUIFER | C85: 8705840.321 | D85: 573309.8784 | E85: ='Analysis Dashboard'!N46 -> 8772935.73 | F85: =MIN('Analysis Dashboard'!B46:M46) -> 620903.5902
A86: FORT LANGLEY AQUIFER | C86: 589931.1683 | D86: 43187.57921 | E86: ='Analysis Dashboard'!N44 -> 1719480.219 | F86: =MIN('Analysis Dashboard'!B44:M44) -> 126947.3782
A87: BEAVER RIVER AQUIFER | C87: - | D87: - | E87: - | F87: -
A88: WEST OF ALDERGROVE AQUIFER | C88: - | D88: - | E88: - | F88: -
A89: SOUTH OF MURRAYVILLE AC AQUIFER | C89: - | D89: - | E89: - | F89: -
A90: SALMON RIVER AQUIFER | C90: - | D90: - | E90: - | F90: -
A91: NICOMEKL SERPENTINE AQUIFER | C91: - | D91: - | E91: - | F91: -
B93: SELECTION | C93: =INDEX(C85:C91,$B$23) -> 8705840.321 | D93: =INDEX(D85:D91,$B$23) -> 573309.8784 | E93: 8772935.73 | F93: 620903.5902
B94: PERCENTAGE DIFFERENCES | E94: =(100*(E93/C93))-100 -> 0.7706942325 | F94: =(100*(F93/D93))-100 -> 8.301568407

Sheet Water Budget Distributions (hidden)
B14: Hopington AB Aquifer - Private Water User Distributions | P14: Fort Langley Aquifer - Private Water User Distributions | AD14: Beaver River Aquifer - Private Water User Distributions | AR14: West of Aldergrove Aquifer - Private Water User Distributions | BF14: South of Murrayville AC Aquifer - Private Water User Distributions | BT14: Salmon River Aquifer - Private Water User Distributions | CH14: Nikomekl-Seprnetine Aquifer - Private Water User Distributions
C15: JAN | D15: FEB | E15: MAR | F15: APR | G15: MAY | H15: JUN | I15: JUL | J15: AUG | K15: SEP | L15: OCT | M15: NOV | N15: DEC | O15: COMMENTS | Q15: JAN | R15: FEB | S15: MAR | T15: APR | U15: MAY | V15: JUN | W15: JUL | X15: AUG | Y15: SEP | Z15: OCT | AA15: NOV | AB15: DEC | AE15: JAN | AF15: FEB | AG15: MAR | AH15: APR | AI15: MAY | AJ15: JUN | AK15: JUL | AL15: AUG | AM15: SEP | AN15: OCT | AO15: NOV | AP15: DEC | AS15: JAN | AT15: FEB | AU15: MAR | AV15: APR | AW15: MAY | AX15: JUN | AY15: JUL | AZ15: AUG | BA15: SEP | BB15: OCT | BC15: NOV | BD15: DEC | BG15: JAN | BH15: FEB | BI15: MAR | BJ15: APR | BK15: MAY | BL15: JUN | BM15: JUL | BN15: AUG | BO15: SEP | BP15: OCT | BQ15: NOV | BR15: DEC | BU15: JAN | BV15: FEB | BW15: MAR | BX15: APR | BY15: MAY | BZ15: JUN | CA15: JUL | CB15: AUG | CC15: SEP | CD15: OCT | CE15: NOV | CF15: DEC | CI15: JAN | CJ15: FEB | CK15: MAR | CL15: APR | CM15: MAY | CN15: JUN | CO15: JUL | CP15: AUG | CQ15: SEP | CR15: OCT | CS15: NOV | CT15: DEC
B16: 1 | C16: =1/12 -> 0.08333333333 | D16: =1/12 -> 0.08333333333 | E16: 0.08333333333 | F16: 0.08333333333 | G16: 0.08333333333 | H16: 0.08333333333 | I16: 0.08333333333 | J16: 0.08333333333 | K16: 0.08333333333 | L16: 0.08333333333 | M16: 0.08333333333 | N16: 0.08333333333 | O16: Constant linear | P16: 1 | Q16: =1/12 -> 0.08333333333 | R16: =1/12 -> 0.08333333333 | S16: 0.08333333333 | T16: 0.08333333333 | U16: 0.08333333333 | V16: 0.08333333333 | W16: 0.08333333333 | X16: 0.08333333333 | Y16: 0.08333333333 | Z16: 0.08333333333 | AA16: 0.08333333333 | AB16: 0.08333333333 | AC16: Constant Linear | AD16: 1 | AE16: =1/12 -> 0.08333333333 | AF16: =1/12 -> 0.08333333333 | AG16: 0.08333333333 | AH16: 0.08333333333 | AI16: 0.08333333333 | AJ16: 0.08333333333 | AK16: 0.08333333333 | AL16: 0.08333333333 | AM16: 0.08333333333 | AN16: 0.08333333333 | AO16: 0.08333333333 | AP16: 0.08333333333 | AQ16: Constant Linear | AR16: 1 | AS16: =1/12 -> 0.08333333333 | AT16: =1/12 -> 0.08333333333 | AU16: 0.08333333333 | AV16: 0.08333333333 | AW16: 0.08333333333 | AX16: 0.08333333333 | AY16: 0.08333333333 | AZ16: 0.08333333333 | BA16: 0.08333333333 | BB16: 0.08333333333 | BC16: 0.08333333333 | BD16: 0.08333333333 | BE16: Constant Linear | BF16: 1 | BG16: =1/12 -> 0.08333333333 | BH16: =1/12 -> 0.08333333333 | BI16: 0.08333333333 | BJ16: 0.08333333333 | BK16: 0.08333333333 | BL16: 0.08333333333 | BM16: 0.08333333333 | BN16: 0.08333333333 | BO16: 0.08333333333 | BP16: 0.08333333333 | BQ16: 0.08333333333 | BR16: 0.08333333333 | BS16: Constant Linear | BT16: 1 | BU16: =1/12 -> 0.08333333333 | BV16: =1/12 -> 0.08333333333 | BW16: 0.08333333333 | BX16: 0.08333333333 | BY16: 0.08333333333 | BZ16: 0.08333333333 | CA16: 0.08333333333 | CB16: 0.08333333333 | CC16: 0.08333333333 | CD16: 0.08333333333 | CE16: 0.08333333333 | CF16: 0.08333333333 | CG16: Constant Linear | CH16: 1 | CI16: =1/12 -> 0.08333333333 | CJ16: =1/12 -> 0.08333333333 | CK16: 0.08333333333 | CL16: 0.08333333333 | CM16: 0.08333333333 | CN16: 0.08333333333 | CO16: 0.08333333333 | CP16: 0.08333333333 | CQ16: 0.08333333333 | CR16: 0.08333333333 | CS16: 0.08333333333 | CT16: 0.08333333333 | CU16: Constant Linear
B17: 2 | C17: 0.02190386323 | D17: 0.03478519558 | E17: 0.06080383204 | F17: 0.09342378277 | G17: 0.1300861127 | H17: 0.1403603613 | I17: 0.1691668137 | J17: 0.1493700311 | K17: 0.1028431643 | L17: 0.05301413006 | M17: 0.02601212198 | N17: 0.01823059118 | O17: Approximate PET | P17: 2 | Q17: 0.02190386323 | R17: 0.03478519558 | S17: 0.06080383204 | T17: 0.09342378277 | U17: 0.1300861127 | V17: 0.1403603613 | W17: 0.1691668137 | X17: 0.1493700311 | Y17: 0.1028431643 | Z17: 0.05301413006 | AA17: 0.02601212198 | AB17: 0.01823059118 | AC17: Approximate PET | AD17: 2 | AE17: 0.02190386323 | AF17: 0.03478519558 | AG17: 0.06080383204 | AH17: 0.09342378277 | AI17: 0.1300861127 | AJ17: 0.1403603613 | AK17: 0.1691668137 | AL17: 0.1493700311 | AM17: 0.1028431643 | AN17: 0.05301413006 | AO17: 0.02601212198 | AP17: 0.01823059118 | AQ17: Approximate PET | AR17: 2 | AS17: 0.02190386323 | AT17: 0.03478519558 | AU17: 0.06080383204 | AV17: 0.09342378277 | AW17: 0.1300861127 | AX17: 0.1403603613 | AY17: 0.1691668137 | AZ17: 0.1493700311 | BA17: 0.1028431643 | BB17: 0.05301413006 | BC17: 0.02601212198 | BD17: 0.01823059118 | BE17: Approximate PET | BF17: 2 | BG17: 0.02190386323 | BH17: 0.03478519558 | BI17: 0.06080383204 | BJ17: 0.09342378277 | BK17: 0.1300861127 | BL17: 0.1403603613 | BM17: 0.1691668137 | BN17: 0.1493700311 | BO17: 0.1028431643 | BP17: 0.05301413006 | BQ17: 0.02601212198 | BR17: 0.01823059118 | BS17: Approximate PET | BT17: 2 | BU17: 0.02190386323 | BV17: 0.03478519558 | BW17: 0.06080383204 | BX17: 0.09342378277 | BY17: 0.1300861127 | BZ17: 0.1403603613 | CA17: 0.1691668137 | CB17: 0.1493700311 | CC17: 0.1028431643 | CD17: 0.05301413006 | CE17: 0.02601212198 | CF17: 0.01823059118 | CG17: Approximate PET | CH17: 2 | CI17: 0.02190386323 | CJ17: 0.03478519558 | CK17: 0.06080383204 | CL17: 0.09342378277 | CM17: 0.1300861127 | CN17: 0.1403603613 | CO17: 0.1691668137 | CP17: 0.1493700311 | CQ17: 0.1028431643 | CR17: 0.05301413006 | CS17: 0.02601212198 | CT17: 0.01823059118 | CU17: Approximate PET
B18: 3 | C18: 0.076448 | D18: 0.074661 | E18: 0.073829 | F18: 0.078698 | G18: 0.091537 | H18: 0.094909 | I18: 0.097153 | J18: 0.08791 | K18: 0.089155 | L18: 0.079184 | M18: 0.077746 | N18: 0.078771 | O18: Fort Langley #2 Distribution | P18: 3 | Q18: 0.076448 | R18: 0.074661 | S18: 0.073829 | T18: 0.078698 | U18: 0.091537 | V18: 0.094909 | W18: 0.097153 | X18: 0.08791 | Y18: 0.089155 | Z18: 0.079184 | AA18: 0.077746 | AB18: 0.078771 | AC18: Fort Langley #2 Distribution | AD18: 3 | AE18: 0.07208192774 | AF18: 0.072277268 | AG18: 0.07710124262 | AH18: 0.08031108258 | AI18: 0.08253575229 | AJ18: 0.09437120405 | AK18: 0.1100775289 | AL18: 0.09836654525 | AM18: 0.08736211308 | AN18: 0.07835809467 | AO18: 0.07457566633 | AP18: 0.07258157446 | AQ18: Distribution of all Aldergrove Wells | AR18: 3 | AS18: 0.07208192774 | AT18: 0.072277268 | AU18: 0.07710124262 | AV18: 0.08031108258 | AW18: 0.08253575229 | AX18: 0.09437120405 | AY18: 0.1100775289 | AZ18: 0.09836654525 | BA18: 0.08736211308 | BB18: 0.07835809467 | BC18: 0.07457566633 | BD18: 0.07258157446 | BE18: Distribution of all Aldergrove Wells | BF18: 3 | BG18: 0.07208192774 | BH18: 0.072277268 | BI18: 0.07710124262 | BJ18: 0.08031108258 | BK18: 0.08253575229 | BL18: 0.09437120405 | BM18: 0.1100775289 | BN18: 0.09836654525 | BO18: 0.08736211308 | BP18: 0.07835809467 | BQ18: 0.07457566633 | BR18: 0.07258157446 | BS18: Distribution of all Aldergrove Wells | BT18: 3 | BU18: 0.07208192774 | BV18: 0.072277268 | BW18: 0.07710124262 | BX18: 0.08031108258 | BY18: 0.08253575229 | BZ18: 0.09437120405 | CA18: 0.1100775289 | CB18: 0.09836654525 | CC18: 0.08736211308 | CD18: 0.07835809467 | CE18: 0.07457566633 | CF18: 0.07258157446 | CG18: Distribution of all Aldergrove Wells | CH18: 3 | CI18: 0.07208192774 | CJ18: 0.072277268 | CK18: 0.07710124262 | CL18: 0.08031108258 | CM18: 0.08253575229 | CN18: 0.09437120405 | CO18: 0.1100775289 | CP18: 0.09836654525 | CQ18: 0.08736211308 | CR18: 0.07835809467 | CS18: 0.07457566633 | CT18: 0.07258157446 | CU18: Distribution of all Aldergrove Wells
B19: 4 | C19: ='User Specified Distributions'!B20 -> 0.01 | D19: ='User Specified Distributions'!C20 -> 0.02 | E19: ='User Specified Distributions'!D20 -> 0.05 | F19: ='User Specified Distributions'!E20 -> 0.1 | G19: ='User Specified Distributions'!F20 -> 0.1 | H19: ='User Specified Distributions'!G20 -> 0.125 | I19: ='User Specified Distributions'!H20 -> 0.125 | J19: ='User Specified Distributions'!I20 -> 0.125 | K19: ='User Specified Distributions'!J20 -> 0.125 | L19: ='User Specified Distributions'!K20 -> 0.1 | M19: ='User Specified Distributions'!L20 -> 0.1 | N19: ='User Specified Distributions'!M20 -> 0.02 | O19: User-Specified Distribution #1 | P19: 4 | Q19: ='User Specified Distributions'!B20 -> 0.01 | R19: ='User Specified Distributions'!C20 -> 0.02 | S19: ='User Specified Distributions'!D20 -> 0.05 | T19: ='User Specified Distributions'!E20 -> 0.1 | U19: ='User Specified Distributions'!F20 -> 0.1 | V19: ='User Specified Distributions'!G20 -> 0.125 | W19: ='User Specified Distributions'!H20 -> 0.125 | X19: ='User Specified Distributions'!I20 -> 0.125 | Y19: ='User Specified Distributions'!J20 -> 0.125 | Z19: ='User Specified Distributions'!K20 -> 0.1 | AA19: ='User Specified Distributions'!L20 -> 0.1 | AB19: ='User Specified Distributions'!M20 -> 0.02 | AC19: User-Specified Distribution #1 | AD19: 4 | AE19: ='User Specified Distributions'!B20 -> 0.01 | AF19: ='User Specified Distributions'!C20 -> 0.02 | AG19: ='User Specified Distributions'!D20 -> 0.05 | AH19: ='User Specified Distributions'!E20 -> 0.1 | AI19: ='User Specified Distributions'!F20 -> 0.1 | AJ19: ='User Specified Distributions'!G20 -> 0.125 | AK19: ='User Specified Distributions'!H20 -> 0.125 | AL19: ='User Specified Distributions'!I20 -> 0.125 | AM19: ='User Specified Distributions'!J20 -> 0.125 | AN19: ='User Specified Distributions'!K20 -> 0.1 | AO19: ='User Specified Distributions'!L20 -> 0.1 | AP19: ='User Specified Distributions'!M20 -> 0.02 | AQ19: User-Specified Distribution #1 | AR19: 4 | AS19: ='User Specified Distributions'!B20 -> 0.01 | AT19: ='User Specified Distributions'!C20 -> 0.02 | AU19: ='User Specified Distributions'!D20 -> 0.05 | AV19: ='User Specified Distributions'!E20 -> 0.1 | AW19: ='User Specified Distributions'!F20 -> 0.1 | AX19: ='User Specified Distributions'!G20 -> 0.125 | AY19: ='User Specified Distributions'!H20 -> 0.125 | AZ19: ='User Specified Distributions'!I20 -> 0.125 | BA19: ='User Specified Distributions'!J20 -> 0.125 | BB19: ='User Specified Distributions'!K20 -> 0.1 | BC19: ='User Specified Distributions'!L20 -> 0.1 | BD19: ='User Specified Distributions'!M20 -> 0.02 | BE19: User-Specified Distribution #1 | BF19: 4 | BG19: ='User Specified Distributions'!B20 -> 0.01 | BH19: ='User Specified Distributions'!C20 -> 0.02 | BI19: ='User Specified Distributions'!D20 -> 0.05 | BJ19: ='User Specified Distributions'!E20 -> 0.1 | BK19: ='User Specified Distributions'!F20 -> 0.1 | BL19: ='User Specified Distributions'!G20 -> 0.125 | BM19: ='User Specified Distributions'!H20 -> 0.125 | BN19: ='User Specified Distributions'!I20 -> 0.125 | BO19: ='User Specified Distributions'!J20 -> 0.125 | BP19: ='User Specified Distributions'!K20 -> 0.1 | BQ19: ='User Specified Distributions'!L20 -> 0.1 | BR19: ='User Specified Distributions'!M20 -> 0.02 | BS19: User-Specified Distribution #1 | BT19: 4 | BU19: ='User Specified Distributions'!B20 -> 0.01 | BV19: ='User Specified Distributions'!C20 -> 0.02 | BW19: ='User Specified Distributions'!D20 -> 0.05 | BX19: ='User Specified Distributions'!E20 -> 0.1 | BY19: ='User Specified Distributions'!F20 -> 0.1 | BZ19: ='User Specified Distributions'!G20 -> 0.125 | CA19: ='User Specified Distributions'!H20 -> 0.125 | CB19: ='User Specified Distributions'!I20 -> 0.125 | CC19: ='User Specified Distributions'!J20 -> 0.125 | CD19: ='User Specified Distributions'!K20 -> 0.1 | CE19: ='User Specified Distributions'!L20 -> 0.1 | CF19: ='User Specified Distributions'!M20 -> 0.02 | CG19: User-Specified Distribution #1 | CH19: 4 | CI19: ='User Specified Distributions'!B20 -> 0.01 | CJ19: ='User Specified Distributions'!C20 -> 0.02 | CK19: ='User Specified Distributions'!D20 -> 0.05 | CL19: ='User Specified Distributions'!E20 -> 0.1 | CM19: ='User Specified Distributions'!F20 -> 0.1 | CN19: ='User Specified Distributions'!G20 -> 0.125 | CO19: ='User Specified Distributions'!H20 -> 0.125 | CP19: ='User Specified Distributions'!I20 -> 0.125 | CQ19: ='User Specified Distributions'!J20 -> 0.125 | CR19: ='User Specified Distributions'!K20 -> 0.1 | CS19: ='User Specified Distributions'!L20 -> 0.1 | CT19: ='User Specified Distributions'!M20 -> 0.02 | CU19: User-Specified Distribution #1
B20: 5 | C20: ='User Specified Distributions'!B21 -> 0.05 | D20: ='User Specified Distributions'!C21 -> 0.05 | E20: ='User Specified Distributions'!D21 -> 0.1 | F20: ='User Specified Distributions'!E21 -> 0.1 | G20: ='User Specified Distributions'!F21 -> 0.1 | H20: ='User Specified Distributions'!G21 -> 0.1 | I20: ='User Specified Distributions'!H21 -> 0.15 | J20: ='User Specified Distributions'!I21 -> 0.15 | K20: ='User Specified Distributions'!J21 -> 0.1 | L20: ='User Specified Distributions'!K21 -> 0.05 | M20: ='User Specified Distributions'!L21 -> 0.025 | N20: ='User Specified Distributions'!M21 -> 0.025 | O20: User-Specified Distribution #2 | P20: 5 | Q20: ='User Specified Distributions'!B21 -> 0.05 | R20: ='User Specified Distributions'!C21 -> 0.05 | S20: ='User Specified Distributions'!D21 -> 0.1 | T20: ='User Specified Distributions'!E21 -> 0.1 | U20: ='User Specified Distributions'!F21 -> 0.1 | V20: ='User Specified Distributions'!G21 -> 0.1 | W20: ='User Specified Distributions'!H21 -> 0.15 | X20: ='User Specified Distributions'!I21 -> 0.15 | Y20: ='User Specified Distributions'!J21 -> 0.1 | Z20: ='User Specified Distributions'!K21 -> 0.05 | AA20: ='User Specified Distributions'!L21 -> 0.025 | AB20: ='User Specified Distributions'!M21 -> 0.025 | AC20: User-Specified Distribution #2 | AD20: 5 | AE20: ='User Specified Distributions'!B21 -> 0.05 | AF20: ='User Specified Distributions'!C21 -> 0.05 | AG20: ='User Specified Distributions'!D21 -> 0.1 | AH20: ='User Specified Distributions'!E21 -> 0.1 | AI20: ='User Specified Distributions'!F21 -> 0.1 | AJ20: ='User Specified Distributions'!G21 -> 0.1 | AK20: ='User Specified Distributions'!H21 -> 0.15 | AL20: ='User Specified Distributions'!I21 -> 0.15 | AM20: ='User Specified Distributions'!J21 -> 0.1 | AN20: ='User Specified Distributions'!K21 -> 0.05 | AO20: ='User Specified Distributions'!L21 -> 0.025 | AP20: ='User Specified Distributions'!M21 -> 0.025 | AQ20: User-Specified Distribution #2 | AR20: 5 | AS20: ='User Specified Distributions'!B21 -> 0.05 | AT20: ='User Specified Distributions'!C21 -> 0.05 | AU20: ='User Specified Distributions'!D21 -> 0.1 | AV20: ='User Specified Distributions'!E21 -> 0.1 | AW20: ='User Specified Distributions'!F21 -> 0.1 | AX20: ='User Specified Distributions'!G21 -> 0.1 | AY20: ='User Specified Distributions'!H21 -> 0.15 | AZ20: ='User Specified Distributions'!I21 -> 0.15 | BA20: ='User Specified Distributions'!J21 -> 0.1 | BB20: ='User Specified Distributions'!K21 -> 0.05 | BC20: ='User Specified Distributions'!L21 -> 0.025 | BD20: ='User Specified Distributions'!M21 -> 0.025 | BE20: User-Specified Distribution #2 | BF20: 5 | BG20: ='User Specified Distributions'!B21 -> 0.05 | BH20: ='User Specified Distributions'!C21 -> 0.05 | BI20: ='User Specified Distributions'!D21 -> 0.1 | BJ20: ='User Specified Distributions'!E21 -> 0.1 | BK20: ='User Specified Distributions'!F21 -> 0.1 | BL20: ='User Specified Distributions'!G21 -> 0.1 | BM20: ='User Specified Distributions'!H21 -> 0.15 | BN20: ='User Specified Distributions'!I21 -> 0.15 | BO20: ='User Specified Distributions'!J21 -> 0.1 | BP20: ='User Specified Distributions'!K21 -> 0.05 | BQ20: ='User Specified Distributions'!L21 -> 0.025 | BR20: ='User Specified Distributions'!M21 -> 0.025 | BS20: User-Specified Distribution #2 | BT20: 5 | BU20: ='User Specified Distributions'!B21 -> 0.05 | BV20: ='User Specified Distributions'!C21 -> 0.05 | BW20: ='User Specified Distributions'!D21 -> 0.1 | BX20: ='User Specified Distributions'!E21 -> 0.1 | BY20: ='User Specified Distributions'!F21 -> 0.1 | BZ20: ='User Specified Distributions'!G21 -> 0.1 | CA20: ='User Specified Distributions'!H21 -> 0.15 | CB20: ='User Specified Distributions'!I21 -> 0.15 | CC20: ='User Specified Distributions'!J21 -> 0.1 | CD20: ='User Specified Distributions'!K21 -> 0.05 | CE20: ='User Specified Distributions'!L21 -> 0.025 | CF20: ='User Specified Distributions'!M21 -> 0.025 | CG20: User-Specified Distribution #2 | CH20: 5 | CI20: ='User Specified Distributions'!B21 -> 0.05 | CJ20: ='User Specified Distributions'!C21 -> 0.05 | CK20: ='User Specified Distributions'!D21 -> 0.1 | CL20: ='User Specified Distributions'!E21 -> 0.1 | CM20: ='User Specified Distributions'!F21 -> 0.1 | CN20: ='User Specified Distributions'!G21 -> 0.1 | CO20: ='User Specified Distributions'!H21 -> 0.15 | CP20: ='User Specified Distributions'!I21 -> 0.15 | CQ20: ='User Specified Distributions'!J21 -> 0.1 | CR20: ='User Specified Distributions'!K21 -> 0.05 | CS20: ='User Specified Distributions'!L21 -> 0.025 | CT20: ='User Specified Distributions'!M21 -> 0.025 | CU20: User-Specified Distribution #2
B21: 6 | C21: ='User Specified Distributions'!B22 -> 0.02 | D21: ='User Specified Distributions'!C22 -> 0.04 | E21: ='User Specified Distributions'!D22 -> 0.06 | F21: ='User Specified Distributions'!E22 -> 0.08 | G21: ='User Specified Distributions'!F22 -> 0.1 | H21: ='User Specified Distributions'!G22 -> 0.15 | I21: ='User Specified Distributions'!H22 -> 0.2 | J21: ='User Specified Distributions'!I22 -> 0.15 | K21: ='User Specified Distributions'!J22 -> 0.1 | L21: ='User Specified Distributions'!K22 -> 0.06 | M21: ='User Specified Distributions'!L22 -> 0.03 | N21: ='User Specified Distributions'!M22 -> 0.01 | O21: User-Specified Distribution #3 | P21: 6 | Q21: ='User Specified Distributions'!B22 -> 0.02 | R21: ='User Specified Distributions'!C22 -> 0.04 | S21: ='User Specified Distributions'!D22 -> 0.06 | T21: ='User Specified Distributions'!E22 -> 0.08 | U21: ='User Specified Distributions'!F22 -> 0.1 | V21: ='User Specified Distributions'!G22 -> 0.15 | W21: ='User Specified Distributions'!H22 -> 0.2 | X21: ='User Specified Distributions'!I22 -> 0.15 | Y21: ='User Specified Distributions'!J22 -> 0.1 | Z21: ='User Specified Distributions'!K22 -> 0.06 | AA21: ='User Specified Distributions'!L22 -> 0.03 | AB21: ='User Specified Distributions'!M22 -> 0.01 | AC21: User-Specified Distribution #3 | AD21: 6 | AE21: ='User Specified Distributions'!B22 -> 0.02 | AF21: ='User Specified Distributions'!C22 -> 0.04 | AG21: ='User Specified Distributions'!D22 -> 0.06 | AH21: ='User Specified Distributions'!E22 -> 0.08 | AI21: ='User Specified Distributions'!F22 -> 0.1 | AJ21: ='User Specified Distributions'!G22 -> 0.15 | AK21: ='User Specified Distributions'!H22 -> 0.2 | AL21: ='User Specified Distributions'!I22 -> 0.15 | AM21: ='User Specified Distributions'!J22 -> 0.1 | AN21: ='User Specified Distributions'!K22 -> 0.06 | AO21: ='User Specified Distributions'!L22 -> 0.03 | AP21: ='User Specified Distributions'!M22 -> 0.01 | AQ21: User-Specified Distribution #3 | AR21: 6 | AS21: ='User Specified Distributions'!B22 -> 0.02 | AT21: ='User Specified Distributions'!C22 -> 0.04 | AU21: ='User Specified Distributions'!D22 -> 0.06 | AV21: ='User Specified Distributions'!E22 -> 0.08 | AW21: ='User Specified Distributions'!F22 -> 0.1 | AX21: ='User Specified Distributions'!G22 -> 0.15 | AY21: ='User Specified Distributions'!H22 -> 0.2 | AZ21: ='User Specified Distributions'!I22 -> 0.15 | BA21: ='User Specified Distributions'!J22 -> 0.1 | BB21: ='User Specified Distributions'!K22 -> 0.06 | BC21: ='User Specified Distributions'!L22 -> 0.03 | BD21: ='User Specified Distributions'!M22 -> 0.01 | BE21: User-Specified Distribution #3 | BF21: 6 | BG21: ='User Specified Distributions'!B22 -> 0.02 | BH21: ='User Specified Distributions'!C22 -> 0.04 | BI21: ='User Specified Distributions'!D22 -> 0.06 | BJ21: ='User Specified Distributions'!E22 -> 0.08 | BK21: ='User Specified Distributions'!F22 -> 0.1 | BL21: ='User Specified Distributions'!G22 -> 0.15 | BM21: ='User Specified Distributions'!H22 -> 0.2 | BN21: ='User Specified Distributions'!I22 -> 0.15 | BO21: ='User Specified Distributions'!J22 -> 0.1 | BP21: ='User Specified Distributions'!K22 -> 0.06 | BQ21: ='User Specified Distributions'!L22 -> 0.03 | BR21: ='User Specified Distributions'!M22 -> 0.01 | BS21: User-Specified Distribution #3 | BT21: 6 | BU21: ='User Specified Distributions'!B22 -> 0.02 | BV21: ='User Specified Distributions'!C22 -> 0.04 | BW21: ='User Specified Distributions'!D22 -> 0.06 | BX21: ='User Specified Distributions'!E22 -> 0.08 | BY21: ='User Specified Distributions'!F22 -> 0.1 | BZ21: ='User Specified Distributions'!G22 -> 0.15 | CA21: ='User Specified Distributions'!H22 -> 0.2 | CB21: ='User Specified Distributions'!I22 -> 0.15 | CC21: ='User Specified Distributions'!J22 -> 0.1 | CD21: ='User Specified Distributions'!K22 -> 0.06 | CE21: ='User Specified Distributions'!L22 -> 0.03 | CF21: ='User Specified Distributions'!M22 -> 0.01 | CG21: User-Specified Distribution #3 | CH21: 6 | CI21: ='User Specified Distributions'!B22 -> 0.02 | CJ21: ='User Specified Distributions'!C22 -> 0.04 | CK21: ='User Specified Distributions'!D22 -> 0.06 | CL21: ='User Specified Distributions'!E22 -> 0.08 | CM21: ='User Specified Distributions'!F22 -> 0.1 | CN21: ='User Specified Distributions'!G22 -> 0.15 | CO21: ='User Specified Distributions'!H22 -> 0.2 | CP21: ='User Specified Distributions'!I22 -> 0.15 | CQ21: ='User Specified Distributions'!J22 -> 0.1 | CR21: ='User Specified Distributions'!K22 -> 0.06 | CS21: ='User Specified Distributions'!L22 -> 0.03 | CT21: ='User Specified Distributions'!M22 -> 0.01 | CU21: User-Specified Distribution #3
B22: 7 | C22: ='User Specified Distributions'!B23 -> 0.05 | D22: ='User Specified Distributions'!C23 -> 0.06 | E22: ='User Specified Distributions'!D23 -> 0.07 | F22: ='User Specified Distributions'!E23 -> 0.08 | G22: ='User Specified Distributions'!F23 -> 0.09 | H22: ='User Specified Distributions'!G23 -> 0.1 | I22: ='User Specified Distributions'!H23 -> 0.12 | J22: ='User Specified Distributions'!I23 -> 0.13 | K22: ='User Specified Distributions'!J23 -> 0.11 | L22: ='User Specified Distributions'!K23 -> 0.08 | M22: ='User Specified Distributions'!L23 -> 0.07 | N22: ='User Specified Distributions'!M23 -> 0.04 | O22: User-Specified Distribution #4 | P22: 7 | Q22: ='User Specified Distributions'!B23 -> 0.05 | R22: ='User Specified Distributions'!C23 -> 0.06 | S22: ='User Specified Distributions'!D23 -> 0.07 | T22: ='User Specified Distributions'!E23 -> 0.08 | U22: ='User Specified Distributions'!F23 -> 0.09 | V22: ='User Specified Distributions'!G23 -> 0.1 | W22: ='User Specified Distributions'!H23 -> 0.12 | X22: ='User Specified Distributions'!I23 -> 0.13 | Y22: ='User Specified Distributions'!J23 -> 0.11 | Z22: ='User Specified Distributions'!K23 -> 0.08 | AA22: ='User Specified Distributions'!L23 -> 0.07 | AB22: ='User Specified Distributions'!M23 -> 0.04 | AC22: User-Specified Distribution #4 | AD22: 7 | AE22: ='User Specified Distributions'!B23 -> 0.05 | AF22: ='User Specified Distributions'!C23 -> 0.06 | AG22: ='User Specified Distributions'!D23 -> 0.07 | AH22: ='User Specified Distributions'!E23 -> 0.08 | AI22: ='User Specified Distributions'!F23 -> 0.09 | AJ22: ='User Specified Distributions'!G23 -> 0.1 | AK22: ='User Specified Distributions'!H23 -> 0.12 | AL22: ='User Specified Distributions'!I23 -> 0.13 | AM22: ='User Specified Distributions'!J23 -> 0.11 | AN22: ='User Specified Distributions'!K23 -> 0.08 | AO22: ='User Specified Distributions'!L23 -> 0.07 | AP22: ='User Specified Distributions'!M23 -> 0.04 | AQ22: User-Specified Distribution #4 | AR22: 7 | AS22: ='User Specified Distributions'!B23 -> 0.05 | AT22: ='User Specified Distributions'!C23 -> 0.06 | AU22: ='User Specified Distributions'!D23 -> 0.07 | AV22: ='User Specified Distributions'!E23 -> 0.08 | AW22: ='User Specified Distributions'!F23 -> 0.09 | AX22: ='User Specified Distributions'!G23 -> 0.1 | AY22: ='User Specified Distributions'!H23 -> 0.12 | AZ22: ='User Specified Distributions'!I23 -> 0.13 | BA22: ='User Specified Distributions'!J23 -> 0.11 | BB22: ='User Specified Distributions'!K23 -> 0.08 | BC22: ='User Specified Distributions'!L23 -> 0.07 | BD22: ='User Specified Distributions'!M23 -> 0.04 | BE22: User-Specified Distribution #4 | BF22: 7 | BG22: ='User Specified Distributions'!B23 -> 0.05 | BH22: ='User Specified Distributions'!C23 -> 0.06 | BI22: ='User Specified Distributions'!D23 -> 0.07 | BJ22: ='User Specified Distributions'!E23 -> 0.08 | BK22: ='User Specified Distributions'!F23 -> 0.09 | BL22: ='User Specified Distributions'!G23 -> 0.1 | BM22: ='User Specified Distributions'!H23 -> 0.12 | BN22: ='User Specified Distributions'!I23 -> 0.13 | BO22: ='User Specified Distributions'!J23 -> 0.11 | BP22: ='User Specified Distributions'!K23 -> 0.08 | BQ22: ='User Specified Distributions'!L23 -> 0.07 | BR22: ='User Specified Distributions'!M23 -> 0.04 | BS22: User-Specified Distribution #4 | BT22: 7 | BU22: ='User Specified Distributions'!B23 -> 0.05 | BV22: ='User Specified Distributions'!C23 -> 0.06 | BW22: ='User Specified Distributions'!D23 -> 0.07 | BX22: ='User Specified Distributions'!E23 -> 0.08 | BY22: ='User Specified Distributions'!F23 -> 0.09 | BZ22: ='User Specified Distributions'!G23 -> 0.1 | CA22: ='User Specified Distributions'!H23 -> 0.12 | CB22: ='User Specified Distributions'!I23 -> 0.13 | CC22: ='User Specified Distributions'!J23 -> 0.11 | CD22: ='User Specified Distributions'!K23 -> 0.08 | CE22: ='User Specified Distributions'!L23 -> 0.07 | CF22: ='User Specified Distributions'!M23 -> 0.04 | CG22: User-Specified Distribution #4 | CH22: 7 | CI22: ='User Specified Distributions'!B23 -> 0.05 | CJ22: ='User Specified Distributions'!C23 -> 0.06 | CK22: ='User Specified Distributions'!D23 -> 0.07 | CL22: ='User Specified Distributions'!E23 -> 0.08 | CM22: ='User Specified Distributions'!F23 -> 0.09 | CN22: ='User Specified Distributions'!G23 -> 0.1 | CO22: ='User Specified Distributions'!H23 -> 0.12 | CP22: ='User Specified Distributions'!I23 -> 0.13 | CQ22: ='User Specified Distributions'!J23 -> 0.11 | CR22: ='User Specified Distributions'!K23 -> 0.08 | CS22: ='User Specified Distributions'!L23 -> 0.07 | CT22: ='User Specified Distributions'!M23 -> 0.04 | CU22: User-Specified Distribution #4

Sheet Inflow Data (hidden)
Q10: RESULT
A11: ROW 1 INFLOW | P11: col number | Q11: 1 | R11: 2 | S11: 3 | T11: 4 | U11: 5 | V11: 6 | W11: 7 | X11: 8 | Y11: 9 | Z11: 10 | AA11: 11 | AB11: 12 | AC11: 13 | AD11: 14
A12: INFLOW SOURCE / TYPE | B12: JAN | C12: FEB | D12: MAR | E12: APR | F12: MAY | G12: JUN | H12: JUL | I12: AUG | J12: SEP | K12: OCT | L12: NOV | M12: DEC | N12: ANNUAL | Q12: INFLOW SOURCE / TYPE | R12: JAN | S12: FEB | T12: MAR | U12: APR | V12: MAY | W12: JUN | X12: JUL | Y12: AUG | Z12: SEP | AA12: OCT | AB12: NOV | AC12: DEC | AD12: ANNUAL
A13: ='Hopington AB - Analysis'!A47 -> GW inflow from surrounding aquitards (m3) | B13: ='Hopington AB - Analysis'!B47 -> 403062 | C13: ='Hopington AB - Analysis'!C47 -> 364056 | D13: ='Hopington AB - Analysis'!D47 -> 403062 | E13: ='Hopington AB - Analysis'!E47 -> 390060 | F13: ='Hopington AB - Analysis'!F47 -> 403062 | G13: ='Hopington AB - Analysis'!G47 -> 390060 | H13: ='Hopington AB - Analysis'!H47 -> 403062 | I13: ='Hopington AB - Analysis'!I47 -> 403062 | J13: ='Hopington AB - Analysis'!J47 -> 390060 | K13: ='Hopington AB - Analysis'!K47 -> 403062 | L13: ='Hopington AB - Analysis'!L47 -> 390060 | M13: ='Hopington AB - Analysis'!M47 -> 403062 | N13: ='Hopington AB - Analysis'!N47 -> 4745730 | Q13: =INDEX($A13:$N33,'Form Control Selectors'!$B$34,Q$11) -> GW inflow from surrounding aquitards (m3) | R13: =INDEX($A13:$N33,'Form Control Selectors'!$B$34,R$11) -> 403062 | S13: =INDEX($A13:$N33,'Form Control Selectors'!$B$34,S$11) -> 364056 | T13: =INDEX($A13:$N33,'Form Control Selectors'!$B$34,T$11) -> 403062 | U13: =INDEX($A13:$N33,'Form Control Selectors'!$B$34,U$11) -> 390060 | V13: =INDEX($A13:$N33,'Form Control Selectors'!$B$34,V$11) -> 403062 | W13: =INDEX($A13:$N33,'Form Control Selectors'!$B$34,W$11) -> 390060 | X13: =INDEX($A13:$N33,'Form Control Selectors'!$B$34,X$11) -> 403062 | Y13: =INDEX($A13:$N33,'Form Control Selectors'!$B$34,Y$11) -> 403062 | Z13: =INDEX($A13:$N33,'Form Control Selectors'!$B$34,Z$11) -> 390060 | AA13: =INDEX($A13:$N33,'Form Control Selectors'!$B$34,AA$11) -> 403062 | AB13: =INDEX($A13:$N33,'Form Control Selectors'!$B$34,AB$11) -> 390060 | AC13: =INDEX($A13:$N33,'Form Control Selectors'!$B$34,AC$11) -> 403062 | AD13: =INDEX($A13:$N33,'Form Control Selectors'!$B$34,AD$11) -> 4745730
A14: ='Hopington AB - Analysis'!A73 -> GW inflow from surrounding aquitards (m3) | B14: ='Hopington AB - Analysis'!B73 -> 403062 | C14: ='Hopington AB - Analysis'!C73 -> 364056 | D14: ='Hopington AB - Analysis'!D73 -> 403062 | E14: ='Hopington AB - Analysis'!E73 -> 390060 | F14: ='Hopington AB - Analysis'!F73 -> 403062 | G14: ='Hopington AB - Analysis'!G73 -> 390060 | H14: ='Hopington AB - Analysis'!H73 -> 403062 | I14: ='Hopington AB - Analysis'!I73 -> 403062 | J14: ='Hopington AB - Analysis'!J73 -> 390060 | K14: ='Hopington AB - Analysis'!K73 -> 403062 | L14: ='Hopington AB - Analysis'!L73 -> 390060 | M14: ='Hopington AB - Analysis'!M73 -> 403062 | N14: ='Hopington AB - Analysis'!N73 -> 4745730 | Q14: =INDEX($A$44:$N$64,'Form Control Selectors'!$B$34,Q$11) -> GW inflow from Aldergrove CD (m3) | R14: =INDEX($A$44:$N$64,'Form Control Selectors'!$B$34,R$11) -> 60357 | S14: =INDEX($A$44:$N$64,'Form Control Selectors'!$B$34,S$11) -> 54516 | T14: =INDEX($A$44:$N$64,'Form Control Selectors'!$B$34,T$11) -> 60357 | U14: =INDEX($A$44:$N$64,'Form Control Selectors'!$B$34,U$11) -> 58410 | V14: =INDEX($A$44:$N$64,'Form Control Selectors'!$B$34,V$11) -> 60357 | W14: =INDEX($A$44:$N$64,'Form Control Selectors'!$B$34,W$11) -> 58410 | X14: =INDEX($A$44:$N$64,'Form Control Selectors'!$B$34,X$11) -> 60357 | Y14: =INDEX($A$44:$N$64,'Form Control Selectors'!$B$34,Y$11) -> 60357 | Z14: =INDEX($A$44:$N$64,'Form Control Selectors'!$B$34,Z$11) -> 58410 | AA14: =INDEX($A$44:$N$64,'Form Control Selectors'!$B$34,AA$11) -> 60357 | AB14: =INDEX($A$44:$N$64,'Form Control Selectors'!$B$34,AB$11) -> 58410 | AC14: =INDEX($A$44:$N$64,'Form Control Selectors'!$B$34,AC$11) -> 60357 | AD14: =INDEX($A$44:$N$64,'Form Control Selectors'!$B$34,AD$11) -> 710655
A15: ='Hopington AB - Analysis'!A99 -> GW inflow from surrounding aquitards (m3) | B15: ='Hopington AB - Analysis'!B99 -> 403062 | C15: ='Hopington AB - Analysis'!C99 -> 364056 | D15: ='Hopington AB - Analysis'!D99 -> 403062 | E15: ='Hopington AB - Analysis'!E99 -> 390060 | F15: ='Hopington AB - Analysis'!F99 -> 403062 | G15: ='Hopington AB - Analysis'!G99 -> 390060 | H15: ='Hopington AB - Analysis'!H99 -> 403062 | I15: ='Hopington AB - Analysis'!I99 -> 403062 | J15: ='Hopington AB - Analysis'!J99 -> 390060 | K15: ='Hopington AB - Analysis'!K99 -> 403062 | L15: ='Hopington AB - Analysis'!L99 -> 390060 | M15: ='Hopington AB - Analysis'!M99 -> 403062 | N15: ='Hopington AB - Analysis'!N99 -> 4745730 | Q15: =INDEX($A$75:$N$95,'Form Control Selectors'!$B$34,Q$11) -> GW inflow from Beaver River (m3) | R15: =INDEX($A$75:$N$95,'Form Control Selectors'!$B$34,R$11) -> 112561 | S15: =INDEX($A$75:$N$95,'Form Control Selectors'!$B$34,S$11) -> 101668 | T15: =INDEX($A$75:$N$95,'Form Control Selectors'!$B$34,T$11) -> 112561 | U15: =INDEX($A$75:$N$95,'Form Control Selectors'!$B$34,U$11) -> 108930 | V15: =INDEX($A$75:$N$95,'Form Control Selectors'!$B$34,V$11) -> 112561 | W15: =INDEX($A$75:$N$95,'Form Control Selectors'!$B$34,W$11) -> 108930 | X15: =INDEX($A$75:$N$95,'Form Control Selectors'!$B$34,X$11) -> 112561 | Y15: =INDEX($A$75:$N$95,'Form Control Selectors'!$B$34,Y$11) -> 112561 | Z15: =INDEX($A$75:$N$95,'Form Control Selectors'!$B$34,Z$11) -> 108930 | AA15: =INDEX($A$75:$N$95,'Form Control Selectors'!$B$34,AA$11) -> 112561 | AB15: =INDEX($A$75:$N$95,'Form Control Selectors'!$B$34,AB$11) -> 108930 | AC15: =INDEX($A$75:$N$95,'Form Control Selectors'!$B$34,AC$11) -> 112561 | AD15: =INDEX($A$75:$N$95,'Form Control Selectors'!$B$34,AD$11) -> 1325315
A16: ='Fort Langley - Analysis'!A47 -> GW inflow from surrounding aquitards (m3) | B16: ='Fort Langley - Analysis'!B47 -> 400210 | C16: ='Fort Langley - Analysis'!C47 -> 361480 | D16: ='Fort Langley - Analysis'!D47 -> 400210 | E16: ='Fort Langley - Analysis'!E47 -> 387300 | F16: ='Fort Langley - Analysis'!F47 -> 400210 | G16: ='Fort Langley - Analysis'!G47 -> 387300 | H16: ='Fort Langley - Analysis'!H47 -> 400210 | I16: ='Fort Langley - Analysis'!I47 -> 400210 | J16: ='Fort Langley - Analysis'!J47 -> 387300 | K16: ='Fort Langley - Analysis'!K47 -> 400210 | L16: ='Fort Langley - Analysis'!L47 -> 387300 | M16: ='Fort Langley - Analysis'!M47 -> 400210 | N16: ='Fort Langley - Analysis'!N47 -> 4712150 | Q16: =INDEX($A$106:$N$126,'Form Control Selectors'!$B$34,Q$11) -> SW inflow to aquifer (m3) - Nicomekl R. / Bertrand Ck. | R16: =INDEX($A$106:$N$126,'Form Control Selectors'!$B$34,R$11) -> 23792.5 | S16: =INDEX($A$106:$N$126,'Form Control Selectors'!$B$34,S$11) -> 21490 | T16: =INDEX($A$106:$N$126,'Form Control Selectors'!$B$34,T$11) -> 23792.5 | U16: =INDEX($A$106:$N$126,'Form Control Selectors'!$B$34,U$11) -> 23025 | V16: =INDEX($A$106:$N$126,'Form Control Selectors'!$B$34,V$11) -> 23792.5 | W16: =INDEX($A$106:$N$126,'Form Control Selectors'!$B$34,W$11) -> 23025 | X16: =INDEX($A$106:$N$126,'Form Control Selectors'!$B$34,X$11) -> 23792.5 | Y16: =INDEX($A$106:$N$126,'Form Control Selectors'!$B$34,Y$11) -> 23792.5 | Z16: =INDEX($A$106:$N$126,'Form Control Selectors'!$B$34,Z$11) -> 23025 | AA16: =INDEX($A$106:$N$126,'Form Control Selectors'!$B$34,AA$11) -> 23792.5 | AB16: =INDEX($A$106:$N$126,'Form Control Selectors'!$B$34,AB$11) -> 23025 | AC16: =INDEX($A$106:$N$126,'Form Control Selectors'!$B$34,AC$11) -> 23792.5 | AD16: =INDEX($A$106:$N$126,'Form Control Selectors'!$B$34,AD$11) -> 280137.5
A17: ='Fort Langley - Analysis'!A73 -> GW inflow from surrounding aquitards (m3) | B17: ='Fort Langley - Analysis'!B73 -> 400210 | C17: ='Fort Langley - Analysis'!C73 -> 361480 | D17: ='Fort Langley - Analysis'!D73 -> 400210 | E17: ='Fort Langley - Analysis'!E73 -> 387300 | F17: ='Fort Langley - Analysis'!F73 -> 400210 | G17: ='Fort Langley - Analysis'!G73 -> 387300 | H17: ='Fort Langley - Analysis'!H73 -> 400210 | I17: ='Fort Langley - Analysis'!I73 -> 400210 | J17: ='Fort Langley - Analysis'!J73 -> 387300 | K17: ='Fort Langley - Analysis'!K73 -> 400210 | L17: ='Fort Langley - Analysis'!L73 -> 387300 | M17: ='Fort Langley - Analysis'!M73 -> 400210 | N17: ='Fort Langley - Analysis'!N73 -> 4712150 | Q17: =INDEX($A$137:$N$157,'Form Control Selectors'!$B$34,Q$11) -> Recharge (m3) | R17: =INDEX($A$137:$N$157,'Form Control Selectors'!$B$34,R$11) -> 1945622.608 | S17: =INDEX($A$137:$N$157,'Form Control Selectors'!$B$34,S$11) -> 1176467.075 | T17: =INDEX($A$137:$N$157,'Form Control Selectors'!$B$34,T$11) -> 791397.8117 | U17: =INDEX($A$137:$N$157,'Form Control Selectors'!$B$34,U$11) -> 100816.2003 | V17: =INDEX($A$137:$N$157,'Form Control Selectors'!$B$34,V$11) -> 18199.64955 | W17: =INDEX($A$137:$N$157,'Form Control Selectors'!$B$34,W$11) -> 14881.25668 | X17: =INDEX($A$137:$N$157,'Form Control Selectors'!$B$34,X$11) -> 9732.347365 | Y17: =INDEX($A$137:$N$157,'Form Control Selectors'!$B$34,Y$11) -> 15571.75578 | Z17: =INDEX($A$137:$N$157,'Form Control Selectors'!$B$34,Z$11) -> 181745.5394 | AA17: =INDEX($A$137:$N$157,'Form Control Selectors'!$B$34,AA$11) -> 1055937.879 | AB17: =INDEX($A$137:$N$157,'Form Control Selectors'!$B$34,AB$11) -> 2041588.656 | AC17: =INDEX($A$137:$N$157,'Form Control Selectors'!$B$34,AC$11) -> 2104094.222 | AD17: =INDEX($A$137:$N$157,'Form Control Selectors'!$B$34,AD$11) -> 9456055
A18: ='Fort Langley - Analysis'!A99 -> GW inflow from surrounding aquitards (m3) | B18: ='Fort Langley - Analysis'!B99 -> 400210 | C18: ='Fort Langley - Analysis'!C99 -> 361480 | D18: ='Fort Langley - Analysis'!D99 -> 400210 | E18: ='Fort Langley - Analysis'!E99 -> 387300 | F18: ='Fort Langley - Analysis'!F99 -> 400210 | G18: ='Fort Langley - Analysis'!G99 -> 387300 | H18: ='Fort Langley - Analysis'!H99 -> 400210 | I18: ='Fort Langley - Analysis'!I99 -> 400210 | J18: ='Fort Langley - Analysis'!J99 -> 387300 | K18: ='Fort Langley - Analysis'!K99 -> 400210 | L18: ='Fort Langley - Analysis'!L99 -> 387300 | M18: ='Fort Langley - Analysis'!M99 -> 400210 | N18: ='Fort Langley - Analysis'!N99 -> 4712150 | Q18: =INDEX($A$168:$N$188,'Form Control Selectors'!$B$34,Q$11) -> SW inflow from Salmon River system (m3) | R18: =INDEX($A$168:$N$188,'Form Control Selectors'!$B$34,R$11) -> 27807 | S18: =INDEX($A$168:$N$188,'Form Control Selectors'!$B$34,S$11) -> 25116 | T18: =INDEX($A$168:$N$188,'Form Control Selectors'!$B$34,T$11) -> 27807 | U18: =INDEX($A$168:$N$188,'Form Control Selectors'!$B$34,U$11) -> 26910 | V18: =INDEX($A$168:$N$188,'Form Control Selectors'!$B$34,V$11) -> 27807 | W18: =INDEX($A$168:$N$188,'Form Control Selectors'!$B$34,W$11) -> 26910 | X18: =INDEX($A$168:$N$188,'Form Control Selectors'!$B$34,X$11) -> 27807 | Y18: =INDEX($A$168:$N$188,'Form Control Selectors'!$B$34,Y$11) -> 27807 | Z18: =INDEX($A$168:$N$188,'Form Control Selectors'!$B$34,Z$11) -> 26910 | AA18: =INDEX($A$168:$N$188,'Form Control Selectors'!$B$34,AA$11) -> 27807 | AB18: =INDEX($A$168:$N$188,'Form Control Selectors'!$B$34,AB$11) -> 26910 | AC18: =INDEX($A$168:$N$188,'Form Control Selectors'!$B$34,AC$11) -> 27807 | AD18: =INDEX($A$168:$N$188,'Form Control Selectors'!$B$34,AD$11) -> 327405
A19: ='Beaver River - Analysis'!A47 -> SW inflow from Nathan Creek (m3) | B19: ='Beaver River - Analysis'!B47 -> 40380.6 | C19: ='Beaver River - Analysis'!C47 -> 36472.8 | D19: ='Beaver River - Analysis'!D47 -> 40380.6 | E19: ='Beaver River - Analysis'!E47 -> 39078 | F19: ='Beaver River - Analysis'!F47 -> 40380.6 | G19: ='Beaver River - Analysis'!G47 -> 39078 | H19: ='Beaver River - Analysis'!H47 -> 40380.6 | I19: ='Beaver River - Analysis'!I47 -> 40380.6 | J19: ='Beaver River - Analysis'!J47 -> 39078 | K19: ='Beaver River - Analysis'!K47 -> 40380.6 | L19: ='Beaver River - Analysis'!L47 -> 39078 | M19: ='Beaver River - Analysis'!M47 -> 40380.6 | N19: ='Beaver River - Analysis'!N47 -> 475449
A20: ='Beaver River - Analysis'!A73 -> SW inflow from Nathan Creek (m3) | B20: ='Beaver River - Analysis'!B73 -> 40380.6 | C20: ='Beaver River - Analysis'!C73 -> 36472.8 | D20: ='Beaver River - Analysis'!D73 -> 40380.6 | E20: ='Beaver River - Analysis'!E73 -> 39078 | F20: ='Beaver River - Analysis'!F73 -> 40380.6 | G20: ='Beaver River - Analysis'!G73 -> 39078 | H20: ='Beaver River - Analysis'!H73 -> 40380.6 | I20: ='Beaver River - Analysis'!I73 -> 40380.6 | J20: ='Beaver River - Analysis'!J73 -> 39078 | K20: ='Beaver River - Analysis'!K73 -> 40380.6 | L20: ='Beaver River - Analysis'!L73 -> 39078 | M20: ='Beaver River - Analysis'!M73 -> 40380.6 | N20: ='Beaver River - Analysis'!N73 -> 475449
A21: ='Beaver River - Analysis'!A99 -> SW inflow from Nathan Creek (m3) | B21: ='Beaver River - Analysis'!B99 -> 40380.6 | C21: ='Beaver River - Analysis'!C99 -> 36472.8 | D21: ='Beaver River - Analysis'!D99 -> 40380.6 | E21: ='Beaver River - Analysis'!E99 -> 39078 | F21: ='Beaver River - Analysis'!F99 -> 40380.6 | G21: ='Beaver River - Analysis'!G99 -> 39078 | H21: ='Beaver River - Analysis'!H99 -> 40380.6 | I21: ='Beaver River - Analysis'!I99 -> 40380.6 | J21: ='Beaver River - Analysis'!J99 -> 39078 | K21: ='Beaver River - Analysis'!K99 -> 40380.6 | L21: ='Beaver River - Analysis'!L99 -> 39078 | M21: ='Beaver River - Analysis'!M99 -> 40380.6 | N21: ='Beaver River - Analysis'!N99 -> 475449
A22: ='West of Aldergrove - Analysis'!A47 -> GW inflow from surrounding aquitards (m3) | B22: ='West of Aldergrove - Analysis'!B47 -> 2411707 | C22: ='West of Aldergrove - Analysis'!C47 -> 2178316 | D22: ='West of Aldergrove - Analysis'!D47 -> 2411707 | E22: ='West of Aldergrove - Analysis'!E47 -> 2333910 | F22: ='West of Aldergrove - Analysis'!F47 -> 2411707 | G22: ='West of Aldergrove - Analysis'!G47 -> 2333910 | H22: ='West of Aldergrove - Analysis'!H47 -> 2411707 | I22: ='West of Aldergrove - Analysis'!I47 -> 2411707 | J22: ='West of Aldergrove - Analysis'!J47 -> 2333910 | K22: ='West of Aldergrove - Analysis'!K47 -> 2411707 | L22: ='West of Aldergrove - Analysis'!L47 -> 2333910 | M22: ='West of Aldergrove - Analysis'!M47 -> 2411707 | N22: ='West of Aldergrove - Analysis'!N47 -> 28395905
A23: ='West of Aldergrove - Analysis'!A78 -> GW inflow from surrounding aquitards (m3) | B23: ='West of Aldergrove - Analysis'!B78 -> 2411707 | C23: ='West of Aldergrove - Analysis'!C78 -> 2178316 | D23: ='West of Aldergrove - Analysis'!D78 -> 2411707 | E23: ='West of Aldergrove - Analysis'!E78 -> 2333910 | F23: ='West of Aldergrove - Analysis'!F78 -> 2411707 | G23: ='West of Aldergrove - Analysis'!G78 -> 2333910 | H23: ='West of Aldergrove - Analysis'!H78 -> 2411707 | I23: ='West of Aldergrove - Analysis'!I78 -> 2411707 | J23: ='West of Aldergrove - Analysis'!J78 -> 2333910 | K23: ='West of Aldergrove - Analysis'!K78 -> 2411707 | L23: ='West of Aldergrove - Analysis'!L78 -> 2333910 | M23: ='West of Aldergrove - Analysis'!M78 -> 2411707 | N23: ='West of Aldergrove - Analysis'!N78 -> 28395905
A24: ='West of Aldergrove - Analysis'!A109 -> GW inflow from surrounding aquitards (m3) | B24: ='West of Aldergrove - Analysis'!B109 -> 2411707 | C24: ='West of Aldergrove - Analysis'!C109 -> 2178316 | D24: ='West of Aldergrove - Analysis'!D109 -> 2411707 | E24: ='West of Aldergrove - Analysis'!E109 -> 2333910 | F24: ='West of Aldergrove - Analysis'!F109 -> 2411707 | G24: ='West of Aldergrove - Analysis'!G109 -> 2333910 | H24: ='West of Aldergrove - Analysis'!H109 -> 2411707 | I24: ='West of Aldergrove - Analysis'!I109 -> 2411707 | J24: ='West of Aldergrove - Analysis'!J109 -> 2333910 | K24: ='West of Aldergrove - Analysis'!K109 -> 2411707 | L24: ='West of Aldergrove - Analysis'!L109 -> 2333910 | M24: ='West of Aldergrove - Analysis'!M109 -> 2411707 | N24: ='West of Aldergrove - Analysis'!N109 -> 28395905
A25: ='S of Murrayville AC - Analysis'!A47 -> GW inflow from surrounding aquitards (m3) | B25: ='S of Murrayville AC - Analysis'!B47 -> 1719074 | C25: ='S of Murrayville AC - Analysis'!C47 -> 1552712 | D25: ='S of Murrayville AC - Analysis'!D47 -> 1719074 | E25: ='S of Murrayville AC - Analysis'!E47 -> 1663620 | F25: ='S of Murrayville AC - Analysis'!F47 -> 1719074 | G25: ='S of Murrayville AC - Analysis'!G47 -> 1663620 | H25: ='S of Murrayville AC - Analysis'!H47 -> 1719074 | I25: ='S of Murrayville AC - Analysis'!I47 -> 1719074 | J25: ='S of Murrayville AC - Analysis'!J47 -> 1663620 | K25: ='S of Murrayville AC - Analysis'!K47 -> 1719074 | L25: ='S of Murrayville AC - Analysis'!L47 -> 1663620 | M25: ='S of Murrayville AC - Analysis'!M47 -> 1719074 | N25: ='S of Murrayville AC - Analysis'!N47 -> 20240710
A26: ='S of Murrayville AC - Analysis'!A73 -> GW inflow from surrounding aquitards (m3) | B26: ='S of Murrayville AC - Analysis'!B73 -> 1719074 | C26: ='S of Murrayville AC - Analysis'!C73 -> 1552712 | D26: ='S of Murrayville AC - Analysis'!D73 -> 1719074 | E26: ='S of Murrayville AC - Analysis'!E73 -> 1663620 | F26: ='S of Murrayville AC - Analysis'!F73 -> 1719074 | G26: ='S of Murrayville AC - Analysis'!G73 -> 1663620 | H26: ='S of Murrayville AC - Analysis'!H73 -> 1719074 | I26: ='S of Murrayville AC - Analysis'!I73 -> 1719074 | J26: ='S of Murrayville AC - Analysis'!J73 -> 1663620 | K26: ='S of Murrayville AC - Analysis'!K73 -> 1719074 | L26: ='S of Murrayville AC - Analysis'!L73 -> 1663620 | M26: ='S of Murrayville AC - Analysis'!M73 -> 1719074 | N26: ='S of Murrayville AC - Analysis'!N73 -> 20240710
A27: ='S of Murrayville AC - Analysis'!A99 -> GW inflow from surrounding aquitards (m3) | B27: ='S of Murrayville AC - Analysis'!B99 -> 1719074 | C27: ='S of Murrayville AC - Analysis'!C99 -> 1552712 | D27: ='S of Murrayville AC - Analysis'!D99 -> 1719074 | E27: ='S of Murrayville AC - Analysis'!E99 -> 1663620 | F27: ='S of Murrayville AC - Analysis'!F99 -> 1719074 | G27: ='S of Murrayville AC - Analysis'!G99 -> 1663620 | H27: ='S of Murrayville AC - Analysis'!H99 -> 1719074 | I27: ='S of Murrayville AC - Analysis'!I99 -> 1719074 | J27: ='S of Murrayville AC - Analysis'!J99 -> 1663620 | K27: ='S of Murrayville AC - Analysis'!K99 -> 1719074 | L27: ='S of Murrayville AC - Analysis'!L99 -> 1663620 | M27: ='S of Murrayville AC - Analysis'!M99 -> 1719074 | N27: ='S of Murrayville AC - Analysis'!N99 -> 20240710
A28: ='Salmon River - Analysis'!A47 -> GW inflow from surrounding aquitards (m3) | B28: ='Salmon River - Analysis'!B47 -> 1123967 | C28: ='Salmon River - Analysis'!C47 -> 1015196 | D28: ='Salmon River - Analysis'!D47 -> 1123967 | E28: ='Salmon River - Analysis'!E47 -> 1087710 | F28: ='Salmon River - Analysis'!F47 -> 1123967 | G28: ='Salmon River - Analysis'!G47 -> 1087710 | H28: ='Salmon River - Analysis'!H47 -> 1123967 | I28: ='Salmon River - Analysis'!I47 -> 1123967 | J28: ='Salmon River - Analysis'!J47 -> 1087710 | K28: ='Salmon River - Analysis'!K47 -> 1123967 | L28: ='Salmon River - Analysis'!L47 -> 1087710 | M28: ='Salmon River - Analysis'!M47 -> 1123967 | N28: ='Salmon River - Analysis'!N47 -> 13233805
A29: ='Salmon River - Analysis'!A73 -> GW inflow from surrounding aquitards (m3) | B29: ='Salmon River - Analysis'!B73 -> 1123967 | C29: ='Salmon River - Analysis'!C73 -> 1015196 | D29: ='Salmon River - Analysis'!D73 -> 1123967 | E29: ='Salmon River - Analysis'!E73 -> 1087710 | F29: ='Salmon River - Analysis'!F73 -> 1123967 | G29: ='Salmon River - Analysis'!G73 -> 1087710 | H29: ='Salmon River - Analysis'!H73 -> 1123967 | I29: ='Salmon River - Analysis'!I73 -> 1123967 | J29: ='Salmon River - Analysis'!J73 -> 1087710 | K29: ='Salmon River - Analysis'!K73 -> 1123967 | L29: ='Salmon River - Analysis'!L73 -> 1087710 | M29: ='Salmon River - Analysis'!M73 -> 1123967 | N29: ='Salmon River - Analysis'!N73 -> 13233805
A30: ='Salmon River - Analysis'!A99 -> GW inflow from surrounding aquitards (m3) | B30: ='Salmon River - Analysis'!B99 -> 1123967 | C30: ='Salmon River - Analysis'!C99 -> 1015196 | D30: ='Salmon River - Analysis'!D99 -> 1123967 | E30: ='Salmon River - Analysis'!E99 -> 1087710 | F30: ='Salmon River - Analysis'!F99 -> 1123967 | G30: ='Salmon River - Analysis'!G99 -> 1087710 | H30: ='Salmon River - Analysis'!H99 -> 1123967 | I30: ='Salmon River - Analysis'!I99 -> 1123967 | J30: ='Salmon River - Analysis'!J99 -> 1087710 | K30: ='Salmon River - Analysis'!K99 -> 1123967 | L30: ='Salmon River - Analysis'!L99 -> 1087710 | M30: ='Salmon River - Analysis'!M99 -> 1123967 | N30: ='Salmon River - Analysis'!N99 -> 13233805
A31: ='Nicomekl Serpentine - Analysis'!A47 -> GW inflow from surrounding aquitards (m3) | B31: ='Nicomekl Serpentine - Analysis'!B47 -> 3045874 | C31: ='Nicomekl Serpentine - Analysis'!C47 -> 2751112 | D31: ='Nicomekl Serpentine - Analysis'!D47 -> 3045874 | E31: ='Nicomekl Serpentine - Analysis'!E47 -> 2947620 | F31: ='Nicomekl Serpentine - Analysis'!F47 -> 3045874 | G31: ='Nicomekl Serpentine - Analysis'!G47 -> 2947620 | H31: ='Nicomekl Serpentine - Analysis'!H47 -> 3045874 | I31: ='Nicomekl Serpentine - Analysis'!I47 -> 3045874 | J31: ='Nicomekl Serpentine - Analysis'!J47 -> 2947620 | K31: ='Nicomekl Serpentine - Analysis'!K47 -> 3045874 | L31: ='Nicomekl Serpentine - Analysis'!L47 -> 2947620 | M31: ='Nicomekl Serpentine - Analysis'!M47 -> 3045874 | N31: ='Nicomekl Serpentine - Analysis'!N47 -> 35862710
A32: ='Nicomekl Serpentine - Analysis'!A73 -> GW inflow from surrounding aquitards (m3) | B32: ='Nicomekl Serpentine - Analysis'!B73 -> 3045874 | C32: ='Nicomekl Serpentine - Analysis'!C73 -> 2751112 | D32: ='Nicomekl Serpentine - Analysis'!D73 -> 3045874 | E32: ='Nicomekl Serpentine - Analysis'!E73 -> 2947620 | F32: ='Nicomekl Serpentine - Analysis'!F73 -> 3045874 | G32: ='Nicomekl Serpentine - Analysis'!G73 -> 2947620 | H32: ='Nicomekl Serpentine - Analysis'!H73 -> 3045874 | I32: ='Nicomekl Serpentine - Analysis'!I73 -> 3045874 | J32: ='Nicomekl Serpentine - Analysis'!J73 -> 2947620 | K32: ='Nicomekl Serpentine - Analysis'!K73 -> 3045874 | L32: ='Nicomekl Serpentine - Analysis'!L73 -> 2947620 | M32: ='Nicomekl Serpentine - Analysis'!M73 -> 3045874 | N32: ='Nicomekl Serpentine - Analysis'!N73 -> 35862710
A33: ='Nicomekl Serpentine - Analysis'!A99 -> GW inflow from surrounding aquitards (m3) | B33: ='Nicomekl Serpentine - Analysis'!B99 -> 3045874 | C33: ='Nicomekl Serpentine - Analysis'!C99 -> 2751112 | D33: ='Nicomekl Serpentine - Analysis'!D99 -> 3045874 | E33: ='Nicomekl Serpentine - Analysis'!E99 -> 2947620 | F33: ='Nicomekl Serpentine - Analysis'!F99 -> 3045874 | G33: ='Nicomekl Serpentine - Analysis'!G99 -> 2947620 | H33: ='Nicomekl Serpentine - Analysis'!H99 -> 3045874 | I33: ='Nicomekl Serpentine - Analysis'!I99 -> 3045874 | J33: ='Nicomekl Serpentine - Analysis'!J99 -> 2947620 | K33: ='Nicomekl Serpentine - Analysis'!K99 -> 3045874 | L33: ='Nicomekl Serpentine - Analysis'!L99 -> 2947620 | M33: ='Nicomekl Serpentine - Analysis'!M99 -> 3045874 | N33: ='Nicomekl Serpentine - Analysis'!N99 -> 35862710
A43: ROW 2 INFLOW
A44: ='Hopington AB - Analysis'!A48 -> GW inflow from Aldergrove CD (m3) | B44: ='Hopington AB - Analysis'!B48 -> 60357 | C44: ='Hopington AB - Analysis'!C48 -> 54516 | D44: ='Hopington AB - Analysis'!D48 -> 60357 | E44: ='Hopington AB - Analysis'!E48 -> 58410 | F44: ='Hopington AB - Analysis'!F48 -> 60357 | G44: ='Hopington AB - Analysis'!G48 -> 58410 | H44: ='Hopington AB - Analysis'!H48 -> 60357 | I44: ='Hopington AB - Analysis'!I48 -> 60357 | J44: ='Hopington AB - Analysis'!J48 -> 58410 | K44: ='Hopington AB - Analysis'!K48 -> 60357 | L44: ='Hopington AB - Analysis'!L48 -> 58410 | M44: ='Hopington AB - Analysis'!M48 -> 60357 | N44: ='Hopington AB - Analysis'!N48 -> 710655
A45: ='Hopington AB - Analysis'!A74 -> GW inflow from Aldergrove CD (m3) | B45: ='Hopington AB - Analysis'!B74 -> 60357 | C45: ='Hopington AB - Analysis'!C74 -> 54516 | D45: ='Hopington AB - Analysis'!D74 -> 60357 | E45: ='Hopington AB - Analysis'!E74 -> 58410 | F45: ='Hopington AB - Analysis'!F74 -> 60357 | G45: ='Hopington AB - Analysis'!G74 -> 58410 | H45: ='Hopington AB - Analysis'!H74 -> 60357 | I45: ='Hopington AB - Analysis'!I74 -> 60357 | J45: ='Hopington AB - Analysis'!J74 -> 58410 | K45: ='Hopington AB - Analysis'!K74 -> 60357 | L45: ='Hopington AB - Analysis'!L74 -> 58410 | M45: ='Hopington AB - Analysis'!M74 -> 60357 | N45: ='Hopington AB - Analysis'!N74 -> 710655
A46: ='Hopington AB - Analysis'!A100 -> GW inflow from Aldergrove CD (m3) | B46: ='Hopington AB - Analysis'!B100 -> 60357 | C46: ='Hopington AB - Analysis'!C100 -> 54516 | D46: ='Hopington AB - Analysis'!D100 -> 60357 | E46: ='Hopington AB - Analysis'!E100 -> 58410 | F46: ='Hopington AB - Analysis'!F100 -> 60357 | G46: ='Hopington AB - Analysis'!G100 -> 58410 | H46: ='Hopington AB - Analysis'!H100 -> 60357 | I46: ='Hopington AB - Analysis'!I100 -> 60357 | J46: ='Hopington AB - Analysis'!J100 -> 58410 | K46: ='Hopington AB - Analysis'!K100 -> 60357 | L46: ='Hopington AB - Analysis'!L100 -> 58410 | M46: ='Hopington AB - Analysis'!M100 -> 60357 | N46: ='Hopington AB - Analysis'!N100 -> 710655
A47: ='Fort Langley - Analysis'!A48 -> Recharge (m3) | B47: ='Fort Langley - Analysis'!B48 -> 447304.6981 | C47: ='Fort Langley - Analysis'!C48 -> 270473.4452 | D47: ='Fort Langley - Analysis'!D48 -> 181944.8221 | E47: ='Fort Langley - Analysis'!E48 -> 23177.9585 | F47: ='Fort Langley - Analysis'!F48 -> 4184.156123 | G47: ='Fort Langley - Analysis'!G48 -> 3421.247266 | H47: ='Fort Langley - Analysis'!H48 -> 2237.496975 | I47: ='Fort Langley - Analysis'!I48 -> 3579.995161 | J47: ='Fort Langley - Analysis'!J48 -> 41783.86565 | K47: ='Fort Langley - Analysis'!K48 -> 242763.4077 | L47: ='Fort Langley - Analysis'!L48 -> 469367.5915 | M47: ='Fort Langley - Analysis'!M48 -> 483737.8158 | N47: ='Fort Langley - Analysis'!N48 -> 2173976.5
A48: ='Fort Langley - Analysis'!A74 -> Recharge (m3) | B48: ='Fort Langley - Analysis'!B74 -> 247210.6816 | C48: ='Fort Langley - Analysis'!C74 -> 151321.8692 | D48: ='Fort Langley - Analysis'!D74 -> 82919.51033 | E48: ='Fort Langley - Analysis'!E74 -> 0 | F48: ='Fort Langley - Analysis'!F74 -> 0 | G48: ='Fort Langley - Analysis'!G74 -> 0 | H48: ='Fort Langley - Analysis'!H74 -> 0 | I48: ='Fort Langley - Analysis'!I74 -> 0 | J48: ='Fort Langley - Analysis'!J74 -> 0 | K48: ='Fort Langley - Analysis'!K74 -> 0 | L48: ='Fort Langley - Analysis'!L74 -> 0 | M48: ='Fort Langley - Analysis'!M74 -> 485432.9389 | N48: ='Fort Langley - Analysis'!N74 -> 966885
A49: ='Fort Langley - Analysis'!A100 -> Recharge (m3) | B49: ='Fort Langley - Analysis'!B100 -> 899612.1253 | C49: ='Fort Langley - Analysis'!C100 -> 338285.6481 | D49: ='Fort Langley - Analysis'!D100 -> 343527.6767 | E49: ='Fort Langley - Analysis'!E100 -> 0 | F49: ='Fort Langley - Analysis'!F100 -> 0 | G49: ='Fort Langley - Analysis'!G100 -> 0 | H49: ='Fort Langley - Analysis'!H100 -> 0 | I49: ='Fort Langley - Analysis'!I100 -> 0 | J49: ='Fort Langley - Analysis'!J100 -> 77410.62648 | K49: ='Fort Langley - Analysis'!K100 -> 416962.247 | L49: ='Fort Langley - Analysis'!L100 -> 778549.1219 | M49: ='Fort Langley - Analysis'!M100 -> 775212.5545 | N49: ='Fort Langley - Analysis'!N100 -> 3629560
A50: ='Beaver River - Analysis'!A48 -> GW inflow from surrounding aquitards (m3) | B50: ='Beaver River - Analysis'!B48 -> 1808261 | C50: ='Beaver River - Analysis'!C48 -> 1633268 | D50: ='Beaver River - Analysis'!D48 -> 1808261 | E50: ='Beaver River - Analysis'!E48 -> 1749930 | F50: ='Beaver River - Analysis'!F48 -> 1808261 | G50: ='Beaver River - Analysis'!G48 -> 1749930 | H50: ='Beaver River - Analysis'!H48 -> 1808261 | I50: ='Beaver River - Analysis'!I48 -> 1808261 | J50: ='Beaver River - Analysis'!J48 -> 1749930 | K50: ='Beaver River - Analysis'!K48 -> 1808261 | L50: ='Beaver River - Analysis'!L48 -> 1749930 | M50: ='Beaver River - Analysis'!M48 -> 1808261 | N50: ='Beaver River - Analysis'!N48 -> 21290815
A51: ='Beaver River - Analysis'!A74 -> GW inflow from surrounding aquitards (m3) | B51: ='Beaver River - Analysis'!B74 -> 1808261 | C51: ='Beaver River - Analysis'!C74 -> 1633268 | D51: ='Beaver River - Analysis'!D74 -> 1808261 | E51: ='Beaver River - Analysis'!E74 -> 1749930 | F51: ='Beaver River - Analysis'!F74 -> 1808261 | G51: ='Beaver River - Analysis'!G74 -> 1749930 | H51: ='Beaver River - Analysis'!H74 -> 1808261 | I51: ='Beaver River - Analysis'!I74 -> 1808261 | J51: ='Beaver River - Analysis'!J74 -> 1749930 | K51: ='Beaver River - Analysis'!K74 -> 1808261 | L51: ='Beaver River - Analysis'!L74 -> 1749930 | M51: ='Beaver River - Analysis'!M74 -> 1808261 | N51: ='Beaver River - Analysis'!N74 -> 21290815
A52: ='Beaver River - Analysis'!A100 -> GW inflow from surrounding aquitards (m3) | B52: ='Beaver River - Analysis'!B100 -> 1808261 | C52: ='Beaver River - Analysis'!C100 -> 1633268 | D52: ='Beaver River - Analysis'!D100 -> 1808261 | E52: ='Beaver River - Analysis'!E100 -> 1749930 | F52: ='Beaver River - Analysis'!F100 -> 1808261 | G52: ='Beaver River - Analysis'!G100 -> 1749930 | H52: ='Beaver River - Analysis'!H100 -> 1808261 | I52: ='Beaver River - Analysis'!I100 -> 1808261 | J52: ='Beaver River - Analysis'!J100 -> 1749930 | K52: ='Beaver River - Analysis'!K100 -> 1808261 | L52: ='Beaver River - Analysis'!L100 -> 1749930 | M52: ='Beaver River - Analysis'!M100 -> 1808261 | N52: ='Beaver River - Analysis'!N100 -> 21290815
A53: ='West of Aldergrove - Analysis'!A48 -> GW inflow from Abbotsford (m3) | B53: ='West of Aldergrove - Analysis'!B48 -> 21359 | C53: ='West of Aldergrove - Analysis'!C48 -> 19292 | D53: ='West of Aldergrove - Analysis'!D48 -> 21359 | E53: ='West of Aldergrove - Analysis'!E48 -> 20670 | F53: ='West of Aldergrove - Analysis'!F48 -> 21359 | G53: ='West of Aldergrove - Analysis'!G48 -> 20670 | H53: ='West of Aldergrove - Analysis'!H48 -> 21359 | I53: ='West of Aldergrove - Analysis'!I48 -> 21359 | J53: ='West of Aldergrove - Analysis'!J48 -> 20670 | K53: ='West of Aldergrove - Analysis'!K48 -> 21359 | L53: ='West of Aldergrove - Analysis'!L48 -> 20670 | M53: ='West of Aldergrove - Analysis'!M48 -> 21359 | N53: ='West of Aldergrove - Analysis'!N48 -> 251485
A54: ='West of Aldergrove - Analysis'!A79 -> GW inflow from Abbotsford (m3) | B54: ='West of Aldergrove - Analysis'!B79 -> 21359 | C54: ='West of Aldergrove - Analysis'!C79 -> 19292 | D54: ='West of Aldergrove - Analysis'!D79 -> 21359 | E54: ='West of Aldergrove - Analysis'!E79 -> 20670 | F54: ='West of Aldergrove - Analysis'!F79 -> 21359 | G54: ='West of Aldergrove - Analysis'!G79 -> 20670 | H54: ='West of Aldergrove - Analysis'!H79 -> 21359 | I54: ='West of Aldergrove - Analysis'!I79 -> 21359 | J54: ='West of Aldergrove - Analysis'!J79 -> 20670 | K54: ='West of Aldergrove - Analysis'!K79 -> 21359 | L54: ='West of Aldergrove - Analysis'!L79 -> 20670 | M54: ='West of Aldergrove - Analysis'!M79 -> 21359 | N54: ='West of Aldergrove - Analysis'!N79 -> 251485
A55: ='West of Aldergrove - Analysis'!A110 -> GW inflow from Abbotsford (m3) | B55: ='West of Aldergrove - Analysis'!B110 -> 21359 | C55: ='West of Aldergrove - Analysis'!C110 -> 19292 | D55: ='West of Aldergrove - Analysis'!D110 -> 21359 | E55: ='West of Aldergrove - Analysis'!E110 -> 20670 | F55: ='West of Aldergrove - Analysis'!F110 -> 21359 | G55: ='West of Aldergrove - Analysis'!G110 -> 20670 | H55: ='West of Aldergrove - Analysis'!H110 -> 21359 | I55: ='West of Aldergrove - Analysis'!I110 -> 21359 | J55: ='West of Aldergrove - Analysis'!J110 -> 20670 | K55: ='West of Aldergrove - Analysis'!K110 -> 21359 | L55: ='West of Aldergrove - Analysis'!L110 -> 20670 | M55: ='West of Aldergrove - Analysis'!M110 -> 21359 | N55: ='West of Aldergrove - Analysis'!N110 -> 251485
A56: ='S of Murrayville AC - Analysis'!A48 -> GW inflow from South of Murrayville B aquifer (m3) | B56: ='S of Murrayville AC - Analysis'!B48 -> 2092.5 | C56: ='S of Murrayville AC - Analysis'!C48 -> 1890 | D56: ='S of Murrayville AC - Analysis'!D48 -> 2092.5 | E56: ='S of Murrayville AC - Analysis'!E48 -> 2025 | F56: ='S of Murrayville AC - Analysis'!F48 -> 2092.5 | G56: ='S of Murrayville AC - Analysis'!G48 -> 2025 | H56: ='S of Murrayville AC - Analysis'!H48 -> 2092.5 | I56: ='S of Murrayville AC - Analysis'!I48 -> 2092.5 | J56: ='S of Murrayville AC - Analysis'!J48 -> 2025 | K56: ='S of Murrayville AC - Analysis'!K48 -> 2092.5 | L56: ='S of Murrayville AC - Analysis'!L48 -> 2025 | M56: ='S of Murrayville AC - Analysis'!M48 -> 2092.5 | N56: ='S of Murrayville AC - Analysis'!N48 -> 24637.5
A57: ='S of Murrayville AC - Analysis'!A74 -> GW inflow from South of Murrayville B aquifer (m3) | B57: ='S of Murrayville AC - Analysis'!B74 -> 2092.5 | C57: ='S of Murrayville AC - Analysis'!C74 -> 1890 | D57: ='S of Murrayville AC - Analysis'!D74 -> 2092.5 | E57: ='S of Murrayville AC - Analysis'!E74 -> 2025 | F57: ='S of Murrayville AC - Analysis'!F74 -> 2092.5 | G57: ='S of Murrayville AC - Analysis'!G74 -> 2025 | H57: ='S of Murrayville AC - Analysis'!H74 -> 2092.5 | I57: ='S of Murrayville AC - Analysis'!I74 -> 2092.5 | J57: ='S of Murrayville AC - Analysis'!J74 -> 2025 | K57: ='S of Murrayville AC - Analysis'!K74 -> 2092.5 | L57: ='S of Murrayville AC - Analysis'!L74 -> 2025 | M57: ='S of Murrayville AC - Analysis'!M74 -> 2092.5 | N57: ='S of Murrayville AC - Analysis'!N74 -> 24637.5
A58: ='S of Murrayville AC - Analysis'!A100 -> GW inflow from South of Murrayville B aquifer (m3) | B58: ='S of Murrayville AC - Analysis'!B100 -> 2092.5 | C58: ='S of Murrayville AC - Analysis'!C100 -> 1890 | D58: ='S of Murrayville AC - Analysis'!D100 -> 2092.5 | E58: ='S of Murrayville AC - Analysis'!E100 -> 2025 | F58: ='S of Murrayville AC - Analysis'!F100 -> 2092.5 | G58: ='S of Murrayville AC - Analysis'!G100 -> 2025 | H58: ='S of Murrayville AC - Analysis'!H100 -> 2092.5 | I58: ='S of Murrayville AC - Analysis'!I100 -> 2092.5 | J58: ='S of Murrayville AC - Analysis'!J100 -> 2025 | K58: ='S of Murrayville AC - Analysis'!K100 -> 2092.5 | L58: ='S of Murrayville AC - Analysis'!L100 -> 2025 | M58: ='S of Murrayville AC - Analysis'!M100 -> 2092.5 | N58: ='S of Murrayville AC - Analysis'!N100 -> 24637.5
A62: ='Nicomekl Serpentine - Analysis'!A48 -> GW inflow from boundary (m3) | B62: ='Nicomekl Serpentine - Analysis'!B48 -> 381393 | C62: ='Nicomekl Serpentine - Analysis'!C48 -> 344484 | D62: ='Nicomekl Serpentine - Analysis'!D48 -> 381393 | E62: ='Nicomekl Serpentine - Analysis'!E48 -> 369090 | F62: ='Nicomekl Serpentine - Analysis'!F48 -> 381393 | G62: ='Nicomekl Serpentine - Analysis'!G48 -> 369090 | H62: ='Nicomekl Serpentine - Analysis'!H48 -> 381393 | I62: ='Nicomekl Serpentine - Analysis'!I48 -> 381393 | J62: ='Nicomekl Serpentine - Analysis'!J48 -> 369090 | K62: ='Nicomekl Serpentine - Analysis'!K48 -> 381393 | L62: ='Nicomekl Serpentine - Analysis'!L48 -> 369090 | M62: ='Nicomekl Serpentine - Analysis'!M48 -> 381393 | N62: ='Nicomekl Serpentine - Analysis'!N48 -> 4490595
A63: ='Nicomekl Serpentine - Analysis'!A74 -> GW inflow from boundary (m3) | B63: ='Nicomekl Serpentine - Analysis'!B74 -> 381393 | C63: ='Nicomekl Serpentine - Analysis'!C74 -> 344484 | D63: ='Nicomekl Serpentine - Analysis'!D74 -> 381393 | E63: ='Nicomekl Serpentine - Analysis'!E74 -> 369090 | F63: ='Nicomekl Serpentine - Analysis'!F74 -> 381393 | G63: ='Nicomekl Serpentine - Analysis'!G74 -> 369090 | H63: ='Nicomekl Serpentine - Analysis'!H74 -> 381393 | I63: ='Nicomekl Serpentine - Analysis'!I74 -> 381393 | J63: ='Nicomekl Serpentine - Analysis'!J74 -> 369090 | K63: ='Nicomekl Serpentine - Analysis'!K74 -> 381393 | L63: ='Nicomekl Serpentine - Analysis'!L74 -> 369090 | M63: ='Nicomekl Serpentine - Analysis'!M74 -> 381393 | N63: ='Nicomekl Serpentine - Analysis'!N74 -> 4490595
A64: ='Nicomekl Serpentine - Analysis'!A100 -> GW inflow from boundary (m3) | B64: ='Nicomekl Serpentine - Analysis'!B100 -> 381393 | C64: ='Nicomekl Serpentine - Analysis'!C100 -> 344484 | D64: ='Nicomekl Serpentine - Analysis'!D100 -> 381393 | E64: ='Nicomekl Serpentine - Analysis'!E100 -> 369090 | F64: ='Nicomekl Serpentine - Analysis'!F100 -> 381393 | G64: ='Nicomekl Serpentine - Analysis'!G100 -> 369090 | H64: ='Nicomekl Serpentine - Analysis'!H100 -> 381393 | I64: ='Nicomekl Serpentine - Analysis'!I100 -> 381393 | J64: ='Nicomekl Serpentine - Analysis'!J100 -> 369090 | K64: ='Nicomekl Serpentine - Analysis'!K100 -> 381393 | L64: ='Nicomekl Serpentine - Analysis'!L100 -> 369090 | M64: ='Nicomekl Serpentine - Analysis'!M100 -> 381393 | N64: ='Nicomekl Serpentine - Analysis'!N100 -> 4490595
A74: ROW 3 INFLOW
A75: ='Hopington AB - Analysis'!A49 -> GW inflow from Beaver River (m3) | B75: ='Hopington AB - Analysis'!B49 -> 112561 | C75: ='Hopington AB - Analysis'!C49 -> 101668 | D75: ='Hopington AB - Analysis'!D49 -> 112561 | E75: ='Hopington AB - Analysis'!E49 -> 108930 | F75: ='Hopington AB - Analysis'!F49 -> 112561 | G75: ='Hopington AB - Analysis'!G49 -> 108930 | H75: ='Hopington AB - Analysis'!H49 -> 112561 | I75: ='Hopington AB - Analysis'!I49 -> 112561 | J75: ='Hopington AB - Analysis'!J49 -> 108930 | K75: ='Hopington AB - Analysis'!K49 -> 112561 | L75: ='Hopington AB - Analysis'!L49 -> 108930 | M75: ='Hopington AB - Analysis'!M49 -> 112561 | N75: ='Hopington AB - Analysis'!N49 -> 1325315
A76: ='Hopington AB - Analysis'!A75 -> GW inflow from Beaver River (m3) | B76: ='Hopington AB - Analysis'!B75 -> 112561 | C76: ='Hopington AB - Analysis'!C75 -> 101668 | D76: ='Hopington AB - Analysis'!D75 -> 112561 | E76: ='Hopington AB - Analysis'!E75 -> 108930 | F76: ='Hopington AB - Analysis'!F75 -> 112561 | G76: ='Hopington AB - Analysis'!G75 -> 108930 | H76: ='Hopington AB - Analysis'!H75 -> 112561 | I76: ='Hopington AB - Analysis'!I75 -> 112561 | J76: ='Hopington AB - Analysis'!J75 -> 108930 | K76: ='Hopington AB - Analysis'!K75 -> 112561 | L76: ='Hopington AB - Analysis'!L75 -> 108930 | M76: ='Hopington AB - Analysis'!M75 -> 112561 | N76: ='Hopington AB - Analysis'!N75 -> 1325315
A77: ='Hopington AB - Analysis'!A101 -> GW inflow from Beaver River (m3) | B77: ='Hopington AB - Analysis'!B101 -> 112561 | C77: ='Hopington AB - Analysis'!C101 -> 101668 | D77: ='Hopington AB - Analysis'!D101 -> 112561 | E77: ='Hopington AB - Analysis'!E101 -> 108930 | F77: ='Hopington AB - Analysis'!F101 -> 112561 | G77: ='Hopington AB - Analysis'!G101 -> 108930 | H77: ='Hopington AB - Analysis'!H101 -> 112561 | I77: ='Hopington AB - Analysis'!I101 -> 112561 | J77: ='Hopington AB - Analysis'!J101 -> 108930 | K77: ='Hopington AB - Analysis'!K101 -> 112561 | L77: ='Hopington AB - Analysis'!L101 -> 108930 | M77: ='Hopington AB - Analysis'!M101 -> 112561 | N77: ='Hopington AB - Analysis'!N101 -> 1325315
A78: ='Fort Langley - Analysis'!A49 -> SW inflow from Fraser River (m3) | B78: ='Fort Langley - Analysis'!B49 -> 15004 | C78: ='Fort Langley - Analysis'!C49 -> 13552 | D78: ='Fort Langley - Analysis'!D49 -> 15004 | E78: ='Fort Langley - Analysis'!E49 -> 14520 | F78: ='Fort Langley - Analysis'!F49 -> 15004 | G78: ='Fort Langley - Analysis'!G49 -> 14520 | H78: ='Fort Langley - Analysis'!H49 -> 15004 | I78: ='Fort Langley - Analysis'!I49 -> 15004 | J78: ='Fort Langley - Analysis'!J49 -> 14520 | K78: ='Fort Langley - Analysis'!K49 -> 15004 | L78: ='Fort Langley - Analysis'!L49 -> 14520 | M78: ='Fort Langley - Analysis'!M49 -> 15004 | N78: ='Fort Langley - Analysis'!N49 -> 176660
A79: ='Fort Langley - Analysis'!A75 -> SW inflow from Fraser River (m3) | B79: ='Fort Langley - Analysis'!B75 -> 15004 | C79: ='Fort Langley - Analysis'!C75 -> 13552 | D79: ='Fort Langley - Analysis'!D75 -> 15004 | E79: ='Fort Langley - Analysis'!E75 -> 14520 | F79: ='Fort Langley - Analysis'!F75 -> 15004 | G79: ='Fort Langley - Analysis'!G75 -> 14520 | H79: ='Fort Langley - Analysis'!H75 -> 15004 | I79: ='Fort Langley - Analysis'!I75 -> 15004 | J79: ='Fort Langley - Analysis'!J75 -> 14520 | K79: ='Fort Langley - Analysis'!K75 -> 15004 | L79: ='Fort Langley - Analysis'!L75 -> 14520 | M79: ='Fort Langley - Analysis'!M75 -> 15004 | N79: ='Fort Langley - Analysis'!N75 -> 176660
A80: ='Fort Langley - Analysis'!A101 -> SW inflow from Fraser River (m3) | B80: ='Fort Langley - Analysis'!B101 -> 15004 | C80: ='Fort Langley - Analysis'!C101 -> 13552 | D80: ='Fort Langley - Analysis'!D101 -> 15004 | E80: ='Fort Langley - Analysis'!E101 -> 14520 | F80: ='Fort Langley - Analysis'!F101 -> 15004 | G80: ='Fort Langley - Analysis'!G101 -> 14520 | H80: ='Fort Langley - Analysis'!H101 -> 15004 | I80: ='Fort Langley - Analysis'!I101 -> 15004 | J80: ='Fort Langley - Analysis'!J101 -> 14520 | K80: ='Fort Langley - Analysis'!K101 -> 15004 | L80: ='Fort Langley - Analysis'!L101 -> 14520 | M80: ='Fort Langley - Analysis'!M101 -> 15004 | N80: ='Fort Langley - Analysis'!N101 -> 176660
A81: ='Beaver River - Analysis'!A49 -> GW inflow from Aldergrove CD (m3) | B81: ='Beaver River - Analysis'!B49 -> 270072 | C81: ='Beaver River - Analysis'!C49 -> 243936 | D81: ='Beaver River - Analysis'!D49 -> 270072 | E81: ='Beaver River - Analysis'!E49 -> 261360 | F81: ='Beaver River - Analysis'!F49 -> 270072 | G81: ='Beaver River - Analysis'!G49 -> 261360 | H81: ='Beaver River - Analysis'!H49 -> 270072 | I81: ='Beaver River - Analysis'!I49 -> 270072 | J81: ='Beaver River - Analysis'!J49 -> 261360 | K81: ='Beaver River - Analysis'!K49 -> 270072 | L81: ='Beaver River - Analysis'!L49 -> 261360 | M81: ='Beaver River - Analysis'!M49 -> 270072 | N81: ='Beaver River - Analysis'!N49 -> 3179880
A82: ='Beaver River - Analysis'!A75 -> GW inflow from Aldergrove CD (m3) | B82: ='Beaver River - Analysis'!B75 -> 270072 | C82: ='Beaver River - Analysis'!C75 -> 243936 | D82: ='Beaver River - Analysis'!D75 -> 270072 | E82: ='Beaver River - Analysis'!E75 -> 261360 | F82: ='Beaver River - Analysis'!F75 -> 270072 | G82: ='Beaver River - Analysis'!G75 -> 261360 | H82: ='Beaver River - Analysis'!H75 -> 270072 | I82: ='Beaver River - Analysis'!I75 -> 270072 | J82: ='Beaver River - Analysis'!J75 -> 261360 | K82: ='Beaver River - Analysis'!K75 -> 270072 | L82: ='Beaver River - Analysis'!L75 -> 261360 | M82: ='Beaver River - Analysis'!M75 -> 270072 | N82: ='Beaver River - Analysis'!N75 -> 3179880
A83: ='Beaver River - Analysis'!A101 -> GW inflow from Aldergrove CD (m3) | B83: ='Beaver River - Analysis'!B101 -> 270072 | C83: ='Beaver River - Analysis'!C101 -> 243936 | D83: ='Beaver River - Analysis'!D101 -> 270072 | E83: ='Beaver River - Analysis'!E101 -> 261360 | F83: ='Beaver River - Analysis'!F101 -> 270072 | G83: ='Beaver River - Analysis'!G101 -> 261360 | H83: ='Beaver River - Analysis'!H101 -> 270072 | I83: ='Beaver River - Analysis'!I101 -> 270072 | J83: ='Beaver River - Analysis'!J101 -> 261360 | K83: ='Beaver River - Analysis'!K101 -> 270072 | L83: ='Beaver River - Analysis'!L101 -> 261360 | M83: ='Beaver River - Analysis'!M101 -> 270072 | N83: ='Beaver River - Analysis'!N101 -> 3179880
A84: ='West of Aldergrove - Analysis'!A49 -> GW inflow from Brookswood (m3) | B84: ='West of Aldergrove - Analysis'!B49 -> 12896 | C84: ='West of Aldergrove - Analysis'!C49 -> 11648 | D84: ='West of Aldergrove - Analysis'!D49 -> 12896 | E84: ='West of Aldergrove - Analysis'!E49 -> 12480 | F84: ='West of Aldergrove - Analysis'!F49 -> 12896 | G84: ='West of Aldergrove - Analysis'!G49 -> 12480 | H84: ='West of Aldergrove - Analysis'!H49 -> 12896 | I84: ='West of Aldergrove - Analysis'!I49 -> 12896 | J84: ='West of Aldergrove - Analysis'!J49 -> 12480 | K84: ='West of Aldergrove - Analysis'!K49 -> 12896 | L84: ='West of Aldergrove - Analysis'!L49 -> 12480 | M84: ='West of Aldergrove - Analysis'!M49 -> 12896 | N84: ='West of Aldergrove - Analysis'!N49 -> 151840
A85: ='West of Aldergrove - Analysis'!A80 -> GW inflow from Brookswood (m3) | B85: ='West of Aldergrove - Analysis'!B80 -> 12896 | C85: ='West of Aldergrove - Analysis'!C80 -> 11648 | D85: ='West of Aldergrove - Analysis'!D80 -> 12896 | E85: ='West of Aldergrove - Analysis'!E80 -> 12480 | F85: ='West of Aldergrove - Analysis'!F80 -> 12896 | G85: ='West of Aldergrove - Analysis'!G80 -> 12480 | H85: ='West of Aldergrove - Analysis'!H80 -> 12896 | I85: ='West of Aldergrove - Analysis'!I80 -> 12896 | J85: ='West of Aldergrove - Analysis'!J80 -> 12480 | K85: ='West of Aldergrove - Analysis'!K80 -> 12896 | L85: ='West of Aldergrove - Analysis'!L80 -> 12480 | M85: ='West of Aldergrove - Analysis'!M80 -> 12896 | N85: ='West of Aldergrove - Analysis'!N80 -> 151840
A86: ='West of Aldergrove - Analysis'!A111 -> GW inflow from Brookswood (m3) | B86: ='West of Aldergrove - Analysis'!B111 -> 12896 | C86: ='West of Aldergrove - Analysis'!C111 -> 11648 | D86: ='West of Aldergrove - Analysis'!D111 -> 12896 | E86: ='West of Aldergrove - Analysis'!E111 -> 12480 | F86: ='West of Aldergrove - Analysis'!F111 -> 12896 | G86: ='West of Aldergrove - Analysis'!G111 -> 12480 | H86: ='West of Aldergrove - Analysis'!H111 -> 12896 | I86: ='West of Aldergrove - Analysis'!I111 -> 12896 | J86: ='West of Aldergrove - Analysis'!J111 -> 12480 | K86: ='West of Aldergrove - Analysis'!K111 -> 12896 | L86: ='West of Aldergrove - Analysis'!L111 -> 12480 | M86: ='West of Aldergrove - Analysis'!M111 -> 12896 | N86: ='West of Aldergrove - Analysis'!N111 -> 151840
A87: ='S of Murrayville AC - Analysis'!A49 -> GW inflow from Langley Upland Intertill aquifer (m3) | B87: ='S of Murrayville AC - Analysis'!B49 -> 67208 | C87: ='S of Murrayville AC - Analysis'!C49 -> 60704 | D87: ='S of Murrayville AC - Analysis'!D49 -> 67208 | E87: ='S of Murrayville AC - Analysis'!E49 -> 65040 | F87: ='S of Murrayville AC - Analysis'!F49 -> 67208 | G87: ='S of Murrayville AC - Analysis'!G49 -> 65040 | H87: ='S of Murrayville AC - Analysis'!H49 -> 67208 | I87: ='S of Murrayville AC - Analysis'!I49 -> 67208 | J87: ='S of Murrayville AC - Analysis'!J49 -> 65040 | K87: ='S of Murrayville AC - Analysis'!K49 -> 67208 | L87: ='S of Murrayville AC - Analysis'!L49 -> 65040 | M87: ='S of Murrayville AC - Analysis'!M49 -> 67208 | N87: ='S of Murrayville AC - Analysis'!N49 -> 791320
A88: ='S of Murrayville AC - Analysis'!A75 -> GW inflow from Langley Upland Intertill aquifer (m3) | B88: ='S of Murrayville AC - Analysis'!B75 -> 67208 | C88: ='S of Murrayville AC - Analysis'!C75 -> 60704 | D88: ='S of Murrayville AC - Analysis'!D75 -> 67208 | E88: ='S of Murrayville AC - Analysis'!E75 -> 65040 | F88: ='S of Murrayville AC - Analysis'!F75 -> 67208 | G88: ='S of Murrayville AC - Analysis'!G75 -> 65040 | H88: ='S of Murrayville AC - Analysis'!H75 -> 67208 | I88: ='S of Murrayville AC - Analysis'!I75 -> 67208 | J88: ='S of Murrayville AC - Analysis'!J75 -> 65040 | K88: ='S of Murrayville AC - Analysis'!K75 -> 67208 | L88: ='S of Murrayville AC - Analysis'!L75 -> 65040 | M88: ='S of Murrayville AC - Analysis'!M75 -> 67208 | N88: ='S of Murrayville AC - Analysis'!N75 -> 791320
A89: ='S of Murrayville AC - Analysis'!A101 -> GW inflow from Langley Upland Intertill aquifer (m3) | B89: ='S of Murrayville AC - Analysis'!B101 -> 67208 | C89: ='S of Murrayville AC - Analysis'!C101 -> 60704 | D89: ='S of Murrayville AC - Analysis'!D101 -> 67208 | E89: ='S of Murrayville AC - Analysis'!E101 -> 65040 | F89: ='S of Murrayville AC - Analysis'!F101 -> 67208 | G89: ='S of Murrayville AC - Analysis'!G101 -> 65040 | H89: ='S of Murrayville AC - Analysis'!H101 -> 67208 | I89: ='S of Murrayville AC - Analysis'!I101 -> 67208 | J89: ='S of Murrayville AC - Analysis'!J101 -> 65040 | K89: ='S of Murrayville AC - Analysis'!K101 -> 67208 | L89: ='S of Murrayville AC - Analysis'!L101 -> 65040 | M89: ='S of Murrayville AC - Analysis'!M101 -> 67208 | N89: ='S of Murrayville AC - Analysis'!N101 -> 791320
A105: ROW 4 INFLOW
A106: ='Hopington AB - Analysis'!A50 -> SW inflow to aquifer (m3) - Nicomekl R. / Bertrand Ck. | B106: ='Hopington AB - Analysis'!B50 -> 23792.5 | C106: ='Hopington AB - Analysis'!C50 -> 21490 | D106: ='Hopington AB - Analysis'!D50 -> 23792.5 | E106: ='Hopington AB - Analysis'!E50 -> 23025 | F106: ='Hopington AB - Analysis'!F50 -> 23792.5 | G106: ='Hopington AB - Analysis'!G50 -> 23025 | H106: ='Hopington AB - Analysis'!H50 -> 23792.5 | I106: ='Hopington AB - Analysis'!I50 -> 23792.5 | J106: ='Hopington AB - Analysis'!J50 -> 23025 | K106: ='Hopington AB - Analysis'!K50 -> 23792.5 | L106: ='Hopington AB - Analysis'!L50 -> 23025 | M106: ='Hopington AB - Analysis'!M50 -> 23792.5 | N106: ='Hopington AB - Analysis'!N50 -> 280137.5
A107: ='Hopington AB - Analysis'!A76 -> SW inflow to aquifer (m3) - Nicomekl R. / Bertrand Ck. | B107: ='Hopington AB - Analysis'!B76 -> 23792.5 | C107: ='Hopington AB - Analysis'!C76 -> 21490 | D107: ='Hopington AB - Analysis'!D76 -> 23792.5 | E107: ='Hopington AB - Analysis'!E76 -> 23025 | F107: ='Hopington AB - Analysis'!F76 -> 23792.5 | G107: ='Hopington AB - Analysis'!G76 -> 23025 | H107: ='Hopington AB - Analysis'!H76 -> 23792.5 | I107: ='Hopington AB - Analysis'!I76 -> 23792.5 | J107: ='Hopington AB - Analysis'!J76 -> 23025 | K107: ='Hopington AB - Analysis'!K76 -> 23792.5 | L107: ='Hopington AB - Analysis'!L76 -> 23025 | M107: ='Hopington AB - Analysis'!M76 -> 23792.5 | N107: ='Hopington AB - Analysis'!N76 -> 280137.5
A108: ='Hopington AB - Analysis'!A102 -> SW inflow to aquifer (m3) - Nicomekl R. / Bertrand Ck. | B108: ='Hopington AB - Analysis'!B102 -> 23792.5 | C108: ='Hopington AB - Analysis'!C102 -> 21490 | D108: ='Hopington AB - Analysis'!D102 -> 23792.5 | E108: ='Hopington AB - Analysis'!E102 -> 23025 | F108: ='Hopington AB - Analysis'!F102 -> 23792.5 | G108: ='Hopington AB - Analysis'!G102 -> 23025 | H108: ='Hopington AB - Analysis'!H102 -> 23792.5 | I108: ='Hopington AB - Analysis'!I102 -> 23792.5 | J108: ='Hopington AB - Analysis'!J102 -> 23025 | K108: ='Hopington AB - Analysis'!K102 -> 23792.5 | L108: ='Hopington AB - Analysis'!L102 -> 23025 | M108: ='Hopington AB - Analysis'!M102 -> 23792.5 | N108: ='Hopington AB - Analysis'!N102 -> 280137.5
A115: ='West of Aldergrove - Analysis'!A50 -> GW inflow from Hopington AB (m3) | B115: ='West of Aldergrove - Analysis'!B50 -> 10478 | C115: ='West of Aldergrove - Analysis'!C50 -> 9464 | D115: ='West of Aldergrove - Analysis'!D50 -> 10478 | E115: ='West of Aldergrove - Analysis'!E50 -> 10140 | F115: ='West of Aldergrove - Analysis'!F50 -> 10478 | G115: ='West of Aldergrove - Analysis'!G50 -> 10140 | H115: ='West of Aldergrove - Analysis'!H50 -> 10478 | I115: ='West of Aldergrove - Analysis'!I50 -> 10478 | J115: ='West of Aldergrove - Analysis'!J50 -> 10140 | K115: ='West of Aldergrove - Analysis'!K50 -> 10478 | L115: ='West of Aldergrove - Analysis'!L50 -> 10140 | M115: ='West of Aldergrove - Analysis'!M50 -> 10478 | N115: ='West of Aldergrove - Analysis'!N50 -> 123370
A116: ='West of Aldergrove - Analysis'!A81 -> GW inflow from Hopington AB (m3) | B116: ='West of Aldergrove - Analysis'!B81 -> 10478 | C116: ='West of Aldergrove - Analysis'!C81 -> 9464 | D116: ='West of Aldergrove - Analysis'!D81 -> 10478 | E116: ='West of Aldergrove - Analysis'!E81 -> 10140 | F116: ='West of Aldergrove - Analysis'!F81 -> 10478 | G116: ='West of Aldergrove - Analysis'!G81 -> 10140 | H116: ='West of Aldergrove - Analysis'!H81 -> 10478 | I116: ='West of Aldergrove - Analysis'!I81 -> 10478 | J116: ='West of Aldergrove - Analysis'!J81 -> 10140 | K116: ='West of Aldergrove - Analysis'!K81 -> 10478 | L116: ='West of Aldergrove - Analysis'!L81 -> 10140 | M116: ='West of Aldergrove - Analysis'!M81 -> 10478 | N116: ='West of Aldergrove - Analysis'!N81 -> 123370
A117: ='West of Aldergrove - Analysis'!A112 -> GW inflow from Hopington AB (m3) | B117: ='West of Aldergrove - Analysis'!B112 -> 10478 | C117: ='West of Aldergrove - Analysis'!C112 -> 9464 | D117: ='West of Aldergrove - Analysis'!D112 -> 10478 | E117: ='West of Aldergrove - Analysis'!E112 -> 10140 | F117: ='West of Aldergrove - Analysis'!F112 -> 10478 | G117: ='West of Aldergrove - Analysis'!G112 -> 10140 | H117: ='West of Aldergrove - Analysis'!H112 -> 10478 | I117: ='West of Aldergrove - Analysis'!I112 -> 10478 | J117: ='West of Aldergrove - Analysis'!J112 -> 10140 | K117: ='West of Aldergrove - Analysis'!K112 -> 10478 | L117: ='West of Aldergrove - Analysis'!L112 -> 10140 | M117: ='West of Aldergrove - Analysis'!M112 -> 10478 | N117: ='West of Aldergrove - Analysis'!N112 -> 123370
A136: ROW 5 INFLOW
A137: ='Hopington AB - Analysis'!A51 -> Recharge (m3) | B137: ='Hopington AB - Analysis'!B51 -> 1945622.608 | C137: ='Hopington AB - Analysis'!C51 -> 1176467.075 | D137: ='Hopington AB - Analysis'!D51 -> 791397.8117 | E137: ='Hopington AB - Analysis'!E51 -> 100816.2003 | F137: ='Hopington AB - Analysis'!F51 -> 18199.64955 | G137: ='Hopington AB - Analysis'!G51 -> 14881.25668 | H137: ='Hopington AB - Analysis'!H51 -> 9732.347365 | I137: ='Hopington AB - Analysis'!I51 -> 15571.75578 | J137: ='Hopington AB - Analysis'!J51 -> 181745.5394 | K137: ='Hopington AB - Analysis'!K51 -> 1055937.879 | L137: ='Hopington AB - Analysis'!L51 -> 2041588.656 | M137: ='Hopington AB - Analysis'!M51 -> 2104094.222 | N137: ='Hopington AB - Analysis'!N51 -> 9456055
A138: ='Hopington AB - Analysis'!A77 -> Recharge (m3) | B138: ='Hopington AB - Analysis'!B77 -> 768322.2126 | C138: ='Hopington AB - Analysis'!C77 -> 470303.1142 | D138: ='Hopington AB - Analysis'!D77 -> 257710.9583 | E138: ='Hopington AB - Analysis'!E77 -> 0 | F138: ='Hopington AB - Analysis'!F77 -> 0 | G138: ='Hopington AB - Analysis'!G77 -> 0 | H138: ='Hopington AB - Analysis'!H77 -> 0 | I138: ='Hopington AB - Analysis'!I77 -> 0 | J138: ='Hopington AB - Analysis'!J77 -> 0 | K138: ='Hopington AB - Analysis'!K77 -> 0 | L138: ='Hopington AB - Analysis'!L77 -> 0 | M138: ='Hopington AB - Analysis'!M77 -> 1508708.715 | N138: ='Hopington AB - Analysis'!N77 -> 3005045
A139: ='Hopington AB - Analysis'!A103 -> Recharge (m3) | B139: ='Hopington AB - Analysis'!B103 -> 3795035.101 | C139: ='Hopington AB - Analysis'!C103 -> 1427066.035 | D139: ='Hopington AB - Analysis'!D103 -> 1449179.657 | E139: ='Hopington AB - Analysis'!E103 -> 0 | F139: ='Hopington AB - Analysis'!F103 -> 0 | G139: ='Hopington AB - Analysis'!G103 -> 0 | H139: ='Hopington AB - Analysis'!H103 -> 0 | I139: ='Hopington AB - Analysis'!I103 -> 0 | J139: ='Hopington AB - Analysis'!J103 -> 326558.565 | K139: ='Hopington AB - Analysis'!K103 -> 1758965.135 | L139: ='Hopington AB - Analysis'!L103 -> 3284327.948 | M139: ='Hopington AB - Analysis'!M103 -> 3270252.559 | N139: ='Hopington AB - Analysis'!N103 -> 15311385
A146: ='West of Aldergrove - Analysis'!A51 -> GW inflow from Hopington C (m3) | B146: ='West of Aldergrove - Analysis'!B51 -> 233089 | C146: ='West of Aldergrove - Analysis'!C51 -> 210532 | D146: ='West of Aldergrove - Analysis'!D51 -> 233089 | E146: ='West of Aldergrove - Analysis'!E51 -> 225570 | F146: ='West of Aldergrove - Analysis'!F51 -> 233089 | G146: ='West of Aldergrove - Analysis'!G51 -> 225570 | H146: ='West of Aldergrove - Analysis'!H51 -> 233089 | I146: ='West of Aldergrove - Analysis'!I51 -> 233089 | J146: ='West of Aldergrove - Analysis'!J51 -> 225570 | K146: ='West of Aldergrove - Analysis'!K51 -> 233089 | L146: ='West of Aldergrove - Analysis'!L51 -> 225570 | M146: ='West of Aldergrove - Analysis'!M51 -> 233089 | N146: ='West of Aldergrove - Analysis'!N51 -> 2744435
A147: ='West of Aldergrove - Analysis'!A82 -> GW inflow from Hopington C (m3) | B147: ='West of Aldergrove - Analysis'!B82 -> 233089 | C147: ='West of Aldergrove - Analysis'!C82 -> 210532 | D147: ='West of Aldergrove - Analysis'!D82 -> 233089 | E147: ='West of Aldergrove - Analysis'!E82 -> 225570 | F147: ='West of Aldergrove - Analysis'!F82 -> 233089 | G147: ='West of Aldergrove - Analysis'!G82 -> 225570 | H147: ='West of Aldergrove - Analysis'!H82 -> 233089 | I147: ='West of Aldergrove - Analysis'!I82 -> 233089 | J147: ='West of Aldergrove - Analysis'!J82 -> 225570 | K147: ='West of Aldergrove - Analysis'!K82 -> 233089 | L147: ='West of Aldergrove - Analysis'!L82 -> 225570 | M147: ='West of Aldergrove - Analysis'!M82 -> 233089 | N147: ='West of Aldergrove - Analysis'!N82 -> 2744435
A148: ='West of Aldergrove - Analysis'!A113 -> GW inflow from Hopington C (m3) | B148: ='West of Aldergrove - Analysis'!B113 -> 233089 | C148: ='West of Aldergrove - Analysis'!C113 -> 210532 | D148: ='West of Aldergrove - Analysis'!D113 -> 233089 | E148: ='West of Aldergrove - Analysis'!E113 -> 225570 | F148: ='West of Aldergrove - Analysis'!F113 -> 233089 | G148: ='West of Aldergrove - Analysis'!G113 -> 225570 | H148: ='West of Aldergrove - Analysis'!H113 -> 233089 | I148: ='West of Aldergrove - Analysis'!I113 -> 233089 | J148: ='West of Aldergrove - Analysis'!J113 -> 225570 | K148: ='West of Aldergrove - Analysis'!K113 -> 233089 | L148: ='West of Aldergrove - Analysis'!L113 -> 225570 | M148: ='West of Aldergrove - Analysis'!M113 -> 233089 | N148: ='West of Aldergrove - Analysis'!N113 -> 2744435
A167: ROW 6 INFLOW
A168: ='Hopington AB - Analysis'!A52 -> SW inflow from Salmon River system (m3) | B168: ='Hopington AB - Analysis'!B52 -> 27807 | C168: ='Hopington AB - Analysis'!C52 -> 25116 | D168: ='Hopington AB - Analysis'!D52 -> 27807 | E168: ='Hopington AB - Analysis'!E52 -> 26910 | F168: ='Hopington AB - Analysis'!F52 -> 27807 | G168: ='Hopington AB - Analysis'!G52 -> 26910 | H168: ='Hopington AB - Analysis'!H52 -> 27807 | I168: ='Hopington AB - Analysis'!I52 -> 27807 | J168: ='Hopington AB - Analysis'!J52 -> 26910 | K168: ='Hopington AB - Analysis'!K52 -> 27807 | L168: ='Hopington AB - Analysis'!L52 -> 26910 | M168: ='Hopington AB - Analysis'!M52 -> 27807 | N168: ='Hopington AB - Analysis'!N52 -> 327405
A169: ='Hopington AB - Analysis'!A78 -> SW inflow from Salmon River system (m3) | B169: ='Hopington AB - Analysis'!B78 -> 27807 | C169: ='Hopington AB - Analysis'!C78 -> 25116 | D169: ='Hopington AB - Analysis'!D78 -> 27807 | E169: ='Hopington AB - Analysis'!E78 -> 26910 | F169: ='Hopington AB - Analysis'!F78 -> 27807 | G169: ='Hopington AB - Analysis'!G78 -> 26910 | H169: ='Hopington AB - Analysis'!H78 -> 27807 | I169: ='Hopington AB - Analysis'!I78 -> 27807 | J169: ='Hopington AB - Analysis'!J78 -> 26910 | K169: ='Hopington AB - Analysis'!K78 -> 27807 | L169: ='Hopington AB - Analysis'!L78 -> 26910 | M169: ='Hopington AB - Analysis'!M78 -> 27807 | N169: ='Hopington AB - Analysis'!N78 -> 327405
A170: ='Hopington AB - Analysis'!A104 -> SW inflow from Salmon River system (m3) | B170: ='Hopington AB - Analysis'!B104 -> 27807 | C170: ='Hopington AB - Analysis'!C104 -> 25116 | D170: ='Hopington AB - Analysis'!D104 -> 27807 | E170: ='Hopington AB - Analysis'!E104 -> 26910 | F170: ='Hopington AB - Analysis'!F104 -> 27807 | G170: ='Hopington AB - Analysis'!G104 -> 26910 | H170: ='Hopington AB - Analysis'!H104 -> 27807 | I170: ='Hopington AB - Analysis'!I104 -> 27807 | J170: ='Hopington AB - Analysis'!J104 -> 26910 | K170: ='Hopington AB - Analysis'!K104 -> 27807 | L170: ='Hopington AB - Analysis'!L104 -> 26910 | M170: ='Hopington AB - Analysis'!M104 -> 27807 | N170: ='Hopington AB - Analysis'!N104 -> 327405
A177: ='West of Aldergrove - Analysis'!A52 -> GW inflow from South of Hopington (m3) | B177: ='West of Aldergrove - Analysis'!B52 -> 13702 | C177: ='West of Aldergrove - Analysis'!C52 -> 12376 | D177: ='West of Aldergrove - Analysis'!D52 -> 13702 | E177: ='West of Aldergrove - Analysis'!E52 -> 13260 | F177: ='West of Aldergrove - Analysis'!F52 -> 13702 | G177: ='West of Aldergrove - Analysis'!G52 -> 13260 | H177: ='West of Aldergrove - Analysis'!H52 -> 13702 | I177: ='West of Aldergrove - Analysis'!I52 -> 13702 | J177: ='West of Aldergrove - Analysis'!J52 -> 13260 | K177: ='West of Aldergrove - Analysis'!K52 -> 13702 | L177: ='West of Aldergrove - Analysis'!L52 -> 13260 | M177: ='West of Aldergrove - Analysis'!M52 -> 13702 | N177: ='West of Aldergrove - Analysis'!N52 -> 161330
A178: ='West of Aldergrove - Analysis'!A83 -> GW inflow from South of Hopington (m3) | B178: ='West of Aldergrove - Analysis'!B83 -> 13702 | C178: ='West of Aldergrove - Analysis'!C83 -> 12376 | D178: ='West of Aldergrove - Analysis'!D83 -> 13702 | E178: ='West of Aldergrove - Analysis'!E83 -> 13260 | F178: ='West of Aldergrove - Analysis'!F83 -> 13702 | G178: ='West of Aldergrove - Analysis'!G83 -> 13260 | H178: ='West of Aldergrove - Analysis'!H83 -> 13702 | I178: ='West of Aldergrove - Analysis'!I83 -> 13702 | J178: ='West of Aldergrove - Analysis'!J83 -> 13260 | K178: ='West of Aldergrove - Analysis'!K83 -> 13702 | L178: ='West of Aldergrove - Analysis'!L83 -> 13260 | M178: ='West of Aldergrove - Analysis'!M83 -> 13702 | N178: ='West of Aldergrove - Analysis'!N83 -> 161330
A179: ='West of Aldergrove - Analysis'!A114 -> GW inflow from South of Hopington (m3) | B179: ='West of Aldergrove - Analysis'!B114 -> 13702 | C179: ='West of Aldergrove - Analysis'!C114 -> 12376 | D179: ='West of Aldergrove - Analysis'!D114 -> 13702 | E179: ='West of Aldergrove - Analysis'!E114 -> 13260 | F179: ='West of Aldergrove - Analysis'!F114 -> 13702 | G179: ='West of Aldergrove - Analysis'!G114 -> 13260 | H179: ='West of Aldergrove - Analysis'!H114 -> 13702 | I179: ='West of Aldergrove - Analysis'!I114 -> 13702 | J179: ='West of Aldergrove - Analysis'!J114 -> 13260 | K179: ='West of Aldergrove - Analysis'!K114 -> 13702 | L179: ='West of Aldergrove - Analysis'!L114 -> 13260 | M179: ='West of Aldergrove - Analysis'!M114 -> 13702 | N179: ='West of Aldergrove - Analysis'!N114 -> 161330

Sheet Outflow Data (hidden)
A10: ROW 1 OUTFLOW | Q10: RESULT
A11: ='Hopington AB - Analysis'!A58 -> GW outflow to surrounding aquitards (m3) | B11: ='Hopington AB - Analysis'!B58 -> 419833 | C11: ='Hopington AB - Analysis'!C58 -> 379204 | D11: ='Hopington AB - Analysis'!D58 -> 419833 | E11: ='Hopington AB - Analysis'!E58 -> 406290 | F11: ='Hopington AB - Analysis'!F58 -> 419833 | G11: ='Hopington AB - Analysis'!G58 -> 406290 | H11: ='Hopington AB - Analysis'!H58 -> 419833 | I11: ='Hopington AB - Analysis'!I58 -> 419833 | J11: ='Hopington AB - Analysis'!J58 -> 406290 | K11: ='Hopington AB - Analysis'!K58 -> 419833 | L11: ='Hopington AB - Analysis'!L58 -> 406290 | M11: ='Hopington AB - Analysis'!M58 -> 419833 | N11: ='Hopington AB - Analysis'!N58 -> 4943195 | P11: col number | Q11: 1 | R11: 2 | S11: 3 | T11: 4 | U11: 5 | V11: 6 | W11: 7 | X11: 8 | Y11: 9 | Z11: 10 | AA11: 11 | AB11: 12 | AC11: 13 | AD11: 14
A12: ='Hopington AB - Analysis'!A84 -> GW outflow to surrounding aquitards (m3) | B12: ='Hopington AB - Analysis'!B84 -> 419833 | C12: ='Hopington AB - Analysis'!C84 -> 379204 | D12: ='Hopington AB - Analysis'!D84 -> 419833 | E12: ='Hopington AB - Analysis'!E84 -> 406290 | F12: ='Hopington AB - Analysis'!F84 -> 419833 | G12: ='Hopington AB - Analysis'!G84 -> 406290 | H12: ='Hopington AB - Analysis'!H84 -> 419833 | I12: ='Hopington AB - Analysis'!I84 -> 419833 | J12: ='Hopington AB - Analysis'!J84 -> 406290 | K12: ='Hopington AB - Analysis'!K84 -> 419833 | L12: ='Hopington AB - Analysis'!L84 -> 406290 | M12: ='Hopington AB - Analysis'!M84 -> 419833 | N12: ='Hopington AB - Analysis'!N84 -> 4943195 | Q12: INFLOW SOURCE / TYPE | R12: JAN | S12: FEB | T12: MAR | U12: APR | V12: MAY | W12: JUN | X12: JUL | Y12: AUG | Z12: SEP | AA12: OCT | AB12: NOV | AC12: DEC | AD12: ANNUAL
A13: ='Hopington AB - Analysis'!A110 -> GW outflow to surrounding aquitards (m3) | B13: ='Hopington AB - Analysis'!B110 -> 419833 | C13: ='Hopington AB - Analysis'!C110 -> 379204 | D13: ='Hopington AB - Analysis'!D110 -> 419833 | E13: ='Hopington AB - Analysis'!E110 -> 406290 | F13: ='Hopington AB - Analysis'!F110 -> 419833 | G13: ='Hopington AB - Analysis'!G110 -> 406290 | H13: ='Hopington AB - Analysis'!H110 -> 419833 | I13: ='Hopington AB - Analysis'!I110 -> 419833 | J13: ='Hopington AB - Analysis'!J110 -> 406290 | K13: ='Hopington AB - Analysis'!K110 -> 419833 | L13: ='Hopington AB - Analysis'!L110 -> 406290 | M13: ='Hopington AB - Analysis'!M110 -> 419833 | N13: ='Hopington AB - Analysis'!N110 -> 4943195 | Q13: =INDEX($A$11:$N$31,'Form Control Selectors'!$B$34,Q$11) -> GW outflow to surrounding aquitards (m3) | R13: =INDEX($A$11:$N$31,'Form Control Selectors'!$B$34,R$11) -> 419833 | S13: =INDEX($A$11:$N$31,'Form Control Selectors'!$B$34,S$11) -> 379204 | T13: =INDEX($A$11:$N$31,'Form Control Selectors'!$B$34,T$11) -> 419833 | U13: =INDEX($A$11:$N$31,'Form Control Selectors'!$B$34,U$11) -> 406290 | V13: =INDEX($A$11:$N$31,'Form Control Selectors'!$B$34,V$11) -> 419833 | W13: =INDEX($A$11:$N$31,'Form Control Selectors'!$B$34,W$11) -> 406290 | X13: =INDEX($A$11:$N$31,'Form Control Selectors'!$B$34,X$11) -> 419833 | Y13: =INDEX($A$11:$N$31,'Form Control Selectors'!$B$34,Y$11) -> 419833 | Z13: =INDEX($A$11:$N$31,'Form Control Selectors'!$B$34,Z$11) -> 406290 | AA13: =INDEX($A$11:$N$31,'Form Control Selectors'!$B$34,AA$11) -> 419833 | AB13: =INDEX($A$11:$N$31,'Form Control Selectors'!$B$34,AB$11) -> 406290 | AC13: =INDEX($A$11:$N$31,'Form Control Selectors'!$B$34,AC$11) -> 419833 | AD13: =INDEX($A$11:$N$31,'Form Control Selectors'!$B$34,AD$11) -> 4943195
A14: ='Fort Langley - Analysis'!A58 -> GW outflow to Fraser River (m3) | B14: ='Fort Langley - Analysis'!B58 -> 334041.5 | C14: ='Fort Langley - Analysis'!C58 -> 323203.6078 | D14: ='Fort Langley - Analysis'!D58 -> 309781.0213 | E14: ='Fort Langley - Analysis'!E58 -> 293300.5473 | F14: ='Fort Langley - Analysis'!F58 -> 266310.8535 | G14: ='Fort Langley - Analysis'!G58 -> 253839.0545 | H14: ='Fort Langley - Analysis'!H58 -> 261378.0013 | I14: ='Fort Langley - Analysis'!I58 -> 260663.566 | J14: ='Fort Langley - Analysis'!J58 -> 257462.6842 | K14: ='Fort Langley - Analysis'!K58 -> 272582.4697 | L14: ='Fort Langley - Analysis'!L58 -> 312443.5536 | M14: ='Fort Langley - Analysis'!M58 -> 359744.3192 | N14: ='Fort Langley - Analysis'!N58 -> 3504751.178 | Q14: =INDEX($A$42:$N$62,'Form Control Selectors'!$B$34,Q$11) -> GW outflow to Aldergrove CD (m3) | R14: =INDEX($A$42:$N$62,'Form Control Selectors'!$B$34,R$11) -> 32705 | S14: =INDEX($A$42:$N$62,'Form Control Selectors'!$B$34,S$11) -> 29540 | T14: =INDEX($A$42:$N$62,'Form Control Selectors'!$B$34,T$11) -> 32705 | U14: =INDEX($A$42:$N$62,'Form Control Selectors'!$B$34,U$11) -> 31650 | V14: =INDEX($A$42:$N$62,'Form Control Selectors'!$B$34,V$11) -> 32705 | W14: =INDEX($A$42:$N$62,'Form Control Selectors'!$B$34,W$11) -> 31650 | X14: =INDEX($A$42:$N$62,'Form Control Selectors'!$B$34,X$11) -> 32705 | Y14: =INDEX($A$42:$N$62,'Form Control Selectors'!$B$34,Y$11) -> 32705 | Z14: =INDEX($A$42:$N$62,'Form Control Selectors'!$B$34,Z$11) -> 31650 | AA14: =INDEX($A$42:$N$62,'Form Control Selectors'!$B$34,AA$11) -> 32705 | AB14: =INDEX($A$42:$N$62,'Form Control Selectors'!$B$34,AB$11) -> 31650 | AC14: =INDEX($A$42:$N$62,'Form Control Selectors'!$B$34,AC$11) -> 32705 | AD14: =INDEX($A$42:$N$62,'Form Control Selectors'!$B$34,AD$11) -> 385075
A15: ='Fort Langley - Analysis'!A84 -> GW outflow to Fraser River (m3) | B15: ='Fort Langley - Analysis'!B84 -> 411917.4 | C15: ='Fort Langley - Analysis'!C84 -> 304821.8886 | D15: ='Fort Langley - Analysis'!D84 -> 339595.7314 | E15: ='Fort Langley - Analysis'!E84 -> 314010.7047 | F15: ='Fort Langley - Analysis'!F84 -> 307447.3795 | G15: ='Fort Langley - Analysis'!G84 -> 292465.2607 | H15: ='Fort Langley - Analysis'!H84 -> 302357.2956 | I15: ='Fort Langley - Analysis'!I84 -> 301363.8118 | J15: ='Fort Langley - Analysis'!J84 -> 296330.1206 | K15: ='Fort Langley - Analysis'!K84 -> 305109.6337 | L15: ='Fort Langley - Analysis'!L84 -> 301032.889 | M15: ='Fort Langley - Analysis'!M84 -> 311307.0685 | N15: ='Fort Langley - Analysis'!N84 -> 3787759.184 | Q15: =INDEX($A$73:$N$93,'Form Control Selectors'!$B$34,Q$11) -> GW outflow to West of Aldergrove (m3) | R15: =INDEX($A$73:$N$93,'Form Control Selectors'!$B$34,R$11) -> 10478 | S15: =INDEX($A$73:$N$93,'Form Control Selectors'!$B$34,S$11) -> 9464 | T15: =INDEX($A$73:$N$93,'Form Control Selectors'!$B$34,T$11) -> 10478 | U15: =INDEX($A$73:$N$93,'Form Control Selectors'!$B$34,U$11) -> 10140 | V15: =INDEX($A$73:$N$93,'Form Control Selectors'!$B$34,V$11) -> 10478 | W15: =INDEX($A$73:$N$93,'Form Control Selectors'!$B$34,W$11) -> 10140 | X15: =INDEX($A$73:$N$93,'Form Control Selectors'!$B$34,X$11) -> 10478 | Y15: =INDEX($A$73:$N$93,'Form Control Selectors'!$B$34,Y$11) -> 10478 | Z15: =INDEX($A$73:$N$93,'Form Control Selectors'!$B$34,Z$11) -> 10140 | AA15: =INDEX($A$73:$N$93,'Form Control Selectors'!$B$34,AA$11) -> 10478 | AB15: =INDEX($A$73:$N$93,'Form Control Selectors'!$B$34,AB$11) -> 10140 | AC15: =INDEX($A$73:$N$93,'Form Control Selectors'!$B$34,AC$11) -> 10478 | AD15: =INDEX($A$73:$N$93,'Form Control Selectors'!$B$34,AD$11) -> 123370
A16: ='Fort Langley - Analysis'!A110 -> GW outflow to Fraser River (m3) | B16: ='Fort Langley - Analysis'!B110 -> 448917.4 | C16: ='Fort Langley - Analysis'!C110 -> 439440.9544 | D16: ='Fort Langley - Analysis'!D110 -> 346839.2915 | E16: ='Fort Langley - Analysis'!E110 -> 369207.8511 | F16: ='Fort Langley - Analysis'!F110 -> 293648.0929 | G16: ='Fort Langley - Analysis'!G110 -> 295915.0824 | H16: ='Fort Langley - Analysis'!H110 -> 301494.8402 | I16: ='Fort Langley - Analysis'!I110 -> 301579.4257 | J16: ='Fort Langley - Analysis'!J110 -> 296276.2172 | K16: ='Fort Langley - Analysis'!K110 -> 322056.6841 | L16: ='Fort Langley - Analysis'!L110 -> 388006.618 | M16: ='Fort Langley - Analysis'!M110 -> 459871.2566 | N16: ='Fort Langley - Analysis'!N110 -> 4263253.714 | Q16: =INDEX($A$104:$N$124,'Form Control Selectors'!$B$34,Q$11) -> GW outflow from pumping - Private minor users (m3) | R16: =INDEX($A$104:$N$124,'Form Control Selectors'!$B$34,R$11) -> 131450.6924 | S16: =INDEX($A$104:$N$124,'Form Control Selectors'!$B$34,S$11) -> 128377.9843 | T16: =INDEX($A$104:$N$124,'Form Control Selectors'!$B$34,T$11) -> 126947.3782 | U16: =INDEX($A$104:$N$124,'Form Control Selectors'!$B$34,U$11) -> 135319.519 | V16: =INDEX($A$104:$N$124,'Form Control Selectors'!$B$34,V$11) -> 157395.9035 | W16: =INDEX($A$104:$N$124,'Form Control Selectors'!$B$34,W$11) -> 163193.985 | X16: =INDEX($A$104:$N$124,'Form Control Selectors'!$B$34,X$11) -> 167052.4947 | Y16: =INDEX($A$104:$N$124,'Form Control Selectors'!$B$34,Y$11) -> 151159.3549 | Z16: =INDEX($A$104:$N$124,'Form Control Selectors'!$B$34,Z$11) -> 153300.1057 | AA16: =INDEX($A$104:$N$124,'Form Control Selectors'!$B$34,AA$11) -> 136155.1855 | AB16: =INDEX($A$104:$N$124,'Form Control Selectors'!$B$34,AB$11) -> 133682.5755 | AC16: =INDEX($A$104:$N$124,'Form Control Selectors'!$B$34,AC$11) -> 135445.0409 | AD16: =INDEX($A$104:$N$124,'Form Control Selectors'!$B$34,AD$11) -> 1719480.219
A17: ='Beaver River - Analysis'!A58 -> GW outflow to surrounding aquitards (m3) | B17: ='Beaver River - Analysis'!B58 -> 1124339 | C17: ='Beaver River - Analysis'!C58 -> 1015532 | D17: ='Beaver River - Analysis'!D58 -> 1124339 | E17: ='Beaver River - Analysis'!E58 -> 1088070 | F17: ='Beaver River - Analysis'!F58 -> 1124339 | G17: ='Beaver River - Analysis'!G58 -> 1088070 | H17: ='Beaver River - Analysis'!H58 -> 1124339 | I17: ='Beaver River - Analysis'!I58 -> 1124339 | J17: ='Beaver River - Analysis'!J58 -> 1088070 | K17: ='Beaver River - Analysis'!K58 -> 1124339 | L17: ='Beaver River - Analysis'!L58 -> 1088070 | M17: ='Beaver River - Analysis'!M58 -> 1124339 | N17: ='Beaver River - Analysis'!N58 -> 13238185 | Q17: =INDEX($A$135:$N$155,'Form Control Selectors'!$B$34,Q$11) -> GW outflow to SW (m3) - Nicomekl R. / Bertrand Ck. | R17: =INDEX($A$135:$N$155,'Form Control Selectors'!$B$34,R$11) -> 108979 | S17: =INDEX($A$135:$N$155,'Form Control Selectors'!$B$34,S$11) -> 90405.81535 | T17: =INDEX($A$135:$N$155,'Form Control Selectors'!$B$34,T$11) -> 89296.15269 | U17: =INDEX($A$135:$N$155,'Form Control Selectors'!$B$34,U$11) -> 80593.338 | V17: =INDEX($A$135:$N$155,'Form Control Selectors'!$B$34,V$11) -> 73018.43204 | W17: =INDEX($A$135:$N$155,'Form Control Selectors'!$B$34,W$11) -> 69774.82575 | X17: =INDEX($A$135:$N$155,'Form Control Selectors'!$B$34,X$11) -> 72763.35362 | Y17: =INDEX($A$135:$N$155,'Form Control Selectors'!$B$34,Y$11) -> 72223.04328 | Z17: =INDEX($A$135:$N$155,'Form Control Selectors'!$B$34,Z$11) -> 69953.67687 | AA17: =INDEX($A$135:$N$155,'Form Control Selectors'!$B$34,AA$11) -> 75653.03563 | AB17: =INDEX($A$135:$N$155,'Form Control Selectors'!$B$34,AB$11) -> 86852.78785 | AC17: =INDEX($A$135:$N$155,'Form Control Selectors'!$B$34,AC$11) -> 104129.2696 | AD17: =INDEX($A$135:$N$155,'Form Control Selectors'!$B$34,AD$11) -> 993642.7307
A18: ='Beaver River - Analysis'!A84 -> GW outflow to surrounding aquitards (m3) | B18: ='Beaver River - Analysis'!B84 -> 1124339 | C18: ='Beaver River - Analysis'!C84 -> 1015532 | D18: ='Beaver River - Analysis'!D84 -> 1124339 | E18: ='Beaver River - Analysis'!E84 -> 1088070 | F18: ='Beaver River - Analysis'!F84 -> 1124339 | G18: ='Beaver River - Analysis'!G84 -> 1088070 | H18: ='Beaver River - Analysis'!H84 -> 1124339 | I18: ='Beaver River - Analysis'!I84 -> 1124339 | J18: ='Beaver River - Analysis'!J84 -> 1088070 | K18: ='Beaver River - Analysis'!K84 -> 1124339 | L18: ='Beaver River - Analysis'!L84 -> 1088070 | M18: ='Beaver River - Analysis'!M84 -> 1124339 | N18: ='Beaver River - Analysis'!N84 -> 13238185 | Q18: =INDEX($A$166:$N$186,'Form Control Selectors'!$B$34,Q$11) -> GW outflow to Salmon River System (m3) | R18: =INDEX($A$166:$N$186,'Form Control Selectors'!$B$34,R$11) -> 987707 | S18: =INDEX($A$166:$N$186,'Form Control Selectors'!$B$34,S$11) -> 784069.597 | T18: =INDEX($A$166:$N$186,'Form Control Selectors'!$B$34,T$11) -> 780727.599 | U18: =INDEX($A$166:$N$186,'Form Control Selectors'!$B$34,U$11) -> 708435.1893 | V18: =INDEX($A$166:$N$186,'Form Control Selectors'!$B$34,V$11) -> 649026.0411 | W18: =INDEX($A$166:$N$186,'Form Control Selectors'!$B$34,W$11) -> 620903.5902 | X18: =INDEX($A$166:$N$186,'Form Control Selectors'!$B$34,X$11) -> 646962.2247 | Y18: =INDEX($A$166:$N$186,'Form Control Selectors'!$B$34,Y$11) -> 642590.6229 | Z18: =INDEX($A$166:$N$186,'Form Control Selectors'!$B$34,Z$11) -> 622350.6583 | AA18: =INDEX($A$166:$N$186,'Form Control Selectors'!$B$34,AA$11) -> 670342.3792 | AB18: =INDEX($A$166:$N$186,'Form Control Selectors'!$B$34,AB$11) -> 759079.829 | AC18: =INDEX($A$166:$N$186,'Form Control Selectors'!$B$34,AC$11) -> 900740.9999 | AD18: =INDEX($A$166:$N$186,'Form Control Selectors'!$B$34,AD$11) -> 8772935.73
A19: ='Beaver River - Analysis'!A110 -> GW outflow to surrounding aquitards (m3) | B19: ='Beaver River - Analysis'!B110 -> 1124339 | C19: ='Beaver River - Analysis'!C110 -> 1015532 | D19: ='Beaver River - Analysis'!D110 -> 1124339 | E19: ='Beaver River - Analysis'!E110 -> 1088070 | F19: ='Beaver River - Analysis'!F110 -> 1124339 | G19: ='Beaver River - Analysis'!G110 -> 1088070 | H19: ='Beaver River - Analysis'!H110 -> 1124339 | I19: ='Beaver River - Analysis'!I110 -> 1124339 | J19: ='Beaver River - Analysis'!J110 -> 1088070 | K19: ='Beaver River - Analysis'!K110 -> 1124339 | L19: ='Beaver River - Analysis'!L110 -> 1088070 | M19: ='Beaver River - Analysis'!M110 -> 1124339 | N19: ='Beaver River - Analysis'!N110 -> 13238185 | Q19: =INDEX($A$197:$N$217,'Form Control Selectors'!$B$34,Q$11) ->  | R19: =INDEX($A$197:$N$217,'Form Control Selectors'!$B$34,R$11) ->  | S19: =INDEX($A$197:$N$217,'Form Control Selectors'!$B$34,S$11) ->  | T19: =INDEX($A$197:$N$217,'Form Control Selectors'!$B$34,T$11) ->  | U19: =INDEX($A$197:$N$217,'Form Control Selectors'!$B$34,U$11) ->  | V19: =INDEX($A$197:$N$217,'Form Control Selectors'!$B$34,V$11) ->  | W19: =INDEX($A$197:$N$217,'Form Control Selectors'!$B$34,W$11) ->  | X19: =INDEX($A$197:$N$217,'Form Control Selectors'!$B$34,X$11) ->  | Y19: =INDEX($A$197:$N$217,'Form Control Selectors'!$B$34,Y$11) ->  | Z19: =INDEX($A$197:$N$217,'Form Control Selectors'!$B$34,Z$11) ->  | AA19: =INDEX($A$197:$N$217,'Form Control Selectors'!$B$34,AA$11) ->  | AB19: =INDEX($A$197:$N$217,'Form Control Selectors'!$B$34,AB$11) ->  | AC19: =INDEX($A$197:$N$217,'Form Control Selectors'!$B$34,AC$11) ->  | AD19: =INDEX($A$197:$N$217,'Form Control Selectors'!$B$34,AD$11) -> 
A20: ='West of Aldergrove - Analysis'!A58 -> GW outflow to surrounding aquitards (m3) | B20: ='West of Aldergrove - Analysis'!B58 -> 2344344 | C20: ='West of Aldergrove - Analysis'!C58 -> 2117472 | D20: ='West of Aldergrove - Analysis'!D58 -> 2344344 | E20: ='West of Aldergrove - Analysis'!E58 -> 2268720 | F20: ='West of Aldergrove - Analysis'!F58 -> 2344344 | G20: ='West of Aldergrove - Analysis'!G58 -> 2268720 | H20: ='West of Aldergrove - Analysis'!H58 -> 2344344 | I20: ='West of Aldergrove - Analysis'!I58 -> 2344344 | J20: ='West of Aldergrove - Analysis'!J58 -> 2268720 | K20: ='West of Aldergrove - Analysis'!K58 -> 2344344 | L20: ='West of Aldergrove - Analysis'!L58 -> 2268720 | M20: ='West of Aldergrove - Analysis'!M58 -> 2344344 | N20: ='West of Aldergrove - Analysis'!N58 -> 27602760 | Q20: =INDEX($A$228:$N$248,'Form Control Selectors'!$B$34,Q$11) ->  | R20: =INDEX($A$228:$N$248,'Form Control Selectors'!$B$34,R$11) ->  | S20: =INDEX($A$228:$N$248,'Form Control Selectors'!$B$34,S$11) ->  | T20: =INDEX($A$228:$N$248,'Form Control Selectors'!$B$34,T$11) ->  | U20: =INDEX($A$228:$N$248,'Form Control Selectors'!$B$34,U$11) ->  | V20: =INDEX($A$228:$N$248,'Form Control Selectors'!$B$34,V$11) ->  | W20: =INDEX($A$228:$N$248,'Form Control Selectors'!$B$34,W$11) ->  | X20: =INDEX($A$228:$N$248,'Form Control Selectors'!$B$34,X$11) ->  | Y20: =INDEX($A$228:$N$248,'Form Control Selectors'!$B$34,Y$11) ->  | Z20: =INDEX($A$228:$N$248,'Form Control Selectors'!$B$34,Z$11) ->  | AA20: =INDEX($A$228:$N$248,'Form Control Selectors'!$B$34,AA$11) ->  | AB20: =INDEX($A$228:$N$248,'Form Control Selectors'!$B$34,AB$11) ->  | AC20: =INDEX($A$228:$N$248,'Form Control Selectors'!$B$34,AC$11) ->  | AD20: =INDEX($A$228:$N$248,'Form Control Selectors'!$B$34,AD$11) -> 
A21: ='West of Aldergrove - Analysis'!A89 -> GW outflow to surrounding aquitards (m3) | B21: ='West of Aldergrove - Analysis'!B89 -> 2344344 | C21: ='West of Aldergrove - Analysis'!C89 -> 2117472 | D21: ='West of Aldergrove - Analysis'!D89 -> 2344344 | E21: ='West of Aldergrove - Analysis'!E89 -> 2268720 | F21: ='West of Aldergrove - Analysis'!F89 -> 2344344 | G21: ='West of Aldergrove - Analysis'!G89 -> 2268720 | H21: ='West of Aldergrove - Analysis'!H89 -> 2344344 | I21: ='West of Aldergrove - Analysis'!I89 -> 2344344 | J21: ='West of Aldergrove - Analysis'!J89 -> 2268720 | K21: ='West of Aldergrove - Analysis'!K89 -> 2344344 | L21: ='West of Aldergrove - Analysis'!L89 -> 2268720 | M21: ='West of Aldergrove - Analysis'!M89 -> 2344344 | N21: ='West of Aldergrove - Analysis'!N89 -> 27602760 | Q21: =INDEX($A$259:$N$279,'Form Control Selectors'!$B$34,Q$11) ->  | R21: =INDEX($A$259:$N$279,'Form Control Selectors'!$B$34,R$11) ->  | S21: =INDEX($A$259:$N$279,'Form Control Selectors'!$B$34,S$11) ->  | T21: =INDEX($A$259:$N$279,'Form Control Selectors'!$B$34,T$11) ->  | U21: =INDEX($A$259:$N$279,'Form Control Selectors'!$B$34,U$11) ->  | V21: =INDEX($A$259:$N$279,'Form Control Selectors'!$B$34,V$11) ->  | W21: =INDEX($A$259:$N$279,'Form Control Selectors'!$B$34,W$11) ->  | X21: =INDEX($A$259:$N$279,'Form Control Selectors'!$B$34,X$11) ->  | Y21: =INDEX($A$259:$N$279,'Form Control Selectors'!$B$34,Y$11) ->  | Z21: =INDEX($A$259:$N$279,'Form Control Selectors'!$B$34,Z$11) ->  | AA21: =INDEX($A$259:$N$279,'Form Control Selectors'!$B$34,AA$11) ->  | AB21: =INDEX($A$259:$N$279,'Form Control Selectors'!$B$34,AB$11) ->  | AC21: =INDEX($A$259:$N$279,'Form Control Selectors'!$B$34,AC$11) ->  | AD21: =INDEX($A$259:$N$279,'Form Control Selectors'!$B$34,AD$11) -> 
A22: ='West of Aldergrove - Analysis'!A120 -> GW outflow to surrounding aquitards (m3) | B22: ='West of Aldergrove - Analysis'!B120 -> 2344344 | C22: ='West of Aldergrove - Analysis'!C120 -> 2117472 | D22: ='West of Aldergrove - Analysis'!D120 -> 2344344 | E22: ='West of Aldergrove - Analysis'!E120 -> 2268720 | F22: ='West of Aldergrove - Analysis'!F120 -> 2344344 | G22: ='West of Aldergrove - Analysis'!G120 -> 2268720 | H22: ='West of Aldergrove - Analysis'!H120 -> 2344344 | I22: ='West of Aldergrove - Analysis'!I120 -> 2344344 | J22: ='West of Aldergrove - Analysis'!J120 -> 2268720 | K22: ='West of Aldergrove - Analysis'!K120 -> 2344344 | L22: ='West of Aldergrove - Analysis'!L120 -> 2268720 | M22: ='West of Aldergrove - Analysis'!M120 -> 2344344 | N22: ='West of Aldergrove - Analysis'!N120 -> 27602760 | Q22: =INDEX($A$290:$N$310,'Form Control Selectors'!$B$34,Q$11) ->  | R22: =INDEX($A$290:$N$310,'Form Control Selectors'!$B$34,R$11) ->  | S22: =INDEX($A$290:$N$310,'Form Control Selectors'!$B$34,S$11) ->  | T22: =INDEX($A$290:$N$310,'Form Control Selectors'!$B$34,T$11) ->  | U22: =INDEX($A$290:$N$310,'Form Control Selectors'!$B$34,U$11) ->  | V22: =INDEX($A$290:$N$310,'Form Control Selectors'!$B$34,V$11) ->  | W22: =INDEX($A$290:$N$310,'Form Control Selectors'!$B$34,W$11) ->  | X22: =INDEX($A$290:$N$310,'Form Control Selectors'!$B$34,X$11) ->  | Y22: =INDEX($A$290:$N$310,'Form Control Selectors'!$B$34,Y$11) ->  | Z22: =INDEX($A$290:$N$310,'Form Control Selectors'!$B$34,Z$11) ->  | AA22: =INDEX($A$290:$N$310,'Form Control Selectors'!$B$34,AA$11) ->  | AB22: =INDEX($A$290:$N$310,'Form Control Selectors'!$B$34,AB$11) ->  | AC22: =INDEX($A$290:$N$310,'Form Control Selectors'!$B$34,AC$11) ->  | AD22: =INDEX($A$290:$N$310,'Form Control Selectors'!$B$34,AD$11) -> 
A23: ='S of Murrayville AC - Analysis'!A58 -> GW outflow to surrounding aquitards (m3) | B23: ='S of Murrayville AC - Analysis'!B58 -> 1754972 | C23: ='S of Murrayville AC - Analysis'!C58 -> 1585136 | D23: ='S of Murrayville AC - Analysis'!D58 -> 1754972 | E23: ='S of Murrayville AC - Analysis'!E58 -> 1698360 | F23: ='S of Murrayville AC - Analysis'!F58 -> 1754972 | G23: ='S of Murrayville AC - Analysis'!G58 -> 1698360 | H23: ='S of Murrayville AC - Analysis'!H58 -> 1754972 | I23: ='S of Murrayville AC - Analysis'!I58 -> 1754972 | J23: ='S of Murrayville AC - Analysis'!J58 -> 1698360 | K23: ='S of Murrayville AC - Analysis'!K58 -> 1754972 | L23: ='S of Murrayville AC - Analysis'!L58 -> 1698360 | M23: ='S of Murrayville AC - Analysis'!M58 -> 1754972 | N23: ='S of Murrayville AC - Analysis'!N58 -> 20663380 | Q23: =INDEX($A$321:$N$341,'Form Control Selectors'!$B$34,Q$11) ->  | R23: =INDEX($A$321:$N$341,'Form Control Selectors'!$B$34,R$11) ->  | S23: =INDEX($A$321:$N$341,'Form Control Selectors'!$B$34,S$11) ->  | T23: =INDEX($A$321:$N$341,'Form Control Selectors'!$B$34,T$11) ->  | U23: =INDEX($A$321:$N$341,'Form Control Selectors'!$B$34,U$11) ->  | V23: =INDEX($A$321:$N$341,'Form Control Selectors'!$B$34,V$11) ->  | W23: =INDEX($A$321:$N$341,'Form Control Selectors'!$B$34,W$11) ->  | X23: =INDEX($A$321:$N$341,'Form Control Selectors'!$B$34,X$11) ->  | Y23: =INDEX($A$321:$N$341,'Form Control Selectors'!$B$34,Y$11) ->  | Z23: =INDEX($A$321:$N$341,'Form Control Selectors'!$B$34,Z$11) ->  | AA23: =INDEX($A$321:$N$341,'Form Control Selectors'!$B$34,AA$11) ->  | AB23: =INDEX($A$321:$N$341,'Form Control Selectors'!$B$34,AB$11) ->  | AC23: =INDEX($A$321:$N$341,'Form Control Selectors'!$B$34,AC$11) ->  | AD23: =INDEX($A$321:$N$341,'Form Control Selectors'!$B$34,AD$11) -> 
A24: ='S of Murrayville AC - Analysis'!A84 -> GW outflow to surrounding aquitards (m3) | B24: ='S of Murrayville AC - Analysis'!B84 -> 1754972 | C24: ='S of Murrayville AC - Analysis'!C84 -> 1585136 | D24: ='S of Murrayville AC - Analysis'!D84 -> 1754972 | E24: ='S of Murrayville AC - Analysis'!E84 -> 1698360 | F24: ='S of Murrayville AC - Analysis'!F84 -> 1754972 | G24: ='S of Murrayville AC - Analysis'!G84 -> 1698360 | H24: ='S of Murrayville AC - Analysis'!H84 -> 1754972 | I24: ='S of Murrayville AC - Analysis'!I84 -> 1754972 | J24: ='S of Murrayville AC - Analysis'!J84 -> 1698360 | K24: ='S of Murrayville AC - Analysis'!K84 -> 1754972 | L24: ='S of Murrayville AC - Analysis'!L84 -> 1698360 | M24: ='S of Murrayville AC - Analysis'!M84 -> 1754972 | N24: ='S of Murrayville AC - Analysis'!N84 -> 20663380
A25: ='S of Murrayville AC - Analysis'!A110 -> GW outflow to surrounding aquitards (m3) | B25: ='S of Murrayville AC - Analysis'!B110 -> 1754972 | C25: ='S of Murrayville AC - Analysis'!C110 -> 1585136 | D25: ='S of Murrayville AC - Analysis'!D110 -> 1754972 | E25: ='S of Murrayville AC - Analysis'!E110 -> 1698360 | F25: ='S of Murrayville AC - Analysis'!F110 -> 1754972 | G25: ='S of Murrayville AC - Analysis'!G110 -> 1698360 | H25: ='S of Murrayville AC - Analysis'!H110 -> 1754972 | I25: ='S of Murrayville AC - Analysis'!I110 -> 1754972 | J25: ='S of Murrayville AC - Analysis'!J110 -> 1698360 | K25: ='S of Murrayville AC - Analysis'!K110 -> 1754972 | L25: ='S of Murrayville AC - Analysis'!L110 -> 1698360 | M25: ='S of Murrayville AC - Analysis'!M110 -> 1754972 | N25: ='S of Murrayville AC - Analysis'!N110 -> 20663380
A26: ='Salmon River - Analysis'!A58 -> GW outflow to surrounding aquitards (m3) | B26: ='Salmon River - Analysis'!B58 -> 1123967 | C26: ='Salmon River - Analysis'!C58 -> 1015196 | D26: ='Salmon River - Analysis'!D58 -> 1123967 | E26: ='Salmon River - Analysis'!E58 -> 1087710 | F26: ='Salmon River - Analysis'!F58 -> 1123967 | G26: ='Salmon River - Analysis'!G58 -> 1087710 | H26: ='Salmon River - Analysis'!H58 -> 1123967 | I26: ='Salmon River - Analysis'!I58 -> 1123967 | J26: ='Salmon River - Analysis'!J58 -> 1087710 | K26: ='Salmon River - Analysis'!K58 -> 1123967 | L26: ='Salmon River - Analysis'!L58 -> 1087710 | M26: ='Salmon River - Analysis'!M58 -> 1123967 | N26: ='Salmon River - Analysis'!N58 -> 13233805
A27: ='Salmon River - Analysis'!A84 -> GW outflow to surrounding aquitards (m3) | B27: ='Salmon River - Analysis'!B84 -> 1123967 | C27: ='Salmon River - Analysis'!C84 -> 1015196 | D27: ='Salmon River - Analysis'!D84 -> 1123967 | E27: ='Salmon River - Analysis'!E84 -> 1087710 | F27: ='Salmon River - Analysis'!F84 -> 1123967 | G27: ='Salmon River - Analysis'!G84 -> 1087710 | H27: ='Salmon River - Analysis'!H84 -> 1123967 | I27: ='Salmon River - Analysis'!I84 -> 1123967 | J27: ='Salmon River - Analysis'!J84 -> 1087710 | K27: ='Salmon River - Analysis'!K84 -> 1123967 | L27: ='Salmon River - Analysis'!L84 -> 1087710 | M27: ='Salmon River - Analysis'!M84 -> 1123967 | N27: ='Salmon River - Analysis'!N84 -> 13233805
